Workbook

Sheet BASEMDM (hidden)
A1: Etiquetas de fila | B1: SECTOR | C1: N/T
A2: ATLANTICO - GRAN CENTRAL DE ABASTOS DEL CARIBE S.A. | B2: AGRICULTURA Y DESARROLLO RURAL | C2: NACIONAL
A3: AUTORIDAD NACIONAL DE ACUICULTURA Y PESCA (AUNAP) | B3: AGRICULTURA Y DESARROLLO RURAL | C3: NACIONAL
A4: BANCO AGRARIO | B4: AGRICULTURA Y DESARROLLO RURAL | C4: NACIONAL
A5: FINAGRO - FONDO PARA EL FINANCIAMIENTO DEL SECTOR AGROPECUARIO | B5: AGRICULTURA Y DESARROLLO RURAL | C5: NACIONAL
A6: INSTITUTO COLOMBIANO AGROPECUARIO (ICA) | B6: AGRICULTURA Y DESARROLLO RURAL | C6: NACIONAL
A7: INSTITUTO COLOMBIANO DE DESARROLLO RURAL (INCODER) | B7: AGRICULTURA Y DESARROLLO RURAL | C7: NACIONAL
A8: MINISTERIO DE AGRICULTURA Y DESARROLLO RURAL (MINAGRICULTURA) | B8: AGRICULTURA Y DESARROLLO RURAL | C8: NACIONAL
A9: UNIDAD DE PLANIFICACION DE TIERRAS RURALES ADECUACION DE TIERRAS Y USOS AGROPECUARIOS - UPRA | B9: AGRICULTURA Y DESARROLLO RURAL | C9: NACIONAL
A10: UNIDAD DE RESTITUCION DE TIERRAS (URT) | B10: AGRICULTURA Y DESARROLLO RURAL | C10: NACIONAL
A11: CORMAGDALENA - CORPORACION AUTONOMA REGIONAL DEL RIO GRANDE DE LA MAGDALENA | B11: AMBIENTE Y DESARROLLO SOSTENIBLE | C11: NACIONAL
A12: AUTORIDAD NACIONAL DE LICENCIAS AMBIENTALES (ANLA) | B12: AMBIENTE Y DESARROLLO SOSTENIBLE | C12: NACIONAL
A13: BOGOTA D.C. - INSTITUTO AMAZONICO DE INVESTIGACIONES CIENTIFICAS SINCHI | B13: AMBIENTE Y DESARROLLO SOSTENIBLE | C13: NACIONAL
A14: COMISION DE REGULACION DE AGUA POTABLE Y SANEAMIENTO BASICO (CRA) | B14: AMBIENTE Y DESARROLLO SOSTENIBLE | C14: NACIONAL
A15: INSTITUTO DE HIDROLOGIA, METEOROLOGIA Y ESTUDIOS AMBIENTALES (IDEAM) | B15: AMBIENTE Y DESARROLLO SOSTENIBLE | C15: NACIONAL
A16: MINISTERIO DE AMBIENTE Y DESARROLLO SOSTENIBLE (MINAMBIENTE) | B16: AMBIENTE Y DESARROLLO SOSTENIBLE | C16: NACIONAL
A17: UNIDAD ADMINISTRATIVA ESPECIAL DEL SISTEMA DE PARQUES NACIONALES NATURALES | B17: AMBIENTE Y DESARROLLO SOSTENIBLE | C17: NACIONAL
A18: BANCO DE LA REPUBLICA | B18: BANCO DE LA REPUBLICA | C18: NACIONAL
A19: DEPARTAMENTO ADMINISTRATIVO DE LA CIENCIA, TECNOLOGIA E INNOVACION (COLCIENCIAS) | B19: CIENCIA, TECNOLOGIA E INNOVACION | C19: NACIONAL
A20: COMISION PROFESIONAL COLOMBIANA DE DISEÑO INDUSTRIAL | B20: COMERCIO, INDUSTRIA Y TURISMO | C20: NACIONAL
A21: CONSEJO PROFESIONAL DE ADMINISTRACION DE EMPRESAS | B21: COMERCIO, INDUSTRIA Y TURISMO | C21: NACIONAL
A22: FNG - FONDO NACIONAL DE GARANTIAS | B22: COMERCIO, INDUSTRIA Y TURISMO | C22: NACIONAL
A23: JUNTA CENTRAL DE CONTADORES (JCC) | B23: COMERCIO, INDUSTRIA Y TURISMO | C23: NACIONAL
A24: ARTESANIAS DE COLOMBIA | B24: COMERCIO, INDUSTRIA Y TURISMO | C24: NACIONAL
A25: BANCOLDEX - BANCO DE COMERCIO EXTERIOR DE COLOMBIA S.A. | B25: COMERCIO, INDUSTRIA Y TURISMO | C25: NACIONAL
A26: INSTITUTO NACIONAL DE METROLOGIA (INM) | B26: COMERCIO, INDUSTRIA Y TURISMO | C26: NACIONAL
A27: MINISTERIO DE COMERCIO, INDUSTRIA Y TURISMO (MINCIT) | B27: COMERCIO, INDUSTRIA Y TURISMO | C27: NACIONAL
A28: SUPERINTENDENCIA DE INDUSTRIA Y COMERCIO (SUPERINDUSTRIA) | B28: COMERCIO, INDUSTRIA Y TURISMO | C28: NACIONAL
A29: SUPERINTENDENCIA DE SOCIEDADES (SUPERSOCIEDADES) | B29: COMERCIO, INDUSTRIA Y TURISMO | C29: NACIONAL
A30: AUDITORIA GENERAL DE LA REPUBLICA (AGR) | B30: CONTROL | C30: NACIONAL
A31: CONTRALORIA GENERAL DE LA REPUBLICA (CGR) | B31: CONTROL | C31: NACIONAL
A32: DEFENSORIA DEL PUEBLO (DEFENSORIA) | B32: CONTROL | C32: NACIONAL
A33: FONDO DE BIENESTAR SOCIAL DE LA CONTRALORIA GENERAL DE LA REPUBLICA | B33: CONTROL | C33: NACIONAL
A34: PROCURADURIA GENERAL DE LA NACION (PGN) | B34: CONTROL | C34: NACIONAL
A35: INSTITUTO CARO Y CUERVO (ICC) | B35: CULTURA | C35: NACIONAL
A36: INSTITUTO COLOMBIANO DE ANTROPOLOGIA E HISTORIA (ICANH) | B36: CULTURA | C36: NACIONAL
A37: MINISTERIO DE CULTURA (MINCULTURA) | B37: CULTURA | C37: NACIONAL
A38: VALLE DEL CAUCA - INSTITUTO COLOMBIANO DE BALLET CLASICO INCOLBALLET | B38: CULTURA | C38: NACIONAL
A39: DIRECCION NACIONAL DE ESTUPEFACIENTES (DNE) | B39: DEFENSA NACIONAL | C39: NACIONAL
A40: AGENCIA LOGISTICA DE LAS FUERZAS MILITARES (ALFM) | B40: DEFENSA NACIONAL | C40: NACIONAL
A41: ARMADA NACIONAL DE LA REPUBLICA DE COLOMBIA | B41: DEFENSA NACIONAL | C41: NACIONAL
A42: CAJA DE RETIRO DE LAS FUERZAS MILITARES (CREMIL) | B42: DEFENSA NACIONAL | C42: NACIONAL
A43: CAJA DE SUELDOS DE RETIRO DE LA POLICIA NACIONAL (CASUR) | B43: DEFENSA NACIONAL | C43: NACIONAL
A44: CLUB MILITAR (CLUB MILITAR) | B44: DEFENSA NACIONAL | C44: NACIONAL
A45: COMANDO GENERAL DE LAS FUERZAS MILITARES | B45: DEFENSA NACIONAL | C45: NACIONAL
A46: COMISION COLOMBIANA DEL OCEANO - SECRETARIA EJECUTIVA DE LA COMISION COLOMBIANA DEL OCEANO | B46: DEFENSA NACIONAL | C46: NACIONAL
A47: CORPORACION DE ALTA TECNOLOGIA PARA LA DEFENSA - CODALTEC | B47: DEFENSA NACIONAL | C47: NACIONAL
A48: DIRECCION DE SANIDAD DE LA FUERZA AEREA COLOMBIANA | B48: DEFENSA NACIONAL | C48: NACIONAL
A49: DIRECCION GENERAL DE LA POLICIA NACIONAL (PONAL) | B49: DEFENSA NACIONAL | C49: NACIONAL
A50: DIRECCION GENERAL DE SANIDAD MILITAR | B50: DEFENSA NACIONAL | C50: NACIONAL
A51: DIRECCION GENERAL MARITIMA | B51: DEFENSA NACIONAL | C51: NACIONAL
A52: DIVISION DE SANIDAD DE LA POLICIA NACIONAL | B52: DEFENSA NACIONAL | C52: NACIONAL
A53: EJERCITO NACIONAL | B53: DEFENSA NACIONAL | C53: NACIONAL
A54: ESCUELA SUPERIOR DE GUERRA | B54: DEFENSA NACIONAL | C54: NACIONAL
A55: FONDO ROTATORIO DE LA POLICIA NACIONAL (FORPO) | B55: DEFENSA NACIONAL | C55: NACIONAL
A56: FUERZA AEREA COLOMBIANA | B56: DEFENSA NACIONAL | C56: NACIONAL
A57: HOSPITAL MILITAR CENTRAL (HOMIC) | B57: DEFENSA NACIONAL | C57: NACIONAL
A58: INDUMIL - INDUSTRIA MILITAR | B58: DEFENSA NACIONAL | C58: NACIONAL
A59: INSTITUTO DE CASAS FISCALES DEL EJERCITO (ICFE) | B59: DEFENSA NACIONAL | C59: NACIONAL
A60: MINISTERIO DE DEFENSA NACIONAL (MINDEFENSA) | B60: DEFENSA NACIONAL | C60: NACIONAL
A61: SUPERINTENDENCIA DE VIGILANCIA Y SEGURIDAD PRIVADA (SUPERVIGILANCIA) | B61: DEFENSA NACIONAL | C61: NACIONAL
A62: DEPARTAMENTO ADMINISTRATIVO DEL DEPORTE, LA RECREACION, LA ACTIVIDAD FISICA Y EL APROVECHAMIENTO DEL TIEMPO LIBRE (COLDEPORTES) | B62: DEPORTE Y RECREACION | C62: NACIONAL
A63: ESCUELA TECNOLOGICA INSTITUTO TECNICO CENTRAL (ITC) | B63: EDUCACION | C63: NACIONAL
A64: INSTITUTO COLOMBIANO PARA EL FOMENTO DE LA EDUCACION SUPERIOR (ICFES) | B64: EDUCACION | C64: NACIONAL
A65: INSTITUTO NACIONAL DE FORMACION TECNICA PROFESIONAL DE SAN JUAN DEL CESAR (INFOTEP CESAR) | B65: EDUCACION | C65: NACIONAL
A66: INSTITUTO NACIONAL DE FORMACION TECNICA PROFESIONAL DEL DEPARTAMENTO DE SAN ANDRES, PROVIDENCIA Y SANTA CATALINA (INFOTEP SAN ANDRES) | B66: EDUCACION | C66: NACIONAL
A67: INSTITUTO NACIONAL PARA CIEGOS (INCI) | B67: EDUCACION | C67: NACIONAL
A68: INSTITUTO NACIONAL PARA SORDOS (INSOR) | B68: EDUCACION | C68: NACIONAL
A69: INSTITUTO TECNICO NACIONAL DE COMERCIO SIMON RODRIGUEZ (INTENALCO) | B69: EDUCACION | C69: NACIONAL
A70: INSTITUTO TOLIMENSE DE FORMACION TECNICA PROFESIONAL (ITFIP) | B70: EDUCACION | C70: NACIONAL
A71: MAGDALENA - INSTITUTO NACIONAL DE FORMACION TECNICA PROFESIONAL "HUMBERTO VELASQUEZ GARCIA" - INFOTEP - CIENAGA | B71: EDUCACION | C71: NACIONAL
A72: META - UNIVERSIDAD DE LOS LLANOS - VILLAVICENCIO | B72: EDUCACION | C72: NACIONAL
A73: MINISTERIO DE EDUCACION NACIONAL (MEN) | B73: EDUCACION | C73: NACIONAL
A74: TOLIMA - UNIVERSIDAD DEL TOLIMA | B74: EDUCACION | C74: NACIONAL
A75: UNIVERSIDAD MILITAR NUEVA GRANADA | B75: EDUCACION | C75: NACIONAL
A76: ESCUELA NACIONAL DEL DEPORTE | B76: EDUCACION | C76: NACIONAL
A77: DEPARTAMENTO ADMINISTRATIVO NACIONAL DE ESTADISTICA (DANE) | B77: ESTADISTICA | C77: NACIONAL
A78: FONDO ROTATORIO DEL DANE | B78: ESTADISTICA | C78: NACIONAL
A79: INSTITUTO GEOGRAFICO AGUSTIN CODAZZI (IGAC) | B79: ESTADISTICA | C79: NACIONAL
A80: FISCALIA GENERAL DE LA NACION (FGN) | B80: FISCALIA | C80: NACIONAL
A81: INSTITUTO NACIONAL DE MEDICINA LEGAL Y CIENCIAS FORENSES | B81: FISCALIA | C81: NACIONAL
A82: CNSC - COMISION NACIONAL DEL SERVICIO CIVIL | B82: FUNCION PUBLICA | C82: NACIONAL
A83: DEPARTAMENTO ADMINISTRATIVO DE LA FUNCION PUBLICA (DAFP) | B83: FUNCION PUBLICA | C83: NACIONAL
A84: ESCUELA SUPERIOR DE ADMINISTRACION PUBLICA (ESAP) | B84: FUNCION PUBLICA | C84: NACIONAL
A85: ADMINISTRADORA COLOMBIANA DE PENSIONES (COLPENSIONES) | B85: HACIENDA Y CREDITO PUBLICO | C85: NACIONAL
A86: AGENCIA DEL INSPECTOR GENERAL DE TRIBUTOS, RENTAS Y CONTRIBUCIONES PARAFISCALES (ITRC) | B86: HACIENDA Y CREDITO PUBLICO | C86: NACIONAL
A87: BOGOTA D.C. - FIDEICOMISOS PATRIMONIOS AUTONOMOS FIDUCIARIA LA PREVISORA S.A. | B87: HACIENDA Y CREDITO PUBLICO | C87: NACIONAL
A88: COLJUEGOS - EMPRESA INDUSTRIAL Y COMERCIAL DEL ESTADO ADMINISTRADORA DEL MONOPOLIO RENTISTICO DE LOS JUEGOS DE SUERTE Y AZAR | B88: HACIENDA Y CREDITO PUBLICO | C88: NACIONAL
A89: CONTADURIA GENERAL DE LA NACION (CGN) | B89: HACIENDA Y CREDITO PUBLICO | C89: NACIONAL
A90: DIRECCION DE IMPUESTOS Y ADUANAS NACIONALES (DIAN) | B90: HACIENDA Y CREDITO PUBLICO | C90: NACIONAL
A91: FINDETER - FINANCIERA DE DESARROLLO TERRITORIAL | B91: HACIENDA Y CREDITO PUBLICO | C91: NACIONAL
A92: FOGACOOP - FONDO DE GARANTIAS DE ENTIDADES COOPERATIVAS | B92: HACIENDA Y CREDITO PUBLICO | C92: NACIONAL
A93: FONDO ADAPTACION (FA) | B93: HACIENDA Y CREDITO PUBLICO | C93: NACIONAL
A94: LA PREVISORA COMPAÑIA DE SEGUROS | B94: HACIENDA Y CREDITO PUBLICO | C94: NACIONAL
A95: MINISTERIO DE HACIENDA Y CREDITO PUBLICO (MINHACIENDA) | B95: HACIENDA Y CREDITO PUBLICO | C95: NACIONAL
A96: POSITIVA COMPAÑIA DE SEGUROS S.A | B96: HACIENDA Y CREDITO PUBLICO | C96: NACIONAL
A97: SUPERINTENDENCIA DE LA ECONOMIA SOLIDARIA (SUPERSOLIDARIA) | B97: HACIENDA Y CREDITO PUBLICO | C97: NACIONAL
A98: SUPERINTENDENCIA FINANCIERA DE COLOMBIA (SUPERFINANCIERA) | B98: HACIENDA Y CREDITO PUBLICO | C98: NACIONAL
A99: UNIDAD ADMINISTRATIVA ESPECIAL, UNIDAD DE PROYECCION NORMATIVA Y ESTUDIOS DE REGULACION FINANCIERA | B99: HACIENDA Y CREDITO PUBLICO | C99: NACIONAL
A100: UNIDAD DE GESTION PENSIONAL Y PARAFISCALES (UGPP) | B100: HACIENDA Y CREDITO PUBLICO | C100: NACIONAL
A101: UNIDAD DE INFORMACION Y ANALISIS FINANCIERO (UIAF) | B101: HACIENDA Y CREDITO PUBLICO | C101: NACIONAL
A102: AGENCIA NACIONAL PARA LA SUPERACION DE LA POBREZA EXTREMA (ANSPE) | B102: INCLUSION SOCIAL Y RECONCILIACION | C102: NACIONAL
A103: CENTRO DE MEMORIA HISTORICA (CNMH) | B103: INCLUSION SOCIAL Y RECONCILIACION | C103: NACIONAL
A104: DEPARTAMENTO ADMINISTRATIVO PARA LA PROSPERIDAD SOCIAL (DPS) | B104: INCLUSION SOCIAL Y RECONCILIACION | C104: NACIONAL
A105: FONDO DE INVERSION PARA LA PAZ | B105: INCLUSION SOCIAL Y RECONCILIACION | C105: NACIONAL
A106: INSTITUTO COLOMBIANO DE BIENESTAR FAMILIAR (ICBF) | B106: INCLUSION SOCIAL Y RECONCILIACION | C106: NACIONAL
A107: UNIDAD ADMINISTRATIVA PARA LA CONSOLIDACION TERRITORIAL (UACT) | B107: INCLUSION SOCIAL Y RECONCILIACION | C107: NACIONAL
A108: UNIDAD PARA LA ATENCION Y REPARACION INTEGRAL A LAS VICTIMAS | B108: INCLUSION SOCIAL Y RECONCILIACION | C108: NACIONAL
A109: DAS - DEPARTAMENTO ADMINISTRATIVO DE SEGURIDAD | B109: INTELIGENCIA | C109: NACIONAL
A110: DIRECCION NACIONAL DE INTELIGENCIA (DNI) | B110: INTELIGENCIA | C110: NACIONAL
A111: FONDO ROTATORIO DEL DAS | B111: INTELIGENCIA | C111: NACIONAL
A112: ARCHIVO GENERAL DE LA NACION (AGN) | B112: INTERIOR | C112: NACIONAL
A113: CORPORACION NASA KIWE (NASA KIWE) | B113: INTERIOR | C113: NACIONAL
A114: DEFENSA CIVIL COLOMBIANA (DCC) | B114: INTERIOR | C114: NACIONAL
A115: DIRECCION NACIONAL DE BOMBEROS | B115: INTERIOR | C115: NACIONAL
A116: DIRECCION NACIONAL DEL DERECHO DE AUTOR (DNDA) | B116: INTERIOR | C116: NACIONAL
A117: IMPRENTA NACIONAL DE COLOMBIA (INC) | B117: INTERIOR | C117: NACIONAL
A118: MINISTERIO DEL INTERIOR (MININTERIOR) | B118: INTERIOR | C118: NACIONAL
A119: UNIDAD NACIONAL DE PROTECCION (UNP) | B119: INTERIOR | C119: NACIONAL
A120: AGENCIA NACIONAL DE DEFENSA JURIDICA DEL ESTADO (ANDJE) | B120: JUSTICIA Y DEL DERECHO | C120: NACIONAL
A121: INSTITUTO NACIONAL PENITENCIARIO Y CARCELARIO (INPEC) | B121: JUSTICIA Y DEL DERECHO | C121: NACIONAL
A122: MINISTERIO DE JUSTICIA Y DEL DERECHO (MINJUSTICIA) | B122: JUSTICIA Y DEL DERECHO | C122: NACIONAL
A123: NARIÑO - ESTABLECIMIENTO DE MEDIANA SEGURIDAD Y CARCELARIO - LA UNION | B123: JUSTICIA Y DEL DERECHO | C123: NACIONAL
A124: SUPERINTENDENCIA DE NOTARIADO Y REGISTRO (SUPERNOTARIADO) | B124: JUSTICIA Y DEL DERECHO | C124: NACIONAL
A125: UNIDAD DE SERVICIOS PENITENCIARIOS Y CARCELARIOS (UPSEC) | B125: JUSTICIA Y DEL DERECHO | C125: NACIONAL
A126: AGENCIA NACIONAL DE HIDROCARBUROS (ANH) | B126: MINAS Y ENERGIA | C126: NACIONAL
A127: AGENCIA NACIONAL DE MINERIA (ANM) | B127: MINAS Y ENERGIA | C127: NACIONAL
A128: BOGOTA D.C. - INTERNEXA S.A. E.S.P. | B128: MINAS Y ENERGIA | C128: NACIONAL
A129: BOGOTA D.C. - ISAGEN - EMPRESA COLOMBIANA DE GENERACION S.A. E.S.P. | B129: MINAS Y ENERGIA | C129: NACIONAL
A130: BOGOTA D.C. - OLEODUCTO CENTRAL S.A. - OCENSA | B130: MINAS Y ENERGIA | C130: NACIONAL
A131: BOGOTA D.C. - TRANSELCA S.A. E.S.P. | B131: MINAS Y ENERGIA | C131: NACIONAL
A132: BOLIVAR - REFINERIA DE CARTAGENA S.A | B132: MINAS Y ENERGIA | C132: NACIONAL
A133: CREG - COMISION DE REGULACION DE ENERGIA Y GAS | B133: MINAS Y ENERGIA | C133: NACIONAL
A134: ECOPETROL - EMPRESA COLOMBIANA DE PETROLEOS | B134: MINAS Y ENERGIA | C134: NACIONAL
A135: INSTITUTO DE PLANIFICACION Y PROMOCION DE SOLUCIONES ENERGETICAS PARA LAS ZONAS NO INTERCONECTADAS (IPSE) | B135: MINAS Y ENERGIA | C135: NACIONAL
A136: MINISTERIO DE MINAS Y ENERGIA (MINMINAS) | B136: MINAS Y ENERGIA | C136: NACIONAL
A137: SERVICIO GEOLOGICO COLOMBIANO (SGC) | B137: MINAS Y ENERGIA | C137: NACIONAL
A138: UNIDAD DE PLANEACION MINERO ENERGETICA (UPME) | B138: MINAS Y ENERGIA | C138: NACIONAL
A139: CONSEJO PROFESIONAL NACIONAL DE ARQUITECTURA Y SUS PROFESIONES AUXILIARES | B139: TERRITORIAL | C139: NACIONAL
A140: CONSEJO PROFESIONAL NACIONAL DE INGENIERIA - COPNIA | B140: TERRITORIAL | C140: NACIONAL
A141: FONPRECON - FONDO DE PREVISION SOCIAL DEL CONGRESO DE LA REPUBLICA | B141: TERRITORIAL | C141: NACIONAL
A142: INSTITUTO DE ESTUDIOS DEL MINISTERIO PUBLICO | B142: TERRITORIAL | C142: NACIONAL
A143: AGENCIA NACIONAL DE CONTRATACION PUBLICA (COLOMBIA COMPRA EFICIENTE) | B143: PLANEACION | C143: NACIONAL
A144: DEPARTAMENTO NACIONAL DE PLANEACION (DNP) | B144: PLANEACION | C144: NACIONAL
A145: FONDO FINANCIERO DE PROYECTOS DE DESARROLLO (FONADE) | B145: PLANEACION | C145: NACIONAL
A146: FONDO NACIONAL DE REGALIAS | B146: PLANEACION | C146: NACIONAL
A147: SUPERINTENDENCIA DE SERVICIOS PUBLICOS DOMICILIARIOS (SSPD) | B147: PLANEACION | C147: NACIONAL
A148: AGENCIA COLOMBIANA PARA LA REINTEGRACION DE PERSONAS Y GRUPOS ALZADOS EN ARMAS (ACR) | B148: PRESIDENCIA DE LA REPUBLICA | C148: NACIONAL
A149: AGENCIA PRESIDENCIAL DE COOPERACION INTERNACIONAL DE COLOMBIA (APC) | B149: PRESIDENCIA DE LA REPUBLICA | C149: NACIONAL
A150: BOGOTA D.C. - EMPRESA NACIONAL DE RENOVACION Y DESARROLLO URBANO VIRGILIO BARCO VARGAS SAS | B150: PRESIDENCIA DE LA REPUBLICA | C150: NACIONAL
A151: DEPARTAMENTO ADMINISTRATIVO DE LA PRESIDENCIA DE LA REPUBLICA (DAPRE) | B151: PRESIDENCIA DE LA REPUBLICA | C151: NACIONAL
A152: FINANCIERA DE DESARROLLO NACIONAL S.A. | B152: PRESIDENCIA DE LA REPUBLICA | C152: NACIONAL
A153: ONAC - ORGANISMO NACIONAL DE ACREDITACION DECOLOMBIA | B153: PRESIDENCIA DE LA REPUBLICA | C153: NACIONAL
A154: UNIDAD NACIONAL PARA LA GESTION DEL RIESGO DE DESASTRES (UNGRD) | B154: PRESIDENCIA DE LA REPUBLICA | C154: NACIONAL
A155: CONSEJO SUPERIOR DE LA JUDICATURA | B155: RAMA JUDICIAL | C155: NACIONAL
A156: RAMA JUDICIAL | B156: RAMA JUDICIAL | C156: NACIONAL
A157: CAMARA DE REPRESENTANTES | B157: RAMA LEGISLATIVA | C157: NACIONAL
A158: CONGRESO DE LA REPUBLICA (SENADO) | B158: RAMA LEGISLATIVA | C158: NACIONAL
A159: REGISTRADURIA NACIONAL DEL ESTADO CIVIL (RNEC) | B159: REGISTRADURIA | C159: NACIONAL
A160: FONDO ROTATORIO DEL MINISTERIO DE RELACIONES EXTERIORES | B160: RELACIONES EXTERIORES | C160: NACIONAL
A161: MIGRACION COLOMBIA (MC) | B161: RELACIONES EXTERIORES | C161: NACIONAL
A162: MINISTERIO DE RELACIONES EXTERIORES (CANCILLERIA) | B162: RELACIONES EXTERIORES | C162: NACIONAL
A163: FONDO NACIONAL DE ESTUPEFACIENTES | B163: SALUD Y PROTECCION SOCIAL | C163: NACIONAL
A164: FONDO PASIVO SOCIAL DE FERROCARRILES NACIONALES DE COLOMBIA (FPS) | B164: SALUD Y PROTECCION SOCIAL | C164: NACIONAL
A165: INSTITUTO DE EVALUACION TECNOLOGICA EN SALUD IETS | B165: SALUD Y PROTECCION SOCIAL | C165: NACIONAL
A166: INSTITUTO NACIONAL DE CANCEROLOGIA | B166: SALUD Y PROTECCION SOCIAL | C166: NACIONAL
A167: INSTITUTO NACIONAL DE SALUD (INS) | B167: SALUD Y PROTECCION SOCIAL | C167: NACIONAL
A168: INSTITUTO NACIONAL DE VIGILANCIA DE MEDICAMENTOS Y ALIMENTOS (INVIMA) | B168: SALUD Y PROTECCION SOCIAL | C168: NACIONAL
A169: MINISTERIO DE SALUD Y PROTECCION SOCIAL (MINSALUD) | B169: SALUD Y PROTECCION SOCIAL | C169: NACIONAL
A170: SUPERINTENDENCIA NACIONAL DE SALUD (SUPERSALUD) | B170: SALUD Y PROTECCION SOCIAL | C170: NACIONAL
A171: AGENCIA NACIONAL DEL ESPECTRO (ANE) | B171: TECNOLOGIAS DE LA INFORMACION Y LAS COMUNICACIONES | C171: NACIONAL
A172: AUTORIDAD NACIONAL DE TELEVISION (ANTV) | B172: TECNOLOGIAS DE LA INFORMACION Y LAS COMUNICACIONES | C172: NACIONAL
A173: CAPRECOM - CAJA DE PREVISION SOCIAL DE COMUNICACIONES | B173: TECNOLOGIAS DE LA INFORMACION Y LAS COMUNICACIONES | C173: NACIONAL
A174: CINTEL - CENTRO DE INVESTIGACION DE LAS TELECOMUNICACIONES | B174: TECNOLOGIAS DE LA INFORMACION Y LAS COMUNICACIONES | C174: NACIONAL
A175: COMPUTADORES PARA EDUCAR | B175: TECNOLOGIAS DE LA INFORMACION Y LAS COMUNICACIONES | C175: NACIONAL
A176: CRC - COMISION DE REGULACION DE COMUNICACIONES | B176: TECNOLOGIAS DE LA INFORMACION Y LAS COMUNICACIONES | C176: NACIONAL
A177: FONDO DE LAS TECNOLOGIAS DE LA INFORMACION Y LAS COMUNICACIONES | B177: TECNOLOGIAS DE LA INFORMACION Y LAS COMUNICACIONES | C177: NACIONAL
A178: MINISTERIO DE TECNOLOGIAS DE LA INFORMACON Y LAS COMUNICACIONES (MINTIC) | B178: TECNOLOGIAS DE LA INFORMACION Y LAS COMUNICACIONES | C178: NACIONAL
A179: RTVC - RADIO TELEVISION NACIONAL DE COLOMBIA | B179: TECNOLOGIAS DE LA INFORMACION Y LAS COMUNICACIONES | C179: NACIONAL
A180: SERVICIOS POSTALES NACIONALES | B180: TECNOLOGIAS DE LA INFORMACION Y LAS COMUNICACIONES | C180: NACIONAL
A181: SOCIEDAD TELEVISION DE CALDAS, RISARALDA Y QUINDIO LTDA. - TELECAFE | B181: TECNOLOGIAS DE LA INFORMACION Y LAS COMUNICACIONES | C181: NACIONAL
A182: SOCIEDAD TELEVISION DEL PACIFICO LTDA. - TELEPACIFICO | B182: TECNOLOGIAS DE LA INFORMACION Y LAS COMUNICACIONES | C182: NACIONAL
A183: TEVEANDINA LTDA | B183: TECNOLOGIAS DE LA INFORMACION Y LAS COMUNICACIONES | C183: NACIONAL
A184: MINISTERIO DEL TRABAJO (MINTRABAJO) | B184: TRABAJO | C184: NACIONAL
A185: ORGANIZACIONES SOLIDARIAS (OS) | B185: TRABAJO | C185: NACIONAL
A186: SERVICIO NACIONAL DE APRENDIZAJE (SENA) | B186: TRABAJO | C186: NACIONAL
A187: SERVICIO PUBLICO DE EMPLEO (REDEMPLEO) | B187: TRABAJO | C187: NACIONAL
A188: SUPERINTENDENCIA DEL SUBSIDIO FAMILIAR | B188: TRABAJO | C188: NACIONAL
A189: AERONAUTICA CIVIL (AEROCIVIL) | B189: TRANSPORTE | C189: NACIONAL
A190: AGENCIA NACIONAL DE INFRAESTRUCTURA (ANI) | B190: TRANSPORTE | C190: NACIONAL
A191: INSTITUTO NACIONAL DE VIAS (INVIAS) | B191: TRANSPORTE | C191: NACIONAL
A192: MINISTERIO DE TRANSPORTE (MINTRANSPORTE) | B192: TRANSPORTE | C192: NACIONAL
A193: RISARALDA - AEROPUERTO INTERNACIONAL MATECAÑA DE PEREIRA | B193: TRANSPORTE | C193: NACIONAL
A194: SATENA - SERVICIO AEREO A TERRITORIOS NACIONALES | B194: TRANSPORTE | C194: NACIONAL
A195: SUPERINTENDENCIA DE PUERTOS Y TRANSPORTE | B195: TRANSPORTE | C195: NACIONAL
A196: FONDO NACIONAL DE AHORRO | B196: VIVIENDA, CIUDAD Y TERRITORIO | C196: NACIONAL
A197: MINISTERIO DE VIVIENDA, CIUDAD Y TERRITORIO (MINVIVIENDA) | B197: VIVIENDA, CIUDAD Y TERRITORIO | C197: NACIONAL
A198: ANTIOQUIA - AREA METROPOLITANA DEL VALLE DE ABURRA - MEDELLIN | B198: TERRITORIAL | C198: TERRITORIAL
A199: ATLANTICO - AREA METROPOLITANA DE BARRANQUILLA | B199: TERRITORIAL | C199: TERRITORIAL
A200: CESAR - AREA METROPOLITANA DEL VALLE DEL CACIQUE UPAR - METROPOLIUPAR | B200: TERRITORIAL | C200: TERRITORIAL
... 4244 more rows

Sheet Dashboard General
E2: INDICADORES DEL SISTEMA DE COMPRA PÚBLICA COLOMBIANO | O2: Versión 1.0
O3: =+TODAY() -> 2017-02-08
I8: |
B10: Tablero General
B16: VALOR POR DINERO
B19: Indicador 1 | H19: Indicador 2
B20: Oportunidad de la contratación | H20: Modificaciones sobre el valor del contrato según los pliegos
H21: 6
H22: =+INDEX('Indicador 2'!K3:K13,$H$21) -> 0.4375166391
B36: Indicador 6 | K36: Indicador 7
B37: Tiempo promedio de selección por modalidad de contratación | K37: Nivel de apropiación de AMP
B58: Indicador 8
B59: Ahorro promedio por AMP
B60: 7
B61: =+INDEX('Indicador 8'!B4:B28,$B$60) -> 2141304194
B74: =+INDEX('Indicador 8'!A4:A28,$B$60) -> Combustible (Bogotá) II
B76: INTEGRIDAD Y TRANSPARENCIA EN LA COMPETENCIA
B79: Indicador 9
B80: Promedio de nuevos contratistas
B101: Indicador 11
B102: Concentración de la contratación por valor de contratos
B123: Indicador 13
B124: Porcentaje de adjudicación a proponentes temporales y consorcios
B142: Porcentaje por número de contratos | J142: Porcentaje por valor de contratos
B145: Indicador 16
B146: Porcentaje de contratos que se adjudicaron mediante un proceso competitivo
B166: RENDICION DE CUENTAS
B169: Indicador 17 | G169: Indicador 18
B170: Porcentaje de entidades usuarias activas SECOP I | G170: Porcentaje de entidades que publican su PAA
B171: 7 | G171: 7
B172: =+INDEX('Indicador 8'!B115:B139,$B$60) -> 0 | G172: =+INDEX('Indicador 8'!G115:G139,$B$60) -> 0
B186: MANEJO DEL RIESGO
B189: Indicador 20
B190: Porcentaje de contratos con modificaciones en tiempo de ejecución o monto

Sheet Indicador 1
A1: https://www.dnp.gov.co/programas/inversiones-y-finanzas-publicas/Datos-y-Estadisticas/Paginas/presupuesto-de-inversi%C3%B3n.aspx
B2: Total PGN | D2: Gastos Personal + Transferencias + Deuda | F2: Diferencia | H2: Cociente (Indicador)
B3: (1) | C3: (2) | D3: (3) | E3: (4) | F3: (5) = (1) - (3) | G3: (6) = (2) - (4) | H3: (6)/(5)
J4: PROMEDIO DE ENTIDADES | K4: 0.9107
B5: Apropiacion Vigente | C5: Compromisos | D5: Apropiacion Vigente | E5: Compromisos | F5: Apropiacion Vigente | G5: Compromisos
A6: Etiquetas de fila | B6: Suma de Vigente | C6: Suma de Compromisos | K6: Real | L6: En gráfico
A7: AGROPECUARIO | B7: 3461803003399 | C7: 3.274401503e+12 | D7: =IFERROR(VLOOKUP($A7,'[1]David Gutierrez Tabla Dinamica'!$E$4:$G$1048576,2,0),0) -> 330803351140 | E7: =IFERROR(VLOOKUP($A7,'[1]David Gutierrez Tabla Dinamica'!$E$4:$G$1048576,3,0),0) -> 2.864518649e+11 | F7: =+B7-D7 -> 3130999652259 | G7: =+C7-E7 -> 2.987949638e+12 | H7: =IFERROR(G7/F7,"") -> 0.9543117119 | J7: Porcentaje alcanzado: | K7: =+K4 -> 0.9107 | L7: =MIN(K7/2, 50%) -> 0.45535
A8: AUTORIDAD NACIONAL DE ACUICULTURA Y PESCA - AUNAP | B8: 41348333334 | C8: 4.008842959e+10 | D8: =IFERROR(VLOOKUP($A8,'[1]David Gutierrez Tabla Dinamica'!$E$4:$G$1048576,2,0),0) -> 7969600000 | E8: =IFERROR(VLOOKUP($A8,'[1]David Gutierrez Tabla Dinamica'!$E$4:$G$1048576,3,0),0) -> 7296177805 | F8: 33378733334 | G8: 3.279225178e+10 | H8: 0.9824294845 | J8: Porcentaje restante: | K8: =IF(K7<=100%, 100%-K7, 0%) -> 0.0893 | L8: =K8/2 -> 0.04465
A9: INSTITUTO COLOMBIANO AGROPECUARIO (ICA) | B9: 255447492680 | C9: 2.271849517e+11 | D9: =IFERROR(VLOOKUP($A9,'[1]David Gutierrez Tabla Dinamica'!$E$4:$G$1048576,2,0),0) -> 91997142166 | E9: =IFERROR(VLOOKUP($A9,'[1]David Gutierrez Tabla Dinamica'!$E$4:$G$1048576,3,0),0) -> 7.416711211e+10 | F9: 163450350514 | G9: 1.530178396e+11 | H9: 0.9361732116 | J9: Porcentaje Total: | K9: =K7+K8 -> 1 | L9: =L7+L8 -> 0.5
A10: INSTITUTO COLOMBIANO DE DESARROLLO RURAL - INCODER | B10: 427546234707 | C10: 4.181128815e+11 | D10: =IFERROR(VLOOKUP($A10,'[1]David Gutierrez Tabla Dinamica'!$E$4:$G$1048576,2,0),0) -> 44151608974 | E10: =IFERROR(VLOOKUP($A10,'[1]David Gutierrez Tabla Dinamica'!$E$4:$G$1048576,3,0),0) -> 3.865136613e+10 | F10: 383394625733 | G10: 3.794615153e+11 | H10: 0.9897413523
A11: MINAGRICULTURA - GESTION GENERAL | B11: 2561116992200 | C11: 2.421347144e+12 | D11: =IFERROR(VLOOKUP($A11,'[1]David Gutierrez Tabla Dinamica'!$E$4:$G$1048576,2,0),0) -> 150226600000 | E11: =IFERROR(VLOOKUP($A11,'[1]David Gutierrez Tabla Dinamica'!$E$4:$G$1048576,3,0),0) -> 1.333085135e+11 | F11: 2410890392200 | G11: 2.28803863e+12 | H11: 0.9490429916
A12: UNIDAD ADMINISTRATIVA ESPECIAL DE GESTIÓN DE RESTITUCIÓN DE TIERRAS DESPOJADAS | B12: 162021850478 | C12: 1.543833553e+11 | D12: =IFERROR(VLOOKUP($A12,'[1]David Gutierrez Tabla Dinamica'!$E$4:$G$1048576,2,0),0) -> 30218700000 | E12: =IFERROR(VLOOKUP($A12,'[1]David Gutierrez Tabla Dinamica'!$E$4:$G$1048576,3,0),0) -> 27710472047 | F12: 131803150478 | G12: 1.266728833e+11 | H12: 0.9610762932
A13: UNIDAD DE PLANIFICACIÓN DE TIERRAS RURALES, ADECUACIÓN DE TIERRAS Y USOS AGROPECUARIOS UPRA | B13: 14322100000 | C13: 13284741267 | D13: =IFERROR(VLOOKUP($A13,'[1]David Gutierrez Tabla Dinamica'!$E$4:$G$1048576,2,0),0) -> 6239700000 | E13: =IFERROR(VLOOKUP($A13,'[1]David Gutierrez Tabla Dinamica'!$E$4:$G$1048576,3,0),0) -> 5318223283 | F13: 8082400000 | G13: 7966517984 | H13: 0.985662425
A14: AMBIENTE Y DESARROLLO SOSTENIBLE | B14: 589780342128 | C14: 5.506301662e+11 | D14: =IFERROR(VLOOKUP($A14,'[1]David Gutierrez Tabla Dinamica'!$E$4:$G$1048576,2,0),0) -> 2.303911919e+11 | E14: =IFERROR(VLOOKUP($A14,'[1]David Gutierrez Tabla Dinamica'!$E$4:$G$1048576,3,0),0) -> 218185895176 | F14: 3.593891503e+11 | G14: 3.32444271e+11 | H14: 0.9250258968
A15: AUTORIDAD NACIONAL DE LICENCIAS AMBIENTALES ANLA | B15: 27011626000 | C15: 2.344070288e+10 | D15: =IFERROR(VLOOKUP($A15,'[1]David Gutierrez Tabla Dinamica'!$E$4:$G$1048576,2,0),0) -> 1.635585201e+10 | E15: =IFERROR(VLOOKUP($A15,'[1]David Gutierrez Tabla Dinamica'!$E$4:$G$1048576,3,0),0) -> 1.571422646e+10 | F15: 1.065577399e+10 | G15: 7726476420 | H15: 0.7250976257
A16: CORPORACION PARA EL DESARROLLO SOSTENIBLE DE LA MOJANA Y EL SAN JORGE - CORPOMOJANA | B16: 6656279257 | C16: 6506165268 | D16: =IFERROR(VLOOKUP($A16,'[1]David Gutierrez Tabla Dinamica'!$E$4:$G$1048576,2,0),0) -> 2201666272 | E16: =IFERROR(VLOOKUP($A16,'[1]David Gutierrez Tabla Dinamica'!$E$4:$G$1048576,3,0),0) -> 2145943371 | F16: 4454612985 | G16: 4360221897 | H16: 0.9788104851
A17: CORPORACION PARA EL DESARROLLO SOSTENIBLE DEL NORTE Y ORIENTE DE LA AMAZONIA - CDA | B17: 7516495319 | C17: 7273344055 | D17: =IFERROR(VLOOKUP($A17,'[1]David Gutierrez Tabla Dinamica'!$E$4:$G$1048576,2,0),0) -> 2891931887 | E17: =IFERROR(VLOOKUP($A17,'[1]David Gutierrez Tabla Dinamica'!$E$4:$G$1048576,3,0),0) -> 2682242592 | F17: 4624563432 | G17: 4591101463 | H17: 0.9927642967
A18: CORPORACION AUTONOMA REGIONAL DE BOYACA (CORPOBOYACA) | B18: 4519271000 | C18: 4507631760 | D18: =IFERROR(VLOOKUP($A18,'[1]David Gutierrez Tabla Dinamica'!$E$4:$G$1048576,2,0),0) -> 1640858000 | E18: =IFERROR(VLOOKUP($A18,'[1]David Gutierrez Tabla Dinamica'!$E$4:$G$1048576,3,0),0) -> 1640071519 | F18: 2878413000 | G18: 2867560241 | H18: 0.9962296033
A19: CORPORACION AUTONOMA REGIONAL DE CALDAS (CORPOCALDAS) | B19: 2812963000 | C19: 2812963000 | D19: =IFERROR(VLOOKUP($A19,'[1]David Gutierrez Tabla Dinamica'!$E$4:$G$1048576,2,0),0) -> 2812963000 | E19: =IFERROR(VLOOKUP($A19,'[1]David Gutierrez Tabla Dinamica'!$E$4:$G$1048576,3,0),0) -> 2812963000 | F19: 0 | G19: 0
A20: CORPORACION AUTONOMA REGIONAL DE CHIVOR (CORPOCHIVOR) | B20: 5184026704 | C20: 5104197990 | D20: =IFERROR(VLOOKUP($A20,'[1]David Gutierrez Tabla Dinamica'!$E$4:$G$1048576,2,0),0) -> 1698888521 | E20: =IFERROR(VLOOKUP($A20,'[1]David Gutierrez Tabla Dinamica'!$E$4:$G$1048576,3,0),0) -> 1634837615 | F20: 3485138183 | G20: 3469360375 | H20: 0.9954728314
A21: CORPORACION AUTONOMA REGIONAL DE CUNDINAMARCA - CAR | B21: 18000000000 | C21: 18000000000 | D21: =IFERROR(VLOOKUP($A21,'[1]David Gutierrez Tabla Dinamica'!$E$4:$G$1048576,2,0),0) -> 0 | E21: =IFERROR(VLOOKUP($A21,'[1]David Gutierrez Tabla Dinamica'!$E$4:$G$1048576,3,0),0) -> 0 | F21: 18000000000 | G21: 18000000000 | H21: 1
A22: CORPORACION AUTONOMA REGIONAL DE LA FRONTERA NORORIENTAL (CORPONOR) | B22: 2769396000 | C22: 2769396000 | D22: =IFERROR(VLOOKUP($A22,'[1]David Gutierrez Tabla Dinamica'!$E$4:$G$1048576,2,0),0) -> 2769396000 | E22: =IFERROR(VLOOKUP($A22,'[1]David Gutierrez Tabla Dinamica'!$E$4:$G$1048576,3,0),0) -> 2769396000 | F22: 0 | G22: 0
A23: CORPORACION AUTONOMA REGIONAL DE LA GUAJIRA (CORPOGUAJIRA) | B23: 7836972740 | C23: 7523951181 | D23: =IFERROR(VLOOKUP($A23,'[1]David Gutierrez Tabla Dinamica'!$E$4:$G$1048576,2,0),0) -> 2624691191 | E23: =IFERROR(VLOOKUP($A23,'[1]David Gutierrez Tabla Dinamica'!$E$4:$G$1048576,3,0),0) -> 2621851433 | F23: 5212281549 | G23: 4902099748 | H23: 0.9404902061
A24: CORPORACION AUTONOMA REGIONAL DE LA ORINOQUIA (CORPORINOQUIA) | B24: 7880183293 | C24: 1638497000 | D24: =IFERROR(VLOOKUP($A24,'[1]David Gutierrez Tabla Dinamica'!$E$4:$G$1048576,2,0),0) -> 1547477000 | E24: =IFERROR(VLOOKUP($A24,'[1]David Gutierrez Tabla Dinamica'!$E$4:$G$1048576,3,0),0) -> 1547477000 | F24: 6332706293 | G24: 91020000 | H24: 0.01437300197
A25: CORPORACION AUTONOMA REGIONAL DE LOS VALLES DEL SINU Y SAN JORGE (CVS) | B25: 22525337811 | C25: 22391436814 | D25: =IFERROR(VLOOKUP($A25,'[1]David Gutierrez Tabla Dinamica'!$E$4:$G$1048576,2,0),0) -> 1646126000 | E25: =IFERROR(VLOOKUP($A25,'[1]David Gutierrez Tabla Dinamica'!$E$4:$G$1048576,3,0),0) -> 1630422981 | F25: 20879211811 | G25: 20761013833 | H25: 0.9943389636
A26: CORPORACION AUTONOMA REGIONAL DE NARINO (CORPONARINO) | B26: 4144813652 | C26: 4064463251 | D26: =IFERROR(VLOOKUP($A26,'[1]David Gutierrez Tabla Dinamica'!$E$4:$G$1048576,2,0),0) -> 1954332772 | E26: =IFERROR(VLOOKUP($A26,'[1]David Gutierrez Tabla Dinamica'!$E$4:$G$1048576,3,0),0) -> 1899642081 | F26: 2190480880 | G26: 2164821170 | H26: 0.9882858098
A27: CORPORACION AUTONOMA REGIONAL DE RISARALDA (CARDER) | B27: 2018472000 | C27: 2017443999 | D27: =IFERROR(VLOOKUP($A27,'[1]David Gutierrez Tabla Dinamica'!$E$4:$G$1048576,2,0),0) -> 1870154000 | E27: =IFERROR(VLOOKUP($A27,'[1]David Gutierrez Tabla Dinamica'!$E$4:$G$1048576,3,0),0) -> 1869126000 | F27: 148318000 | G27: 148317999 | H27: 0.9999999933
A28: CORPORACION AUTONOMA REGIONAL DE SANTANDER (CAS) | B28: 4393687439 | C28: 4388814131 | D28: =IFERROR(VLOOKUP($A28,'[1]David Gutierrez Tabla Dinamica'!$E$4:$G$1048576,2,0),0) -> 3029850775 | E28: =IFERROR(VLOOKUP($A28,'[1]David Gutierrez Tabla Dinamica'!$E$4:$G$1048576,3,0),0) -> 3025291089 | F28: 1363836664 | G28: 1363523042 | H28: 0.9997700443
A29: CORPORACION AUTONOMA REGIONAL DE SUCRE (CARSUCRE) | B29: 6326110633 | C29: 6277319585 | D29: =IFERROR(VLOOKUP($A29,'[1]David Gutierrez Tabla Dinamica'!$E$4:$G$1048576,2,0),0) -> 1967439963 | E29: =IFERROR(VLOOKUP($A29,'[1]David Gutierrez Tabla Dinamica'!$E$4:$G$1048576,3,0),0) -> 1965879003 | F29: 4358670670 | G29: 4311440582 | H29: 0.9891641072
A30: CORPORACION AUTONOMA REGIONAL DEL ALTO MAGDALENA (CAM) | B30: 3698748000 | C30: 3355059474 | D30: =IFERROR(VLOOKUP($A30,'[1]David Gutierrez Tabla Dinamica'!$E$4:$G$1048576,2,0),0) -> 1771892000 | E30: =IFERROR(VLOOKUP($A30,'[1]David Gutierrez Tabla Dinamica'!$E$4:$G$1048576,3,0),0) -> 1732819690 | F30: 1926856000 | G30: 1622239784 | H30: 0.841910233
A31: CORPORACION AUTONOMA REGIONAL DEL ATLANTICO - CRA | B31: 11616662239 | C31: 1.095531666e+10 | D31: =IFERROR(VLOOKUP($A31,'[1]David Gutierrez Tabla Dinamica'!$E$4:$G$1048576,2,0),0) -> 1632807000 | E31: =IFERROR(VLOOKUP($A31,'[1]David Gutierrez Tabla Dinamica'!$E$4:$G$1048576,3,0),0) -> 1624611000 | F31: 9983855239 | G31: 9330705662 | H31: 0.9345794223
A32: CORPORACION AUTONOMA REGIONAL DEL CANAL DEL DIQUE (CARDIQUE) | B32: 1843394000 | C32: 1777394000 | D32: =IFERROR(VLOOKUP($A32,'[1]David Gutierrez Tabla Dinamica'!$E$4:$G$1048576,2,0),0) -> 1793589000 | E32: =IFERROR(VLOOKUP($A32,'[1]David Gutierrez Tabla Dinamica'!$E$4:$G$1048576,3,0),0) -> 1727589000 | F32: 49805000 | G32: 49805000 | H32: 1
A33: CORPORACION AUTONOMA REGIONAL DEL CAUCA (CRC) | B33: 4206182000 | C33: 4206182000 | D33: =IFERROR(VLOOKUP($A33,'[1]David Gutierrez Tabla Dinamica'!$E$4:$G$1048576,2,0),0) -> 4206182000 | E33: =IFERROR(VLOOKUP($A33,'[1]David Gutierrez Tabla Dinamica'!$E$4:$G$1048576,3,0),0) -> 4206182000 | F33: 0 | G33: 0
A34: CORPORACION AUTONOMA REGIONAL DEL CENTRO DE ANTIOQUIA (CORANTIOQUIA) | B34: 1858625000 | C34: 1857051051 | D34: =IFERROR(VLOOKUP($A34,'[1]David Gutierrez Tabla Dinamica'!$E$4:$G$1048576,2,0),0) -> 1858625000 | E34: =IFERROR(VLOOKUP($A34,'[1]David Gutierrez Tabla Dinamica'!$E$4:$G$1048576,3,0),0) -> 1857051051 | F34: 0 | G34: 0
A35: CORPORACION AUTONOMA REGIONAL DEL CESAR (CORPOCESAR) | B35: 4132856627 | C35: 4132856627 | D35: =IFERROR(VLOOKUP($A35,'[1]David Gutierrez Tabla Dinamica'!$E$4:$G$1048576,2,0),0) -> 2119936483 | E35: =IFERROR(VLOOKUP($A35,'[1]David Gutierrez Tabla Dinamica'!$E$4:$G$1048576,3,0),0) -> 2119936483 | F35: 2012920144 | G35: 2012920144 | H35: 1
A36: CORPORACION AUTONOMA REGIONAL DEL GUAVIO (CORPOGUAVIO) | B36: 2805251921 | C36: 2789611366 | D36: =IFERROR(VLOOKUP($A36,'[1]David Gutierrez Tabla Dinamica'!$E$4:$G$1048576,2,0),0) -> 381185872 | E36: =IFERROR(VLOOKUP($A36,'[1]David Gutierrez Tabla Dinamica'!$E$4:$G$1048576,3,0),0) -> 381185872 | F36: 2424066049 | G36: 2408425494 | H36: 0.9935478016
A37: CORPORACION AUTONOMA REGIONAL DEL MAGDALENA (CORPAMAG) | B37: 23878871656 | C37: 2.366692703e+10 | D37: =IFERROR(VLOOKUP($A37,'[1]David Gutierrez Tabla Dinamica'!$E$4:$G$1048576,2,0),0) -> 3492236000 | E37: =IFERROR(VLOOKUP($A37,'[1]David Gutierrez Tabla Dinamica'!$E$4:$G$1048576,3,0),0) -> 3417993860 | F37: 20386635656 | G37: 2.024893317e+10 | H37: 0.9932454529
A38: CORPORACION AUTONOMA REGIONAL DEL QUINDIO (CRQ) | B38: 4288113000 | C38: 3870330698 | D38: =IFERROR(VLOOKUP($A38,'[1]David Gutierrez Tabla Dinamica'!$E$4:$G$1048576,2,0),0) -> 3980715000 | E38: =IFERROR(VLOOKUP($A38,'[1]David Gutierrez Tabla Dinamica'!$E$4:$G$1048576,3,0),0) -> 3625858198 | F38: 307398000 | G38: 244472500 | H38: 0.7952963259
A39: CORPORACION AUTONOMA REGIONAL DEL SUR DE BOLIVAR (CSB) | B39: 1974650000 | C39: 1973572511 | D39: =IFERROR(VLOOKUP($A39,'[1]David Gutierrez Tabla Dinamica'!$E$4:$G$1048576,2,0),0) -> 1920170000 | E39: =IFERROR(VLOOKUP($A39,'[1]David Gutierrez Tabla Dinamica'!$E$4:$G$1048576,3,0),0) -> 1919092511 | F39: 54480000 | G39: 54480000 | H39: 1
A40: CORPORACION AUTONOMA REGIONAL DEL TOLIMA (CORTOLIMA) | B40: 1589297000 | C40: 1558297000 | D40: =IFERROR(VLOOKUP($A40,'[1]David Gutierrez Tabla Dinamica'!$E$4:$G$1048576,2,0),0) -> 1476137000 | E40: =IFERROR(VLOOKUP($A40,'[1]David Gutierrez Tabla Dinamica'!$E$4:$G$1048576,3,0),0) -> 1445137000 | F40: 113160000 | G40: 113160000 | H40: 1
A41: CORPORACION AUTONOMA REGIONAL PARA EL DESARROLLO SOSTENIBLE DEL CHOCO - CODECHOCO | B41: 6407469951 | C41: 6185432488 | D41: =IFERROR(VLOOKUP($A41,'[1]David Gutierrez Tabla Dinamica'!$E$4:$G$1048576,2,0),0) -> 2253213414 | E41: =IFERROR(VLOOKUP($A41,'[1]David Gutierrez Tabla Dinamica'!$E$4:$G$1048576,3,0),0) -> 2252922141 | F41: 4154256537 | G41: 3932510347 | H41: 0.9466219315
A42: CORPORACION AUTONOMA REGIONAL PARA LA DEFENSA DE LA MESETA DE BUCARAMANGA CDMB | B42: 2846936137 | C42: 2846827393 | D42: =IFERROR(VLOOKUP($A42,'[1]David Gutierrez Tabla Dinamica'!$E$4:$G$1048576,2,0),0) -> 0 | E42: =IFERROR(VLOOKUP($A42,'[1]David Gutierrez Tabla Dinamica'!$E$4:$G$1048576,3,0),0) -> 0 | F42: 2846936137 | G42: 2846827393 | H42: 0.9999618031
A43: CORPORACION PARA EL DESARROLLO SOSTENIBLE DEL ARCHIPIELAGO DE SAN ANDRES, PROVIDENCIA Y SANTA CATALINA - CORALINA | B43: 6401737173 | C43: 4892428910 | D43: =IFERROR(VLOOKUP($A43,'[1]David Gutierrez Tabla Dinamica'!$E$4:$G$1048576,2,0),0) -> 1871287950 | E43: =IFERROR(VLOOKUP($A43,'[1]David Gutierrez Tabla Dinamica'!$E$4:$G$1048576,3,0),0) -> 1815535212 | F43: 4530449223 | G43: 3076893698 | H43: 0.6791586324
A44: CORPORACION PARA EL DESARROLLO SOSTENIBLE DEL AREA DE MANEJO ESPECIAL LA MACARENA - CORMACARENA | B44: 4921163979 | C44: 4917882179 | D44: =IFERROR(VLOOKUP($A44,'[1]David Gutierrez Tabla Dinamica'!$E$4:$G$1048576,2,0),0) -> 2224129675 | E44: =IFERROR(VLOOKUP($A44,'[1]David Gutierrez Tabla Dinamica'!$E$4:$G$1048576,3,0),0) -> 2224129675 | F44: 2697034304 | G44: 2693752504 | H44: 0.998783182
A45: CORPORACION PARA EL DESARROLLO SOSTENIBLE DEL SUR DE LA AMAZONIA - CORPOAMAZONIA | B45: 4249637923 | C45: 2425271747 | D45: =IFERROR(VLOOKUP($A45,'[1]David Gutierrez Tabla Dinamica'!$E$4:$G$1048576,2,0),0) -> 1623355783 | E45: =IFERROR(VLOOKUP($A45,'[1]David Gutierrez Tabla Dinamica'!$E$4:$G$1048576,3,0),0) -> 1621286455 | F45: 2626282140 | G45: 803985292 | H45: 0.3061305866
A46: CORPORACION PARA EL DESARROLLO SOSTENIBLE DEL URABA - CORPOURABA | B46: 8550245375 | C46: 8550245375 | D46: =IFERROR(VLOOKUP($A46,'[1]David Gutierrez Tabla Dinamica'!$E$4:$G$1048576,2,0),0) -> 3185474442 | E46: =IFERROR(VLOOKUP($A46,'[1]David Gutierrez Tabla Dinamica'!$E$4:$G$1048576,3,0),0) -> 3185474442 | F46: 5364770933 | G46: 5364770933 | H46: 1
A47: FONAM - GESTION GENERAL | B47: 61108757000 | C47: 5.156915034e+10 | D47: =IFERROR(VLOOKUP($A47,'[1]David Gutierrez Tabla Dinamica'!$E$4:$G$1048576,2,0),0) -> 27090957000 | E47: =IFERROR(VLOOKUP($A47,'[1]David Gutierrez Tabla Dinamica'!$E$4:$G$1048576,3,0),0) -> 1.899466468e+10 | F47: 34017800000 | G47: 3.257448565e+10 | H47: 0.9575717904
A48: INSTITUTO DE HIDROLOGIA, METEOROLOGIA Y ESTUDIOS AMBIENTALES- IDEAM | B48: 67684967860 | C48: 6.351944753e+10 | D48: =IFERROR(VLOOKUP($A48,'[1]David Gutierrez Tabla Dinamica'!$E$4:$G$1048576,2,0),0) -> 26127904849 | E48: =IFERROR(VLOOKUP($A48,'[1]David Gutierrez Tabla Dinamica'!$E$4:$G$1048576,3,0),0) -> 2.547057343e+10 | F48: 41557063011 | G48: 3.80488741e+10 | H48: 0.915581404
A49: MINISTERIO DE AMBIENTE Y DESARROLLO SOSTENIBLE - GESTION GENERAL | B49: 169285894439 | C49: 1.621222356e+11 | D49: =IFERROR(VLOOKUP($A49,'[1]David Gutierrez Tabla Dinamica'!$E$4:$G$1048576,2,0),0) -> 70618813000 | E49: =IFERROR(VLOOKUP($A49,'[1]David Gutierrez Tabla Dinamica'!$E$4:$G$1048576,3,0),0) -> 6.945111385e+10 | F49: 98667081439 | G49: 9.26711217e+10 | H49: 0.9392303933
A50: PARQUES NACIONALES NATURALES DE COLOMBIA | B50: 66835246000 | C50: 6.474231936e+10 | D50: =IFERROR(VLOOKUP($A50,'[1]David Gutierrez Tabla Dinamica'!$E$4:$G$1048576,2,0),0) -> 25750953000 | E50: =IFERROR(VLOOKUP($A50,'[1]David Gutierrez Tabla Dinamica'!$E$4:$G$1048576,3,0),0) -> 25153368476 | F50: 41084293000 | G50: 3.958895088e+10 | H50: 0.9636030704
A51: CIENCIA Y TECNOLOGÍA | B51: 376768072066 | C51: 3.731242158e+11 | D51: =IFERROR(VLOOKUP($A51,'[1]David Gutierrez Tabla Dinamica'!$E$4:$G$1048576,2,0),0) -> 19656000000 | E51: =IFERROR(VLOOKUP($A51,'[1]David Gutierrez Tabla Dinamica'!$E$4:$G$1048576,3,0),0) -> 18128102769 | F51: 357112072066 | G51: 3.54996113e+11 | H51: 0.994074804
A52: DEPARTAMENTO ADMINISTRATIVO DE LA CIENCIA, TECNOLOGIA E INNOVACION - GESTION GENERAL | B52: 376768072066 | C52: 3.731242158e+11 | D52: =IFERROR(VLOOKUP($A52,'[1]David Gutierrez Tabla Dinamica'!$E$4:$G$1048576,2,0),0) -> 19656000000 | E52: =IFERROR(VLOOKUP($A52,'[1]David Gutierrez Tabla Dinamica'!$E$4:$G$1048576,3,0),0) -> 18128102769 | F52: 357112072066 | G52: 3.54996113e+11 | H52: 0.994074804
A53: COMERCIO, INDUSTRIA Y TURISMO | B53: 902572983982 | C53: 8.448233571e+11 | D53: =IFERROR(VLOOKUP($A53,'[1]David Gutierrez Tabla Dinamica'!$E$4:$G$1048576,2,0),0) -> 335980222177 | E53: =IFERROR(VLOOKUP($A53,'[1]David Gutierrez Tabla Dinamica'!$E$4:$G$1048576,3,0),0) -> 2.857284008e+11 | F53: 566592761805 | G53: 5.590949563e+11 | H53: 0.9867668526
A54: INSTITUTO NACIONAL DE METROLOGÍA - INM | B54: 21197500000 | C54: 1.951862776e+10 | D54: =IFERROR(VLOOKUP($A54,'[1]David Gutierrez Tabla Dinamica'!$E$4:$G$1048576,2,0),0) -> 8943434900 | E54: =IFERROR(VLOOKUP($A54,'[1]David Gutierrez Tabla Dinamica'!$E$4:$G$1048576,3,0),0) -> 7746835488 | F54: 12254065100 | G54: 1.177179228e+10 | H54: 0.9606438499
A55: MINCOMERCIO INDUSTRIA TURISMO - ARTESANIAS DE COLOMBIA S.A. | B55: 27621800000 | C55: 2.744168098e+10 | D55: =IFERROR(VLOOKUP($A55,'[1]David Gutierrez Tabla Dinamica'!$E$4:$G$1048576,2,0),0) -> 7047500000 | E55: =IFERROR(VLOOKUP($A55,'[1]David Gutierrez Tabla Dinamica'!$E$4:$G$1048576,3,0),0) -> 6958594558 | F55: 20574300000 | G55: 2.048308642e+10 | H55: 0.9955666255
A56: MINCOMERCIO INDUSTRIA TURISMO - DIRECCION GENERAL DE COMERCIO EXTERIOR | B56: 17071204000 | C56: 1.360370923e+10 | D56: =IFERROR(VLOOKUP($A56,'[1]David Gutierrez Tabla Dinamica'!$E$4:$G$1048576,2,0),0) -> 11598591000 | E56: =IFERROR(VLOOKUP($A56,'[1]David Gutierrez Tabla Dinamica'!$E$4:$G$1048576,3,0),0) -> 8820809653 | F56: 5472613000 | G56: 4782899577 | H56: 0.8739699988
A57: MINCOMERCIO INDUSTRIA TURISMO - GESTION GENERAL | B57: 605369642678 | C57: 5.612069806e+11 | D57: =IFERROR(VLOOKUP($A57,'[1]David Gutierrez Tabla Dinamica'!$E$4:$G$1048576,2,0),0) -> 157429957412 | E57: =IFERROR(VLOOKUP($A57,'[1]David Gutierrez Tabla Dinamica'!$E$4:$G$1048576,3,0),0) -> 1.172049262e+11 | F57: 447939685266 | G57: 4.440020543e+11 | H57: 0.9912094618
A58: SUPERINTENDENCIA DE INDUSTRIA Y COMERCIO | B58: 105779105362 | C58: 1.022689515e+11 | D58: =IFERROR(VLOOKUP($A58,'[1]David Gutierrez Tabla Dinamica'!$E$4:$G$1048576,2,0),0) -> 47826160000 | E58: =IFERROR(VLOOKUP($A58,'[1]David Gutierrez Tabla Dinamica'!$E$4:$G$1048576,3,0),0) -> 4.513089685e+10 | F58: 57952945362 | G58: 5.713805462e+10 | H58: 0.9859387518
A59: SUPERINTENDENCIA DE SOCIEDADES | B59: 119064231942 | C59: 1.144403953e+11 | D59: =IFERROR(VLOOKUP($A59,'[1]David Gutierrez Tabla Dinamica'!$E$4:$G$1048576,2,0),0) -> 98113530000 | E59: =IFERROR(VLOOKUP($A59,'[1]David Gutierrez Tabla Dinamica'!$E$4:$G$1048576,3,0),0) -> 9.491184918e+10 | F59: 20950701942 | G59: 1.952854616e+10 | H59: 0.9321189433
A60: UNIDAD ADMINISTRATIVA ESPECIAL JUNTA CENTRAL CONTADORES | B60: 6469500000 | C60: 6343011775 | D60: =IFERROR(VLOOKUP($A60,'[1]David Gutierrez Tabla Dinamica'!$E$4:$G$1048576,2,0),0) -> 5021048865 | E60: =IFERROR(VLOOKUP($A60,'[1]David Gutierrez Tabla Dinamica'!$E$4:$G$1048576,3,0),0) -> 4954488897 | F60: 1448451135 | G60: 1388522878 | H60: 0.9586259726
A61: COMUNICACIONES | B61: 2040420543842 | C61: 1.858279713e+12 | D61: =IFERROR(VLOOKUP($A61,'[1]David Gutierrez Tabla Dinamica'!$E$4:$G$1048576,2,0),0) -> 523712330537 | E61: =IFERROR(VLOOKUP($A61,'[1]David Gutierrez Tabla Dinamica'!$E$4:$G$1048576,3,0),0) -> 3.925413654e+11 | F61: 1516708213305 | G61: 1.465738348e+12 | H61: 0.9663944159
A62: AGENCIA NACIONAL DEL ESPECTRO - ANE | B62: 25644823149 | C62: 2.506122059e+10 | D62: =IFERROR(VLOOKUP($A62,'[1]David Gutierrez Tabla Dinamica'!$E$4:$G$1048576,2,0),0) -> 7779102552 | E62: =IFERROR(VLOOKUP($A62,'[1]David Gutierrez Tabla Dinamica'!$E$4:$G$1048576,3,0),0) -> 7701492999 | F62: 17865720597 | G62: 1.735972759e+10 | H62: 0.9716779962
A63: AUTORIDAD NACIONAL DE TELEVISION ANTV | B63: 244648000000 | C63: 1.791659933e+11 | D63: =IFERROR(VLOOKUP($A63,'[1]David Gutierrez Tabla Dinamica'!$E$4:$G$1048576,2,0),0) -> 58852847593 | E63: =IFERROR(VLOOKUP($A63,'[1]David Gutierrez Tabla Dinamica'!$E$4:$G$1048576,3,0),0) -> 11110990496 | F63: 185795152407 | G63: 1.680550028e+11 | H63: 0.9045176937
A64: FONDO DE TECNOLOGIAS DE LA INFORMACION Y LAS COMUNICACIONES | B64: 1648301320608 | C64: 1.588901976e+12 | D64: =IFERROR(VLOOKUP($A64,'[1]David Gutierrez Tabla Dinamica'!$E$4:$G$1048576,2,0),0) -> 347777855307 | E64: =IFERROR(VLOOKUP($A64,'[1]David Gutierrez Tabla Dinamica'!$E$4:$G$1048576,3,0),0) -> 3.206454339e+11 | F64: 1300523465301 | G64: 1.268256542e+12 | H64: 0.9751892799
A65: MINISTERIO DE TECNOLOGIAS DE LA INFORMACION Y LAS COMUNICACIONES - GESTION GENERAL | B65: 102050700085 | C65: 4.621958178e+10 | D65: =IFERROR(VLOOKUP($A65,'[1]David Gutierrez Tabla Dinamica'!$E$4:$G$1048576,2,0),0) -> 100280325085 | E65: =IFERROR(VLOOKUP($A65,'[1]David Gutierrez Tabla Dinamica'!$E$4:$G$1048576,3,0),0) -> 4.444920678e+10 | F65: 1770375000 | G65: 1770375000 | H65: 1
A66: MINISTERIO DE TECNOLOGIAS DE LA INFORMACION Y LAS COMUNICACIONES - UNIDAD ADMINISTRATIVA ESPECIAL COMISION DE REGULACION DE COMUNICACIONES | B66: 19775700000 | C66: 1.89309421e+10 | D66: =IFERROR(VLOOKUP($A66,'[1]David Gutierrez Tabla Dinamica'!$E$4:$G$1048576,2,0),0) -> 9022200000 | E66: =IFERROR(VLOOKUP($A66,'[1]David Gutierrez Tabla Dinamica'!$E$4:$G$1048576,3,0),0) -> 8634241296 | F66: 10753500000 | G66: 1.02967008e+10 | H66: 0.9575208818
A67: CONGRESO DE LA REPUBLICA | B67: 471858594278 | C67: 4.549028597e+11 | D67: =IFERROR(VLOOKUP($A67,'[1]David Gutierrez Tabla Dinamica'!$E$4:$G$1048576,2,0),0) -> 351677500000 | E67: =IFERROR(VLOOKUP($A67,'[1]David Gutierrez Tabla Dinamica'!$E$4:$G$1048576,3,0),0) -> 3.443301161e+11 | F67: 120181094278 | G67: 1.105727436e+11 | H67: 0.9200510635
A68: CONGRESO DE LA REPUBLICA - CAMARA DE REPRESENTANTES - GESTION GENERAL | B68: 260860504000 | C68: 2.526301118e+11 | D68: =IFERROR(VLOOKUP($A68,'[1]David Gutierrez Tabla Dinamica'!$E$4:$G$1048576,2,0),0) -> 207879000000 | E68: =IFERROR(VLOOKUP($A68,'[1]David Gutierrez Tabla Dinamica'!$E$4:$G$1048576,3,0),0) -> 2.047256379e+11 | F68: 52981504000 | G68: 4.790447391e+10 | H68: 0.9041735377
A69: CONGRESO DE LA REPUBLICA SENADO GESTION GENERAL | B69: 210998090278 | C69: 2.022727478e+11 | D69: =IFERROR(VLOOKUP($A69,'[1]David Gutierrez Tabla Dinamica'!$E$4:$G$1048576,2,0),0) -> 143798500000 | E69: =IFERROR(VLOOKUP($A69,'[1]David Gutierrez Tabla Dinamica'!$E$4:$G$1048576,3,0),0) -> 1.396044781e+11 | F69: 67199590278 | G69: 6.26682697e+10 | H69: 0.9325692231
A70: CULTURA | B70: 393155245506 | C70: 3.907334323e+11 | D70: =IFERROR(VLOOKUP($A70,'[1]David Gutierrez Tabla Dinamica'!$E$4:$G$1048576,2,0),0) -> 176412916341 | E70: =IFERROR(VLOOKUP($A70,'[1]David Gutierrez Tabla Dinamica'!$E$4:$G$1048576,3,0),0) -> 1.750600275e+11 | F70: 216742329165 | G70: 2.156734048e+11 | H70: 0.9950682252
A71: ARCHIVO GENERAL DE LA NACION | B71: 19310586712 | C71: 1.8322875e+10 | D71: =IFERROR(VLOOKUP($A71,'[1]David Gutierrez Tabla Dinamica'!$E$4:$G$1048576,2,0),0) -> 7576098632 | E71: =IFERROR(VLOOKUP($A71,'[1]David Gutierrez Tabla Dinamica'!$E$4:$G$1048576,3,0),0) -> 6908520613 | F71: =+B71-D71 -> 11734488080 | G71: =+C71-E71 -> 1.141435439e+10 | H71: =IFERROR(G71/F71,"") -> 0.9727185636
A72: INSTITUTO CARO Y CUERVO | B72: 9246655596 | C72: 8967588178 | D72: =IFERROR(VLOOKUP($A72,'[1]David Gutierrez Tabla Dinamica'!$E$4:$G$1048576,2,0),0) -> 4515924947 | E72: =IFERROR(VLOOKUP($A72,'[1]David Gutierrez Tabla Dinamica'!$E$4:$G$1048576,3,0),0) -> 4293135669 | F72: 4730730649 | G72: 4674452508 | H72: 0.9881037106
A73: INSTITUTO COLOMBIANO DE ANTROPOLOGIA E HISTORIA | B73: 9726336829 | C73: 9207985049 | D73: =IFERROR(VLOOKUP($A73,'[1]David Gutierrez Tabla Dinamica'!$E$4:$G$1048576,2,0),0) -> 4012001779 | E73: =IFERROR(VLOOKUP($A73,'[1]David Gutierrez Tabla Dinamica'!$E$4:$G$1048576,3,0),0) -> 3681550514 | F73: 5714335050 | G73: 5526434535 | H73: 0.9671176937
A74: MINISTERIO DE CULTURA - GESTION GENERAL | B74: 354871666369 | C74: 3.542349841e+11 | D74: =IFERROR(VLOOKUP($A74,'[1]David Gutierrez Tabla Dinamica'!$E$4:$G$1048576,2,0),0) -> 160308890983 | E74: =IFERROR(VLOOKUP($A74,'[1]David Gutierrez Tabla Dinamica'!$E$4:$G$1048576,3,0),0) -> 1.601768207e+11 | F74: 194562775386 | G74: 1.940581634e+11 | H74: 0.9974064308
A75: DEFENSA Y POLICÍA | B75: 2.70399698e+13 | C75: 2.675772212e+13 | D75: =IFERROR(VLOOKUP($A75,'[1]David Gutierrez Tabla Dinamica'!$E$4:$G$1048576,2,0),0) -> 1.855882204e+13 | E75: =IFERROR(VLOOKUP($A75,'[1]David Gutierrez Tabla Dinamica'!$E$4:$G$1048576,3,0),0) -> 1.844035575e+13 | F75: 8.481147762e+12 | G75: 8.317366367e+12 | H75: 0.9806887701
A76: AGENCIA LOGISTICA DE LAS FUERZAS MILITARES | B76: 939967000000 | C76: 8.580396273e+11 | D76: =IFERROR(VLOOKUP($A76,'[1]David Gutierrez Tabla Dinamica'!$E$4:$G$1048576,2,0),0) -> 50436000000 | E76: =IFERROR(VLOOKUP($A76,'[1]David Gutierrez Tabla Dinamica'!$E$4:$G$1048576,3,0),0) -> 4.269084646e+10 | F76: 889531000000 | G76: 8.153487808e+11 | H76: 0.9166052457
A77: CAJA DE RETIRO DE LAS FUERZAS MILITARES | B77: 1959819500000 | C77: 1.933354823e+12 | D77: =IFERROR(VLOOKUP($A77,'[1]David Gutierrez Tabla Dinamica'!$E$4:$G$1048576,2,0),0) -> 1946011000000 | E77: =IFERROR(VLOOKUP($A77,'[1]David Gutierrez Tabla Dinamica'!$E$4:$G$1048576,3,0),0) -> 1919680235312 | F77: 13808500000 | G77: 1.367458749e+10 | H77: 0.9903021679
A78: CAJA DE SUELDOS DE RETIRO DE LA POLICIA NACIONAL | B78: 2241021000000 | C78: 2.229828572e+12 | D78: =IFERROR(VLOOKUP($A78,'[1]David Gutierrez Tabla Dinamica'!$E$4:$G$1048576,2,0),0) -> 2231431000000 | E78: =IFERROR(VLOOKUP($A78,'[1]David Gutierrez Tabla Dinamica'!$E$4:$G$1048576,3,0),0) -> 2.221499721e+12 | F78: 9590000000 | G78: 8328850210 | H78: 0.868493244
A79: CLUB MILITAR DE OFICIALES | B79: 40179000000 | C79: 3.836929217e+10 | D79: =IFERROR(VLOOKUP($A79,'[1]David Gutierrez Tabla Dinamica'!$E$4:$G$1048576,2,0),0) -> 9936000000 | E79: =IFERROR(VLOOKUP($A79,'[1]David Gutierrez Tabla Dinamica'!$E$4:$G$1048576,3,0),0) -> 8375851057 | F79: 30243000000 | G79: 2.999344111e+10 | H79: 0.9917482098
A80: DEFENSA CIVIL COLOMBIANA, GUILLERMO LEÓN VALENCIA | B80: 24639000000 | C80: 2.217512806e+10 | D80: =IFERROR(VLOOKUP($A80,'[1]David Gutierrez Tabla Dinamica'!$E$4:$G$1048576,2,0),0) -> 21522000000 | E80: =IFERROR(VLOOKUP($A80,'[1]David Gutierrez Tabla Dinamica'!$E$4:$G$1048576,3,0),0) -> 1.910791352e+10 | F80: 3117000000 | G80: 3067214533 | H80: 0.9840277616
A81: FONPOLICIA - GESTION GENERAL | B81: 386385986890 | C81: 3.575594516e+11 | D81: =IFERROR(VLOOKUP($A81,'[1]David Gutierrez Tabla Dinamica'!$E$4:$G$1048576,2,0),0) -> 9234513242 | E81: =IFERROR(VLOOKUP($A81,'[1]David Gutierrez Tabla Dinamica'!$E$4:$G$1048576,3,0),0) -> 7937109736 | F81: 3.771514736e+11 | G81: 3.496223418e+11 | H81: 0.9270077575
A82: HOSPITAL MILITAR | B82: 232984900000 | C82: 2.032910778e+11 | D82: =IFERROR(VLOOKUP($A82,'[1]David Gutierrez Tabla Dinamica'!$E$4:$G$1048576,2,0),0) -> 78385000000 | E82: =IFERROR(VLOOKUP($A82,'[1]David Gutierrez Tabla Dinamica'!$E$4:$G$1048576,3,0),0) -> 66982336390 | F82: 154599900000 | G82: 1.363087414e+11 | H82: 0.8816871251
A83: INSTITUTO CASAS FISCALES DEL EJERCITO | B83: 71170000000 | C83: 6.868632725e+10 | D83: =IFERROR(VLOOKUP($A83,'[1]David Gutierrez Tabla Dinamica'!$E$4:$G$1048576,2,0),0) -> 4544419000 | E83: =IFERROR(VLOOKUP($A83,'[1]David Gutierrez Tabla Dinamica'!$E$4:$G$1048576,3,0),0) -> 3617478810 | F83: 66625581000 | G83: 6.506884844e+10 | H83: 0.9766346119
A84: MINISTERIO DE DEFENSA NACIONAL - ARMADA | B84: 1848222086515 | C84: 1.842324753e+12 | D84: =IFERROR(VLOOKUP($A84,'[1]David Gutierrez Tabla Dinamica'!$E$4:$G$1048576,2,0),0) -> 916334200000 | E84: =IFERROR(VLOOKUP($A84,'[1]David Gutierrez Tabla Dinamica'!$E$4:$G$1048576,3,0),0) -> 9.149295898e+11 | F84: 931887886515 | G84: 9.273951636e+11 | H84: 0.9951789019
A85: MINISTERIO DE DEFENSA NACIONAL - COMANDO GENERAL | B85: 105446376442 | C85: 1.052173482e+11 | D85: =IFERROR(VLOOKUP($A85,'[1]David Gutierrez Tabla Dinamica'!$E$4:$G$1048576,2,0),0) -> 17406661322 | E85: =IFERROR(VLOOKUP($A85,'[1]David Gutierrez Tabla Dinamica'!$E$4:$G$1048576,3,0),0) -> 1.73079069e+10 | F85: 88039715120 | G85: 8.790944126e+10 | H85: 0.998520283
A86: MINISTERIO DE DEFENSA NACIONAL - DIRECCION GENERAL MARITIMA - DIMAR | B86: 104736822391 | C86: 1.030084557e+11 | D86: =IFERROR(VLOOKUP($A86,'[1]David Gutierrez Tabla Dinamica'!$E$4:$G$1048576,2,0),0) -> 20048669138 | E86: =IFERROR(VLOOKUP($A86,'[1]David Gutierrez Tabla Dinamica'!$E$4:$G$1048576,3,0),0) -> 1.92896291e+10 | F86: 84688153253 | G86: 8.371882662e+10 | H86: 0.9885541649
A87: MINISTERIO DE DEFENSA NACIONAL - EJERCITO | B87: 7093700025449 | C87: 7.062887327e+12 | D87: =IFERROR(VLOOKUP($A87,'[1]David Gutierrez Tabla Dinamica'!$E$4:$G$1048576,2,0),0) -> 5159883000000 | E87: =IFERROR(VLOOKUP($A87,'[1]David Gutierrez Tabla Dinamica'!$E$4:$G$1048576,3,0),0) -> 5.149152857e+12 | F87: 1933817025449 | G87: 1.91373447e+12 | H87: 0.9896150697
A88: MINISTERIO DE DEFENSA NACIONAL - FUERZA AEREA | B88: 1738823240556 | C88: 1.729946577e+12 | D88: =IFERROR(VLOOKUP($A88,'[1]David Gutierrez Tabla Dinamica'!$E$4:$G$1048576,2,0),0) -> 493996200281 | E88: =IFERROR(VLOOKUP($A88,'[1]David Gutierrez Tabla Dinamica'!$E$4:$G$1048576,3,0),0) -> 4.930333217e+11 | F88: 1244827040275 | G88: 1.236913255e+12 | H88: 0.993642663
A89: MINISTERIO DE DEFENSA NACIONAL - GESTION GENERAL | B89: 1.413795846e+12 | C89: 1.399321297e+12 | D89: =IFERROR(VLOOKUP($A89,'[1]David Gutierrez Tabla Dinamica'!$E$4:$G$1048576,2,0),0) -> 1.326066028e+12 | E89: =IFERROR(VLOOKUP($A89,'[1]David Gutierrez Tabla Dinamica'!$E$4:$G$1048576,3,0),0) -> 1.317974647e+12 | F89: 87729818222 | G89: 8.134664982e+10 | H89: 0.9272406061
A90: MINISTERIO DE DEFENSA NACIONAL - SALUD | B90: 871711000000 | C90: 8.375725556e+11 | D90: =IFERROR(VLOOKUP($A90,'[1]David Gutierrez Tabla Dinamica'!$E$4:$G$1048576,2,0),0) -> 384096864416 | E90: =IFERROR(VLOOKUP($A90,'[1]David Gutierrez Tabla Dinamica'!$E$4:$G$1048576,3,0),0) -> 3.501275302e+11 | F90: 487614135584 | G90: 4.874450254e+11 | H90: 0.9996531884
A91: POLICIA NACIONAL - GESTION GENERAL | B91: 7182525213485 | C91: 7.182404082e+12 | D91: =IFERROR(VLOOKUP($A91,'[1]David Gutierrez Tabla Dinamica'!$E$4:$G$1048576,2,0),0) -> 5.759112674e+12 | E91: =IFERROR(VLOOKUP($A91,'[1]David Gutierrez Tabla Dinamica'!$E$4:$G$1048576,3,0),0) -> 5.759009735e+12 | F91: 1.423412539e+12 | G91: 1.423394347e+12 | H91: 0.9999872197
A92: POLICIA NACIONAL - SALUD | B92: 771904000000 | C92: 7.716287302e+11 | D92: =IFERROR(VLOOKUP($A92,'[1]David Gutierrez Tabla Dinamica'!$E$4:$G$1048576,2,0),0) -> 121280786741 | E92: =IFERROR(VLOOKUP($A92,'[1]David Gutierrez Tabla Dinamica'!$E$4:$G$1048576,3,0),0) -> 1.211942509e+11 | F92: 650623213259 | G92: 6.504344793e+11 | H92: 0.9997099182
A93: SUPERINTENDENCIA DE VIGILANCIA Y SEGURIDAD PRIVADA | B93: 12938806000 | C93: 1.210669271e+10 | D93: =IFERROR(VLOOKUP($A93,'[1]David Gutierrez Tabla Dinamica'!$E$4:$G$1048576,2,0),0) -> 9097025400 | E93: =IFERROR(VLOOKUP($A93,'[1]David Gutierrez Tabla Dinamica'!$E$4:$G$1048576,3,0),0) -> 8444790005 | F93: 3841780600 | G93: 3661902704 | H93: 0.953178509
A94: DEPORTE Y RECREACIÓN | B94: 352960951687 | C94: 3.375235676e+11 | D94: =IFERROR(VLOOKUP($A94,'[1]David Gutierrez Tabla Dinamica'!$E$4:$G$1048576,2,0),0) -> 22812400050 | E94: =IFERROR(VLOOKUP($A94,'[1]David Gutierrez Tabla Dinamica'!$E$4:$G$1048576,3,0),0) -> 22184222039 | F94: 330148551637 | G94: 3.153393456e+11 | H94: 0.9551438102
A95: DEPARTAMENTO ADMINISTRATIVO DEL DEPORTE, LA RECREACIÓN, LA ACTIVIDAD FÍSICA Y EL APROVECHAMIENTO DEL TIEMPO LIBRE – COLDEPORTES - GESTIÓN GENERAL | B95: 352960951687 | C95: 3.375235676e+11 | D95: =IFERROR(VLOOKUP($A95,'[1]David Gutierrez Tabla Dinamica'!$E$4:$G$1048576,2,0),0) -> 22812400050 | E95: =IFERROR(VLOOKUP($A95,'[1]David Gutierrez Tabla Dinamica'!$E$4:$G$1048576,3,0),0) -> 22184222039 | F95: 330148551637 | G95: 3.153393456e+11 | H95: 0.9551438102
A96: EDUCACIÓN | B96: 26933831212576 | C96: 2.691780169e+13 | D96: =IFERROR(VLOOKUP($A96,'[1]David Gutierrez Tabla Dinamica'!$E$4:$G$1048576,2,0),0) -> 25014922386587 | E96: =IFERROR(VLOOKUP($A96,'[1]David Gutierrez Tabla Dinamica'!$E$4:$G$1048576,3,0),0) -> 2.500864933e+13 | F96: 1918908825989 | G96: 1.909152354e+12 | H96: 0.9949156146
A97: ESCUELA TECNOLOGICA INSTITUTO TECNICO CENTRAL | B97: 22187667424 | C97: 2.084027229e+10 | D97: =IFERROR(VLOOKUP($A97,'[1]David Gutierrez Tabla Dinamica'!$E$4:$G$1048576,2,0),0) -> 13414563238 | E97: =IFERROR(VLOOKUP($A97,'[1]David Gutierrez Tabla Dinamica'!$E$4:$G$1048576,3,0),0) -> 12840351603 | F97: 8773104186 | G97: 7999920682 | H97: 0.9118688793
A98: INSTITUTO NACIONAL DE FORMACION TECNICA PROFESIONAL DE SAN ANDRES Y PROVIDENCIA | B98: 7245606522 | C98: 4302035622 | D98: =IFERROR(VLOOKUP($A98,'[1]David Gutierrez Tabla Dinamica'!$E$4:$G$1048576,2,0),0) -> 2500160405 | E98: =IFERROR(VLOOKUP($A98,'[1]David Gutierrez Tabla Dinamica'!$E$4:$G$1048576,3,0),0) -> 2110614912 | F98: 4745446117 | G98: 2191420710 | H98: 0.4617944565
A99: INSTITUTO NACIONAL DE FORMACION TECNICA PROFESIONAL DE SAN JUAN DEL CESAR | B99: 8946610605 | C99: 8938255038 | D99: =IFERROR(VLOOKUP($A99,'[1]David Gutierrez Tabla Dinamica'!$E$4:$G$1048576,2,0),0) -> 3279598618 | E99: =IFERROR(VLOOKUP($A99,'[1]David Gutierrez Tabla Dinamica'!$E$4:$G$1048576,3,0),0) -> 3272069328 | F99: 5667011987 | G99: 5666185710 | H99: 0.9998541953
A100: INSTITUTO NACIONAL PARA CIEGOS (INCI) | B100: 5419807047 | C100: 5227796296 | D100: =IFERROR(VLOOKUP($A100,'[1]David Gutierrez Tabla Dinamica'!$E$4:$G$1048576,2,0),0) -> 3506187104 | E100: =IFERROR(VLOOKUP($A100,'[1]David Gutierrez Tabla Dinamica'!$E$4:$G$1048576,3,0),0) -> 3369396246 | F100: 1913619943 | G100: 1858400050 | H100: 0.9711437513
A101: INSTITUTO NACIONAL PARA SORDOS (INSOR) | B101: 5051412907 | C101: 4773728623 | D101: =IFERROR(VLOOKUP($A101,'[1]David Gutierrez Tabla Dinamica'!$E$4:$G$1048576,2,0),0) -> 3399762019 | E101: =IFERROR(VLOOKUP($A101,'[1]David Gutierrez Tabla Dinamica'!$E$4:$G$1048576,3,0),0) -> 3190968558 | F101: 1651650888 | G101: 1582760065 | H101: 0.9582897191
A102: INSTITUTO TECNICO NACIONAL DE COMERCIO SIMON RODRIGUEZ DE CALI | B102: 9975978223 | C102: 9767970577 | D102: =IFERROR(VLOOKUP($A102,'[1]David Gutierrez Tabla Dinamica'!$E$4:$G$1048576,2,0),0) -> 3764777753 | E102: =IFERROR(VLOOKUP($A102,'[1]David Gutierrez Tabla Dinamica'!$E$4:$G$1048576,3,0),0) -> 3634562835 | F102: 6211200470 | G102: 6133407742 | H102: 0.9874754118
A103: INSTITUTO TOLIMENSE DE FORMACION TECNICA PROFESIONAL | B103: 13849685403 | C103: 1.322921208e+10 | D103: =IFERROR(VLOOKUP($A103,'[1]David Gutierrez Tabla Dinamica'!$E$4:$G$1048576,2,0),0) -> 8033226581 | E103: =IFERROR(VLOOKUP($A103,'[1]David Gutierrez Tabla Dinamica'!$E$4:$G$1048576,3,0),0) -> 7536892372 | F103: 5816458822 | G103: 5692319712 | H103: 0.9786572701
A104: MINISTERIO EDUCACION NACIONAL - GESTION GENERAL | B104: 26861154444445 | C104: 2.685072242e+13 | D104: =IFERROR(VLOOKUP($A104,'[1]David Gutierrez Tabla Dinamica'!$E$4:$G$1048576,2,0),0) -> 24977024110869 | E104: =IFERROR(VLOOKUP($A104,'[1]David Gutierrez Tabla Dinamica'!$E$4:$G$1048576,3,0),0) -> 2.497269448e+13 | F104: 1884130333576 | G104: 1.878027939e+12 | H104: 0.9967611613
A105: EMPLEO PUBLICO | B105: 237491982593 | C105: 1.715422931e+11 | D105: =IFERROR(VLOOKUP($A105,'[1]David Gutierrez Tabla Dinamica'!$E$4:$G$1048576,2,0),0) -> 79960690837 | E105: =IFERROR(VLOOKUP($A105,'[1]David Gutierrez Tabla Dinamica'!$E$4:$G$1048576,3,0),0) -> 4.615301894e+10 | F105: 157531291756 | G105: 1.253892742e+11 | H105: 0.7959642353
A106: COMISION NACIONAL DEL SERVICIO CIVIL | B106: 55730130000 | C106: 3.182184716e+10 | D106: =IFERROR(VLOOKUP($A106,'[1]David Gutierrez Tabla Dinamica'!$E$4:$G$1048576,2,0),0) -> 11583818713 | E106: =IFERROR(VLOOKUP($A106,'[1]David Gutierrez Tabla Dinamica'!$E$4:$G$1048576,3,0),0) -> 7796530043 | F106: 44146311287 | G106: 2.402531712e+10 | H106: 0.5442202625
A107: DEPARTAMENTO FUNCION PUBLICA - GESTION GENERAL | B107: 25309115093 | C107: 2.336261395e+10 | D107: =IFERROR(VLOOKUP($A107,'[1]David Gutierrez Tabla Dinamica'!$E$4:$G$1048576,2,0),0) -> 14074460000 | E107: =IFERROR(VLOOKUP($A107,'[1]David Gutierrez Tabla Dinamica'!$E$4:$G$1048576,3,0),0) -> 1.326779757e+10 | F107: 11234655093 | G107: 1.009481638e+10 | H107: 0.8985426165
A108: ESCUELA SUPERIOR DE ADMINISTRACION PUBLICA (ESAP) | B108: 156452737500 | C108: 1.16357832e+11 | D108: =IFERROR(VLOOKUP($A108,'[1]David Gutierrez Tabla Dinamica'!$E$4:$G$1048576,2,0),0) -> 54302412124 | E108: =IFERROR(VLOOKUP($A108,'[1]David Gutierrez Tabla Dinamica'!$E$4:$G$1048576,3,0),0) -> 2.508869133e+10 | F108: 102150325376 | G108: 9.126914067e+10 | H108: 0.8934787074
A109: EMPRESAS | B109: 69962000000 | C109: 67891269524 | D109: =IFERROR(VLOOKUP($A109,'[1]David Gutierrez Tabla Dinamica'!$E$4:$G$1048576,2,0),0) -> 69962000000 | E109: =IFERROR(VLOOKUP($A109,'[1]David Gutierrez Tabla Dinamica'!$E$4:$G$1048576,3,0),0) -> 67891269524 | F109: 0 | G109: 0
A110: INSTITUTO DE SEGUROS SOCIALES EN LIQUIDACION | B110: 69962000000 | C110: 67891269524 | D110: =IFERROR(VLOOKUP($A110,'[1]David Gutierrez Tabla Dinamica'!$E$4:$G$1048576,2,0),0) -> 69962000000 | E110: =IFERROR(VLOOKUP($A110,'[1]David Gutierrez Tabla Dinamica'!$E$4:$G$1048576,3,0),0) -> 67891269524 | F110: 0 | G110: 0
A111: FISCALÍA | B111: 2696673361660 | C111: 2.525338172e+12 | D111: =IFERROR(VLOOKUP($A111,'[1]David Gutierrez Tabla Dinamica'!$E$4:$G$1048576,2,0),0) -> 2179373738101 | E111: =IFERROR(VLOOKUP($A111,'[1]David Gutierrez Tabla Dinamica'!$E$4:$G$1048576,3,0),0) -> 2.024973777e+12 | F111: 517299623559 | G111: 5.003643956e+11 | H111: 0.9672622457
A112: FISCALIA GENERAL DE LA NACION - GESTION GENERAL | B112: 2513268592321 | C112: 2.347616134e+12 | D112: =IFERROR(VLOOKUP($A112,'[1]David Gutierrez Tabla Dinamica'!$E$4:$G$1048576,2,0),0) -> 2055075029160 | E112: =IFERROR(VLOOKUP($A112,'[1]David Gutierrez Tabla Dinamica'!$E$4:$G$1048576,3,0),0) -> 1.905103075e+12 | F112: 458193563161 | G112: 4.425130593e+11 | H112: 0.9657775554
A113: INSTITUTO NACIONAL DE MEDICINA LEGAL Y CIENCIAS FORENSES | B113: 183404769339 | C113: 1.777220385e+11 | D113: =IFERROR(VLOOKUP($A113,'[1]David Gutierrez Tabla Dinamica'!$E$4:$G$1048576,2,0),0) -> 124298708941 | E113: =IFERROR(VLOOKUP($A113,'[1]David Gutierrez Tabla Dinamica'!$E$4:$G$1048576,3,0),0) -> 1.198707023e+11 | F113: 59106060398 | G113: 5.785133627e+10 | H113: 0.9787716501
A114: HACIENDA | B114: 1.746921069e+13 | C114: 1.32307859e+13 | D114: =IFERROR(VLOOKUP($A114,'[1]David Gutierrez Tabla Dinamica'!$E$4:$G$1048576,2,0),0) -> 1.354699543e+13 | E114: =IFERROR(VLOOKUP($A114,'[1]David Gutierrez Tabla Dinamica'!$E$4:$G$1048576,3,0),0) -> 1.024390734e+13 | F114: 3922215264450 | G114: 2.986878562e+12 | H114: 0.7615284631
A115: COLJUEGOS | B115: 23455000000 | C115: 2.111391824e+10 | D115: =IFERROR(VLOOKUP($A115,'[1]David Gutierrez Tabla Dinamica'!$E$4:$G$1048576,2,0),0) -> 16575000000 | E115: =IFERROR(VLOOKUP($A115,'[1]David Gutierrez Tabla Dinamica'!$E$4:$G$1048576,3,0),0) -> 15341114169 | F115: 6880000000 | G115: 5772804069 | H115: 0.8390703589
A116: FONDO ADAPTACION | B116: 1026356000000 | C116: 1.022700792e+12 | D116: =IFERROR(VLOOKUP($A116,'[1]David Gutierrez Tabla Dinamica'!$E$4:$G$1048576,2,0),0) -> 22776000000 | E116: =IFERROR(VLOOKUP($A116,'[1]David Gutierrez Tabla Dinamica'!$E$4:$G$1048576,3,0),0) -> 1.980426863e+10 | F116: 1003580000000 | G116: 1.002896524e+12 | H116: 0.9993189618
A117: MINISTERIO DE HACIENDA Y CREDITO PUBLICO - GESTION GENERAL | B117: 1.468645382e+13 | C117: 1.079643601e+13 | D117: =IFERROR(VLOOKUP($A117,'[1]David Gutierrez Tabla Dinamica'!$E$4:$G$1048576,2,0),0) -> 1.230362008e+13 | E117: =IFERROR(VLOOKUP($A117,'[1]David Gutierrez Tabla Dinamica'!$E$4:$G$1048576,3,0),0) -> 9.31007758e+12 | F117: 2382833740610 | G117: 1.486358434e+12 | H117: 0.6237776513
A118: SUPERINTENDENCIA DE LA ECONOMIA SOLIDARIA | B118: 17954000000 | C118: 1.167928535e+10 | D118: =IFERROR(VLOOKUP($A118,'[1]David Gutierrez Tabla Dinamica'!$E$4:$G$1048576,2,0),0) -> 10388391334 | E118: =IFERROR(VLOOKUP($A118,'[1]David Gutierrez Tabla Dinamica'!$E$4:$G$1048576,3,0),0) -> 5541299291 | F118: 7565608666 | G118: 6137986061 | H118: 0.8113010244
A119: SUPERINTENDENCIA FINANCIERA DE COLOMBIA | B119: 189726562500 | C119: 1.46801336e+11 | D119: =IFERROR(VLOOKUP($A119,'[1]David Gutierrez Tabla Dinamica'!$E$4:$G$1048576,2,0),0) -> 159847793321 | E119: =IFERROR(VLOOKUP($A119,'[1]David Gutierrez Tabla Dinamica'!$E$4:$G$1048576,3,0),0) -> 1.174759661e+11 | F119: 29878769179 | G119: 2.93253699e+10 | H119: 0.9814785115
A120: UGPPP - GESTION GENERAL | B120: 159700000000 | C120: 1.547102868e+11 | D120: =IFERROR(VLOOKUP($A120,'[1]David Gutierrez Tabla Dinamica'!$E$4:$G$1048576,2,0),0) -> 97206554000 | E120: =IFERROR(VLOOKUP($A120,'[1]David Gutierrez Tabla Dinamica'!$E$4:$G$1048576,3,0),0) -> 9.282340532e+10 | F120: 62493446000 | G120: 6.188688149e+10 | H120: 0.99029395
A121: UNIDAD ADMINISTRATIVA ESPECIAL AGENCIA DEL INSPECTOR GENERAL DE TRIBUTOS, RENTAS Y CONTRIBUCIONES PARAFISCALES – ITRC | B121: 16238000000 | C121: 1.518707092e+10 | D121: =IFERROR(VLOOKUP($A121,'[1]David Gutierrez Tabla Dinamica'!$E$4:$G$1048576,2,0),0) -> 11113000000 | E121: =IFERROR(VLOOKUP($A121,'[1]David Gutierrez Tabla Dinamica'!$E$4:$G$1048576,3,0),0) -> 10517751210 | F121: 5125000000 | G121: 4669319710 | H121: 0.9110867727
A122: UNIDAD ADMINISTRATIVA ESPECIAL CONTADURIA GENERAL DE LA NACION | B122: 19530770168 | C122: 1.912218494e+10 | D122: =IFERROR(VLOOKUP($A122,'[1]David Gutierrez Tabla Dinamica'!$E$4:$G$1048576,2,0),0) -> 8530000000 | E122: =IFERROR(VLOOKUP($A122,'[1]David Gutierrez Tabla Dinamica'!$E$4:$G$1048576,3,0),0) -> 8334710864 | F122: 11000770168 | G122: 1.078747408e+10 | H122: 0.9806108041
A123: UNIDAD ADMINISTRATIVA ESPECIAL DIRECCION DE IMPUESTOS Y ADUANAS NACIONALES | B123: 1316319537005 | C123: 1.030853385e+12 | D123: =IFERROR(VLOOKUP($A123,'[1]David Gutierrez Tabla Dinamica'!$E$4:$G$1048576,2,0),0) -> 905956607178 | E123: =IFERROR(VLOOKUP($A123,'[1]David Gutierrez Tabla Dinamica'!$E$4:$G$1048576,3,0),0) -> 6.540616101e+11 | F123: 410362929827 | G123: 3.767917744e+11 | H123: 0.9181915496
A124: UNIDAD ADMINISTRATIVA ESPECIAL UNIDAD DE PROYECCIÓN NORMATIVA Y ESTUDIOS DE REGULACIÓN FINANCIERA – URF | B124: 5467000000 | C124: 4332200008 | D124: =IFERROR(VLOOKUP($A124,'[1]David Gutierrez Tabla Dinamica'!$E$4:$G$1048576,2,0),0) -> 4967000000 | E124: =IFERROR(VLOOKUP($A124,'[1]David Gutierrez Tabla Dinamica'!$E$4:$G$1048576,3,0),0) -> 3991106459 | F124: 500000000 | G124: 341093548.5 | H124: 0.6821870969
A125: UNIDAD DE INFORMACION Y ANALISIS FINANCIERO | B125: 8010000000 | C125: 7849429314 | D125: =IFERROR(VLOOKUP($A125,'[1]David Gutierrez Tabla Dinamica'!$E$4:$G$1048576,2,0),0) -> 6015000000 | E125: =IFERROR(VLOOKUP($A125,'[1]David Gutierrez Tabla Dinamica'!$E$4:$G$1048576,3,0),0) -> 5938528260 | F125: 1995000000 | G125: 1910901054 | H125: 0.95784514
A126: INCLUSIÓN SOCIAL Y RECONCILIACIÓN | B126: 9906983800907 | C126: 9.664299578e+12 | D126: =IFERROR(VLOOKUP($A126,'[1]David Gutierrez Tabla Dinamica'!$E$4:$G$1048576,2,0),0) -> 1124704931229 | E126: =IFERROR(VLOOKUP($A126,'[1]David Gutierrez Tabla Dinamica'!$E$4:$G$1048576,3,0),0) -> 1.051076721e+12 | F126: 8782278869678 | G126: 8.613222857e+12 | H126: 0.9807503251
A127: AGENCIA NACIONAL PARA LA SUPERACIÓN DE LA POBREZA EXTREMA | B127: 231865700000 | C127: 2.261749286e+11 | D127: =IFERROR(VLOOKUP($A127,'[1]David Gutierrez Tabla Dinamica'!$E$4:$G$1048576,2,0),0) -> 20247512733 | E127: =IFERROR(VLOOKUP($A127,'[1]David Gutierrez Tabla Dinamica'!$E$4:$G$1048576,3,0),0) -> 1.960592372e+10 | F127: 211618187267 | G127: 2.065690049e+11 | H127: 0.9761401305
A128: CENTRO DE MEMORIA HISTÓRICA | B128: 40965000000 | C128: 3.762762758e+10 | D128: =IFERROR(VLOOKUP($A128,'[1]David Gutierrez Tabla Dinamica'!$E$4:$G$1048576,2,0),0) -> 7442000000 | E128: =IFERROR(VLOOKUP($A128,'[1]David Gutierrez Tabla Dinamica'!$E$4:$G$1048576,3,0),0) -> 6908928942 | F128: 33523000000 | G128: 3.071869863e+10 | H128: 0.9163469449
A129: DEPARTAMENTO ADMINISTRATIVO PARA LA PROSPERIDAD SOCIAL - GESTIÓN GENERAL | B129: 3289508847081 | C129: 3.213847107e+12 | D129: =IFERROR(VLOOKUP($A129,'[1]David Gutierrez Tabla Dinamica'!$E$4:$G$1048576,2,0),0) -> 95687138444 | E129: =IFERROR(VLOOKUP($A129,'[1]David Gutierrez Tabla Dinamica'!$E$4:$G$1048576,3,0),0) -> 8.628828154e+10 | F129: 3193821708637 | G129: 3.127558825e+12 | H129: 0.9792527919
A130: INSTITUTO COLOMBIANO DE BIENESTAR FAMILIAR (ICBF) | B130: 4627122948409 | C130: 4.538960723e+12 | D130: =IFERROR(VLOOKUP($A130,'[1]David Gutierrez Tabla Dinamica'!$E$4:$G$1048576,2,0),0) -> 286024000000 | E130: =IFERROR(VLOOKUP($A130,'[1]David Gutierrez Tabla Dinamica'!$E$4:$G$1048576,3,0),0) -> 2.761401072e+11 | F130: 4341098948409 | G130: 4.262820616e+12 | H130: 0.9819680837
A131: UNIDAD ADMINISTRATIVA ESPECIAL PARA LA CONSOLIDACIÓN TERRITORIAL | B131: 210746000000 | C131: 2.064778414e+11 | D131: =IFERROR(VLOOKUP($A131,'[1]David Gutierrez Tabla Dinamica'!$E$4:$G$1048576,2,0),0) -> 28002932469 | E131: =IFERROR(VLOOKUP($A131,'[1]David Gutierrez Tabla Dinamica'!$E$4:$G$1048576,3,0),0) -> 2.677598709e+10 | F131: 182743067531 | G131: 1.797018543e+11 | H131: 0.9833579832
A132: UNIDAD DE ATENCIÓN Y REPARACIÓN INTEGRAL A LAS VICTIMAS | B132: 1506775305417 | C132: 1.441211351e+12 | D132: =IFERROR(VLOOKUP($A132,'[1]David Gutierrez Tabla Dinamica'!$E$4:$G$1048576,2,0),0) -> 687301347583 | E132: =IFERROR(VLOOKUP($A132,'[1]David Gutierrez Tabla Dinamica'!$E$4:$G$1048576,3,0),0) -> 6.353574928e+11 | F132: 819473957834 | G132: 8.058538583e+11 | H132: 0.9833794602
A133: INFORMACIÓN ESTADÍSTICA | B133: 596003968751 | C133: 5.763741619e+11 | D133: =IFERROR(VLOOKUP($A133,'[1]David Gutierrez Tabla Dinamica'!$E$4:$G$1048576,2,0),0) -> 115492000000 | E133: =IFERROR(VLOOKUP($A133,'[1]David Gutierrez Tabla Dinamica'!$E$4:$G$1048576,3,0),0) -> 1.039280137e+11 | F133: 480511968751 | G133: 4.724461482e+11 | H133: 0.9832141111
A134: DEPARTAMENTO ADMINISTRATIVO NACIONAL DE ESTADISTICA (DANE) - GESTION GENERAL | B134: 415138507676 | C134: 4.066898865e+11 | D134: =IFERROR(VLOOKUP($A134,'[1]David Gutierrez Tabla Dinamica'!$E$4:$G$1048576,2,0),0) -> 69966000000 | E134: =IFERROR(VLOOKUP($A134,'[1]David Gutierrez Tabla Dinamica'!$E$4:$G$1048576,3,0),0) -> 6.245535438e+10 | F134: 345172507676 | G134: 3.442345322e+11 | H134: 0.9972825892
A135: FONDO ROTATORIO DEL DANE | B135: 13221000000 | C135: 1.212468786e+10 | D135: =IFERROR(VLOOKUP($A135,'[1]David Gutierrez Tabla Dinamica'!$E$4:$G$1048576,2,0),0) -> 111000000 | E135: =IFERROR(VLOOKUP($A135,'[1]David Gutierrez Tabla Dinamica'!$E$4:$G$1048576,3,0),0) -> 18697718 | F135: =+B135-D135 -> 13110000000 | G135: =+C135-E135 -> 1.210599014e+10 | H135: =IFERROR(G135/F135,"") -> 0.9234164869
A136: INSTITUTO GEOGRAFICO AGUSTIN CODAZZI - IGAC | B136: 167644461075 | C136: 1.575595875e+11 | D136: =IFERROR(VLOOKUP($A136,'[1]David Gutierrez Tabla Dinamica'!$E$4:$G$1048576,2,0),0) -> 45415000000 | E136: =IFERROR(VLOOKUP($A136,'[1]David Gutierrez Tabla Dinamica'!$E$4:$G$1048576,3,0),0) -> 4.145396156e+10 | F136: 122229461075 | G136: 1.161056259e+11 | H136: 0.9498988617
A137: INTELIGENCIA | B137: 165418545000 | C137: 1.407659869e+11 | D137: =IFERROR(VLOOKUP($A137,'[1]David Gutierrez Tabla Dinamica'!$E$4:$G$1048576,2,0),0) -> 100962714486 | E137: =IFERROR(VLOOKUP($A137,'[1]David Gutierrez Tabla Dinamica'!$E$4:$G$1048576,3,0),0) -> 8.702517909e+10 | F137: 64455830514 | G137: 5.374080779e+10 | H137: 0.833761777
A138: DAS - GESTION GENERAL | B138: 24573000000 | C138: 2.045498974e+10 | D138: =IFERROR(VLOOKUP($A138,'[1]David Gutierrez Tabla Dinamica'!$E$4:$G$1048576,2,0),0) -> 24045769486 | E138: =IFERROR(VLOOKUP($A138,'[1]David Gutierrez Tabla Dinamica'!$E$4:$G$1048576,3,0),0) -> 2.033653733e+10 | F138: 527230514 | G138: 118452410 | H138: 0.2246691093
A139: DEPARTAMENTO ADMINISTRATIVO DIRECCIÓN NACIONAL DE INTELIGENCIA - GESTIÓN GENERAL | B139: 86815445000 | C139: 7.636195657e+10 | D139: =IFERROR(VLOOKUP($A139,'[1]David Gutierrez Tabla Dinamica'!$E$4:$G$1048576,2,0),0) -> 43365445000 | E139: =IFERROR(VLOOKUP($A139,'[1]David Gutierrez Tabla Dinamica'!$E$4:$G$1048576,3,0),0) -> 36319276153 | F139: 43450000000 | G139: 4.004268041e+10 | H139: 0.921580677
A140: FONDO ROTATORIO DEL DEPARTAMENTO ADMINISTRATIVO DE SEGURIDAD | B140: 54030100000 | C140: 4.394904057e+10 | D140: =IFERROR(VLOOKUP($A140,'[1]David Gutierrez Tabla Dinamica'!$E$4:$G$1048576,2,0),0) -> 33551500000 | E140: =IFERROR(VLOOKUP($A140,'[1]David Gutierrez Tabla Dinamica'!$E$4:$G$1048576,3,0),0) -> 30369365608 | F140: 20478600000 | G140: 1.357967496e+10 | H140: 0.6631153967
A141: INTERIOR | B141: 1.016941273e+12 | C141: 9.751559253e+11 | D141: =IFERROR(VLOOKUP($A141,'[1]David Gutierrez Tabla Dinamica'!$E$4:$G$1048576,2,0),0) -> 4.445160569e+11 | E141: =IFERROR(VLOOKUP($A141,'[1]David Gutierrez Tabla Dinamica'!$E$4:$G$1048576,3,0),0) -> 4.190216195e+11 | F141: 5.724252164e+11 | G141: 5.561343058e+11 | H141: 0.9715405434
A142: CORPORACION NACIONAL PARA LA RECONSTRUCCION DE LA CUENCA DEL RIO PAEZ Y ZONAS ALEDANAS NASA KI WE | B142: 18517113250 | C142: 1.847419204e+10 | D142: =IFERROR(VLOOKUP($A142,'[1]David Gutierrez Tabla Dinamica'!$E$4:$G$1048576,2,0),0) -> 2257546676 | E142: =IFERROR(VLOOKUP($A142,'[1]David Gutierrez Tabla Dinamica'!$E$4:$G$1048576,3,0),0) -> 2215980302 | F142: 16259566574 | G142: 1.625821174e+10 | H142: 0.9999166745
A143: DIRECCION NACIONAL DE BOMBEROS | B143: 14676021612 | C143: 1.305806474e+10 | D143: =IFERROR(VLOOKUP($A143,'[1]David Gutierrez Tabla Dinamica'!$E$4:$G$1048576,2,0),0) -> 2919107885 | E143: =IFERROR(VLOOKUP($A143,'[1]David Gutierrez Tabla Dinamica'!$E$4:$G$1048576,3,0),0) -> 2414281757 | F143: 11756913727 | G143: 1.064378298e+10 | H143: 0.9053211776
A144: DIRECCION NACIONAL DEL DERECHO DE AUTOR | B144: 3671171266 | C144: 3656359207 | D144: =IFERROR(VLOOKUP($A144,'[1]David Gutierrez Tabla Dinamica'!$E$4:$G$1048576,2,0),0) -> 2302982744 | E144: =IFERROR(VLOOKUP($A144,'[1]David Gutierrez Tabla Dinamica'!$E$4:$G$1048576,3,0),0) -> 2293922697 | F144: 1368188522 | G144: 1362436510 | H144: 0.9957958925
A145: FONDO PARA LA PARTICIPACION Y EL FORTALECIMIENTO DE LA DEMOCRACIA | B145: 7971532917 | C145: 7841509142 | D145: =IFERROR(VLOOKUP($A145,'[1]David Gutierrez Tabla Dinamica'!$E$4:$G$1048576,2,0),0) -> 7971532917 | E145: =IFERROR(VLOOKUP($A145,'[1]David Gutierrez Tabla Dinamica'!$E$4:$G$1048576,3,0),0) -> 7841509142 | F145: 0 | G145: 0
A146: MINISTERIO DEL INTERIOR - GESTIÓN GENERAL | B146: 493281023673 | C146: 4.705938397e+11 | D146: =IFERROR(VLOOKUP($A146,'[1]David Gutierrez Tabla Dinamica'!$E$4:$G$1048576,2,0),0) -> 391510547669 | E146: =IFERROR(VLOOKUP($A146,'[1]David Gutierrez Tabla Dinamica'!$E$4:$G$1048576,3,0),0) -> 3.708638927e+11 | F146: 101770476004 | G146: 9.972994698e+10 | H146: 0.9799496956
A147: UNIDAD NACIONAL DE PROTECCION - UNP | B147: 4.788244106e+11 | C147: 4.615319605e+11 | D147: =IFERROR(VLOOKUP($A147,'[1]David Gutierrez Tabla Dinamica'!$E$4:$G$1048576,2,0),0) -> 37554339046 | E147: =IFERROR(VLOOKUP($A147,'[1]David Gutierrez Tabla Dinamica'!$E$4:$G$1048576,3,0),0) -> 33392032893 | F147: 4.412700716e+11 | G147: 4.281399276e+11 | H147: 0.9702446533
A148: JUSTICIA Y DEL DERECHO | B148: 2597119618270 | C148: 2.358019663e+12 | D148: =IFERROR(VLOOKUP($A148,'[1]David Gutierrez Tabla Dinamica'!$E$4:$G$1048576,2,0),0) -> 1611883188462 | E148: =IFERROR(VLOOKUP($A148,'[1]David Gutierrez Tabla Dinamica'!$E$4:$G$1048576,3,0),0) -> 1.474244608e+12 | F148: 985236429808 | G148: 8.837750557e+11 | H148: 0.8970182475
A149: DIRECCIÓN NACIONAL DE ESTUPEFACIENTES EN LIQUIDACIÓN | B149: 173781332461 | C149: 1.545273767e+11 | D149: =IFERROR(VLOOKUP($A149,'[1]David Gutierrez Tabla Dinamica'!$E$4:$G$1048576,2,0),0) -> 167840636603 | E149: =IFERROR(VLOOKUP($A149,'[1]David Gutierrez Tabla Dinamica'!$E$4:$G$1048576,3,0),0) -> 1.540331743e+11 | F149: 5940695858 | G149: 494202384 | H149: 0.0831893091
A150: INSTITUTO NACIONAL PENITENCIARIO Y CARCELARIO - INPEC | B150: 922995115725 | C150: 8.613210441e+11 | D150: =IFERROR(VLOOKUP($A150,'[1]David Gutierrez Tabla Dinamica'!$E$4:$G$1048576,2,0),0) -> 671043615113 | E150: =IFERROR(VLOOKUP($A150,'[1]David Gutierrez Tabla Dinamica'!$E$4:$G$1048576,3,0),0) -> 6.513798667e+11 | F150: 251951500612 | G150: 2.099411773e+11 | H150: 0.8332602776
A151: MINISTERIO DE JUSTICIA Y DEL DERECHO - GESTIÓN GENERAL | B151: 107841821741 | C151: 9.088587167e+10 | D151: =IFERROR(VLOOKUP($A151,'[1]David Gutierrez Tabla Dinamica'!$E$4:$G$1048576,2,0),0) -> 70753677574 | E151: =IFERROR(VLOOKUP($A151,'[1]David Gutierrez Tabla Dinamica'!$E$4:$G$1048576,3,0),0) -> 5.862547326e+10 | F151: 37088144167 | G151: 3.226039841e+10 | H151: 0.8698304846
A152: SUPERINTENDENCIA DE NOTARIADO Y REGISTRO | B152: 727747064440 | C152: 6.091511862e+11 | D152: =IFERROR(VLOOKUP($A152,'[1]David Gutierrez Tabla Dinamica'!$E$4:$G$1048576,2,0),0) -> 320173568029 | E152: =IFERROR(VLOOKUP($A152,'[1]David Gutierrez Tabla Dinamica'!$E$4:$G$1048576,3,0),0) -> 2.449349876e+11 | F152: 407573496411 | G152: 3.642161986e+11 | H152: 0.8936209096
A153: UNIDAD ADMINISTRATIVA ESPECIAL AGENCIA NACIONAL DE DEFENSA JURIDICA DEL ESTADO | B153: 45027609976 | C153: 3.654116687e+10 | D153: =IFERROR(VLOOKUP($A153,'[1]David Gutierrez Tabla Dinamica'!$E$4:$G$1048576,2,0),0) -> 33858247049 | E153: =IFERROR(VLOOKUP($A153,'[1]David Gutierrez Tabla Dinamica'!$E$4:$G$1048576,3,0),0) -> 2.565497882e+10 | F153: 11169362927 | G153: 1.088618805e+10 | H153: 0.9746471771
A154: UNIDAD DE SERVICIOS PENITENCIARIOS Y CARCELARIOS - USPEC | B154: 619726673927 | C154: 6.055930178e+11 | D154: =IFERROR(VLOOKUP($A154,'[1]David Gutierrez Tabla Dinamica'!$E$4:$G$1048576,2,0),0) -> 348213444094 | E154: =IFERROR(VLOOKUP($A154,'[1]David Gutierrez Tabla Dinamica'!$E$4:$G$1048576,3,0),0) -> 3.396161269e+11 | F154: 271513229833 | G154: 2.659768909e+11 | H154: 0.9796093216
A155: MINAS Y ENERGÍA | B155: 3.046677549e+12 | C155: 2.972549688e+12 | D155: =IFERROR(VLOOKUP($A155,'[1]David Gutierrez Tabla Dinamica'!$E$4:$G$1048576,2,0),0) -> 3.830498596e+11 | E155: =IFERROR(VLOOKUP($A155,'[1]David Gutierrez Tabla Dinamica'!$E$4:$G$1048576,3,0),0) -> 3.490818076e+11 | F155: 2663627689179 | G155: 2.62346788e+12 | H155: 0.9849228894
A156: AGENCIA NACIONAL DE HIDROCARBUROS - ANH | B156: 505598333299 | C156: 4.957292816e+11 | D156: =IFERROR(VLOOKUP($A156,'[1]David Gutierrez Tabla Dinamica'!$E$4:$G$1048576,2,0),0) -> 199580431906 | E156: =IFERROR(VLOOKUP($A156,'[1]David Gutierrez Tabla Dinamica'!$E$4:$G$1048576,3,0),0) -> 194689302448 | F156: 306017901393 | G156: 3.010399792e+11 | H156: 0.9837332319
A157: AGENCIA NACIONAL DE MINERÍA - ANM | B157: 80846746128 | C157: 6.798463276e+10 | D157: =IFERROR(VLOOKUP($A157,'[1]David Gutierrez Tabla Dinamica'!$E$4:$G$1048576,2,0),0) -> 49334588000 | E157: =IFERROR(VLOOKUP($A157,'[1]David Gutierrez Tabla Dinamica'!$E$4:$G$1048576,3,0),0) -> 41256498835 | F157: 31512158128 | G157: 2.672813392e+10 | H157: 0.8481848121
A158: INSTITUTO DE PLANIFICACION Y PROMOCION DE SOLUCIONES ENERGETICAS PARA LAS ZONAS NO INTERCONECTADAS -IPSE- | B158: 44866099022 | C158: 3.551799098e+10 | D158: =IFERROR(VLOOKUP($A158,'[1]David Gutierrez Tabla Dinamica'!$E$4:$G$1048576,2,0),0) -> 8881472578 | E158: =IFERROR(VLOOKUP($A158,'[1]David Gutierrez Tabla Dinamica'!$E$4:$G$1048576,3,0),0) -> 7030926354 | F158: 35984626444 | G158: 2.848706463e+10 | H158: 0.7916454176
A159: MINISTERIO DE MINAS Y ENERGIA - COMISION DE REGULACION DE ENERGIA Y GAS - CREG - | B159: 33872877000 | C159: 2.596393262e+10 | D159: =IFERROR(VLOOKUP($A159,'[1]David Gutierrez Tabla Dinamica'!$E$4:$G$1048576,2,0),0) -> 23254558000 | E159: =IFERROR(VLOOKUP($A159,'[1]David Gutierrez Tabla Dinamica'!$E$4:$G$1048576,3,0),0) -> 1.844890085e+10 | F159: 10618319000 | G159: 7515031767 | H159: 0.7077421357
A160: MINISTERIO DE MINAS Y ENERGIA - GESTION GENERAL | B160: 2.271469955e+12 | C160: 2.248755016e+12 | D160: =IFERROR(VLOOKUP($A160,'[1]David Gutierrez Tabla Dinamica'!$E$4:$G$1048576,2,0),0) -> 6.36307871e+10 | E160: =IFERROR(VLOOKUP($A160,'[1]David Gutierrez Tabla Dinamica'!$E$4:$G$1048576,3,0),0) -> 5.603808758e+10 | F160: 2207839168214 | G160: 2.192716929e+12 | H160: 0.9931506608
A161: SERVICIO GEOLÓGICO COLOMBIANO | B161: 74893225000 | C161: 6.61010109e+10 | D161: =IFERROR(VLOOKUP($A161,'[1]David Gutierrez Tabla Dinamica'!$E$4:$G$1048576,2,0),0) -> 26886290000 | E161: =IFERROR(VLOOKUP($A161,'[1]David Gutierrez Tabla Dinamica'!$E$4:$G$1048576,3,0),0) -> 2.13067328e+10 | F161: 48006935000 | G161: 4.479427809e+10 | H161: 0.9330793164
A162: UNIDAD DE PLANEACION MINERO ENERGETICA - UPME | B162: 35130313000 | C162: 32497822175 | D162: =IFERROR(VLOOKUP($A162,'[1]David Gutierrez Tabla Dinamica'!$E$4:$G$1048576,2,0),0) -> 11481732000 | E162: =IFERROR(VLOOKUP($A162,'[1]David Gutierrez Tabla Dinamica'!$E$4:$G$1048576,3,0),0) -> 10311358677 | F162: 23648581000 | G162: 22186463498 | H162: 0.9381731402
A163: ORGANISMOS DE CONTROL | B163: 1408792842327 | C163: 1.329029432e+12 | D163: =IFERROR(VLOOKUP($A163,'[1]David Gutierrez Tabla Dinamica'!$E$4:$G$1048576,2,0),0) -> 1166141881033 | E163: =IFERROR(VLOOKUP($A163,'[1]David Gutierrez Tabla Dinamica'!$E$4:$G$1048576,3,0),0) -> 1.103054663e+12 | F163: 242650961294 | G163: 2.259747689e+11 | H163: 0.9312749792
A164: AUDITORIA GENERAL DE LA REPUBLICA - GESTION GENERAL | B164: 32123000000 | C164: 2.922184259e+10 | D164: =IFERROR(VLOOKUP($A164,'[1]David Gutierrez Tabla Dinamica'!$E$4:$G$1048576,2,0),0) -> 19766429756 | E164: =IFERROR(VLOOKUP($A164,'[1]David Gutierrez Tabla Dinamica'!$E$4:$G$1048576,3,0),0) -> 1.857124246e+10 | F164: 12356570244 | G164: 1.065060013e+10 | H164: 0.8619382174
A165: CONTRALORIA GRAL. REPUBLICA - GESTION GENERAL | B165: 445340887102 | C165: 4.27459756e+11 | D165: =IFERROR(VLOOKUP($A165,'[1]David Gutierrez Tabla Dinamica'!$E$4:$G$1048576,2,0),0) -> 344321500000 | E165: =IFERROR(VLOOKUP($A165,'[1]David Gutierrez Tabla Dinamica'!$E$4:$G$1048576,3,0),0) -> 3.299444102e+11 | F165: 101019387102 | G165: 9.751534581e+10 | H165: 0.96531318
A166: DEFENSORIA DEL PUEBLO | B166: 381167000000 | C166: 3.43337116e+11 | D166: =IFERROR(VLOOKUP($A166,'[1]David Gutierrez Tabla Dinamica'!$E$4:$G$1048576,2,0),0) -> 325666000000 | E166: =IFERROR(VLOOKUP($A166,'[1]David Gutierrez Tabla Dinamica'!$E$4:$G$1048576,3,0),0) -> 291414632828 | F166: 55501000000 | G166: 5.192248318e+10 | H166: 0.9355233812
A167: FONDO DE BIENESTAR SOCIAL DE LA CONTRALORIA GENERAL DE LA REPUBLICA | B167: 61034000000 | C167: 5.831591435e+10 | D167: =IFERROR(VLOOKUP($A167,'[1]David Gutierrez Tabla Dinamica'!$E$4:$G$1048576,2,0),0) -> 36560400000 | E167: =IFERROR(VLOOKUP($A167,'[1]David Gutierrez Tabla Dinamica'!$E$4:$G$1048576,3,0),0) -> 3.575364751e+10 | F167: 24473600000 | G167: 2.256226685e+10 | H167: 0.9219022476
A168: MINISTERIO PUBLICO - INSTITUTO DE ESTUDIOS DEL MINISTERIO PUBLICO | B168: 4298000000 | C168: 2771286266 | D168: =IFERROR(VLOOKUP($A168,'[1]David Gutierrez Tabla Dinamica'!$E$4:$G$1048576,2,0),0) -> 450703000 | E168: =IFERROR(VLOOKUP($A168,'[1]David Gutierrez Tabla Dinamica'!$E$4:$G$1048576,3,0),0) -> 188549157.9 | F168: 3847297000 | G168: 2582737108 | H168: 0.6713121208
A169: PROCURADURIA GENERAL DE LA NACIÓN - GESTION GENERAL | B169: 484829955225 | C169: 4.679235167e+11 | D169: =IFERROR(VLOOKUP($A169,'[1]David Gutierrez Tabla Dinamica'!$E$4:$G$1048576,2,0),0) -> 439376848277 | E169: =IFERROR(VLOOKUP($A169,'[1]David Gutierrez Tabla Dinamica'!$E$4:$G$1048576,3,0),0) -> 4.271821808e+11 | F169: 45453106948 | G169: 4.074133587e+10 | H169: 0.8963377556
A170: PLANEACION | B170: 507902211443 | C170: 4.375787618e+11 | D170: =IFERROR(VLOOKUP($A170,'[1]David Gutierrez Tabla Dinamica'!$E$4:$G$1048576,2,0),0) -> 155230000000 | E170: =IFERROR(VLOOKUP($A170,'[1]David Gutierrez Tabla Dinamica'!$E$4:$G$1048576,3,0),0) -> 1.343747456e+11 | F170: 352672211443 | G170: 3.032040161e+11 | H170: 0.8597332205
A171: DEPARTAMENTO DE PLANEACION - GESTION GENERAL | B171: 164986622986 | C171: 1.206280854e+11 | D171: =IFERROR(VLOOKUP($A171,'[1]David Gutierrez Tabla Dinamica'!$E$4:$G$1048576,2,0),0) -> 60200000000 | E171: =IFERROR(VLOOKUP($A171,'[1]David Gutierrez Tabla Dinamica'!$E$4:$G$1048576,3,0),0) -> 5.170829449e+10 | F171: 104786622986 | G171: 6.891979093e+10 | H171: 0.6577155458
A172: FONDO NACIONAL DE REGALIAS | B172: 202936588457 | C172: 1.914236367e+11 | D172: =IFERROR(VLOOKUP($A172,'[1]David Gutierrez Tabla Dinamica'!$E$4:$G$1048576,2,0),0) -> 2680000000 | E172: =IFERROR(VLOOKUP($A172,'[1]David Gutierrez Tabla Dinamica'!$E$4:$G$1048576,3,0),0) -> 790257879.5 | F172: 200256588457 | G172: 190633378788 | H172: 0.9519456027
A173: SUPERINTENDENCIA DE SERVICIOS PUBLICOS DOMICILIARIOS | B173: 115691000000 | C173: 1.028429442e+11 | D173: =IFERROR(VLOOKUP($A173,'[1]David Gutierrez Tabla Dinamica'!$E$4:$G$1048576,2,0),0) -> 86876000000 | E173: =IFERROR(VLOOKUP($A173,'[1]David Gutierrez Tabla Dinamica'!$E$4:$G$1048576,3,0),0) -> 7.678080022e+10 | F173: 28815000000 | G173: 2.606214402e+10 | H173: 0.9044644809
A174: UNIDAD ADMINISTRATIVA ESPECIAL - AGENCIA NACIONAL DE CONTRATACIÓN PÚBLICA - COLOMBIA COMPRA EFICIENTE. | B174: 24288000000 | C174: 2.268409543e+10 | D174: =IFERROR(VLOOKUP($A174,'[1]David Gutierrez Tabla Dinamica'!$E$4:$G$1048576,2,0),0) -> 5474000000 | E174: =IFERROR(VLOOKUP($A174,'[1]David Gutierrez Tabla Dinamica'!$E$4:$G$1048576,3,0),0) -> 5095393053 | F174: 18814000000 | G174: 1.758870237e+10 | H174: 0.9348730931
A175: PRESIDENCIA DE LA REPUBLICA | B175: 707207942463 | C175: 6.646448793e+11 | D175: =IFERROR(VLOOKUP($A175,'[1]David Gutierrez Tabla Dinamica'!$E$4:$G$1048576,2,0),0) -> 499982501787 | E175: =IFERROR(VLOOKUP($A175,'[1]David Gutierrez Tabla Dinamica'!$E$4:$G$1048576,3,0),0) -> 4.722842755e+11 | F175: 207225440676 | G175: 1.923606038e+11 | H175: 0.9282673168
A176: AGENCIA COLOMBIANA PARA LA REINTEGRACIÓN DE PERSONAS Y GRUPOS ALZADOS EN ARMAS | B176: 145511000000 | C176: 139287576902 | D176: =IFERROR(VLOOKUP($A176,'[1]David Gutierrez Tabla Dinamica'!$E$4:$G$1048576,2,0),0) -> 132802000000 | E176: =IFERROR(VLOOKUP($A176,'[1]David Gutierrez Tabla Dinamica'!$E$4:$G$1048576,3,0),0) -> 127703807176 | F176: 12709000000 | G176: 11583769726 | H176: 0.9114619345
A177: AGENCIA PRESIDENCIAL DE COOPERACIÓN INTERNACIONAL DE COLOMBIA, APC - COLOMBIA | B177: 47759437585 | C177: 4.458909687e+10 | D177: =IFERROR(VLOOKUP($A177,'[1]David Gutierrez Tabla Dinamica'!$E$4:$G$1048576,2,0),0) -> 19887888658 | E177: =IFERROR(VLOOKUP($A177,'[1]David Gutierrez Tabla Dinamica'!$E$4:$G$1048576,3,0),0) -> 1.923819292e+10 | F177: 27871548927 | G177: 2.535090395e+10 | H177: 0.9095620778
A178: PRESIDENCIA DE LA REPUBLICA - GESTION GENERAL | B178: 277046640816 | C178: 2.549549362e+11 | D178: =IFERROR(VLOOKUP($A178,'[1]David Gutierrez Tabla Dinamica'!$E$4:$G$1048576,2,0),0) -> 116753621000 | E178: =IFERROR(VLOOKUP($A178,'[1]David Gutierrez Tabla Dinamica'!$E$4:$G$1048576,3,0),0) -> 1.054664783e+11 | F178: 160293019816 | G178: 1.494884579e+11 | H178: 0.9325949316
A179: UNIDAD NACIONAL PARA LA GESTIÓN DEL RIESGO DE DESASTRES | B179: 236890864062 | C179: 2.258132693e+11 | D179: =IFERROR(VLOOKUP($A179,'[1]David Gutierrez Tabla Dinamica'!$E$4:$G$1048576,2,0),0) -> 230538992129 | E179: =IFERROR(VLOOKUP($A179,'[1]David Gutierrez Tabla Dinamica'!$E$4:$G$1048576,3,0),0) -> 2.198757971e+11 | F179: 6351871933 | G179: 5937472244 | H179: 0.934759439
A180: RAMA JUDICIAL | B180: 3025926286400 | C180: 3.002926876e+12 | D180: =IFERROR(VLOOKUP($A180,'[1]David Gutierrez Tabla Dinamica'!$E$4:$G$1048576,2,0),0) -> 2526625251122 | E180: =IFERROR(VLOOKUP($A180,'[1]David Gutierrez Tabla Dinamica'!$E$4:$G$1048576,3,0),0) -> 2.523521906e+12 | F180: 499301035278 | G180: 4.794049703e+11 | H180: 0.9601521656
A181: RAMA JUDICIAL - CONSEJO DE ESTADO | B181: 98271092929 | C181: 9.789251566e+10 | D181: =IFERROR(VLOOKUP($A181,'[1]David Gutierrez Tabla Dinamica'!$E$4:$G$1048576,2,0),0) -> 93233160539 | E181: =IFERROR(VLOOKUP($A181,'[1]David Gutierrez Tabla Dinamica'!$E$4:$G$1048576,3,0),0) -> 93130947738 | F181: 5037932390 | G181: 4761567922 | H181: 0.9451432756
A182: RAMA JUDICIAL - CONSEJO SUPERIOR DE LA JUDICATURA | B182: 484168239642 | C182: 4.654956576e+11 | D182: =IFERROR(VLOOKUP($A182,'[1]David Gutierrez Tabla Dinamica'!$E$4:$G$1048576,2,0),0) -> 189439641422 | E182: =IFERROR(VLOOKUP($A182,'[1]David Gutierrez Tabla Dinamica'!$E$4:$G$1048576,3,0),0) -> 1.891292582e+11 | F182: 294728598220 | G182: 2.763663994e+11 | H182: 0.9376979399
A183: RAMA JUDICIAL - CORTE CONSTITUCIONAL | B183: 33138278693 | C183: 3.293977594e+10 | D183: =IFERROR(VLOOKUP($A183,'[1]David Gutierrez Tabla Dinamica'!$E$4:$G$1048576,2,0),0) -> 29986031372 | E183: =IFERROR(VLOOKUP($A183,'[1]David Gutierrez Tabla Dinamica'!$E$4:$G$1048576,3,0),0) -> 29907897026 | F183: 3152247321 | G183: 3031878915 | H183: 0.9618150501
A184: RAMA JUDICIAL - CORTE SUPREMA DE JUSTICIA | B184: 74292277955 | C184: 7.377468327e+10 | D184: =IFERROR(VLOOKUP($A184,'[1]David Gutierrez Tabla Dinamica'!$E$4:$G$1048576,2,0),0) -> 68978840477 | E184: =IFERROR(VLOOKUP($A184,'[1]David Gutierrez Tabla Dinamica'!$E$4:$G$1048576,3,0),0) -> 68780440653 | F184: 5313437478 | G184: 4994242614 | H184: 0.9399268618
A185: RAMA JUDICIAL - TRIBUNALES Y JUZGADOS | B185: 2336056397181 | C185: 2.332824244e+12 | D185: =IFERROR(VLOOKUP($A185,'[1]David Gutierrez Tabla Dinamica'!$E$4:$G$1048576,2,0),0) -> 2144987577312 | E185: =IFERROR(VLOOKUP($A185,'[1]David Gutierrez Tabla Dinamica'!$E$4:$G$1048576,3,0),0) -> 2.142573362e+12 | F185: 191068819869 | G185: 1.902508815e+11 | H185: 0.9957191424
A186: REGISTRADURIA | B186: 1197477943088 | C186: 1.127732456e+12 | D186: =IFERROR(VLOOKUP($A186,'[1]David Gutierrez Tabla Dinamica'!$E$4:$G$1048576,2,0),0) -> 803888631089 | E186: =IFERROR(VLOOKUP($A186,'[1]David Gutierrez Tabla Dinamica'!$E$4:$G$1048576,3,0),0) -> 7.562287491e+11 | F186: 393589311999 | G186: 3.715037065e+11 | H186: 0.9438866736
A187: FONDO ROTATORIO DE LA REGISTRADURIA | B187: 54961943088 | C187: 4.70413326e+10 | D187: =IFERROR(VLOOKUP($A187,'[1]David Gutierrez Tabla Dinamica'!$E$4:$G$1048576,2,0),0) -> 218221864 | E187: =IFERROR(VLOOKUP($A187,'[1]David Gutierrez Tabla Dinamica'!$E$4:$G$1048576,3,0),0) -> 112644174.3 | F187: 54743721224 | G187: 4.692868843e+10 | H187: 0.8572433035
A188: FONDO SOCIAL DE VIVIENDA DE LA REGISTRADURIA NACIONAL DEL ESTADO CIVIL | B188: 9797000000 | C188: 9698848068 | D188: =IFERROR(VLOOKUP($A188,'[1]David Gutierrez Tabla Dinamica'!$E$4:$G$1048576,2,0),0) -> 16000000 | E188: =IFERROR(VLOOKUP($A188,'[1]David Gutierrez Tabla Dinamica'!$E$4:$G$1048576,3,0),0) -> 13886768 | F188: 9781000000 | G188: 9684961300 | H188: 0.990181096
A189: REGISTRADURIA NACIONAL DEL ESTADO CIVIL - CONSEJO NACIONAL ELECTORAL | B189: 23652796436 | C189: 21859313829 | D189: =IFERROR(VLOOKUP($A189,'[1]David Gutierrez Tabla Dinamica'!$E$4:$G$1048576,2,0),0) -> 17542643234 | E189: =IFERROR(VLOOKUP($A189,'[1]David Gutierrez Tabla Dinamica'!$E$4:$G$1048576,3,0),0) -> 16582909811 | F189: 6110153202 | G189: 5276404018 | H189: 0.8635469265
A190: REGISTRADURIA NACIONAL DEL ESTADO CIVIL - GESTION GENERAL | B190: 1109066203564 | C190: 1.049132961e+12 | D190: =IFERROR(VLOOKUP($A190,'[1]David Gutierrez Tabla Dinamica'!$E$4:$G$1048576,2,0),0) -> 786111765991 | E190: =IFERROR(VLOOKUP($A190,'[1]David Gutierrez Tabla Dinamica'!$E$4:$G$1048576,3,0),0) -> 7.395193083e+11 | F190: 322954437573 | G190: 3.096136527e+11 | H190: 0.9586914335
A191: RELACIONES EXTERIORES | B191: 665587063376 | C191: 6.529886024e+11 | D191: =IFERROR(VLOOKUP($A191,'[1]David Gutierrez Tabla Dinamica'!$E$4:$G$1048576,2,0),0) -> 385927112848 | E191: =IFERROR(VLOOKUP($A191,'[1]David Gutierrez Tabla Dinamica'!$E$4:$G$1048576,3,0),0) -> 3.786140021e+11 | F191: 279659950528 | G191: 2.743746003e+11 | H191: 0.9811007969
A192: FONDO ROTATORIO DEL MINISTERIO DE RELACIONES EXTERIORES | B192: 300426663376 | C192: 2.951669312e+11 | D192: =IFERROR(VLOOKUP($A192,'[1]David Gutierrez Tabla Dinamica'!$E$4:$G$1048576,2,0),0) -> 57240564848 | E192: =IFERROR(VLOOKUP($A192,'[1]David Gutierrez Tabla Dinamica'!$E$4:$G$1048576,3,0),0) -> 5.684523418e+10 | F192: 243186098528 | G192: 2.38321697e+11 | H192: 0.9799972057
A193: MINIRELACIONES EXTERIORES - GESTION GENERAL | B193: 268566000000 | C193: 2.619135068e+11 | D193: =IFERROR(VLOOKUP($A193,'[1]David Gutierrez Tabla Dinamica'!$E$4:$G$1048576,2,0),0) -> 268410000000 | E193: =IFERROR(VLOOKUP($A193,'[1]David Gutierrez Tabla Dinamica'!$E$4:$G$1048576,3,0),0) -> 2.618062853e+11 | F193: 156000000 | G193: 107221487 | H193: 0.6873172247
A194: UNIDAD ADMINISTRATIVA ESPECIAL MIGRACION COLOMBIA | B194: 96594400000 | C194: 9.590816435e+10 | D194: =IFERROR(VLOOKUP($A194,'[1]David Gutierrez Tabla Dinamica'!$E$4:$G$1048576,2,0),0) -> 60276548000 | E194: =IFERROR(VLOOKUP($A194,'[1]David Gutierrez Tabla Dinamica'!$E$4:$G$1048576,3,0),0) -> 5.996248255e+10 | F194: 36317852000 | G194: 3.594568181e+10 | H194: 0.9897524173
A195: SALUD Y PROTECCIÓN SOCIAL | B195: 1.247246168e+13 | C195: 1.227776834e+13 | D195: =IFERROR(VLOOKUP($A195,'[1]David Gutierrez Tabla Dinamica'!$E$4:$G$1048576,2,0),0) -> 8.078655703e+12 | E195: =IFERROR(VLOOKUP($A195,'[1]David Gutierrez Tabla Dinamica'!$E$4:$G$1048576,3,0),0) -> 7.966248889e+12 | F195: 4393805975998 | G195: 4.311519454e+12 | H195: 0.981272154
A196: DIRECCIÓN DE ADMINISTRACIÓN DE FONDOS DE LA PROTECCIÓN SOCIAL | B196: 10486924884871 | C196: 1.047922976e+13 | D196: =IFERROR(VLOOKUP($A196,'[1]David Gutierrez Tabla Dinamica'!$E$4:$G$1048576,2,0),0) -> 6676635876493 | E196: =IFERROR(VLOOKUP($A196,'[1]David Gutierrez Tabla Dinamica'!$E$4:$G$1048576,3,0),0) -> 6676635876493 | F196: 3810289008378 | G196: 3.802593882e+12 | H196: 0.9979804349
A197: FONDO DE PREVISION SOCIAL DEL CONGRESO - CESANTIAS Y VIVIENDA | B197: 15444237000 | C197: 11127859589 | D197: =IFERROR(VLOOKUP($A197,'[1]David Gutierrez Tabla Dinamica'!$E$4:$G$1048576,2,0),0) -> 15444237000 | E197: =IFERROR(VLOOKUP($A197,'[1]David Gutierrez Tabla Dinamica'!$E$4:$G$1048576,3,0),0) -> 11127859589 | F197: 0 | G197: 0
A198: FONDO DE PREVISION SOCIAL DEL CONGRESO - PENSIONES | B198: 243264239000 | C198: 228095302430 | D198: =IFERROR(VLOOKUP($A198,'[1]David Gutierrez Tabla Dinamica'!$E$4:$G$1048576,2,0),0) -> 241792713000 | E198: =IFERROR(VLOOKUP($A198,'[1]David Gutierrez Tabla Dinamica'!$E$4:$G$1048576,3,0),0) -> 2.268478247e+11 | F198: 1471526000 | G198: 1247477696 | H198: 0.8477442437
A199: FONDO PASIVO SOCIAL DE FERROCARRILES NACIONALES DE COLOMBIA - SALUD | B199: 163017870000 | C199: 1.551435978e+11 | D199: =IFERROR(VLOOKUP($A199,'[1]David Gutierrez Tabla Dinamica'!$E$4:$G$1048576,2,0),0) -> 160492410100 | E199: =IFERROR(VLOOKUP($A199,'[1]David Gutierrez Tabla Dinamica'!$E$4:$G$1048576,3,0),0) -> 153062794034 | F199: =+B199-D199 -> 2525459900 | G199: =+C199-E199 -> 2080803799 | H199: =IFERROR(G199/F199,"") -> 0.8239306429
A200: FONDO PASIVO SOCIAL DE FERROCARRILES NACIONALES DE COLOMBIA -PENSIONES | B200: 3.122694288e+11 | C200: 3.04657651e+11 | D200: =IFERROR(VLOOKUP($A200,'[1]David Gutierrez Tabla Dinamica'!$E$4:$G$1048576,2,0),0) -> 3.112202738e+11 | E200: =IFERROR(VLOOKUP($A200,'[1]David Gutierrez Tabla Dinamica'!$E$4:$G$1048576,3,0),0) -> 3.037229568e+11 | F200: 1049155000 | G200: 934694189.7 | H200: 0.8909019065
... 29 more rows

Sheet Indicador 2
A2: Tipo de Proceso | B2: sum([Cuantía a Contratar]) | C2: sum([Cuantía Defin del Contrato]) | D2: count([Estado del Proceso]) | E2: Indicador | J2: Tipo de Proceso | K2: Indicador
A3: Asociación Público Privada | B3: 12644169193475 | C3: 16567582184612 | D3: 29 | E3: 0.04081545875 | J3: Asociación Público Privada | K3: 0.04081545875
A4: Concurso de Méritos Abierto | B4: 3765389748250 | C4: 1792781769031 | D4: 4049 | E4: 6803.397876 | J4: Concurso de Méritos Abierto | K4: 6803.397876
A5: Concurso de Méritos con Lista Corta | B5: 1201366982 | C5: 1329568689 | D5: 26 | E5: 0.3264123133 | J5: Concurso de Méritos con Lista Corta | K5: 0.3264123133
A6: Contratación Directa (Ley 1150 de 2007) | B6: 67985278150969 | C6: 42366781661529 | D6: 491388 | E6: 76.21852087 | J6: Contratación Directa (Ley 1150 de 2007) | K6: 76.21852087
A7: Contratación Mínima Cuantía | B7: 1952097498056 | C7: 1868368665595 | D7: 114209 | E7: 9.45298545 | J7: Contratación Mínima Cuantía | K7: 9.45298545
A8: Licitación Pública | B8: 19770179172917 | C8: 14651154655335 | D8: 6320 | E8: 0.4375166391 | J8: Licitación Pública | K8: 0.4375166391
A9: Régimen Especial | B9: 40637824637802 | C9: 34329365719743 | D9: 251130 | E9: 682.9380461 | J9: Régimen Especial | K9: 682.9380461
A10: Selección Abreviada de Menor Cuantía (Ley 1150 de 2007) | B10: 5964290404956 | C10: 3295990057661 | D10: 12554 | E10: 7.195864581 | J10: Selección Abreviada de Menor Cuantía (Ley 1150 de 2007) | K10: 7.195864581
A11: Selección Abreviada del literal h del numeral 2 del artículo 2 de la Ley 1150 de 2007 | B11: 1101644585113 | C11: 535892885685 | D11: 103 | E11: -0.1974564678 | J11: Selección Abreviada del literal h del numeral 2 del artículo 2 de la Ley 1150 de 2007 | K11: -0.1974564678
A12: Selección Abreviada servicios de Salud | B12: 401226023503 | C12: 181510872794 | D12: 395 | E12: 2.220806545 | J12: Selección Abreviada servicios de Salud | K12: 2.220806545
A13: Subasta | B13: 6045550855687 | C13: 2236962860714 | D13: 6041 | E13: 0.4199495372 | J13: Subasta | K13: 0.4199495372
K14: =+AVERAGE(K3:K13) -> 689.3137579
A16: Nombre de la Entidad | B16: ORDEN | C16: SECTOR | D16: sum([Cuantía a Contratar]) | E16: sum([Cuantía Defin del Contrato]) | F16: count([Estado del Proceso]) | G16: Indicador #2
A17: SERVICIO NACIONAL DE APRENDIZAJE (SENA) | B17: NACIONAL | C17: TRABAJO | D17: 1578286725476 | E17: 1462657298009 | F17: 35724 | G17: 4.581772839
A18: ANTIOQUIA - HOSPITAL GENERAL DE MEDELLIN | B18: TERRITORIAL | C18: TERRITORIAL | D18: 157285128800 | E18: 200976543820 | F18: 18526 | G18: 1.065944881
A19: BOGOTA D.C. - SECRETARIA DE INTEGRACION SOCIAL | B19: TERRITORIAL | C19: TERRITORIAL | D19: 1089888937426 | E19: 653840415455 | F19: 14395 | G19: -0.001169618922
A20: INSTITUTO COLOMBIANO DE BIENESTAR FAMILIAR (ICBF) | B20: NACIONAL | C20: INCLUSION SOCIAL Y RECONCILIACION | D20: 4385549969003 | E20: 4173116494995 | F20: 12230 | G20: 111.6931524
A21: DEPARTAMENTO ADMINISTRATIVO NACIONAL DE ESTADISTICA (DANE) | B21: NACIONAL | C21: ESTADISTICA | D21: 793847808258 | E21: 171288826115 | F21: 10769 | G21: 0.1075085837
A22: VALLE DEL CAUCA - ALCALDIA MUNICIPIO DE CALI | B22: TERRITORIAL | C22: TERRITORIAL | D22: 690880599047 | E22: 703809813040 | F22: 9734 | G22: 5.867986206
A23: DIRECCION GENERAL DE LA POLICIA NACIONAL (PONAL) | B23: NACIONAL | C23: DEFENSA NACIONAL | D23: 2438388116512 | E23: 1286070115639 | F23: 8978 | G23: 318.2547103
A24: EJERCITO NACIONAL | B24: NACIONAL | C24: DEFENSA NACIONAL | D24: 1785622805634 | E24: 1257777525976 | F24: 8592 | G24: 0.8477276443
A25: INSTITUTO NACIONAL PENITENCIARIO Y CARCELARIO (INPEC) | B25: NACIONAL | C25: JUSTICIA Y DEL DERECHO | D25: 144900304962 | E25: 118582451163 | F25: 7768 | G25: 1.223870674
A26: ANTIOQUIA - E.S.E. HOSPITAL MARCO FIDEL SUAREZ - BELLO | B26: TERRITORIAL | C26: TERRITORIAL | D26: 80812820407 | E26: 75568908736 | F26: 7672 | G26: 0.7161074382
A27: BOGOTA D.C. - E.S.E. HOSPITAL SANTA CLARA III NIVEL | B27: TERRITORIAL | C27: TERRITORIAL | D27: 72860943466 | E27: 72577408307 | F27: 5835 | G27: 0.7292474354
A28: RISARALDA - ALCALDIA MUNICIPIO DE PEREIRA | B28: TERRITORIAL | C28: TERRITORIAL | D28: 183084421636 | E28: 182556440601 | F28: 5618 | G28: 18.55958769
A29: ANTIOQUIA - E.S.E. HOSPITAL LA MARIA - MEDELLIN | B29: TERRITORIAL | C29: TERRITORIAL | D29: 42939541706 | E29: 42693084098 | F29: 4976 | G29: 0.02601878209
A30: BOGOTA D.C. - E.S.E. HOSPITAL TUNJUELITO II NIVEL | B30: TERRITORIAL | C30: TERRITORIAL | D30: 25723705113 | E30: 26049534946 | F30: 4656 | G30: 0.1554363859
A31: ANTIOQUIA - INSTITUTO TECNOLOGICO METROPOLITANO - MEDELLIN | B31: TERRITORIAL | C31: TERRITORIAL | D31: 83611898837 | E31: 76277414004 | F31: 4532 | G31: -0.01696285894
A32: NARIÑO - ALCALDIA MUNICIPIO DE PASTO | B32: TERRITORIAL | C32: TERRITORIAL | D32: 119765540896 | E32: 120270352008 | F32: 4510 | G32: 0.06711820736
A33: TOLIMA - ALCALDIA MUNICIPIO DE IBAGUE | B33: TERRITORIAL | C33: TERRITORIAL | D33: 167602004926 | E33: 160841835968 | F33: 4416 | G33: 1.787670016
A34: BOGOTA D.C. - SECRETARIA DE EDUCACION | B34: TERRITORIAL | C34: TERRITORIAL | D34: 4745246618305 | E34: 1029198961642 | F34: 4044 | G34: 0.4378292565
A35: VALLE DEL CAUCA - UNIVERSIDAD DEL VALLE | B35: TERRITORIAL | C35: TERRITORIAL | D35: 110790636969 | E35: 63596664540 | F35: 3934 | G35: 0.1906416339
A36: QUINDIO - GOBERNACION | B36: TERRITORIAL | C36: TERRITORIAL | D36: 173126106589 | E36: 157318987515 | F36: 3890 | G36: 0.2791805328
A37: ANTIOQUIA - E.S.E. METROSALUD - MEDELLIN | B37: TERRITORIAL | C37: TERRITORIAL | D37: 100104456774 | E37: 100163145935 | F37: 3835 | G37: 0.005648993989
A38: BOLIVAR - ALCALDIA DEL DISTRITO TURISTICO Y CULTURAL DE CARTAGENA DE INDIAS | B38: TERRITORIAL | C38: TERRITORIAL | D38: 142463180562 | E38: 145368087618 | F38: 3822 | G38: 3.471346316
A39: BOGOTA D.C. - E.S.E. SAN CRISTOBAL | B39: TERRITORIAL | C39: TERRITORIAL | D39: 27066930701 | E39: 28326492191 | F39: 3728 | G39: 0.1515433133
A40: BOYACA - GOBERNACION | B40: TERRITORIAL | C40: TERRITORIAL | D40: 560575563416 | E40: 549975176163 | F40: 3605 | G40: 1138.907196
A41: QUINDIO - ALCALDIA MUNICIPIO DE ARMENIA | B41: TERRITORIAL | C41: TERRITORIAL | D41: 216956143113 | E41: 214430231799 | F41: 3526 | G41: -0.005726168373
A42: SANTANDER - GOBERNACION | B42: TERRITORIAL | C42: TERRITORIAL | D42: 422312071753 | E42: 461852362285 | F42: 3516 | G42: 0.92431658
A43: ECOPETROL - EMPRESA COLOMBIANA DE PETROLEOS | B43: NACIONAL | C43: MINAS Y ENERGIA | D43: 9041741526180 | E43: 7530302549624 | F43: 3321 | G43: 37969.97951
A44: ARAUCA - E.S.E. MORENO Y CLAVIJO - ARAUCA | B44: TERRITORIAL | C44: TERRITORIAL | D44: 16792962344 | E44: 13231263440 | F44: 3286 | G44: 28.90171846
A45: SANTANDER - ALCALDIA MUNICIPIO DE BUCARAMANGA | B45: TERRITORIAL | C45: TERRITORIAL | D45: 324151910813 | E45: 727052859507 | F45: 3266 | G45: 4.409759627
A46: INSTITUTO GEOGRAFICO AGUSTIN CODAZZI (IGAC) | B46: NACIONAL | C46: ESTADISTICA | D46: 299948577981 | E46: 80235620093 | F46: 3226 | G46: -0.02870713944
A47: INSTITUTO COLOMBIANO AGROPECUARIO (ICA) | B47: NACIONAL | C47: AGRICULTURA Y DESARROLLO RURAL | D47: 125805162940 | E47: 119450694454 | F47: 3158 | G47: 0.3363140238
A48: BOLIVAR - GOBERNACION | B48: TERRITORIAL | C48: TERRITORIAL | D48: 394859154873 | E48: 324805119926 | F48: 3117 | G48: 32.09852201
A49: ATLANTICO - GOBERNACION | B49: TERRITORIAL | C49: TERRITORIAL | D49: 432585520538 | E49: 451257100560 | F49: 3026 | G49: 0.7276047468
A50: ANTIOQUIA - E.S.E. HOSPITAL SAN RAFAEL DE ITAGUI | B50: TERRITORIAL | C50: TERRITORIAL | D50: 39736220781 | E50: 43907967430 | F50: 2948 | G50: 0.4731103238
A51: BOGOTA D.C. - E.S.E. HOSPITAL PABLO VI BOSA I NIVEL BOGOTA D.C. | B51: TERRITORIAL | C51: TERRITORIAL | D51: 28584991241 | E51: 83438828856 | F51: 2853 | G51: 3.695015852
A52: CUNDINAMARCA - GOBERNACION | B52: TERRITORIAL | C52: TERRITORIAL | D52: 876446668900 | E52: 644429682358 | F52: 2729 | G52: 0.2548389521
A53: ANTIOQUIA - INSTITUCION UNIVERSITARIA COLEGIO MAYOR DE ANTIOQUIA - MEDELLIN | B53: TERRITORIAL | C53: TERRITORIAL | D53: 88520246643 | E53: 86034712316 | F53: 2728 | G53: 0.0343819424
A54: RAMA JUDICIAL | B54: NACIONAL | C54: RAMA JUDICIAL | D54: 121366689614 | E54: 116847768321 | F54: 2697 | G54: 0.03027817784
A55: INSTITUTO COLOMBIANO DE DESARROLLO RURAL (INCODER) | B55: NACIONAL | C55: AGRICULTURA Y DESARROLLO RURAL | D55: 287898296199 | E55: 297197980176 | F55: 2692 | G55: 1.111288385
A56: ANTIOQUIA - ALCALDIA MUNICIPIO DE MEDELLIN | B56: TERRITORIAL | C56: TERRITORIAL | D56: 3210134690540 | E56: 1956661181078 | F56: 2611 | G56: 0.4402270722
A57: ANTIOQUIA - CAMARA DE COMERCIO DE MEDELLIN | B57: TERRITORIAL | C57: TERRITORIAL | D57: 9787704497 | E57: 9727723057 | F57: 2582 | G57: 0.002246642049
A58: NORTE DE SANTANDER - UNIVERSIDAD FRANCISCO DE PAULA SANTANDER DE CUCUTA | B58: TERRITORIAL | C58: TERRITORIAL | D58: 39609625617 | E58: 39656104312 | F58: 2577 | G58: 0.04745378202
A59: NARIÑO - GOBERNACION | B59: TERRITORIAL | C59: TERRITORIAL | D59: 256028967731 | E59: 258583762159 | F59: 2510 | G59: 0.4199087563
A60: BOGOTA D.C. - SECRETARIA DE GOBIERNO | B60: TERRITORIAL | C60: TERRITORIAL | D60: 92841561698 | E60: 91958581446 | F60: 2385 | G60: 0.4646567433
A61: CASANARE - E.S.E. HOSPITAL DE YOPAL | B61: TERRITORIAL | C61: TERRITORIAL | D61: 136337041346 | E61: 59423605514 | F61: 2383 | G61: -0.1201102055
A62: CASANARE - GOBERNACION | B62: TERRITORIAL | C62: TERRITORIAL | D62: 487758493036 | E62: 493419310834 | F62: 2323 | G62: 0.0304708548
A63: UNIDAD ADMINISTRATIVA ESPECIAL DEL SISTEMA DE PARQUES NACIONALES NATURALES | B63: NACIONAL | C63: AMBIENTE Y DESARROLLO SOSTENIBLE | D63: 46451778035 | E63: 47220062430 | F63: 2321 | G63: 2.836968662
A64: ANTIOQUIA - HOSPITAL SAN VICENTE DE PAUL DE CALDAS | B64: TERRITORIAL | C64: TERRITORIAL | D64: 20167105662 | E64: 20470543066 | F64: 2319 | G64: 1.454054435
A65: ANTIOQUIA - INSTITUTO DE DEPORTES Y RECREACION DE MEDELLIN - INDER MEDELLIN | B65: TERRITORIAL | C65: TERRITORIAL | D65: 134224927293 | E65: 118389771360 | F65: 2306 | G65: -0.004184556395
A66: NORTE DE SANTANDER - UNIVERSIDAD DE PAMPLONA | B66: TERRITORIAL | C66: TERRITORIAL | D66: 68119273746 | E66: 69641886768 | F66: 2158 | G66: 0.594430648
A67: DEFENSORIA DEL PUEBLO (DEFENSORIA) | B67: NACIONAL | C67: CONTROL | D67: 93128116004 | E67: 90031431917 | F67: 2141 | G67: 27.53281399
A68: CAQUETA - E.S.E. HOSPITAL MARIA INMACULADA | B68: TERRITORIAL | C68: TERRITORIAL | D68: 25014469736 | E68: 24954749983 | F68: 2120 | G68: 21.47631439
A69: MINISTERIO DE CULTURA (MINCULTURA) | B69: NACIONAL | C69: CULTURA | D69: 348299026004 | E69: 285159844411 | F69: 2104 | G69: 0.4628487771
A70: SANTANDER - ALCALDIA MUNICIPIO DE BARRANCABERMEJA | B70: TERRITORIAL | C70: TERRITORIAL | D70: 232879933072 | E70: 209799614772 | F70: 2062 | G70: 0.027510645
A71: UNIDAD DE RESTITUCION DE TIERRAS (URT) | B71: NACIONAL | C71: AGRICULTURA Y DESARROLLO RURAL | D71: 94895591018 | E71: 84977908803 | F71: 2028 | G71: 0.0821679022
A72: META - ALCALDIA MUNICIPIO DE VILLAVICENCIO | B72: TERRITORIAL | C72: TERRITORIAL | D72: 95180393954 | E72: 91687221782 | F72: 1987 | G72: 0.01867712239
A73: ANTIOQUIA - GOBERNACION | B73: TERRITORIAL | C73: TERRITORIAL | D73: 2797102310870 | E73: 2588382001532 | F73: 1967 | G73: -0.06857930645
A74: BOLIVAR - INSTITUTO DISTRITAL DE DEPORTE Y RECREACION DE CARTAGENA | B74: TERRITORIAL | C74: TERRITORIAL | D74: 17010131330 | E74: 16770111128 | F74: 1964 | G74: 0.14491768
A75: ATLANTICO - ALCALDIA DISTRITO ESPECIAL, INDUSTRIAL Y PORTUARIO BARRANQUILLA | B75: TERRITORIAL | C75: TERRITORIAL | D75: 491307724896 | E75: 474902032277 | F75: 1887 | G75: 0.07760695063
A76: BOGOTA D.C. - IDIPRON | B76: TERRITORIAL | C76: TERRITORIAL | D76: 37157804811 | E76: 36854244564 | F76: 1876 | G76: -0.004789441507
A77: BOGOTA D.C. - E.S.E. HOSPITAL DE USAQUEN I NIVEL | B77: TERRITORIAL | C77: TERRITORIAL | D77: 12838205093 | E77: 15872879512 | F77: 1876 | G77: 0.06596757437
A78: DIVISION DE SANIDAD DE LA POLICIA NACIONAL | B78: NACIONAL | C78: DEFENSA NACIONAL | D78: 256637353250 | E78: 126205752797 | F78: 1850 | G78: 0.1557970118
A79: CUNDINAMARCA - E.S.E. HOSPITAL SAN RAFAEL DE PACHO | B79: TERRITORIAL | C79: TERRITORIAL | D79: 18649049132 | E79: 18912181459 | F79: 1836 | G79: 0.05311933079
A80: HUILA - E.S.E. CARMEN EMILIA OSPINA - NEIVA | B80: TERRITORIAL | C80: TERRITORIAL | D80: 26353972903 | E80: 25738279252 | F80: 1831 | G80: 0.01780699718
A81: BOGOTA D.C. - IDU | B81: TERRITORIAL | C81: TERRITORIAL | D81: 127610050955 | E81: 118149284376 | F81: 1820 | G81: 0.02309975393
A82: CAPRECOM - CAJA DE PREVISION SOCIAL DE COMUNICACIONES | B82: NACIONAL | C82: TECNOLOGIAS DE LA INFORMACION Y LAS COMUNICACIONES | D82: 608338490604 | E82: 617401868674 | F82: 1808 | G82: 571.4188447
A83: BOGOTA D.C. - FONDO FINANCIERO DISTRITAL DE SALUD | B83: TERRITORIAL | C83: TERRITORIAL | D83: 222895192512 | E83: 209243878407 | F83: 1787 | G83: 0.0001132688789
A84: DIRECCION GENERAL DE SANIDAD MILITAR | B84: NACIONAL | C84: DEFENSA NACIONAL | D84: 261474881649 | E84: 242662872624 | F84: 1777 | G84: 0.3197230676
A85: FISCALIA GENERAL DE LA NACION (FGN) | B85: NACIONAL | C85: FISCALIA | D85: 230757221817 | E85: 221743317476 | F85: 1762 | G85: 6618.663058
A86: HUILA - ALCALDIA MUNICIPIO DE NEIVA | B86: TERRITORIAL | C86: TERRITORIAL | D86: 98106368311 | E86: 185488289223 | F86: 1716 | G86: 0.5864909634
A87: FUERZA AEREA COLOMBIANA | B87: NACIONAL | C87: DEFENSA NACIONAL | D87: 813071987076 | E87: 310471167460 | F87: 1707 | G87: 0.6107887032
A88: META - GOBERNACION | B88: TERRITORIAL | C88: TERRITORIAL | D88: 614145518061 | E88: 614119999662 | F88: 1687 | G88: 0.06906811698
A89: INSTITUTO NACIONAL DE VIAS (INVIAS) | B89: NACIONAL | C89: TRANSPORTE | D89: 3030296268994 | E89: 2661224187641 | F89: 1679 | G89: 0.5649227702
A90: ESCUELA SUPERIOR DE ADMINISTRACION PUBLICA (ESAP) | B90: NACIONAL | C90: FUNCION PUBLICA | D90: 67968558075 | E90: 67323895118 | F90: 1650 | G90: 17.49692131
A91: BOGOTA D.C. - SECRETARIA DISTRITAL DE AMBIENTE | B91: TERRITORIAL | C91: TERRITORIAL | D91: 162734313627 | E91: 167530933264 | F91: 1648 | G91: 0.0176667586
A92: CAUCA - INSTITUTO DEPARTAMENTAL DE DEPORTES DEL CAUCA - INDEPORTES CAUCA | B92: TERRITORIAL | C92: TERRITORIAL | D92: 19368508268 | E92: 78350982864 | F92: 1627 | G92: 1.314139865
A93: CASANARE - ALCALDIA MUNICIPIO DE YOPAL | B93: TERRITORIAL | C93: TERRITORIAL | D93: 104179111623 | E93: 104471570611 | F93: 1607 | G93: 0.6697764867
A94: VALLE DEL CAUCA - UNIDAD EJECUTORA DE SANEAMIENTO DEL VALLE DEL CAUCA | B94: TERRITORIAL | C94: TERRITORIAL | D94: 11961548598 | E94: 11130703750 | F94: 1600 | G94: -0.006169923137
A95: CUNDINAMARCA - ALCALDIA MUNICIPIO DE GIRARDOT | B95: TERRITORIAL | C95: TERRITORIAL | D95: 37102284256 | E95: 29042041396 | F95: 1585 | G95: 1.924453764
A96: RTVC - RADIO TELEVISION NACIONAL DE COLOMBIA | B96: NACIONAL | C96: TECNOLOGIAS DE LA INFORMACION Y LAS COMUNICACIONES | D96: 174691325392 | E96: 175079665014 | F96: 1563 | G96: 0.6345131856
A97: GUAVIARE - GOBERNACION | B97: TERRITORIAL | C97: TERRITORIAL | D97: 82211865806 | E97: 113889392058 | F97: 1561 | G97: 1.921291781
A98: CAR - CORPORACION AUTONOMA REGIONAL DE CUNDINAMARCA | B98: NACIONAL | C98: CORPORACION AUTONOMA REGIONAL - CAR | D98: 299683357418 | E98: 297070923417 | F98: 1560 | G98: -0.00447121557
A99: BOGOTA D.C. - E.S.E. HOSPITAL CENTRO ORIENTE II NIVEL | B99: TERRITORIAL | C99: TERRITORIAL | D99: 9990312606 | E99: 7950633803 | F99: 1557 | G99: 0.008313576611
A100: CUNDINAMARCA - FONDO DE DESARROLLO DE PROYECTOS DE CUNDINAMARCA - FONDECUN | B100: TERRITORIAL | C100: TERRITORIAL | D100: 202486301147 | E100: 198010325913 | F100: 1531 | G100: 65.41152906
A101: SUPERINTENDENCIA DE SERVICIOS PUBLICOS DOMICILIARIOS (SSPD) | B101: NACIONAL | C101: PLANEACION | D101: 59176603420 | E101: 58746651480 | F101: 1528 | G101: 0.001393763228
A102: UNAD - UNIVERSIDAD NACIONAL ABIERTA Y A DISTANCIA | B102: NACIONAL | C102: EDUCACION | D102: 190350954337 | E102: 187710389332 | F102: 1526 | G102: 50.15400278
A103: ANTIOQUIA - ASOCIACION CANAL LOCAL DE TELEVISION DE MEDELLIN - TELEMEDELLIN - | B103: TERRITORIAL | C103: TERRITORIAL | D103: 28083492036 | E103: 28450026573 | F103: 1508 | G103: 0.1719594497
A104: BOGOTA D.C. - ENTIDAD PROMOTORA DE SALUD CONVIDA | B104: TERRITORIAL | C104: TERRITORIAL | D104: 212963373362 | E104: 192070283824 | F104: 1495 | G104: 0.7874129393
A105: CALDAS - HOSPITAL SAN FELIX DE LA DORADA | B105: TERRITORIAL | C105: TERRITORIAL | D105: 18638439013 | E105: 18563159050 | F105: 1487 | G105: 0.0002743884037
A106: MINISTERIO DE EDUCACION NACIONAL (MEN) | B106: NACIONAL | C106: EDUCACION | D106: 3460673109951 | E106: 3219499533427 | F106: 1484 | G106: 0.09732579824
A107: SANTANDER - ALCALDIA MUNICIPIO DE FLORIDABLANCA | B107: TERRITORIAL | C107: TERRITORIAL | D107: 85300125325 | E107: 84860184386 | F107: 1477 | G107: 0.01620228909
A108: UNIDAD PARA LA ATENCION Y REPARACION INTEGRAL A LAS VICTIMAS | B108: NACIONAL | C108: INCLUSION SOCIAL Y RECONCILIACION | D108: 193429585081 | E108: 239793754694 | F108: 1475 | G108: 0.09104779522
A109: RISARALDA - GOBERNACION | B109: TERRITORIAL | C109: TERRITORIAL | D109: 240701119949 | E109: 218824884150 | F109: 1446 | G109: 1.597984268
A110: HUILA - GOBERNACION | B110: TERRITORIAL | C110: TERRITORIAL | D110: 281191620070 | E110: 299904119726 | F110: 1437 | G110: 0.8711018725
A111: BOGOTA D.C. - JARDIN BOTANICO | B111: TERRITORIAL | C111: TERRITORIAL | D111: 31497027884 | E111: 29456399611 | F111: 1435 | G111: -0.007735178309
A112: BOGOTA D.C. - SECRETARIA DISTRITAL DE MOVILIDAD | B112: TERRITORIAL | C112: TERRITORIAL | D112: 1057524275575 | E112: 1059460234137 | F112: 1409 | G112: 0.739282212
A113: ANTIOQUIA - EMPRESA PARA LA SEGURIDAD URBANA - ESU | B113: TERRITORIAL | C113: TERRITORIAL | D113: 93157715340 | E113: 99679636848 | F113: 1393 | G113: 1.219397924
A114: TOLIMA - GOBERNACION | B114: TERRITORIAL | C114: TERRITORIAL | D114: 298221875402 | E114: 378663461310 | F114: 1387 | G114: 85.30464769
A115: BOGOTA D.C. - INSTITUTO DISTRITAL DE LAS ARTES IDARTES | B115: TERRITORIAL | C115: TERRITORIAL | D115: 82458974880 | E115: 82123878432 | F115: 1387 | G115: -0.000453201473
A116: AGENCIA LOGISTICA DE LAS FUERZAS MILITARES (ALFM) | B116: NACIONAL | C116: DEFENSA NACIONAL | D116: 354009604125 | E116: 226419026270 | F116: 1385 | G116: 0.671190637
A117: QUINDIO - ALCALDIA MUNICIPIO DE LA TEBAIDA | B117: TERRITORIAL | C117: TERRITORIAL | D117: 5357632192 | E117: 5414116712 | F117: 1384 | G117: 0.06337371533
A118: CAUCA - E.S.E. HOSPITAL FRANCISCO DE PAULA SANTANDER - SANTANDER DE QUILICHAO | B118: TERRITORIAL | C118: TERRITORIAL | D118: 15871351072 | E118: 14841301244 | F118: 1376 | G118: 1.791569037
A119: PUTUMAYO - GOBERNACION | B119: TERRITORIAL | C119: TERRITORIAL | D119: 133159099290 | E119: 138087076660 | F119: 1343 | G119: 0.8676113663
A120: SANTANDER - ALCALDIA MUNICIPIO DE PIEDECUESTA | B120: TERRITORIAL | C120: TERRITORIAL | D120: 42257728566 | E120: 40804594912 | F120: 1262 | G120: -0.003627044947
A121: ANTIOQUIA - E.S.E. HOSPITAL MENTAL DE ANTIOQUIA | B121: TERRITORIAL | C121: TERRITORIAL | D121: 53326992633 | E121: 53731764651 | F121: 1256 | G121: 0.8916702797
A122: VALLE DEL CAUCA - ALCALDIA MUNICIPIO DE YUMBO | B122: TERRITORIAL | C122: TERRITORIAL | D122: 112119513006 | E122: 135047002989 | F122: 1252 | G122: 0.8033832611
A123: BOYACA - ALCALDIA MUNICIPIO DE TUNJA | B123: TERRITORIAL | C123: TERRITORIAL | D123: 119370989398 | E123: 86940636529 | F123: 1247 | G123: 0.06500313385
A124: BANCO AGRARIO | B124: NACIONAL | C124: AGRICULTURA Y DESARROLLO RURAL | D124: 372154821826 | E124: 208236228302 | F124: 1242 | G124: 0.003712966681
A125: RISARALDA - E.S.E. SALUD PEREIRA | B125: TERRITORIAL | C125: TERRITORIAL | D125: 29550001609 | E125: 33043147447 | F125: 1239 | G125: 413.2026182
A126: BOYACA - ALCALDIA MUNICIPIO DE SOGAMOSO | B126: TERRITORIAL | C126: TERRITORIAL | D126: 37519114770 | E126: 33021425171 | F126: 1193 | G126: 4.290284556
A127: TOLIMA - UNIVERSIDAD DEL TOLIMA | B127: NACIONAL | C127: EDUCACION | D127: 20956023800 | E127: 20951951208 | F127: 1191 | G127: 106.0579483
A128: AGENCIA COLOMBIANA PARA LA REINTEGRACION DE PERSONAS Y GRUPOS ALZADOS EN ARMAS (ACR) | B128: NACIONAL | C128: PRESIDENCIA DE LA REPUBLICA | D128: 92459119598 | E128: 59838604262 | F128: 1153 | G128: -0.006012947605
A129: SUPERINTENDENCIA DE INDUSTRIA Y COMERCIO (SUPERINDUSTRIA) | B129: NACIONAL | C129: COMERCIO, INDUSTRIA Y TURISMO | D129: 84633883009 | E129: 111994277918 | F129: 1143 | G129: 0.0931205969
A130: ANTIOQUIA - SOCIEDAD TELEVISION DE ANTIOQUIA LTDA. - TELEANTIOQUIA | B130: TERRITORIAL | C130: TERRITORIAL | D130: 7126648579 | E130: 8171962711 | F130: 1127 | G130: 12.14166497
A131: META - E.S.E SOLUCION SALUD - VILLAVICENCIO | B131: TERRITORIAL | C131: TERRITORIAL | D131: 56504160810 | E131: 56174932340 | F131: 1125 | G131: 0.03839099871
A132: FONDO FINANCIERO DE PROYECTOS DE DESARROLLO (FONADE) | B132: NACIONAL | C132: PLANEACION | D132: 607809724691 | E132: 605514148782 | F132: 1124 | G132: 0.01573356921
A133: MINISTERIO DEL INTERIOR (MININTERIOR) | B133: NACIONAL | C133: INTERIOR | D133: 307172756760 | E133: 304780659053 | F133: 1123 | G133: 0.008504286145
A134: CALDAS - HOSPITAL DEPARTAMENTAL SANTA SOFIA DE CALDAS | B134: TERRITORIAL | C134: TERRITORIAL | D134: 81059149025 | E134: 63132396408 | F134: 1120 | G134: 0.9817306604
A135: BOGOTA D.C. - CANAL CAPITAL | B135: TERRITORIAL | C135: TERRITORIAL | D135: 30297943665 | E135: 30221730886 | F135: 1120 | G135: -0.0001276935952
A136: ARMADA NACIONAL DE LA REPUBLICA DE COLOMBIA | B136: NACIONAL | C136: DEFENSA NACIONAL | D136: 945494149136 | E136: 919361593847 | F136: 1105 | G136: 0.2081353695
A137: CALDAS - HOSPITAL SAN JUAN DE DIOS DE RIOSUCIO | B137: TERRITORIAL | C137: TERRITORIAL | D137: 12218725812 | E137: 12155481784 | F137: 1095 | G137: 0.009795259414
A138: MINISTERIO DE AGRICULTURA Y DESARROLLO RURAL (MINAGRICULTURA) | B138: NACIONAL | C138: AGRICULTURA Y DESARROLLO RURAL | D138: 2162129057303 | E138: 2076279414587 | F138: 1090 | G138: 0.05275385495
A139: SUCRE - ALCALDIA MUNICIPIO DE SINCELEJO | B139: TERRITORIAL | C139: TERRITORIAL | D139: 65726718472 | E139: 64692955001 | F139: 1074 | G139: 0.9427578383
A140: MINISTERIO DE SALUD Y PROTECCION SOCIAL (MINSALUD) | B140: NACIONAL | C140: SALUD Y PROTECCION SOCIAL | D140: 593227124228 | E140: 589362550554 | F140: 1073 | G140: -0.01127379951
A141: UNIDAD NACIONAL DE PROTECCION (UNP) | B141: NACIONAL | C141: INTERIOR | D141: 2096192152695 | E141: 504020044455 | F141: 1073 | G141: 0.9843386371
A142: NORTE DE SANTANDER - ALCALDIA MUNICIPIO DE CUCUTA | B142: TERRITORIAL | C142: TERRITORIAL | D142: 161350678476 | E142: 170987204208 | F142: 1051 | G142: 0.005822951661
A143: AUTORIDAD NACIONAL DE LICENCIAS AMBIENTALES (ANLA) | B143: NACIONAL | C143: AMBIENTE Y DESARROLLO SOSTENIBLE | D143: 67500216951 | E143: 42493695003 | F143: 1049 | G143: 0.001029896101
A144: ANTIOQUIA - ALCALDIA MUNICIPIO DE ENVIGADO | B144: TERRITORIAL | C144: TERRITORIAL | D144: 122877025031 | E144: 123063075793 | F144: 1045 | G144: 1.910382972
A145: ANTIOQUIA - POLITECNICO COLOMBIANO JAIME ISAZA CADAVID - MEDELLIN | B145: TERRITORIAL | C145: TERRITORIAL | D145: 23790154087 | E145: 33381212591 | F145: 1044 | G145: 3.238585838
A146: ANTIOQUIA - E.S.E. HOSPITAL LA MERCED - CIUDAD BOLIVAR | B146: TERRITORIAL | C146: TERRITORIAL | D146: 7174486270 | E146: 7195583130 | F146: 1021 | G146: 0.008244018494
A147: CORPONOR - CORPORACION AUTONOMA REGIONAL DE LA FRONTERA NORORIENTAL | B147: NACIONAL | C147: CORPORACION AUTONOMA REGIONAL - CAR | D147: 29172209478 | E147: 29462256429 | F147: 1013 | G147: 0.0004409103662
A148: NORTE DE SANTANDER - GOBERNACION | B148: TERRITORIAL | C148: TERRITORIAL | D148: 201414791317 | E148: 218902525713 | F148: 1012 | G148: 3.121795784
A149: SUPERINTENDENCIA DE NOTARIADO Y REGISTRO (SUPERNOTARIADO) | B149: NACIONAL | C149: JUSTICIA Y DEL DERECHO | D149: 97190288398 | E149: 95002120010 | F149: 1008 | G149: 0.02074420163
A150: ANTIOQUIA - ALCALDIA MUNICIPIO DE BELLO | B150: TERRITORIAL | C150: TERRITORIAL | D150: 161574455354 | E150: 162293874165 | F150: 998 | G150: 0.03337855005
A151: ANTIOQUIA - ALCALDIA MUNICIPIO DE SABANETA | B151: TERRITORIAL | C151: TERRITORIAL | D151: 36265158930 | E151: 60566163431 | F151: 996 | G151: 13.82716193
A152: DEPARTAMENTO ADMINISTRATIVO DE LA CIENCIA, TECNOLOGIA E INNOVACION (COLCIENCIAS) | B152: NACIONAL | C152: CIENCIA, TECNOLOGIA E INNOVACION | D152: 403334925325 | E152: 404148991512 | F152: 980 | G152: 0.0172967414
A153: CRQ - CORPORACION AUTONOMA REGIONAL DEL QUINDIO | B153: NACIONAL | C153: CORPORACION AUTONOMA REGIONAL - CAR | D153: 27346424141 | E153: 27249728848 | F153: 980 | G153: 0.01553039491
A154: CORDOBA - GOBERNACION | B154: TERRITORIAL | C154: TERRITORIAL | D154: 230743961432 | E154: 227655102933 | F154: 973 | G154: -0.01883530818
A155: ANTIOQUIA - E.S.E. HOSPITAL SAN RAFAEL - GIRARDOTA | B155: TERRITORIAL | C155: TERRITORIAL | D155: 4674836577 | E155: 3785152440 | F155: 963 | G155: 0.02951451906
A156: ANTIOQUIA - METROPARQUES | B156: TERRITORIAL | C156: TERRITORIAL | D156: 12273227755 | E156: 12078342984 | F156: 962 | G156: 0.02606894123
A157: TOLIMA - NUEVO HOSPITAL LA CANDELARIA - PURIFICACION | B157: TERRITORIAL | C157: TERRITORIAL | D157: 4528199700 | E157: 4521732795 | F157: 958 | G157: 3.749274376
A158: NARIÑO - ALCALDIA MUNICIPIO DE IPIALES | B158: TERRITORIAL | C158: TERRITORIAL | D158: 27645094569 | E158: 27377039821 | F158: 955 | G158: 0.01214283897
A159: ANTIOQUIA - ALCALDIA MUNICIPIO DE SONSON | B159: TERRITORIAL | C159: TERRITORIAL | D159: 20237283320 | E159: 20162245716 | F159: 954 | G159: 1.048144755
A160: SANTANDER - ALCALDIA MUNICIPIO DE GIRON | B160: TERRITORIAL | C160: TERRITORIAL | D160: 57063679277 | E160: 56059745245 | F160: 944 | G160: 15.9286273
A161: HUILA - E.S.E. MUNICIPAL MANUEL CASTRO TOVAR - PITALITO | B161: TERRITORIAL | C161: TERRITORIAL | D161: 7535805634 | E161: 7546406058 | F161: 939 | G161: 0.01001080838
A162: ANTIOQUIA - ALCALDIA MUNICIPIO DE LA ESTRELLA | B162: TERRITORIAL | C162: TERRITORIAL | D162: 32050434870 | E162: 32873091666 | F162: 937 | G162: 0.1183731998
A163: RISARALDA - ALCALDIA MUNICIPIO DE DOSQUEBRADAS | B163: TERRITORIAL | C163: TERRITORIAL | D163: 58630052120 | E163: 84389715908 | F163: 932 | G163: 0.1052249758
A164: CUNDINAMARCA - E.S.E. HOSPITAL SAN MARTIN DE PORRES DE CHOCONTA | B164: TERRITORIAL | C164: TERRITORIAL | D164: 6157819180 | E164: 6038795952 | F164: 931 | G164: 4.115207542
A165: ANTIOQUIA - E.S.E. HOSPITAL SAN SEBASTIAN DE URABA - NECOCLI | B165: TERRITORIAL | C165: TERRITORIAL | D165: 13639022708 | E165: 13830993774 | F165: 929 | G165: 1.961163485
A166: AGENCIA NACIONAL DE INFRAESTRUCTURA (ANI) | B166: NACIONAL | C166: TRANSPORTE | D166: 14804057034238 | E166: 17131935250528 | F166: 917 | G166: 0.05372099395
A167: CORPOAMAZONIA - CORPORACION PARA EL DESARROLLO SOSTENIBLE SUR DE LA AMAZONIA | B167: NACIONAL | C167: CORPORACION AUTONOMA REGIONAL - CAR | D167: 28077150535 | E167: 29749674317 | F167: 899 | G167: 2.263585325
A168: CASANARE - ALCALDIA MUNICIPIO DE AGUAZUL | B168: TERRITORIAL | C168: TERRITORIAL | D168: 77308919113 | E168: 77489881152 | F168: 885 | G168: 2.305813843
A169: BOGOTA - CAMARA DE COMERCIO DE BOGOTA | B169: TERRITORIAL | C169: TERRITORIAL | D169: 70724775617 | E169: 74051382160 | F169: 876 | G169: 1.51418617
A170: NARIÑO - CENTRO DE HABILITACION DEL NIÑO - CEHANI | B170: TERRITORIAL | C170: TERRITORIAL | D170: 11441857552 | E170: 14775734869 | F170: 871 | G170: 0.3114262607
A171: INSTITUTO NACIONAL DE CANCEROLOGIA | B171: NACIONAL | C171: SALUD Y PROTECCION SOCIAL | D171: 140004250502 | E171: 140096848754 | F171: 869 | G171: 0.04315040998
A172: HUILA - E.S.E. HOSPITAL DEPARTAMENTAL SAN ANTONIO DE PITALITO | B172: TERRITORIAL | C172: TERRITORIAL | D172: 33527715297 | E172: 33448244711 | F172: 868 | G172: 0.01257259274
A173: IMPRENTA NACIONAL DE COLOMBIA (INC) | B173: NACIONAL | C173: INTERIOR | D173: 69539500398 | E173: 111176749955 | F173: 867 | G173: 1.536581564
A174: AGENCIA NACIONAL DE MINERIA (ANM) | B174: NACIONAL | C174: MINAS Y ENERGIA | D174: 50656323643 | E174: 51845964447 | F174: 866 | G174: 2.333569657
A175: MAGDALENA - GOBERNACION | B175: TERRITORIAL | C175: TERRITORIAL | D175: 35292824051 | E175: 35566093852 | F175: 866 | G175: 0.0288376839
A176: NARIÑO - E.S.E. IPS MUNICIPAL DE IPIALES | B176: TERRITORIAL | C176: TERRITORIAL | D176: 10958798502 | E176: 6980960748 | F176: 863 | G176: 1.228316754
A177: CESAR - ALCALDIA MUNICIPIO DE VALLEDUPAR | B177: TERRITORIAL | C177: TERRITORIAL | D177: 132472623239 | E177: 132205227572 | F177: 862 | G177: 0.0001020902844
A178: NARIÑO - E.S.E. VIRGEN DE LOURDES - BUESACO | B178: TERRITORIAL | C178: TERRITORIAL | D178: 11739937872 | E178: 2621968021 | F178: 862 | G178: 0.04179691464
A179: PUTUMAYO - ALCALDIA MUNICIPIO DE VALLE GUAMUEZ | B179: TERRITORIAL | C179: TERRITORIAL | D179: 27132481883 | E179: 27089869932 | F179: 859 | G179: 2.326808238
A180: BOLIVAR - INSTITUTO DE PATRIMONIO Y CULTURA DE CARTAGENA | B180: TERRITORIAL | C180: TERRITORIAL | D180: 11700716942 | E180: 11752825723 | F180: 856 | G180: 0.03539787491
A181: NARIÑO - ALCALDIA MUNICIPIO DE POTOSI | B181: TERRITORIAL | C181: TERRITORIAL | D181: 9831548361 | E181: 9810344898 | F181: 852 | G181: 0.1220014928
A182: CORDOBA - E.S.E. HOSPITAL SAN JERONIMO - MONTERIA | B182: TERRITORIAL | C182: TERRITORIAL | D182: 12330976419 | E182: 12534326419 | F182: 848 | G182: 0.02009295544
A183: NARIÑO - ALCALDIA MUNICIPIO DE ROBERTO PAYAN | B183: TERRITORIAL | C183: TERRITORIAL | D183: 8382626072 | E183: 9164619253 | F183: 848 | G183: 9.890759044
A184: BOGOTA D.C. - FONDO DE VIGILANCIA Y SEGURIDAD DE BOGOTA | B184: TERRITORIAL | C184: TERRITORIAL | D184: 97576054739 | E184: 92434604310 | F184: 845 | G184: -0.001374247973
A185: HUILA - HOSPITAL DEPARTAMENTAL SAN VICENTE DE PAUL | B185: TERRITORIAL | C185: TERRITORIAL | D185: 31737484796 | E185: 31036656371 | F185: 842 | G185: 0.01486567627
A186: NARIÑO - ALCALDIA MUNICIPIO DE BUESACO | B186: TERRITORIAL | C186: TERRITORIAL | D186: 13410913292 | E186: 13400290010 | F186: 835 | G186: 0.002204493102
A187: NARIÑO - E.S.E. HOSPITAL DEPARTAMENTAL DE NARIÑO | B187: TERRITORIAL | C187: TERRITORIAL | D187: 336856909055 | E187: 56318500235 | F187: 833 | G187: 1.175468755
A188: NARIÑO - E.S.E. HOSPITAL CIVIL DE IPIALES | B188: TERRITORIAL | C188: TERRITORIAL | D188: 26525910658 | E188: 28166421374 | F188: 823 | G188: 0.02337767704
A189: GUAINIA - GOBERNACION | B189: TERRITORIAL | C189: TERRITORIAL | D189: 87779456401 | E189: 87450221825 | F189: 817 | G189: -0.003186658454
A190: NARIÑO - ALCALDIA MUNICIPIO DE SAMANIEGO | B190: TERRITORIAL | C190: TERRITORIAL | D190: 9099971290 | E190: 8924637109 | F190: 815 | G190: 0.1110517986
A191: CALDAS - DIRECCION TERRITORIAL DE SALUD DE CALDAS | B191: TERRITORIAL | C191: TERRITORIAL | D191: 49104866386 | E191: 31357712332 | F191: 812 | G191: -0.03561679544
A192: ANTIOQUIA - E.S.E. HOSPITAL GABRIEL PELAEZ MONTOYA - JARDIN | B192: TERRITORIAL | C192: TERRITORIAL | D192: 1726433227 | E192: 1727265594 | F192: 808 | G192: 0.01045611805
A193: NARIÑO - E.S.E. HOSPITAL EDUARDO SANTOS - LA UNION | B193: TERRITORIAL | C193: TERRITORIAL | D193: 10341059010 | E193: 9577122790 | F193: 802 | G193: 0.08476374981
A194: CUNDINAMARCA - E.S.E. HOSPITAL MARCO FELIPE AFANADOR - TOCAIMA | B194: TERRITORIAL | C194: TERRITORIAL | D194: 8291723313 | E194: 8333884624 | F194: 798 | G194: 0.06580133373
A195: NARIÑO - ALCALDIA MUNICIPIO DE CONTADERO | B195: TERRITORIAL | C195: TERRITORIAL | D195: 6410243282 | E195: 6243680978 | F195: 797 | G195: 0.02513699895
A196: BOGOTA D.C. - E.S.E. HOSPITAL LA VICTORIA III NIVEL | B196: TERRITORIAL | C196: TERRITORIAL | D196: 22745763832 | E196: 21918589897 | F196: 790 | G196: 0.8530184518
A197: CORDOBA - E.S.E. HOSPITAL SAN VICENTE DE PAUL DE LORICA | B197: TERRITORIAL | C197: TERRITORIAL | D197: 11558759037 | E197: 28648614097 | F197: 789 | G197: 1.276400526
A198: MINISTERIO DE VIVIENDA, CIUDAD Y TERRITORIO (MINVIVIENDA) | B198: NACIONAL | C198: VIVIENDA, CIUDAD Y TERRITORIO | D198: 891171866014 | E198: 914834468016 | F198: 784 | G198: 1.779172669
A199: CAMARA DE REPRESENTANTES | B199: NACIONAL | C199: RAMA LEGISLATIVA | D199: 70045276980 | E199: 68841941767 | F199: 784 | G199: -0.003057313525
A200: RISARALDA - CAMARA DE COMERCIO DE PEREIRA | B200: TERRITORIAL | C200: TERRITORIAL | D200: 4393064514 | E200: 4285724320 | F200: 784 | G200: 1.286416295
A201: CUNDINAMARCA - E.S.E. HOSPITAL MARIO GAITAN YANGUAS - SOACHA | B201: TERRITORIAL | C201: TERRITORIAL | D201: 19824967421 | E201: 21777031427 | F201: 777 | G201: 2.028955964
A202: QUINDIO - ALCALDIA MUNICIPIO DE MONTENEGRO | B202: TERRITORIAL | C202: TERRITORIAL | D202: 6776907465 | E202: 6703956213 | F202: 771 | G202: 9.410180445
... 4599 more rows

Sheet Indicador 6
A8: Etiquetas de fila | B8: Cuenta de Número de Constancia | C8: Suma de Indicador 6 | D8: Tiempo en días | F8: Etiquetas de fila | G8: Tiempo en días
A9: Asociación Público Privada | B9: 98 | C9: 1006 | D9: 10.26530612 | F9: Asociación Público Privada | G9: =+D9 -> 10.26530612
A10: Concurso de Méritos Abierto | B10: 8422 | C10: 207295 | D10: 24.61351223 | F10: Concurso de Méritos Abierto | G10: =+D10 -> 24.61351223
A11: Concurso de Méritos con Lista Corta | B11: 90 | C11: 875 | D11: 9.722222222 | F11: Concurso de Méritos con Lista Corta | G11: 9.722222222
A12: Contratación Directa (Ley 1150 de 2007) | B12: 522997 | C12: 503267 | D12: 0.9622751182 | F12: Contratación Directa (Ley 1150 de 2007) | G12: 0.9622751182
A13: Contratación Mínima Cuantía | B13: 165717 | C13: 1065011 | D13: 6.426685253 | F13: Contratación Mínima Cuantía | G13: 6.426685253
A14: Iniciativa Privada sin recursos públicos | B14: 7 | C14: 0 | D14: 0 | F14: Iniciativa Privada sin recursos públicos | G14: 0
A15: Licitación Pública | B15: 13039 | C15: 395026 | D15: 30.2957282 | F15: Licitación Pública | G15: 30.2957282
A16: Régimen Especial | B16: 287646 | C16: 279921 | D16: 0.9731440729 | F16: Régimen Especial | G16: 0.9731440729
A17: Selección Abreviada de Menor Cuantía (Ley 1150 de 2007) | B17: 24671 | C17: 528945 | D17: 21.43994974 | F17: Selección Abreviada de Menor Cuantía (Ley 1150 de 2007) | G17: 21.43994974
A18: Selección Abreviada del literal h del numeral 2 del artículo 2 de la Ley 1150 de 2007 | B18: 181 | C18: 5015 | D18: 27.70718232 | F18: Selección Abreviada del literal h del numeral 2 del artículo 2 de la Ley 1150 de 2007 | G18: 27.70718232
A19: Selección Abreviada servicios de Salud | B19: 593 | C19: 15504 | D19: 26.1450253 | F19: Selección Abreviada servicios de Salud | G19: 26.1450253
A20: Subasta | B20: 10586 | C20: 298913 | D20: 28.23663329 | F20: Subasta | G20: 28.23663329
A21: Total general | B21: 1034047 | C21: 3300778
A34: Tipo de Proceso | B34: Asociación Público Privada | F34: Tipo de Proceso | G34: CONCURSO DE MERITOS | K34: Tipo de Proceso | L34: Contratación Directa (Ley 1150 de 2007) | P34: Tipo de Proceso | Q34: Contratación Mínima Cuantía | U34: Tipo de Proceso | V34: Licitación Pública | Z34: Tipo de Proceso | AA34: Régimen Especial | AE34: Tipo de Proceso | AF34: SELECCIÓN ABREVIADA | AJ34: Tipo de Proceso | AK34: Subasta
A36: Etiquetas de fila | B36: Orden | C36: Sector | D36: Indicador 6 | F36: Etiquetas de fila | G36: Orden | H36: Sector | I36: Indicador 6 | K36: Etiquetas de fila | L36: Orden | M36: Sector | N36: Indicador 6 | P36: Etiquetas de fila | Q36: Orden | R36: Sector | S36: Indicador 6 | U36: Etiquetas de fila | V36: Orden | W36: Sector | X36: Indicador 6 | Z36: Etiquetas de fila | AA36: Orden | AB36: Sector | AC36: Indicador 6 | AE36: Etiquetas de fila | AF36: Orden | AG36: Sector | AH36: Indicador 6 | AJ36: Etiquetas de fila | AK36: Orden | AL36: Sector | AM36: Indicador 6
A37: AGENCIA NACIONAL DE INFRAESTRUCTURA (ANI) | B37: =VLOOKUP($A37,BASEMDM!$A$1:$C$4444,3,FALSE) -> NACIONAL | C37: =VLOOKUP($A37,BASEMDM!$A$1:$C$4444,2,FALSE) -> TRANSPORTE | D37: 99.77777778 | F37: AERONAUTICA CIVIL (AEROCIVIL) | G37: NACIONAL | H37: NACIONAL | I37: 48.31578947 | K37: AERONAUTICA CIVIL (AEROCIVIL) | L37: =VLOOKUP($K37,BASEMDM!$A$1:$C$4444,3,FALSE) -> NACIONAL | M37: =VLOOKUP($K37,BASEMDM!$A$1:$C$4444,2,FALSE) -> TRANSPORTE | N37: 0.26 | P37: AERONAUTICA CIVIL (AEROCIVIL) | Q37: NACIONAL | R37: TRANSPORTE | S37: 11.6241206 | U37: AERONAUTICA CIVIL (AEROCIVIL) | V37: NACIONAL | W37: TRANSPORTE | X37: 47.25806452 | Z37: ADMINISTRADORA COLOMBIANA DE PENSIONES (COLPENSIONES) | AA37: NACIONAL | AB37: HACIENDA Y CREDITO PUBLICO | AC37: 0 | AE37: AERONAUTICA CIVIL (AEROCIVIL) | AF37: NACIONAL | AG37: TRANSPORTE | AH37: 26.91284404 | AJ37: AERONAUTICA CIVIL (AEROCIVIL) | AK37: NACIONAL | AL37: TRANSPORTE | AM37: 54
A38: AGENCIA NACIONAL PARA LA SUPERACION DE LA POBREZA EXTREMA (ANSPE) | B38: =VLOOKUP($A38,BASEMDM!$A$1:$C$4444,3,FALSE) -> NACIONAL | C38: =VLOOKUP($A38,BASEMDM!$A$1:$C$4444,2,FALSE) -> INCLUSION SOCIAL Y RECONCILIACION | D38: 0 | F38: AGENCIA DEL INSPECTOR GENERAL DE TRIBUTOS, RENTAS Y CONTRIBUCIONES PARAFISCALES (ITRC) | G38: NACIONAL | H38: NACIONAL | I38: 38 | K38: AGENCIA COLOMBIANA PARA LA REINTEGRACION DE PERSONAS Y GRUPOS ALZADOS EN ARMAS (ACR) | L38: =VLOOKUP($K38,BASEMDM!$A$1:$C$4444,3,FALSE) -> NACIONAL | M38: =VLOOKUP($K38,BASEMDM!$A$1:$C$4444,2,FALSE) -> PRESIDENCIA DE LA REPUBLICA | N38: 1.001801802 | P38: AGENCIA COLOMBIANA PARA LA REINTEGRACION DE PERSONAS Y GRUPOS ALZADOS EN ARMAS (ACR) | Q38: NACIONAL | R38: PRESIDENCIA DE LA REPUBLICA | S38: 5.6 | U38: AGENCIA COLOMBIANA PARA LA REINTEGRACION DE PERSONAS Y GRUPOS ALZADOS EN ARMAS (ACR) | V38: NACIONAL | W38: PRESIDENCIA DE LA REPUBLICA | X38: 29.66666667 | Z38: AERONAUTICA CIVIL (AEROCIVIL) | AA38: NACIONAL | AB38: TRANSPORTE | AC38: 3.666666667 | AE38: AGENCIA COLOMBIANA PARA LA REINTEGRACION DE PERSONAS Y GRUPOS ALZADOS EN ARMAS (ACR) | AF38: NACIONAL | AG38: PRESIDENCIA DE LA REPUBLICA | AH38: 40.21428571 | AJ38: AGENCIA COLOMBIANA PARA LA REINTEGRACION DE PERSONAS Y GRUPOS ALZADOS EN ARMAS (ACR) | AK38: NACIONAL | AL38: PRESIDENCIA DE LA REPUBLICA | AM38: 52.52941176
A39: ANTIOQUIA - ALCALDIA MUNICIPIO DE ENVIGADO | B39: =VLOOKUP($A39,BASEMDM!$A$1:$C$4444,3,FALSE) -> TERRITORIAL | C39: =VLOOKUP($A39,BASEMDM!$A$1:$C$4444,2,FALSE) -> TERRITORIAL | D39: 12.25 | F39: AGENCIA LOGISTICA DE LAS FUERZAS MILITARES (ALFM) | G39: NACIONAL | H39: NACIONAL | I39: 64.16666667 | K39: AGENCIA DEL INSPECTOR GENERAL DE TRIBUTOS, RENTAS Y CONTRIBUCIONES PARAFISCALES (ITRC) | L39: =VLOOKUP($K39,BASEMDM!$A$1:$C$4444,3,FALSE) -> NACIONAL | M39: =VLOOKUP($K39,BASEMDM!$A$1:$C$4444,2,FALSE) -> HACIENDA Y CREDITO PUBLICO | N39: 0 | P39: AGENCIA DEL INSPECTOR GENERAL DE TRIBUTOS, RENTAS Y CONTRIBUCIONES PARAFISCALES (ITRC) | Q39: NACIONAL | R39: HACIENDA Y CREDITO PUBLICO | S39: 11.72222222 | U39: AGENCIA DEL INSPECTOR GENERAL DE TRIBUTOS, RENTAS Y CONTRIBUCIONES PARAFISCALES (ITRC) | V39: NACIONAL | W39: HACIENDA Y CREDITO PUBLICO | X39: 18 | Z39: AGENCIA COLOMBIANA PARA LA REINTEGRACION DE PERSONAS Y GRUPOS ALZADOS EN ARMAS (ACR) | AA39: NACIONAL | AB39: PRESIDENCIA DE LA REPUBLICA | AC39: 0 | AE39: AGENCIA DEL INSPECTOR GENERAL DE TRIBUTOS, RENTAS Y CONTRIBUCIONES PARAFISCALES (ITRC) | AF39: NACIONAL | AG39: HACIENDA Y CREDITO PUBLICO | AH39: 27.5 | AJ39: AGENCIA DEL INSPECTOR GENERAL DE TRIBUTOS, RENTAS Y CONTRIBUCIONES PARAFISCALES (ITRC) | AK39: NACIONAL | AL39: HACIENDA Y CREDITO PUBLICO | AM39: 34.8
A40: ANTIOQUIA - ALCALDIA MUNICIPIO DE MEDELLIN | B40: =VLOOKUP($A40,BASEMDM!$A$1:$C$4444,3,FALSE) -> TERRITORIAL | C40: =VLOOKUP($A40,BASEMDM!$A$1:$C$4444,2,FALSE) -> TERRITORIAL | D40: 0 | F40: AGENCIA NACIONAL DE CONTRATACION PUBLICA (COLOMBIA COMPRA EFICIENTE) | G40: NACIONAL | H40: NACIONAL | I40: 42 | K40: AGENCIA LOGISTICA DE LAS FUERZAS MILITARES (ALFM) | L40: =VLOOKUP($K40,BASEMDM!$A$1:$C$4444,3,FALSE) -> NACIONAL | M40: =VLOOKUP($K40,BASEMDM!$A$1:$C$4444,2,FALSE) -> DEFENSA NACIONAL | N40: 4.677419355 | P40: AGENCIA LOGISTICA DE LAS FUERZAS MILITARES (ALFM) | Q40: NACIONAL | R40: DEFENSA NACIONAL | S40: 10.64660602 | U40: AGENCIA LOGISTICA DE LAS FUERZAS MILITARES (ALFM) | V40: NACIONAL | W40: DEFENSA NACIONAL | X40: 65.10714286 | Z40: AGENCIA NACIONAL DE CONTRATACION PUBLICA (COLOMBIA COMPRA EFICIENTE) | AA40: NACIONAL | AB40: PLANEACION | AC40: 6.303030303 | AE40: AGENCIA LOGISTICA DE LAS FUERZAS MILITARES (ALFM) | AF40: NACIONAL | AG40: DEFENSA NACIONAL | AH40: 23.41121495 | AJ40: AGENCIA LOGISTICA DE LAS FUERZAS MILITARES (ALFM) | AK40: NACIONAL | AL40: DEFENSA NACIONAL | AM40: 45.78571429
A41: ANTIOQUIA - ALCALDIA MUNICIPIO DE YONDO | B41: =VLOOKUP($A41,BASEMDM!$A$1:$C$4444,3,FALSE) -> TERRITORIAL | C41: =VLOOKUP($A41,BASEMDM!$A$1:$C$4444,2,FALSE) -> TERRITORIAL | D41: 0 | F41: AGENCIA NACIONAL DE DEFENSA JURIDICA DEL ESTADO (ANDJE) | G41: NACIONAL | H41: NACIONAL | I41: 48 | K41: AGENCIA NACIONAL DE CONTRATACION PUBLICA (COLOMBIA COMPRA EFICIENTE) | L41: =VLOOKUP($K41,BASEMDM!$A$1:$C$4444,3,FALSE) -> NACIONAL | M41: =VLOOKUP($K41,BASEMDM!$A$1:$C$4444,2,FALSE) -> PLANEACION | N41: 1.617647059 | P41: AGENCIA NACIONAL DE CONTRATACION PUBLICA (COLOMBIA COMPRA EFICIENTE) | Q41: NACIONAL | R41: PLANEACION | S41: 3 | U41: AGENCIA NACIONAL DE CONTRATACION PUBLICA (COLOMBIA COMPRA EFICIENTE) | V41: NACIONAL | W41: PLANEACION | X41: 28.5 | Z41: AGENCIA NACIONAL DE HIDROCARBUROS (ANH) | AA41: NACIONAL | AB41: MINAS Y ENERGIA | AC41: 1.04 | AE41: AGENCIA NACIONAL DE CONTRATACION PUBLICA (COLOMBIA COMPRA EFICIENTE) | AF41: NACIONAL | AG41: PLANEACION | AH41: 17 | AJ41: AGENCIA NACIONAL DE CONTRATACION PUBLICA (COLOMBIA COMPRA EFICIENTE) | AK41: NACIONAL | AL41: PLANEACION | AM41: 29
A42: ANTIOQUIA - E.S.E. HOSPITAL SAN JUAN DE DIOS - SONSON | B42: =VLOOKUP($A42,BASEMDM!$A$1:$C$4444,3,FALSE) -> TERRITORIAL | C42: =VLOOKUP($A42,BASEMDM!$A$1:$C$4444,2,FALSE) -> TERRITORIAL | D42: 0 | F42: AGENCIA NACIONAL DE HIDROCARBUROS (ANH) | G42: NACIONAL | H42: NACIONAL | I42: 35.18181818 | K42: AGENCIA NACIONAL DE DEFENSA JURIDICA DEL ESTADO (ANDJE) | L42: =VLOOKUP($K42,BASEMDM!$A$1:$C$4444,3,FALSE) -> NACIONAL | M42: =VLOOKUP($K42,BASEMDM!$A$1:$C$4444,2,FALSE) -> JUSTICIA Y DEL DERECHO | N42: 0 | P42: AGENCIA NACIONAL DE DEFENSA JURIDICA DEL ESTADO (ANDJE) | Q42: NACIONAL | R42: JUSTICIA Y DEL DERECHO | S42: 4 | U42: AGENCIA NACIONAL DE DEFENSA JURIDICA DEL ESTADO (ANDJE) | V42: NACIONAL | W42: JUSTICIA Y DEL DERECHO | X42: 0 | Z42: AGENCIA NACIONAL INMOBILIARIA VIRGILIO BARCO VARGAS | AA42: NACIONAL | AB42: PRESIDENCIA DE LA REPUBLICA | AC42: 0 | AE42: AGENCIA NACIONAL DE DEFENSA JURIDICA DEL ESTADO (ANDJE) | AF42: NACIONAL | AG42: JUSTICIA Y DEL DERECHO | AH42: 41 | AJ42: AGENCIA NACIONAL DE DEFENSA JURIDICA DEL ESTADO (ANDJE) | AK42: NACIONAL | AL42: JUSTICIA Y DEL DERECHO | AM42: 35
A43: ANTIOQUIA - INSTITUTO DE DEPORTES Y RECREACION DE MEDELLIN - INDER MEDELLIN | B43: =VLOOKUP($A43,BASEMDM!$A$1:$C$4444,3,FALSE) -> TERRITORIAL | C43: =VLOOKUP($A43,BASEMDM!$A$1:$C$4444,2,FALSE) -> TERRITORIAL | D43: 0 | F43: AGENCIA NACIONAL DE INFRAESTRUCTURA (ANI) | G43: NACIONAL | H43: NACIONAL | I43: 89.64705882 | K43: AGENCIA NACIONAL DE HIDROCARBUROS (ANH) | L43: =VLOOKUP($K43,BASEMDM!$A$1:$C$4444,3,FALSE) -> NACIONAL | M43: =VLOOKUP($K43,BASEMDM!$A$1:$C$4444,2,FALSE) -> MINAS Y ENERGIA | N43: 0.321192053 | P43: AGENCIA NACIONAL DE HIDROCARBUROS (ANH) | Q43: NACIONAL | R43: MINAS Y ENERGIA | S43: 8.565217391 | U43: AGENCIA NACIONAL DE HIDROCARBUROS (ANH) | V43: NACIONAL | W43: MINAS Y ENERGIA | X43: 36.33333333 | Z43: AGENCIA NACIONAL PARA LA SUPERACION DE LA POBREZA EXTREMA (ANSPE) | AA43: NACIONAL | AB43: INCLUSION SOCIAL Y RECONCILIACION | AC43: 8.054794521 | AE43: AGENCIA NACIONAL DE INFRAESTRUCTURA (ANI) | AF43: NACIONAL | AG43: TRANSPORTE | AH43: 34.75 | AJ43: AGENCIA NACIONAL DE HIDROCARBUROS (ANH) | AK43: NACIONAL | AL43: MINAS Y ENERGIA | AM43: 16.4
A44: ANTIOQUIA - INSTITUTO TECNOLOGICO PASCUAL BRAVO INSTITUCION UNIVERSITARIA - MEDELLIN | B44: =VLOOKUP($A44,BASEMDM!$A$1:$C$4444,3,FALSE) -> TERRITORIAL | C44: =VLOOKUP($A44,BASEMDM!$A$1:$C$4444,2,FALSE) -> TERRITORIAL | D44: 0 | F44: AGENCIA NACIONAL DE MINERIA (ANM) | G44: NACIONAL | H44: NACIONAL | I44: 39.22222222 | K44: AGENCIA NACIONAL DE INFRAESTRUCTURA (ANI) | L44: =VLOOKUP($K44,BASEMDM!$A$1:$C$4444,3,FALSE) -> NACIONAL | M44: =VLOOKUP($K44,BASEMDM!$A$1:$C$4444,2,FALSE) -> TRANSPORTE | N44: 0 | P44: AGENCIA NACIONAL DE INFRAESTRUCTURA (ANI) | Q44: NACIONAL | R44: TRANSPORTE | S44: 10.14285714 | U44: AGENCIA NACIONAL DE INFRAESTRUCTURA (ANI) | V44: NACIONAL | W44: TRANSPORTE | X44: 45.71428571 | Z44: AGENCIA PRESIDENCIAL DE COOPERACION INTERNACIONAL DE COLOMBIA (APC) | AA44: NACIONAL | AB44: PRESIDENCIA DE LA REPUBLICA | AC44: 0.02702702703 | AE44: AGENCIA NACIONAL DE MINERIA (ANM) | AF44: NACIONAL | AG44: MINAS Y ENERGIA | AH44: 28.2 | AJ44: AGENCIA NACIONAL DE INFRAESTRUCTURA (ANI) | AK44: NACIONAL | AL44: TRANSPORTE | AM44: 20.25
A45: ARAUCA - ALCALDIA MUNICIPIO DE TAME | B45: =VLOOKUP($A45,BASEMDM!$A$1:$C$4444,3,FALSE) -> TERRITORIAL | C45: =VLOOKUP($A45,BASEMDM!$A$1:$C$4444,2,FALSE) -> TERRITORIAL | D45: 0 | F45: AGENCIA NACIONAL INMOBILIARIA VIRGILIO BARCO VARGAS | G45: NACIONAL | H45: PRESIDENCIA DE LA REPUBLICA | I45: 0 | K45: AGENCIA NACIONAL DE MINERIA (ANM) | L45: =VLOOKUP($K45,BASEMDM!$A$1:$C$4444,3,FALSE) -> NACIONAL | M45: =VLOOKUP($K45,BASEMDM!$A$1:$C$4444,2,FALSE) -> MINAS Y ENERGIA | N45: 0.08323563892 | P45: AGENCIA NACIONAL DE MINERIA (ANM) | Q45: NACIONAL | R45: MINAS Y ENERGIA | S45: 12 | U45: AGENCIA NACIONAL DE MINERIA (ANM) | V45: NACIONAL | W45: MINAS Y ENERGIA | X45: 37.33333333 | Z45: AMAZONAS - E.S.E. HOSPITAL SAN RAFAEL DE LETICIA | AA45: TERRITORIAL | AB45: TERRITORIAL | AC45: 0 | AE45: AGENCIA NACIONAL DE SEGURIDAD VIAL | AF45: NACIONAL | AG45: TRANSPORTE | AH45: 47 | AJ45: AGENCIA NACIONAL DE MINERIA (ANM) | AK45: NACIONAL | AL45: MINAS Y ENERGIA | AM45: 46.04
A46: ATLANTICO - GOBERNACION | B46: =VLOOKUP($A46,BASEMDM!$A$1:$C$4444,3,FALSE) -> TERRITORIAL | C46: =VLOOKUP($A46,BASEMDM!$A$1:$C$4444,2,FALSE) -> TERRITORIAL | D46: 0 | F46: AGENCIA NACIONAL PARA LA SUPERACION DE LA POBREZA EXTREMA (ANSPE) | G46: NACIONAL | H46: NACIONAL | I46: 0 | K46: AGENCIA NACIONAL DE SEGURIDAD VIAL | L46: NACIONAL | M46: TRANSPORTE | N46: 0 | P46: AGENCIA NACIONAL DEL ESPECTRO (ANE) | Q46: NACIONAL | R46: TECNOLOGIAS DE LA INFORMACION Y LAS COMUNICACIONES | S46: 15.86666667 | U46: AGENCIA NACIONAL DE SEGURIDAD VIAL | V46: NACIONAL | W46: TRANSPORTE | X46: 0 | Z46: ANTIOQUIA - ESE HOSPITAL SAN JUAN DE DIOS - VALPARAISO | AA46: TERRITORIAL | AB46: TERRITORIAL | AC46: 0 | AE46: AGENCIA NACIONAL DEL ESPECTRO (ANE) | AF46: NACIONAL | AG46: TECNOLOGIAS DE LA INFORMACION Y LAS COMUNICACIONES | AH46: 29.5 | AJ46: AGENCIA NACIONAL DEL ESPECTRO (ANE) | AK46: NACIONAL | AL46: TECNOLOGIAS DE LA INFORMACION Y LAS COMUNICACIONES | AM46: 19.5
A47: BOGOTA D.C. - ALCALDIA LOCAL CIUDAD BOLIVAR | B47: =VLOOKUP($A47,BASEMDM!$A$1:$C$4444,3,FALSE) -> TERRITORIAL | C47: =VLOOKUP($A47,BASEMDM!$A$1:$C$4444,2,FALSE) -> TERRITORIAL | D47: 0 | F47: AGENCIA PARA LA INFRAESTRUCTURA DEL META - AIM | G47: TERRITORIAL | H47: TERRITORIAL | I47: 56.41176471 | K47: AGENCIA NACIONAL DEL ESPECTRO (ANE) | L47: =VLOOKUP($K47,BASEMDM!$A$1:$C$4444,3,FALSE) -> NACIONAL | M47: =VLOOKUP($K47,BASEMDM!$A$1:$C$4444,2,FALSE) -> TECNOLOGIAS DE LA INFORMACION Y LAS COMUNICACIONES | N47: 0.1578947368 | P47: AGENCIA NACIONAL INMOBILIARIA VIRGILIO BARCO VARGAS | Q47: NACIONAL | R47: PRESIDENCIA DE LA REPUBLICA | S47: 16 | U47: AGENCIA NACIONAL DEL ESPECTRO (ANE) | V47: NACIONAL | W47: TECNOLOGIAS DE LA INFORMACION Y LAS COMUNICACIONES | X47: 34 | Z47: ANTIOQUIA - AGUAS DE URABA S.A. E.S. - APARTADO | AA47: TERRITORIAL | AB47: TERRITORIAL | AC47: 0 | AE47: AGENCIA NACIONAL PARA LA SUPERACION DE LA POBREZA EXTREMA (ANSPE) | AF47: NACIONAL | AG47: INCLUSION SOCIAL Y RECONCILIACION | AH47: 39 | AJ47: AGENCIA NACIONAL PARA LA SUPERACION DE LA POBREZA EXTREMA (ANSPE) | AK47: NACIONAL | AL47: INCLUSION SOCIAL Y RECONCILIACION | AM47: 59.5
A48: BOGOTA D.C. - ALCALDIA LOCAL DE BARRIOS UNIDOS | B48: =VLOOKUP($A48,BASEMDM!$A$1:$C$4444,3,FALSE) -> TERRITORIAL | C48: =VLOOKUP($A48,BASEMDM!$A$1:$C$4444,2,FALSE) -> TERRITORIAL | D48: 0 | F48: AMAZONAS - ALCALDIA MUNICIPIO DE LETICIA | G48: TERRITORIAL | H48: TERRITORIAL | I48: 0 | K48: AGENCIA NACIONAL PARA LA SUPERACION DE LA POBREZA EXTREMA (ANSPE) | L48: =VLOOKUP($K48,BASEMDM!$A$1:$C$4444,3,FALSE) -> NACIONAL | M48: =VLOOKUP($K48,BASEMDM!$A$1:$C$4444,2,FALSE) -> INCLUSION SOCIAL Y RECONCILIACION | N48: 3.950704225 | P48: AGENCIA NACIONAL PARA LA SUPERACION DE LA POBREZA EXTREMA (ANSPE) | Q48: NACIONAL | R48: INCLUSION SOCIAL Y RECONCILIACION | S48: 9.782608696 | U48: AGENCIA NACIONAL PARA LA SUPERACION DE LA POBREZA EXTREMA (ANSPE) | V48: NACIONAL | W48: INCLUSION SOCIAL Y RECONCILIACION | X48: 79.44444444 | Z48: ANTIOQUIA - AGUAS DEL PARAMO S.A.S E.S.P - SONSON | AA48: TERRITORIAL | AB48: TERRITORIAL | AC48: 0 | AE48: AGENCIA PARA LA INFRAESTRUCTURA DEL META - AIM | AF48: TERRITORIAL | AG48: TERRITORIAL | AH48: 37 | AJ48: AGENCIA PARA LA INFRAESTRUCTURA DEL META - AIM | AK48: TERRITORIAL | AL48: TERRITORIAL | AM48: 0
A49: BOLIVAR - ALCALDIA DEL DISTRITO TURISTICO Y CULTURAL DE CARTAGENA DE INDIAS | B49: =VLOOKUP($A49,BASEMDM!$A$1:$C$4444,3,FALSE) -> TERRITORIAL | C49: =VLOOKUP($A49,BASEMDM!$A$1:$C$4444,2,FALSE) -> TERRITORIAL | D49: 0 | F49: AMAZONAS - ALCALDIA MUNICIPIO DE PUERTO NARIÑO | G49: TERRITORIAL | H49: TERRITORIAL | I49: 0 | K49: AGENCIA PARA LA INFRAESTRUCTURA DEL META - AIM | L49: =VLOOKUP($K49,BASEMDM!$A$1:$C$4444,3,FALSE) -> TERRITORIAL | M49: =VLOOKUP($K49,BASEMDM!$A$1:$C$4444,2,FALSE) -> TERRITORIAL | N49: 0.08620689655 | P49: AGENCIA PARA LA INFRAESTRUCTURA DEL META - AIM | Q49: TERRITORIAL | R49: TERRITORIAL | S49: 17.44444444 | U49: AGENCIA PARA LA INFRAESTRUCTURA DEL META - AIM | V49: TERRITORIAL | W49: TERRITORIAL | X49: 44.51162791 | Z49: ANTIOQUIA - AGUAS Y ASEO DE EL PEÑOL E.S.P. - EL PEÑOL | AA49: TERRITORIAL | AB49: TERRITORIAL | AC49: 1.135802469 | AE49: AGENCIA PRESIDENCIAL DE COOPERACION INTERNACIONAL DE COLOMBIA (APC) | AF49: NACIONAL | AG49: PRESIDENCIA DE LA REPUBLICA | AH49: 16.9 | AJ49: AGENCIA PRESIDENCIAL DE COOPERACION INTERNACIONAL DE COLOMBIA (APC) | AK49: NACIONAL | AL49: PRESIDENCIA DE LA REPUBLICA | AM49: 53
A50: BOLIVAR - FONDO DE VIVIENDA DE INTERES SOCIAL Y REFORMA URBANA DISTRITAL DE CARTAGENA DE INDIAS | B50: =VLOOKUP($A50,BASEMDM!$A$1:$C$4444,3,FALSE) -> TERRITORIAL | C50: =VLOOKUP($A50,BASEMDM!$A$1:$C$4444,2,FALSE) -> TERRITORIAL | D50: 0 | F50: AMAZONAS - GOBERNACION | G50: TERRITORIAL | H50: TERRITORIAL | I50: 19 | K50: AGENCIA PRESIDENCIAL DE COOPERACION INTERNACIONAL DE COLOMBIA (APC) | L50: =VLOOKUP($K50,BASEMDM!$A$1:$C$4444,3,FALSE) -> NACIONAL | M50: =VLOOKUP($K50,BASEMDM!$A$1:$C$4444,2,FALSE) -> PRESIDENCIA DE LA REPUBLICA | N50: 1.029411765 | P50: AGENCIA PRESIDENCIAL DE COOPERACION INTERNACIONAL DE COLOMBIA (APC) | Q50: NACIONAL | R50: PRESIDENCIA DE LA REPUBLICA | S50: 8.19047619 | U50: AGENCIA PRESIDENCIAL DE COOPERACION INTERNACIONAL DE COLOMBIA (APC) | V50: NACIONAL | W50: PRESIDENCIA DE LA REPUBLICA | X50: 35 | Z50: ANTIOQUIA - ALCALDIA MUNICIPIO DE ABEJORRAL | AA50: TERRITORIAL | AB50: TERRITORIAL | AC50: 0 | AE50: AMAZONAS - ALCALDIA MUNICIPIO DE LETICIA | AF50: TERRITORIAL | AG50: TERRITORIAL | AH50: 0 | AJ50: AMAZONAS - ALCALDIA MUNICIPIO DE LETICIA | AK50: TERRITORIAL | AL50: TERRITORIAL | AM50: 0
A51: BOLIVAR - GOBERNACION | B51: =VLOOKUP($A51,BASEMDM!$A$1:$C$4444,3,FALSE) -> TERRITORIAL | C51: =VLOOKUP($A51,BASEMDM!$A$1:$C$4444,2,FALSE) -> TERRITORIAL | D51: 0 | F51: ANTIOQUIA - AGENCIA DE EDUCACION SUPERIOR DE MEDELLIN SAPIENCIA | G51: TERRITORIAL | H51: TERRITORIAL | I51: 36.22222222 | K51: AMAZONAS - ALCALDIA MUNICIPIO DE PUERTO NARIÑO | L51: =VLOOKUP($K51,BASEMDM!$A$1:$C$4444,3,FALSE) -> TERRITORIAL | M51: =VLOOKUP($K51,BASEMDM!$A$1:$C$4444,2,FALSE) -> TERRITORIAL | N51: 0 | P51: AMAZONAS - ALCALDIA MUNICIPIO DE LETICIA | Q51: TERRITORIAL | R51: TERRITORIAL | S51: 5.144578313 | U51: AMAZONAS - ALCALDIA MUNICIPIO DE LETICIA | V51: TERRITORIAL | W51: TERRITORIAL | X51: 0 | Z51: ANTIOQUIA - ALCALDIA MUNICIPIO DE AMALFI | AA51: TERRITORIAL | AB51: TERRITORIAL | AC51: 0 | AE51: AMAZONAS - ALCALDIA MUNICIPIO DE PUERTO NARIÑO | AF51: TERRITORIAL | AG51: TERRITORIAL | AH51: 0 | AJ51: AMAZONAS - ALCALDIA MUNICIPIO DE PUERTO NARIÑO | AK51: TERRITORIAL | AL51: TERRITORIAL | AM51: 0
A52: BOYACA - ALCALDIA MUNICIPIO DE VIRACACHA | B52: =VLOOKUP($A52,BASEMDM!$A$1:$C$4444,3,FALSE) -> TERRITORIAL | C52: =VLOOKUP($A52,BASEMDM!$A$1:$C$4444,2,FALSE) -> TERRITORIAL | D52: 0 | F52: ANTIOQUIA - AGENCIA PARA LA GESTION DEL PAISAJE, EL PATRIMONIO Y LAS ALIANZAS PUBLICO - PRIVADAS - MEDELLIN | G52: TERRITORIAL | H52: TERRITORIAL | I52: 17.5 | K52: AMAZONAS - ASAMBLEA DEPARTAMENTAL DEL AMAZONAS | L52: =VLOOKUP($K52,BASEMDM!$A$1:$C$4444,3,FALSE) -> TERRITORIAL | M52: =VLOOKUP($K52,BASEMDM!$A$1:$C$4444,2,FALSE) -> TERRITORIAL | N52: 0 | P52: AMAZONAS - ALCALDIA MUNICIPIO DE PUERTO NARIÑO | Q52: TERRITORIAL | R52: TERRITORIAL | S52: 9.166666667 | U52: AMAZONAS - ALCALDIA MUNICIPIO DE PUERTO NARIÑO | V52: TERRITORIAL | W52: TERRITORIAL | X52: 0 | Z52: ANTIOQUIA - ALCALDIA MUNICIPIO DE ANDES | AA52: TERRITORIAL | AB52: TERRITORIAL | AC52: 0 | AE52: AMAZONAS - GOBERNACION | AF52: TERRITORIAL | AG52: TERRITORIAL | AH52: 0 | AJ52: AMAZONAS - ESCUELA NORMAL SUPERIOR MONSEÑOR MARCELIANO EDUARDO CANYES DE LETICIA | AK52: TERRITORIAL | AL52: TERRITORIAL | AM52: 27
A53: CALDAS - EMPRESA DEPARTAMENTAL PARA LA SALUD - EDSA | B53: TERRITORIAL | C53: TERRITORIAL | D53: 0 | F53: ANTIOQUIA - ALCALDIA MUNICIPIO DE ABEJORRAL | G53: TERRITORIAL | H53: TERRITORIAL | I53: 23.5 | K53: AMAZONAS - CONTRALORIA DEPARTAMENTAL DEL AMAZONAS | L53: =VLOOKUP($K53,BASEMDM!$A$1:$C$4444,3,FALSE) -> TERRITORIAL | M53: =VLOOKUP($K53,BASEMDM!$A$1:$C$4444,2,FALSE) -> TERRITORIAL | N53: 4 | P53: AMAZONAS - ASAMBLEA DEPARTAMENTAL DEL AMAZONAS | Q53: TERRITORIAL | R53: TERRITORIAL | S53: 3.25 | U53: AMAZONAS - E.S.E. HOSPITAL SAN RAFAEL DE LETICIA | V53: TERRITORIAL | W53: TERRITORIAL | X53: 81 | Z53: ANTIOQUIA - ALCALDIA MUNICIPIO DE ANGOSTURA | AA53: TERRITORIAL | AB53: TERRITORIAL | AC53: 9.275 | AE53: AMAZONAS - INSTITUCION EDUCATIVA VILLA CARMEN - TARAPACA | AF53: TERRITORIAL | AG53: TERRITORIAL | AH53: 0 | AJ53: AMAZONAS - GOBERNACION | AK53: TERRITORIAL | AL53: TERRITORIAL | AM53: 7.166666667
A54: CALDAS - GOBERNACION | B54: =VLOOKUP($A54,BASEMDM!$A$1:$C$4444,3,FALSE) -> TERRITORIAL | C54: =VLOOKUP($A54,BASEMDM!$A$1:$C$4444,2,FALSE) -> TERRITORIAL | D54: 0 | F54: ANTIOQUIA - ALCALDIA MUNICIPIO DE ALEJANDRIA | G54: TERRITORIAL | H54: TERRITORIAL | I54: 19.75 | K54: AMAZONAS - GOBERNACION | L54: =VLOOKUP($K54,BASEMDM!$A$1:$C$4444,3,FALSE) -> TERRITORIAL | M54: =VLOOKUP($K54,BASEMDM!$A$1:$C$4444,2,FALSE) -> TERRITORIAL | N54: 0 | P54: AMAZONAS - CONTRALORIA DEPARTAMENTAL DEL AMAZONAS | Q54: TERRITORIAL | R54: TERRITORIAL | S54: 5.8125 | U54: AMAZONAS - GOBERNACION | V54: TERRITORIAL | W54: TERRITORIAL | X54: 24.11764706 | Z54: ANTIOQUIA - ALCALDIA MUNICIPIO DE ANZA | AA54: TERRITORIAL | AB54: TERRITORIAL | AC54: 0 | AE54: ANTIOQUIA - AGENCIA DE COOPERACION E INVERSION DE MEDELLIN Y EL AREA METROPOLITANA | AF54: TERRITORIAL | AG54: TERRITORIAL | AH54: 46.5 | AJ54: AMAZONAS - INSTITUCION EDUCATIVA COLEGIO INDIGENA CASA DEL CONOCIMIENTO - LA CHORRERA | AK54: TERRITORIAL | AL54: TERRITORIAL | AM54: 0
A55: CAQUETA - ALCALDIA MUNICIPIO DE SAN JOSE DE FRAGUA | B55: =VLOOKUP($A55,BASEMDM!$A$1:$C$4444,3,FALSE) -> TERRITORIAL | C55: =VLOOKUP($A55,BASEMDM!$A$1:$C$4444,2,FALSE) -> TERRITORIAL | D55: 0 | F55: ANTIOQUIA - ALCALDIA MUNICIPIO DE AMALFI | G55: TERRITORIAL | H55: TERRITORIAL | I55: 19 | K55: AMAZONAS - INSTITUTO DEPARTAMENTAL DEL DEPORTE Y RECREACION DEL AMAZONAS - LETICIA | L55: =VLOOKUP($K55,BASEMDM!$A$1:$C$4444,3,FALSE) -> TERRITORIAL | M55: =VLOOKUP($K55,BASEMDM!$A$1:$C$4444,2,FALSE) -> TERRITORIAL | N55: 0 | P55: AMAZONAS - ESCUELA NORMAL SUPERIOR MONSEÑOR MARCELIANO EDUARDO CANYES DE LETICIA | Q55: TERRITORIAL | R55: TERRITORIAL | S55: 3.428571429 | U55: ANTIOQUIA - AGENCIA DE EDUCACION SUPERIOR DE MEDELLIN SAPIENCIA | V55: TERRITORIAL | W55: TERRITORIAL | X55: 28.85714286 | Z55: ANTIOQUIA - ALCALDIA MUNICIPIO DE CAROLINA | AA55: TERRITORIAL | AB55: TERRITORIAL | AC55: 0 | AE55: ANTIOQUIA - AGENCIA DE EDUCACION SUPERIOR DE MEDELLIN SAPIENCIA | AF55: TERRITORIAL | AG55: TERRITORIAL | AH55: 9 | AJ55: AMAZONAS - INSTITUCION EDUCATIVA MURUI - EL ENCANTO | AK55: TERRITORIAL | AL55: TERRITORIAL | AM55: 0
A56: CASANARE - ALCALDIA MUNICIPIO DE RECETOR | B56: =VLOOKUP($A56,BASEMDM!$A$1:$C$4444,3,FALSE) -> TERRITORIAL | C56: =VLOOKUP($A56,BASEMDM!$A$1:$C$4444,2,FALSE) -> TERRITORIAL | D56: 0 | F56: ANTIOQUIA - ALCALDIA MUNICIPIO DE ANDES | G56: TERRITORIAL | H56: TERRITORIAL | I56: 27.75 | K56: ANTIOQUIA - EMPRESA DE SERVICIOS PUBLICOS S.A.S ESP - GUADALUPE | L56: TERRITORIAL | M56: TERRITORIAL | N56: 0 | P56: AMAZONAS - GOBERNACION | Q56: TERRITORIAL | R56: TERRITORIAL | S56: 2.806896552 | U56: ANTIOQUIA - ALCALDIA MUNICIPIO DE ABEJORRAL | V56: TERRITORIAL | W56: TERRITORIAL | X56: 31 | Z56: ANTIOQUIA - ALCALDIA MUNICIPIO DE CONCEPCION | AA56: TERRITORIAL | AB56: TERRITORIAL | AC56: 0 | AE56: ANTIOQUIA - ALCALDIA MUNICIPIO DE ABEJORRAL | AF56: TERRITORIAL | AG56: TERRITORIAL | AH56: 26.25 | AJ56: AMAZONAS - INSTITUCION EDUCATIVA SAGRADO CORAZON DE JESUS - LETICIA | AK56: TERRITORIAL | AL56: TERRITORIAL | AM56: 17
A57: CAUCA - CONTRALORIA DEPARTAMENTAL DEL CAUCA | B57: =VLOOKUP($A57,BASEMDM!$A$1:$C$4444,3,FALSE) -> TERRITORIAL | C57: =VLOOKUP($A57,BASEMDM!$A$1:$C$4444,2,FALSE) -> TERRITORIAL | D57: 0 | F57: ANTIOQUIA - ALCALDIA MUNICIPIO DE ANGELOPOLIS | G57: TERRITORIAL | H57: TERRITORIAL | I57: 20 | K57: ANTIOQUIA - ADMINISTRADOR DEL PATRIMONIO ESCINDIDO DE EMPRESAS VARIAS DE MEDELLIN E.S.P. APEV | L57: =VLOOKUP($K57,BASEMDM!$A$1:$C$4444,3,FALSE) -> TERRITORIAL | M57: =VLOOKUP($K57,BASEMDM!$A$1:$C$4444,2,FALSE) -> TERRITORIAL | N57: 0 | P57: AMAZONAS - INSTITUCION EDUCATIVA FRANCISCO DE ORELLANA - LETICIA | Q57: TERRITORIAL | R57: TERRITORIAL | S57: 0 | U57: ANTIOQUIA - ALCALDIA MUNICIPIO DE ABRIAQUI | V57: TERRITORIAL | W57: TERRITORIAL | X57: 53 | Z57: ANTIOQUIA - ALCALDIA MUNICIPIO DE DON MATIAS | AA57: TERRITORIAL | AB57: TERRITORIAL | AC57: 0 | AE57: ANTIOQUIA - ALCALDIA MUNICIPIO DE ABRIAQUI | AF57: TERRITORIAL | AG57: TERRITORIAL | AH57: 9 | AJ57: AMAZONAS - INSTITUTO DEPARTAMENTAL DEL DEPORTE Y RECREACION DEL AMAZONAS - LETICIA | AK57: TERRITORIAL | AL57: TERRITORIAL | AM57: 0
A58: CAUCA - CONTRALORIA MUNICIPAL DE POPAYAN | B58: =VLOOKUP($A58,BASEMDM!$A$1:$C$4444,3,FALSE) -> TERRITORIAL | C58: =VLOOKUP($A58,BASEMDM!$A$1:$C$4444,2,FALSE) -> TERRITORIAL | D58: 0 | F58: ANTIOQUIA - ALCALDIA MUNICIPIO DE ANGOSTURA | G58: TERRITORIAL | H58: TERRITORIAL | I58: 0 | K58: ANTIOQUIA - AEROPUERTO OLAYA HERRERA DE MEDELLIN | L58: =VLOOKUP($K58,BASEMDM!$A$1:$C$4444,3,FALSE) -> TERRITORIAL | M58: =VLOOKUP($K58,BASEMDM!$A$1:$C$4444,2,FALSE) -> TERRITORIAL | N58: 0 | P58: AMAZONAS - INSTITUCION EDUCATIVA SAGRADO CORAZON DE JESUS - LETICIA | Q58: TERRITORIAL | R58: TERRITORIAL | S58: 1.666666667 | U58: ANTIOQUIA - ALCALDIA MUNICIPIO DE ALEJANDRIA | V58: TERRITORIAL | W58: TERRITORIAL | X58: 18.875 | Z58: ANTIOQUIA - ALCALDIA MUNICIPIO DE EL BAGRE | AA58: TERRITORIAL | AB58: TERRITORIAL | AC58: 0 | AE58: ANTIOQUIA - ALCALDIA MUNICIPIO DE ALEJANDRIA | AF58: TERRITORIAL | AG58: TERRITORIAL | AH58: 13 | AJ58: ANTIOQUIA - AGENCIA DE COOPERACION E INVERSION DE MEDELLIN Y EL AREA METROPOLITANA | AK58: TERRITORIAL | AL58: TERRITORIAL | AM58: 64
A59: CHOCO - ALCALDIA MUNICIPIO DE BAHIA SOLANO | B59: =VLOOKUP($A59,BASEMDM!$A$1:$C$4444,3,FALSE) -> TERRITORIAL | C59: =VLOOKUP($A59,BASEMDM!$A$1:$C$4444,2,FALSE) -> TERRITORIAL | D59: 7.5 | F59: ANTIOQUIA - ALCALDIA MUNICIPIO DE ANORI | G59: TERRITORIAL | H59: TERRITORIAL | I59: 7.25 | K59: ANTIOQUIA - AGENCIA DE COOPERACION E INVERSION DE MEDELLIN Y EL AREA METROPOLITANA | L59: =VLOOKUP($K59,BASEMDM!$A$1:$C$4444,3,FALSE) -> TERRITORIAL | M59: =VLOOKUP($K59,BASEMDM!$A$1:$C$4444,2,FALSE) -> TERRITORIAL | N59: 0 | P59: AMAZONAS - INSTITUTO DEPARTAMENTAL DEL DEPORTE Y RECREACION DEL AMAZONAS - LETICIA | Q59: TERRITORIAL | R59: TERRITORIAL | S59: 3.708333333 | U59: ANTIOQUIA - ALCALDIA MUNICIPIO DE AMAGA | V59: TERRITORIAL | W59: TERRITORIAL | X59: 25.5 | Z59: ANTIOQUIA - ALCALDIA MUNICIPIO DE EL PEÑOL | AA59: TERRITORIAL | AB59: TERRITORIAL | AC59: 0 | AE59: ANTIOQUIA - ALCALDIA MUNICIPIO DE AMAGA | AF59: TERRITORIAL | AG59: TERRITORIAL | AH59: 22.71428571 | AJ59: ANTIOQUIA - AGENCIA DE EDUCACION SUPERIOR DE MEDELLIN SAPIENCIA | AK59: TERRITORIAL | AL59: TERRITORIAL | AM59: 20.33333333
A60: CHOCO - ALCALDIA MUNICIPIO DE EL CANTON DE SAN PABLO | B60: =VLOOKUP($A60,BASEMDM!$A$1:$C$4444,3,FALSE) -> TERRITORIAL | C60: =VLOOKUP($A60,BASEMDM!$A$1:$C$4444,2,FALSE) -> TERRITORIAL | D60: 0 | F60: ANTIOQUIA - ALCALDIA MUNICIPIO DE APARTADO | G60: TERRITORIAL | H60: TERRITORIAL | I60: 16.28571429 | K60: ANTIOQUIA - AGENCIA DE EDUCACION SUPERIOR DE MEDELLIN SAPIENCIA | L60: =VLOOKUP($K60,BASEMDM!$A$1:$C$4444,3,FALSE) -> TERRITORIAL | M60: =VLOOKUP($K60,BASEMDM!$A$1:$C$4444,2,FALSE) -> TERRITORIAL | N60: 0 | P60: ANTIOQUIA - EMPRESA DE SERVICIOS PUBLICOS S.A.S ESP - GUADALUPE | Q60: TERRITORIAL | R60: TERRITORIAL | S60: 1 | U60: ANTIOQUIA - ALCALDIA MUNICIPIO DE AMALFI | V60: TERRITORIAL | W60: TERRITORIAL | X60: 29.42857143 | Z60: ANTIOQUIA - ALCALDIA MUNICIPIO DE ENVIGADO | AA60: TERRITORIAL | AB60: TERRITORIAL | AC60: 0 | AE60: ANTIOQUIA - ALCALDIA MUNICIPIO DE AMALFI | AF60: TERRITORIAL | AG60: TERRITORIAL | AH60: 13.57142857 | AJ60: ANTIOQUIA - ALCALDIA MUNICIPIO DE ABEJORRAL | AK60: TERRITORIAL | AL60: TERRITORIAL | AM60: 26.5
A61: CUNDINAMARCA - ALCALDIA MUNICIPIO DE APULO - RAFAEL REYES | B61: =VLOOKUP($A61,BASEMDM!$A$1:$C$4444,3,FALSE) -> TERRITORIAL | C61: =VLOOKUP($A61,BASEMDM!$A$1:$C$4444,2,FALSE) -> TERRITORIAL | D61: 0 | F61: ANTIOQUIA - ALCALDIA MUNICIPIO DE ARBOLETES | G61: TERRITORIAL | H61: TERRITORIAL | I61: 0 | K61: ANTIOQUIA - AGENCIA PARA LA GESTION DEL PAISAJE, EL PATRIMONIO Y LAS ALIANZAS PUBLICO - PRIVADAS - MEDELLIN | L61: =VLOOKUP($K61,BASEMDM!$A$1:$C$4444,3,FALSE) -> TERRITORIAL | M61: =VLOOKUP($K61,BASEMDM!$A$1:$C$4444,2,FALSE) -> TERRITORIAL | N61: 0 | P61: ANTIOQUIA - ADMINISTRADOR DEL PATRIMONIO ESCINDIDO DE EMPRESAS VARIAS DE MEDELLIN E.S.P. APEV | Q61: TERRITORIAL | R61: TERRITORIAL | S61: 0 | U61: ANTIOQUIA - ALCALDIA MUNICIPIO DE ANDES | V61: TERRITORIAL | W61: TERRITORIAL | X61: 47.125 | Z61: ANTIOQUIA - ALCALDIA MUNICIPIO DE GOMEZ PLATA | AA61: TERRITORIAL | AB61: TERRITORIAL | AC61: 0.625 | AE61: ANTIOQUIA - ALCALDIA MUNICIPIO DE ANDES | AF61: TERRITORIAL | AG61: TERRITORIAL | AH61: 21.84 | AJ61: ANTIOQUIA - ALCALDIA MUNICIPIO DE ALEJANDRIA | AK61: TERRITORIAL | AL61: TERRITORIAL | AM61: 26
A62: CUNDINAMARCA - ALCALDIA MUNICIPIO DE EL PEÑON | B62: =VLOOKUP($A62,BASEMDM!$A$1:$C$4444,3,FALSE) -> TERRITORIAL | C62: =VLOOKUP($A62,BASEMDM!$A$1:$C$4444,2,FALSE) -> TERRITORIAL | D62: 0 | F62: ANTIOQUIA - ALCALDIA MUNICIPIO DE ARGELIA | G62: TERRITORIAL | H62: TERRITORIAL | I62: 6.5 | K62: ANTIOQUIA - AGUAS DE BAJO CAUCA S.A. E.S.P. - CAUCASIA | L62: =VLOOKUP($K62,BASEMDM!$A$1:$C$4444,3,FALSE) -> TERRITORIAL | M62: =VLOOKUP($K62,BASEMDM!$A$1:$C$4444,2,FALSE) -> TERRITORIAL | N62: 0 | P62: ANTIOQUIA - AEROPUERTO OLAYA HERRERA DE MEDELLIN | Q62: TERRITORIAL | R62: TERRITORIAL | S62: 5.611111111 | U62: ANTIOQUIA - ALCALDIA MUNICIPIO DE ANGELOPOLIS | V62: TERRITORIAL | W62: TERRITORIAL | X62: 39.33333333 | Z62: ANTIOQUIA - ALCALDIA MUNICIPIO DE GUARNE | AA62: TERRITORIAL | AB62: TERRITORIAL | AC62: 0.7826086957 | AE62: ANTIOQUIA - ALCALDIA MUNICIPIO DE ANGELOPOLIS | AF62: TERRITORIAL | AG62: TERRITORIAL | AH62: 32.6 | AJ62: ANTIOQUIA - ALCALDIA MUNICIPIO DE AMAGA | AK62: TERRITORIAL | AL62: TERRITORIAL | AM62: 28.75
A63: FISCALIA GENERAL DE LA NACION (FGN) | B63: =VLOOKUP($A63,BASEMDM!$A$1:$C$4444,3,FALSE) -> NACIONAL | C63: =VLOOKUP($A63,BASEMDM!$A$1:$C$4444,2,FALSE) -> FISCALIA | D63: 0 | F63: ANTIOQUIA - ALCALDIA MUNICIPIO DE ARMENIA | G63: TERRITORIAL | H63: TERRITORIAL | I63: 27.66666667 | K63: ANTIOQUIA - AGUAS DE EL BAGRE S.A. E.S.P. - EL BAGRE | L63: =VLOOKUP($K63,BASEMDM!$A$1:$C$4444,3,FALSE) -> TERRITORIAL | M63: =VLOOKUP($K63,BASEMDM!$A$1:$C$4444,2,FALSE) -> TERRITORIAL | N63: 0.1102941176 | P63: ANTIOQUIA - AGENCIA DE COOPERACION E INVERSION DE MEDELLIN Y EL AREA METROPOLITANA | Q63: TERRITORIAL | R63: TERRITORIAL | S63: 18.19230769 | U63: ANTIOQUIA - ALCALDIA MUNICIPIO DE ANGOSTURA | V63: TERRITORIAL | W63: TERRITORIAL | X63: 0 | Z63: ANTIOQUIA - ALCALDIA MUNICIPIO DE HISPANIA | AA63: TERRITORIAL | AB63: TERRITORIAL | AC63: 0 | AE63: ANTIOQUIA - ALCALDIA MUNICIPIO DE ANGOSTURA | AF63: TERRITORIAL | AG63: TERRITORIAL | AH63: 0 | AJ63: ANTIOQUIA - ALCALDIA MUNICIPIO DE AMALFI | AK63: TERRITORIAL | AL63: TERRITORIAL | AM63: 20.3125
A64: GUAVIARE - INSTITUTO DEPARTAMENTAL DEL DEPORTE Y LA RECREACION | B64: =VLOOKUP($A64,BASEMDM!$A$1:$C$4444,3,FALSE) -> TERRITORIAL | C64: =VLOOKUP($A64,BASEMDM!$A$1:$C$4444,2,FALSE) -> TERRITORIAL | D64: 0 | F64: ANTIOQUIA - ALCALDIA MUNICIPIO DE BARBOSA | G64: TERRITORIAL | H64: TERRITORIAL | I64: 49.5 | K64: ANTIOQUIA - AGUAS DE HELICONIA S.A. E.S.P. - HELICONIA | L64: TERRITORIAL | M64: TERRITORIAL | N64: 0 | P64: ANTIOQUIA - AGENCIA DE EDUCACION SUPERIOR DE MEDELLIN SAPIENCIA | Q64: TERRITORIAL | R64: TERRITORIAL | S64: 10.84615385 | U64: ANTIOQUIA - ALCALDIA MUNICIPIO DE ANORI | V64: TERRITORIAL | W64: TERRITORIAL | X64: 14 | Z64: ANTIOQUIA - ALCALDIA MUNICIPIO DE ITAGÜI | AA64: TERRITORIAL | AB64: TERRITORIAL | AC64: 0 | AE64: ANTIOQUIA - ALCALDIA MUNICIPIO DE ANORI | AF64: TERRITORIAL | AG64: TERRITORIAL | AH64: 4.444444444 | AJ64: ANTIOQUIA - ALCALDIA MUNICIPIO DE ANDES | AK64: TERRITORIAL | AL64: TERRITORIAL | AM64: 20.78571429
A65: INSTITUTO NACIONAL DE VIAS (INVIAS) | B65: =VLOOKUP($A65,BASEMDM!$A$1:$C$4444,3,FALSE) -> NACIONAL | C65: =VLOOKUP($A65,BASEMDM!$A$1:$C$4444,2,FALSE) -> TRANSPORTE | D65: 0 | F65: ANTIOQUIA - ALCALDIA MUNICIPIO DE BELLO | G65: TERRITORIAL | H65: TERRITORIAL | I65: 25.88888889 | K65: ANTIOQUIA - AGUAS DE SAN JERONIMO E.S.P. | L65: TERRITORIAL | M65: TERRITORIAL | N65: 0 | P65: ANTIOQUIA - AGENCIA PARA LA GESTION DEL PAISAJE, EL PATRIMONIO Y LAS ALIANZAS PUBLICO - PRIVADAS - MEDELLIN | Q65: TERRITORIAL | R65: TERRITORIAL | S65: 7.5 | U65: ANTIOQUIA - ALCALDIA MUNICIPIO DE ANZA | V65: TERRITORIAL | W65: TERRITORIAL | X65: 24 | Z65: ANTIOQUIA - ALCALDIA MUNICIPIO DE JARDIN | AA65: TERRITORIAL | AB65: TERRITORIAL | AC65: 0 | AE65: ANTIOQUIA - ALCALDIA MUNICIPIO DE ANZA | AF65: TERRITORIAL | AG65: TERRITORIAL | AH65: 12.66666667 | AJ65: ANTIOQUIA - ALCALDIA MUNICIPIO DE ANGOSTURA | AK65: TERRITORIAL | AL65: TERRITORIAL | AM65: 0
A66: NORTE DE SANTANDER - E.S.E. IMSALUD - CUCUTA | B66: =VLOOKUP($A66,BASEMDM!$A$1:$C$4444,3,FALSE) -> TERRITORIAL | C66: =VLOOKUP($A66,BASEMDM!$A$1:$C$4444,2,FALSE) -> TERRITORIAL | D66: 0 | F66: ANTIOQUIA - ALCALDIA MUNICIPIO DE BELMIRA | G66: TERRITORIAL | H66: TERRITORIAL | I66: 0 | K66: ANTIOQUIA - AGUAS DEL NORTE ANTIOQUEÑO S.A. E.S.P. - YARUMAL | L66: =VLOOKUP($K66,BASEMDM!$A$1:$C$4444,3,FALSE) -> TERRITORIAL | M66: =VLOOKUP($K66,BASEMDM!$A$1:$C$4444,2,FALSE) -> TERRITORIAL | N66: 6.173913043 | P66: ANTIOQUIA - ALCALDIA MUNICIPIO DE ABEJORRAL | Q66: TERRITORIAL | R66: TERRITORIAL | S66: 5.617283951 | U66: ANTIOQUIA - ALCALDIA MUNICIPIO DE APARTADO | V66: TERRITORIAL | W66: TERRITORIAL | X66: 20.23076923 | Z66: ANTIOQUIA - ALCALDIA MUNICIPIO DE JERICO | AA66: TERRITORIAL | AB66: TERRITORIAL | AC66: 0 | AE66: ANTIOQUIA - ALCALDIA MUNICIPIO DE APARTADO | AF66: TERRITORIAL | AG66: TERRITORIAL | AH66: 18.57142857 | AJ66: ANTIOQUIA - ALCALDIA MUNICIPIO DE ANORI | AK66: TERRITORIAL | AL66: TERRITORIAL | AM66: 0
A67: PUTUMAYO - ALCALDIA MUNICIPIO DE SIBUNDOY | B67: =VLOOKUP($A67,BASEMDM!$A$1:$C$4444,3,FALSE) -> TERRITORIAL | C67: =VLOOKUP($A67,BASEMDM!$A$1:$C$4444,2,FALSE) -> TERRITORIAL | D67: 0 | F67: ANTIOQUIA - ALCALDIA MUNICIPIO DE BETANIA | G67: TERRITORIAL | H67: TERRITORIAL | I67: 38 | K67: ANTIOQUIA - ALCALDIA MUNICIPIO DE ABEJORRAL | L67: =VLOOKUP($K67,BASEMDM!$A$1:$C$4444,3,FALSE) -> TERRITORIAL | M67: =VLOOKUP($K67,BASEMDM!$A$1:$C$4444,2,FALSE) -> TERRITORIAL | N67: 0.5196078431 | P67: ANTIOQUIA - ALCALDIA MUNICIPIO DE ABRIAQUI | Q67: TERRITORIAL | R67: TERRITORIAL | S67: 4.853333333 | U67: ANTIOQUIA - ALCALDIA MUNICIPIO DE ARBOLETES | V67: TERRITORIAL | W67: TERRITORIAL | X67: 15.88235294 | Z67: ANTIOQUIA - ALCALDIA MUNICIPIO DE LA UNION | AA67: TERRITORIAL | AB67: TERRITORIAL | AC67: 10 | AE67: ANTIOQUIA - ALCALDIA MUNICIPIO DE ARBOLETES | AF67: TERRITORIAL | AG67: TERRITORIAL | AH67: 2 | AJ67: ANTIOQUIA - ALCALDIA MUNICIPIO DE ANZA | AK67: TERRITORIAL | AL67: TERRITORIAL | AM67: 11.5
A68: RISARALDA - GOBERNACION | B68: =VLOOKUP($A68,BASEMDM!$A$1:$C$4444,3,FALSE) -> TERRITORIAL | C68: =VLOOKUP($A68,BASEMDM!$A$1:$C$4444,2,FALSE) -> TERRITORIAL | D68: 0 | F68: ANTIOQUIA - ALCALDIA MUNICIPIO DE BETULIA | G68: TERRITORIAL | H68: TERRITORIAL | I68: 22.6 | K68: ANTIOQUIA - ALCALDIA MUNICIPIO DE ABRIAQUI | L68: =VLOOKUP($K68,BASEMDM!$A$1:$C$4444,3,FALSE) -> TERRITORIAL | M68: =VLOOKUP($K68,BASEMDM!$A$1:$C$4444,2,FALSE) -> TERRITORIAL | N68: 0 | P68: ANTIOQUIA - ALCALDIA MUNICIPIO DE ALEJANDRIA | Q68: TERRITORIAL | R68: TERRITORIAL | S68: 5.060606061 | U68: ANTIOQUIA - ALCALDIA MUNICIPIO DE ARGELIA | V68: TERRITORIAL | W68: TERRITORIAL | X68: 11.5 | Z68: ANTIOQUIA - ALCALDIA MUNICIPIO DE LIBORINA | AA68: TERRITORIAL | AB68: TERRITORIAL | AC68: 0 | AE68: ANTIOQUIA - ALCALDIA MUNICIPIO DE ARGELIA | AF68: TERRITORIAL | AG68: TERRITORIAL | AH68: 3.142857143 | AJ68: ANTIOQUIA - ALCALDIA MUNICIPIO DE APARTADO | AK68: TERRITORIAL | AL68: TERRITORIAL | AM68: 16.84615385
A69: SANTANDER - CASA DE LA CULTURA PIEDRA DEL SOL DE FLORIDABLANCA | B69: =VLOOKUP($A69,BASEMDM!$A$1:$C$4444,3,FALSE) -> TERRITORIAL | C69: =VLOOKUP($A69,BASEMDM!$A$1:$C$4444,2,FALSE) -> TERRITORIAL | D69: 0 | F69: ANTIOQUIA - ALCALDIA MUNICIPIO DE BRICEÑO | G69: TERRITORIAL | H69: TERRITORIAL | I69: 1.25 | K69: ANTIOQUIA - ALCALDIA MUNICIPIO DE ALEJANDRIA | L69: =VLOOKUP($K69,BASEMDM!$A$1:$C$4444,3,FALSE) -> TERRITORIAL | M69: =VLOOKUP($K69,BASEMDM!$A$1:$C$4444,2,FALSE) -> TERRITORIAL | N69: 0 | P69: ANTIOQUIA - ALCALDIA MUNICIPIO DE AMAGA | Q69: TERRITORIAL | R69: TERRITORIAL | S69: 3.493670886 | U69: ANTIOQUIA - ALCALDIA MUNICIPIO DE ARMENIA | V69: TERRITORIAL | W69: TERRITORIAL | X69: 52.66666667 | Z69: ANTIOQUIA - ALCALDIA MUNICIPIO DE MEDELLIN | AA69: TERRITORIAL | AB69: TERRITORIAL | AC69: 7.564356436 | AE69: ANTIOQUIA - ALCALDIA MUNICIPIO DE ARMENIA | AF69: TERRITORIAL | AG69: TERRITORIAL | AH69: 16.33333333 | AJ69: ANTIOQUIA - ALCALDIA MUNICIPIO DE ARBOLETES | AK69: TERRITORIAL | AL69: TERRITORIAL | AM69: 0
A70: SANTANDER - INSTITUTO DE CULTURA Y TURISMO DE BUCARAMANGA | B70: =VLOOKUP($A70,BASEMDM!$A$1:$C$4444,3,FALSE) -> TERRITORIAL | C70: =VLOOKUP($A70,BASEMDM!$A$1:$C$4444,2,FALSE) -> TERRITORIAL | D70: 0 | F70: ANTIOQUIA - ALCALDIA MUNICIPIO DE BURITICA | G70: TERRITORIAL | H70: TERRITORIAL | I70: 19 | K70: ANTIOQUIA - ALCALDIA MUNICIPIO DE AMAGA | L70: =VLOOKUP($K70,BASEMDM!$A$1:$C$4444,3,FALSE) -> TERRITORIAL | M70: =VLOOKUP($K70,BASEMDM!$A$1:$C$4444,2,FALSE) -> TERRITORIAL | N70: 0 | P70: ANTIOQUIA - ALCALDIA MUNICIPIO DE AMALFI | Q70: TERRITORIAL | R70: TERRITORIAL | S70: 4.810344828 | U70: ANTIOQUIA - ALCALDIA MUNICIPIO DE BARBOSA | V70: TERRITORIAL | W70: TERRITORIAL | X70: 86 | Z70: ANTIOQUIA - ALCALDIA MUNICIPIO DE PUERTO NARE | AA70: TERRITORIAL | AB70: TERRITORIAL | AC70: 0 | AE70: ANTIOQUIA - ALCALDIA MUNICIPIO DE BARBOSA | AF70: TERRITORIAL | AG70: TERRITORIAL | AH70: 47.35714286 | AJ70: ANTIOQUIA - ALCALDIA MUNICIPIO DE ARGELIA | AK70: TERRITORIAL | AL70: TERRITORIAL | AM70: 0
A71: VALLE DEL CAUCA - E.S.E. HOSPITAL PILOTO JAMUNDI | B71: TERRITORIAL | C71: TERRITORIAL | D71: 0 | F71: ANTIOQUIA - ALCALDIA MUNICIPIO DE CACERES | G71: TERRITORIAL | H71: TERRITORIAL | I71: 19.8 | K71: ANTIOQUIA - ALCALDIA MUNICIPIO DE AMALFI | L71: =VLOOKUP($K71,BASEMDM!$A$1:$C$4444,3,FALSE) -> TERRITORIAL | M71: =VLOOKUP($K71,BASEMDM!$A$1:$C$4444,2,FALSE) -> TERRITORIAL | N71: 0 | P71: ANTIOQUIA - ALCALDIA MUNICIPIO DE ANDES | Q71: TERRITORIAL | R71: TERRITORIAL | S71: 5.251798561 | U71: ANTIOQUIA - ALCALDIA MUNICIPIO DE BELLO | V71: TERRITORIAL | W71: TERRITORIAL | X71: 32.27777778 | Z71: ANTIOQUIA - ALCALDIA MUNICIPIO DE SABANETA | AA71: TERRITORIAL | AB71: TERRITORIAL | AC71: 0 | AE71: ANTIOQUIA - ALCALDIA MUNICIPIO DE BELLO | AF71: TERRITORIAL | AG71: TERRITORIAL | AH71: 21.75 | AJ71: ANTIOQUIA - ALCALDIA MUNICIPIO DE BARBOSA | AK71: TERRITORIAL | AL71: TERRITORIAL | AM71: 25.26086957
A72: VALLE DEL CAUCA - ALCALDIA MUNICIPIO DE TULUA | B72: =VLOOKUP($A72,BASEMDM!$A$1:$C$4444,3,FALSE) -> TERRITORIAL | C72: =VLOOKUP($A72,BASEMDM!$A$1:$C$4444,2,FALSE) -> TERRITORIAL | D72: 0 | F72: ANTIOQUIA - ALCALDIA MUNICIPIO DE CAICEDO | G72: TERRITORIAL | H72: TERRITORIAL | I72: 0 | K72: ANTIOQUIA - ALCALDIA MUNICIPIO DE ANDES | L72: =VLOOKUP($K72,BASEMDM!$A$1:$C$4444,3,FALSE) -> TERRITORIAL | M72: =VLOOKUP($K72,BASEMDM!$A$1:$C$4444,2,FALSE) -> TERRITORIAL | N72: 0.005347593583 | P72: ANTIOQUIA - ALCALDIA MUNICIPIO DE ANGELOPOLIS | Q72: TERRITORIAL | R72: TERRITORIAL | S72: 3.024096386 | U72: ANTIOQUIA - ALCALDIA MUNICIPIO DE BELMIRA | V72: TERRITORIAL | W72: TERRITORIAL | X72: 0 | Z72: ANTIOQUIA - ALCALDIA MUNICIPIO DE SAN CARLOS | AA72: TERRITORIAL | AB72: TERRITORIAL | AC72: 0.03333333333 | AE72: ANTIOQUIA - ALCALDIA MUNICIPIO DE BELMIRA | AF72: TERRITORIAL | AG72: TERRITORIAL | AH72: 0 | AJ72: ANTIOQUIA - ALCALDIA MUNICIPIO DE BELLO | AK72: TERRITORIAL | AL72: TERRITORIAL | AM72: 24
A73: VALLE DEL CAUCA - GOBERNACION | B73: =VLOOKUP($A73,BASEMDM!$A$1:$C$4444,3,FALSE) -> TERRITORIAL | C73: =VLOOKUP($A73,BASEMDM!$A$1:$C$4444,2,FALSE) -> TERRITORIAL | D73: 0 | F73: ANTIOQUIA - ALCALDIA MUNICIPIO DE CALDAS | G73: TERRITORIAL | H73: TERRITORIAL | I73: 27.8 | K73: ANTIOQUIA - ALCALDIA MUNICIPIO DE ANGELOPOLIS | L73: =VLOOKUP($K73,BASEMDM!$A$1:$C$4444,3,FALSE) -> TERRITORIAL | M73: =VLOOKUP($K73,BASEMDM!$A$1:$C$4444,2,FALSE) -> TERRITORIAL | N73: 0 | P73: ANTIOQUIA - ALCALDIA MUNICIPIO DE ANGOSTURA | Q73: TERRITORIAL | R73: TERRITORIAL | S73: 3.983333333 | U73: ANTIOQUIA - ALCALDIA MUNICIPIO DE BETANIA | V73: TERRITORIAL | W73: TERRITORIAL | X73: 30.5 | Z73: ANTIOQUIA - ALCALDIA MUNICIPIO DE SAN JOSE LA MONTAÑA | AA73: TERRITORIAL | AB73: TERRITORIAL | AC73: 0 | AE73: ANTIOQUIA - ALCALDIA MUNICIPIO DE BETANIA | AF73: TERRITORIAL | AG73: TERRITORIAL | AH73: 27 | AJ73: ANTIOQUIA - ALCALDIA MUNICIPIO DE BELMIRA | AK73: TERRITORIAL | AL73: TERRITORIAL | AM73: 0
A74: VALLE DEL CAUCA - INSTITUTO MUNICIPAL DE REFORMA URBANA Y DE VIVIENDA DE INTERES SOCIAL DE YUMBO | B74: =VLOOKUP($A74,BASEMDM!$A$1:$C$4444,3,FALSE) -> TERRITORIAL | C74: =VLOOKUP($A74,BASEMDM!$A$1:$C$4444,2,FALSE) -> TERRITORIAL | D74: 44 | F74: ANTIOQUIA - ALCALDIA MUNICIPIO DE CAMPAMENTO | G74: TERRITORIAL | H74: TERRITORIAL | I74: 9.5 | K74: ANTIOQUIA - ALCALDIA MUNICIPIO DE ANGOSTURA | L74: =VLOOKUP($K74,BASEMDM!$A$1:$C$4444,3,FALSE) -> TERRITORIAL | M74: =VLOOKUP($K74,BASEMDM!$A$1:$C$4444,2,FALSE) -> TERRITORIAL | N74: 1.918367347 | P74: ANTIOQUIA - ALCALDIA MUNICIPIO DE ANORI | Q74: TERRITORIAL | R74: TERRITORIAL | S74: 0.1347150259 | U74: ANTIOQUIA - ALCALDIA MUNICIPIO DE BETULIA | V74: TERRITORIAL | W74: TERRITORIAL | X74: 46.33333333 | Z74: ANTIOQUIA - ALCALDIA MUNICIPIO DE SAN LUIS | AA74: TERRITORIAL | AB74: TERRITORIAL | AC74: 0.04347826087 | AE74: ANTIOQUIA - ALCALDIA MUNICIPIO DE BETULIA | AF74: TERRITORIAL | AG74: TERRITORIAL | AH74: 18 | AJ74: ANTIOQUIA - ALCALDIA MUNICIPIO DE BETANIA | AK74: TERRITORIAL | AL74: TERRITORIAL | AM74: 4.666666667
A75: Total general | D75: 10.26530612 | F75: ANTIOQUIA - ALCALDIA MUNICIPIO DE CAÑASGORDAS | G75: TERRITORIAL | H75: TERRITORIAL | I75: 33.4 | K75: ANTIOQUIA - ALCALDIA MUNICIPIO DE ANORI | L75: =VLOOKUP($K75,BASEMDM!$A$1:$C$4444,3,FALSE) -> TERRITORIAL | M75: =VLOOKUP($K75,BASEMDM!$A$1:$C$4444,2,FALSE) -> TERRITORIAL | N75: 0 | P75: ANTIOQUIA - ALCALDIA MUNICIPIO DE ANZA | Q75: TERRITORIAL | R75: TERRITORIAL | S75: 4.347826087 | U75: ANTIOQUIA - ALCALDIA MUNICIPIO DE BRICEÑO | V75: TERRITORIAL | W75: TERRITORIAL | X75: 0 | Z75: ANTIOQUIA - ALCALDIA MUNICIPIO DE SAN RAFAEL | AA75: TERRITORIAL | AB75: TERRITORIAL | AC75: 0 | AE75: ANTIOQUIA - ALCALDIA MUNICIPIO DE BRICEÑO | AF75: TERRITORIAL | AG75: TERRITORIAL | AH75: 7.407407407 | AJ75: ANTIOQUIA - ALCALDIA MUNICIPIO DE BURITICA | AK75: TERRITORIAL | AL75: TERRITORIAL | AM75: 20
F76: ANTIOQUIA - ALCALDIA MUNICIPIO DE CARAMANTA | G76: TERRITORIAL | H76: TERRITORIAL | I76: 36.5 | K76: ANTIOQUIA - ALCALDIA MUNICIPIO DE ANZA | L76: =VLOOKUP($K76,BASEMDM!$A$1:$C$4444,3,FALSE) -> TERRITORIAL | M76: =VLOOKUP($K76,BASEMDM!$A$1:$C$4444,2,FALSE) -> TERRITORIAL | N76: 0.65 | P76: ANTIOQUIA - ALCALDIA MUNICIPIO DE APARTADO | Q76: TERRITORIAL | R76: TERRITORIAL | S76: 5.384 | U76: ANTIOQUIA - ALCALDIA MUNICIPIO DE BURITICA | V76: TERRITORIAL | W76: TERRITORIAL | X76: 32 | Z76: ANTIOQUIA - ALCALDIA MUNICIPIO DE SAN ROQUE | AA76: TERRITORIAL | AB76: TERRITORIAL | AC76: 0 | AE76: ANTIOQUIA - ALCALDIA MUNICIPIO DE BURITICA | AF76: TERRITORIAL | AG76: TERRITORIAL | AH76: 25.57894737 | AJ76: ANTIOQUIA - ALCALDIA MUNICIPIO DE CACERES | AK76: TERRITORIAL | AL76: TERRITORIAL | AM76: 0
F77: ANTIOQUIA - ALCALDIA MUNICIPIO DE CAREPA | G77: TERRITORIAL | H77: TERRITORIAL | I77: 15.11111111 | K77: ANTIOQUIA - ALCALDIA MUNICIPIO DE APARTADO | L77: =VLOOKUP($K77,BASEMDM!$A$1:$C$4444,3,FALSE) -> TERRITORIAL | M77: =VLOOKUP($K77,BASEMDM!$A$1:$C$4444,2,FALSE) -> TERRITORIAL | N77: 0 | P77: ANTIOQUIA - ALCALDIA MUNICIPIO DE ARBOLETES | Q77: TERRITORIAL | R77: TERRITORIAL | S77: 2.838383838 | U77: ANTIOQUIA - ALCALDIA MUNICIPIO DE CACERES | V77: TERRITORIAL | W77: TERRITORIAL | X77: 41.75 | Z77: ANTIOQUIA - ALCALDIA MUNICIPIO DE SAN VICENTE | AA77: TERRITORIAL | AB77: TERRITORIAL | AC77: 0 | AE77: ANTIOQUIA - ALCALDIA MUNICIPIO DE CACERES | AF77: TERRITORIAL | AG77: TERRITORIAL | AH77: 23 | AJ77: ANTIOQUIA - ALCALDIA MUNICIPIO DE CALDAS | AK77: TERRITORIAL | AL77: TERRITORIAL | AM77: 19.23529412
A78: Tipo de Proceso | B78: Asociación Público Privada | F78: ANTIOQUIA - ALCALDIA MUNICIPIO DE CARMEN DE VIBORAL | G78: TERRITORIAL | H78: TERRITORIAL | I78: 37 | K78: ANTIOQUIA - ALCALDIA MUNICIPIO DE ARBOLETES | L78: =VLOOKUP($K78,BASEMDM!$A$1:$C$4444,3,FALSE) -> TERRITORIAL | M78: =VLOOKUP($K78,BASEMDM!$A$1:$C$4444,2,FALSE) -> TERRITORIAL | N78: 0.5849056604 | P78: ANTIOQUIA - ALCALDIA MUNICIPIO DE ARGELIA | Q78: TERRITORIAL | R78: TERRITORIAL | S78: 3.3875 | U78: ANTIOQUIA - ALCALDIA MUNICIPIO DE CAICEDO | V78: TERRITORIAL | W78: TERRITORIAL | X78: 0 | Z78: ANTIOQUIA - ALCALDIA MUNICIPIO DE SANTA BARBARA | AA78: TERRITORIAL | AB78: TERRITORIAL | AC78: 0 | AE78: ANTIOQUIA - ALCALDIA MUNICIPIO DE CAICEDO | AF78: TERRITORIAL | AG78: TERRITORIAL | AH78: 0 | AJ78: ANTIOQUIA - ALCALDIA MUNICIPIO DE CAMPAMENTO | AK78: TERRITORIAL | AL78: TERRITORIAL | AM78: 33.66666667
F79: ANTIOQUIA - ALCALDIA MUNICIPIO DE CAUCASIA | G79: TERRITORIAL | H79: TERRITORIAL | I79: 85.1 | K79: ANTIOQUIA - ALCALDIA MUNICIPIO DE ARGELIA | L79: =VLOOKUP($K79,BASEMDM!$A$1:$C$4444,3,FALSE) -> TERRITORIAL | M79: =VLOOKUP($K79,BASEMDM!$A$1:$C$4444,2,FALSE) -> TERRITORIAL | N79: 1.186046512 | P79: ANTIOQUIA - ALCALDIA MUNICIPIO DE ARMENIA | Q79: TERRITORIAL | R79: TERRITORIAL | S79: 4.175438596 | U79: ANTIOQUIA - ALCALDIA MUNICIPIO DE CALDAS | V79: TERRITORIAL | W79: TERRITORIAL | X79: 33.5 | Z79: ANTIOQUIA - ALCALDIA MUNICIPIO DE SANTA ROSA DE OSOS | AA79: TERRITORIAL | AB79: TERRITORIAL | AC79: 0 | AE79: ANTIOQUIA - ALCALDIA MUNICIPIO DE CALDAS | AF79: TERRITORIAL | AG79: TERRITORIAL | AH79: 21.66666667 | AJ79: ANTIOQUIA - ALCALDIA MUNICIPIO DE CARACOLI | AK79: TERRITORIAL | AL79: TERRITORIAL | AM79: 8
A80: Row Labels | B80: Average of Indicador 6 | C80: Row Labels | D80: Average of Indicador 6 | F80: ANTIOQUIA - ALCALDIA MUNICIPIO DE CHIGORODO | G80: TERRITORIAL | H80: TERRITORIAL | I80: 26.42857143 | K80: ANTIOQUIA - ALCALDIA MUNICIPIO DE ARMENIA | L80: =VLOOKUP($K80,BASEMDM!$A$1:$C$4444,3,FALSE) -> TERRITORIAL | M80: =VLOOKUP($K80,BASEMDM!$A$1:$C$4444,2,FALSE) -> TERRITORIAL | N80: 2 | P80: ANTIOQUIA - ALCALDIA MUNICIPIO DE BARBOSA | Q80: TERRITORIAL | R80: TERRITORIAL | S80: 18.92307692 | U80: ANTIOQUIA - ALCALDIA MUNICIPIO DE CAMPAMENTO | V80: TERRITORIAL | W80: TERRITORIAL | X80: 32.25 | Z80: ANTIOQUIA - ALCALDIA MUNICIPIO DE SANTO DOMINGO | AA80: TERRITORIAL | AB80: TERRITORIAL | AC80: 56 | AE80: ANTIOQUIA - ALCALDIA MUNICIPIO DE CAMPAMENTO | AF80: TERRITORIAL | AG80: TERRITORIAL | AH80: 20.45454545 | AJ80: ANTIOQUIA - ALCALDIA MUNICIPIO DE CAREPA | AK80: TERRITORIAL | AL80: TERRITORIAL | AM80: 16.5
A81: FISCALIA | B81: 0 | C81: FISCALIA | D81: 0 | F81: ANTIOQUIA - ALCALDIA MUNICIPIO DE CISNEROS | G81: TERRITORIAL | H81: TERRITORIAL | I81: 35 | K81: ANTIOQUIA - ALCALDIA MUNICIPIO DE BARBOSA | L81: =VLOOKUP($K81,BASEMDM!$A$1:$C$4444,3,FALSE) -> TERRITORIAL | M81: =VLOOKUP($K81,BASEMDM!$A$1:$C$4444,2,FALSE) -> TERRITORIAL | N81: 0.141955836 | P81: ANTIOQUIA - ALCALDIA MUNICIPIO DE BELLO | Q81: TERRITORIAL | R81: TERRITORIAL | S81: 14.42465753 | U81: ANTIOQUIA - ALCALDIA MUNICIPIO DE CAÑASGORDAS | V81: TERRITORIAL | W81: TERRITORIAL | X81: 37.44444444 | Z81: ANTIOQUIA - ALCALDIA MUNICIPIO DE SONSON | AA81: TERRITORIAL | AB81: TERRITORIAL | AC81: 0 | AE81: ANTIOQUIA - ALCALDIA MUNICIPIO DE CAÑASGORDAS | AF81: TERRITORIAL | AG81: TERRITORIAL | AH81: 27.69230769 | AJ81: ANTIOQUIA - ALCALDIA MUNICIPIO DE CARMEN DE VIBORAL | AK81: TERRITORIAL | AL81: TERRITORIAL | AM81: 38.2
A82: INCLUSION SOCIAL Y RECONCILIACION | B82: 0 | C82: INCLUSION SOCIAL Y RECONCILIACION | D82: 0 | F82: ANTIOQUIA - ALCALDIA MUNICIPIO DE CIUDAD BOLIVAR | G82: TERRITORIAL | H82: TERRITORIAL | I82: 31.8 | K82: ANTIOQUIA - ALCALDIA MUNICIPIO DE BELLO | L82: =VLOOKUP($K82,BASEMDM!$A$1:$C$4444,3,FALSE) -> TERRITORIAL | M82: =VLOOKUP($K82,BASEMDM!$A$1:$C$4444,2,FALSE) -> TERRITORIAL | N82: 0.01194353963 | P82: ANTIOQUIA - ALCALDIA MUNICIPIO DE BELMIRA | Q82: TERRITORIAL | R82: TERRITORIAL | S82: 5.597402597 | U82: ANTIOQUIA - ALCALDIA MUNICIPIO DE CARACOLI | V82: TERRITORIAL | W82: TERRITORIAL | X82: 0 | Z82: ANTIOQUIA - ALCALDIA MUNICIPIO DE TAMESIS | AA82: TERRITORIAL | AB82: TERRITORIAL | AC82: 0 | AE82: ANTIOQUIA - ALCALDIA MUNICIPIO DE CARACOLI | AF82: TERRITORIAL | AG82: TERRITORIAL | AH82: 7 | AJ82: ANTIOQUIA - ALCALDIA MUNICIPIO DE CAROLINA | AK82: TERRITORIAL | AL82: TERRITORIAL | AM82: 19.1
A83: TERRITORIAL | B83: 1.875 | C83: TERRITORIAL | D83: 1.875 | F83: ANTIOQUIA - ALCALDIA MUNICIPIO DE COCORNA | G83: TERRITORIAL | H83: TERRITORIAL | I83: 24 | K83: ANTIOQUIA - ALCALDIA MUNICIPIO DE BELMIRA | L83: =VLOOKUP($K83,BASEMDM!$A$1:$C$4444,3,FALSE) -> TERRITORIAL | M83: =VLOOKUP($K83,BASEMDM!$A$1:$C$4444,2,FALSE) -> TERRITORIAL | N83: 0.1768707483 | P83: ANTIOQUIA - ALCALDIA MUNICIPIO DE BETANIA | Q83: TERRITORIAL | R83: TERRITORIAL | S83: 3.042016807 | U83: ANTIOQUIA - ALCALDIA MUNICIPIO DE CARAMANTA | V83: TERRITORIAL | W83: TERRITORIAL | X83: 26.75 | Z83: ANTIOQUIA - ALCALDIA MUNICIPIO DE TARSO | AA83: TERRITORIAL | AB83: TERRITORIAL | AC83: 0 | AE83: ANTIOQUIA - ALCALDIA MUNICIPIO DE CARAMANTA | AF83: TERRITORIAL | AG83: TERRITORIAL | AH83: 18 | AJ83: ANTIOQUIA - ALCALDIA MUNICIPIO DE CAUCASIA | AK83: TERRITORIAL | AL83: TERRITORIAL | AM83: 33.39130435
A84: TRANSPORTE | B84: 49.88888889 | C84: TRANSPORTE | D84: 49.88888889 | F84: ANTIOQUIA - ALCALDIA MUNICIPIO DE CONCEPCION | G84: TERRITORIAL | H84: TERRITORIAL | I84: 15.33333333 | K84: ANTIOQUIA - ALCALDIA MUNICIPIO DE BETANIA | L84: =VLOOKUP($K84,BASEMDM!$A$1:$C$4444,3,FALSE) -> TERRITORIAL | M84: =VLOOKUP($K84,BASEMDM!$A$1:$C$4444,2,FALSE) -> TERRITORIAL | N84: 0.04316546763 | P84: ANTIOQUIA - ALCALDIA MUNICIPIO DE BETULIA | Q84: TERRITORIAL | R84: TERRITORIAL | S84: 6.737704918 | U84: ANTIOQUIA - ALCALDIA MUNICIPIO DE CAREPA | V84: TERRITORIAL | W84: TERRITORIAL | X84: 20.76923077 | Z84: ANTIOQUIA - ALCALDIA MUNICIPIO DE TURBO | AA84: TERRITORIAL | AB84: TERRITORIAL | AC84: 0 | AE84: ANTIOQUIA - ALCALDIA MUNICIPIO DE CAREPA | AF84: TERRITORIAL | AG84: TERRITORIAL | AH84: 18.39215686 | AJ84: ANTIOQUIA - ALCALDIA MUNICIPIO DE CHIGORODO | AK84: TERRITORIAL | AL84: TERRITORIAL | AM84: 23.05
A85: Grand Total | B85: 4.303362573 | C85: Grand Total | D85: 4.303362573 | F85: ANTIOQUIA - ALCALDIA MUNICIPIO DE CONCORDIA | G85: TERRITORIAL | H85: TERRITORIAL | I85: 16.6 | K85: ANTIOQUIA - ALCALDIA MUNICIPIO DE BETULIA | L85: =VLOOKUP($K85,BASEMDM!$A$1:$C$4444,3,FALSE) -> TERRITORIAL | M85: =VLOOKUP($K85,BASEMDM!$A$1:$C$4444,2,FALSE) -> TERRITORIAL | N85: 0 | P85: ANTIOQUIA - ALCALDIA MUNICIPIO DE BRICEÑO | Q85: TERRITORIAL | R85: TERRITORIAL | S85: 5.045454545 | U85: ANTIOQUIA - ALCALDIA MUNICIPIO DE CARMEN DE VIBORAL | V85: TERRITORIAL | W85: TERRITORIAL | X85: 55 | Z85: ANTIOQUIA - ALCALDIA MUNICIPIO DE VALDIVIA | AA85: TERRITORIAL | AB85: TERRITORIAL | AC85: 0 | AE85: ANTIOQUIA - ALCALDIA MUNICIPIO DE CARMEN DE VIBORAL | AF85: TERRITORIAL | AG85: TERRITORIAL | AH85: 37.91666667 | AJ85: ANTIOQUIA - ALCALDIA MUNICIPIO DE CIUDAD BOLIVAR | AK85: TERRITORIAL | AL85: TERRITORIAL | AM85: 17.8
F86: ANTIOQUIA - ALCALDIA MUNICIPIO DE COPACABANA | G86: TERRITORIAL | H86: TERRITORIAL | I86: 40.22222222 | K86: ANTIOQUIA - ALCALDIA MUNICIPIO DE BRICEÑO | L86: =VLOOKUP($K86,BASEMDM!$A$1:$C$4444,3,FALSE) -> TERRITORIAL | M86: =VLOOKUP($K86,BASEMDM!$A$1:$C$4444,2,FALSE) -> TERRITORIAL | N86: 0.1621621622 | P86: ANTIOQUIA - ALCALDIA MUNICIPIO DE BURITICA | Q86: TERRITORIAL | R86: TERRITORIAL | S86: 6.194029851 | U86: ANTIOQUIA - ALCALDIA MUNICIPIO DE CAROLINA | V86: TERRITORIAL | W86: TERRITORIAL | X86: 28 | Z86: ANTIOQUIA - ALCALDIA MUNICIPIO DE VALPARAISO | AA86: TERRITORIAL | AB86: TERRITORIAL | AC86: 0 | AE86: ANTIOQUIA - ALCALDIA MUNICIPIO DE CAROLINA | AF86: TERRITORIAL | AG86: TERRITORIAL | AH86: 15.5 | AJ86: ANTIOQUIA - ALCALDIA MUNICIPIO DE CONCEPCION | AK86: TERRITORIAL | AL86: TERRITORIAL | AM86: 25
A87: Tipo de Proceso | B87: Asociación Público Privada | F87: ANTIOQUIA - ALCALDIA MUNICIPIO DE DABEIBA | G87: TERRITORIAL | H87: TERRITORIAL | I87: 11.14285714 | K87: ANTIOQUIA - ALCALDIA MUNICIPIO DE BURITICA | L87: =VLOOKUP($K87,BASEMDM!$A$1:$C$4444,3,FALSE) -> TERRITORIAL | M87: =VLOOKUP($K87,BASEMDM!$A$1:$C$4444,2,FALSE) -> TERRITORIAL | N87: 0.9322033898 | P87: ANTIOQUIA - ALCALDIA MUNICIPIO DE CACERES | Q87: TERRITORIAL | R87: TERRITORIAL | S87: 4.470588235 | U87: ANTIOQUIA - ALCALDIA MUNICIPIO DE CAUCASIA | V87: TERRITORIAL | W87: TERRITORIAL | X87: 39.15384615 | Z87: ANTIOQUIA - ALCALDIA MUNICIPIO DE YONDO | AA87: TERRITORIAL | AB87: TERRITORIAL | AC87: 0 | AE87: ANTIOQUIA - ALCALDIA MUNICIPIO DE CAUCASIA | AF87: TERRITORIAL | AG87: TERRITORIAL | AH87: 24.22222222 | AJ87: ANTIOQUIA - ALCALDIA MUNICIPIO DE CONCORDIA | AK87: TERRITORIAL | AL87: TERRITORIAL | AM87: 19.5
A88: Row Labels | B88: Average of Indicador 6 | C88: Row Labels | D88: Average of Indicador 6 | F88: ANTIOQUIA - ALCALDIA MUNICIPIO DE DON MATIAS | G88: TERRITORIAL | H88: TERRITORIAL | I88: 18.25 | K88: ANTIOQUIA - ALCALDIA MUNICIPIO DE CACERES | L88: =VLOOKUP($K88,BASEMDM!$A$1:$C$4444,3,FALSE) -> TERRITORIAL | M88: =VLOOKUP($K88,BASEMDM!$A$1:$C$4444,2,FALSE) -> TERRITORIAL | N88: 0 | P88: ANTIOQUIA - ALCALDIA MUNICIPIO DE CAICEDO | Q88: TERRITORIAL | R88: TERRITORIAL | S88: 2.327102804 | U88: ANTIOQUIA - ALCALDIA MUNICIPIO DE CHIGORODO | V88: TERRITORIAL | W88: TERRITORIAL | X88: 22.7 | Z88: ANTIOQUIA - ASOCIACION DE MUNICIPIOS DEL BAJO CAUCA Y DEL BAJO NECHI AMBACAN - CAUCASIA | AA88: TERRITORIAL | AB88: TERRITORIAL | AC88: 0 | AE88: ANTIOQUIA - ALCALDIA MUNICIPIO DE CHIGORODO | AF88: TERRITORIAL | AG88: TERRITORIAL | AH88: 27.375 | AJ88: ANTIOQUIA - ALCALDIA MUNICIPIO DE COPACABANA | AK88: TERRITORIAL | AL88: TERRITORIAL | AM88: 49.8
A89: NACIONAL | B89: 24.94444444 | C89: NACIONAL | D89: 24.94444444 | F89: ANTIOQUIA - ALCALDIA MUNICIPIO DE EBEJICO | G89: TERRITORIAL | H89: TERRITORIAL | I89: 0 | K89: ANTIOQUIA - ALCALDIA MUNICIPIO DE CAICEDO | L89: =VLOOKUP($K89,BASEMDM!$A$1:$C$4444,3,FALSE) -> TERRITORIAL | M89: =VLOOKUP($K89,BASEMDM!$A$1:$C$4444,2,FALSE) -> TERRITORIAL | N89: 0.1552511416 | P89: ANTIOQUIA - ALCALDIA MUNICIPIO DE CALDAS | Q89: TERRITORIAL | R89: TERRITORIAL | S89: 6.361702128 | U89: ANTIOQUIA - ALCALDIA MUNICIPIO DE CISNEROS | V89: TERRITORIAL | W89: TERRITORIAL | X89: 29 | Z89: ANTIOQUIA - ASOCIACION DE MUNICIPIOS DEL NORDESTE Y MAGDALENA MEDIO ANTIOQUEÑO ZONA NUS ASOMUNUS - SAN ROQUE | AA89: TERRITORIAL | AB89: TERRITORIAL | AC89: 0 | AE89: ANTIOQUIA - ALCALDIA MUNICIPIO DE CISNEROS | AF89: TERRITORIAL | AG89: TERRITORIAL | AH89: 14.5 | AJ89: ANTIOQUIA - ALCALDIA MUNICIPIO DE DABEIBA | AK89: TERRITORIAL | AL89: TERRITORIAL | AM89: 35.44444444
A90: TERRITORIAL | B90: 1.875 | C90: TERRITORIAL | D90: 1.875 | F90: ANTIOQUIA - ALCALDIA MUNICIPIO DE EL BAGRE | G90: TERRITORIAL | H90: TERRITORIAL | I90: 17 | K90: ANTIOQUIA - ALCALDIA MUNICIPIO DE CALDAS | L90: =VLOOKUP($K90,BASEMDM!$A$1:$C$4444,3,FALSE) -> TERRITORIAL | M90: =VLOOKUP($K90,BASEMDM!$A$1:$C$4444,2,FALSE) -> TERRITORIAL | N90: 0.04414587332 | P90: ANTIOQUIA - ALCALDIA MUNICIPIO DE CAMPAMENTO | Q90: TERRITORIAL | R90: TERRITORIAL | S90: 3.308333333 | U90: ANTIOQUIA - ALCALDIA MUNICIPIO DE CIUDAD BOLIVAR | V90: TERRITORIAL | W90: TERRITORIAL | X90: 29.375 | Z90: ANTIOQUIA - BENEFICENCIA DE ANTIOQUIA | AA90: TERRITORIAL | AB90: TERRITORIAL | AC90: 0.4015151515 | AE90: ANTIOQUIA - ALCALDIA MUNICIPIO DE CIUDAD BOLIVAR | AF90: TERRITORIAL | AG90: TERRITORIAL | AH90: 31.5 | AJ90: ANTIOQUIA - ALCALDIA MUNICIPIO DE DON MATIAS | AK90: TERRITORIAL | AL90: TERRITORIAL | AM90: 0
A91: Grand Total | B91: 4.303362573 | C91: Grand Total | D91: 4.303362573 | F91: ANTIOQUIA - ALCALDIA MUNICIPIO DE EL RETIRO | G91: TERRITORIAL | H91: TERRITORIAL | I91: 12.2 | K91: ANTIOQUIA - ALCALDIA MUNICIPIO DE CAMPAMENTO | L91: =VLOOKUP($K91,BASEMDM!$A$1:$C$4444,3,FALSE) -> TERRITORIAL | M91: =VLOOKUP($K91,BASEMDM!$A$1:$C$4444,2,FALSE) -> TERRITORIAL | N91: 0.007246376812 | P91: ANTIOQUIA - ALCALDIA MUNICIPIO DE CAÑASGORDAS | Q91: TERRITORIAL | R91: TERRITORIAL | S91: 4.790697674 | U91: ANTIOQUIA - ALCALDIA MUNICIPIO DE COCORNA | V91: TERRITORIAL | W91: TERRITORIAL | X91: 34.75 | Z91: ANTIOQUIA - BIBLIOTECA PUBLICA PILOTO DE MEDELLIN PARA AMERICA LATINA - MEDELLIN | AA91: TERRITORIAL | AB91: TERRITORIAL | AC91: 0 | AE91: ANTIOQUIA - ALCALDIA MUNICIPIO DE COCORNA | AF91: TERRITORIAL | AG91: TERRITORIAL | AH91: 17.625 | AJ91: ANTIOQUIA - ALCALDIA MUNICIPIO DE EBEJICO | AK91: TERRITORIAL | AL91: TERRITORIAL | AM91: 32
F92: ANTIOQUIA - ALCALDIA MUNICIPIO DE ENTRERRIOS | G92: TERRITORIAL | H92: TERRITORIAL | I92: 27 | K92: ANTIOQUIA - ALCALDIA MUNICIPIO DE CAÑASGORDAS | L92: =VLOOKUP($K92,BASEMDM!$A$1:$C$4444,3,FALSE) -> TERRITORIAL | M92: =VLOOKUP($K92,BASEMDM!$A$1:$C$4444,2,FALSE) -> TERRITORIAL | N92: 0 | P92: ANTIOQUIA - ALCALDIA MUNICIPIO DE CARACOLI | Q92: TERRITORIAL | R92: TERRITORIAL | S92: 3.711538462 | U92: ANTIOQUIA - ALCALDIA MUNICIPIO DE CONCEPCION | V92: TERRITORIAL | W92: TERRITORIAL | X92: 23 | Z92: ANTIOQUIA - CAMARA DE COMERCIO ABURRA SUR | AA92: TERRITORIAL | AB92: TERRITORIAL | AC92: 41.21276596 | AE92: ANTIOQUIA - ALCALDIA MUNICIPIO DE CONCEPCION | AF92: TERRITORIAL | AG92: TERRITORIAL | AH92: 23.375 | AJ92: ANTIOQUIA - ALCALDIA MUNICIPIO DE EL BAGRE | AK92: TERRITORIAL | AL92: TERRITORIAL | AM92: 21
F93: ANTIOQUIA - ALCALDIA MUNICIPIO DE ENVIGADO | G93: TERRITORIAL | H93: TERRITORIAL | I93: 33.5 | K93: ANTIOQUIA - ALCALDIA MUNICIPIO DE CARACOLI | L93: =VLOOKUP($K93,BASEMDM!$A$1:$C$4444,3,FALSE) -> TERRITORIAL | M93: =VLOOKUP($K93,BASEMDM!$A$1:$C$4444,2,FALSE) -> TERRITORIAL | N93: 0 | P93: ANTIOQUIA - ALCALDIA MUNICIPIO DE CARAMANTA | Q93: TERRITORIAL | R93: TERRITORIAL | S93: 9.125 | U93: ANTIOQUIA - ALCALDIA MUNICIPIO DE CONCORDIA | V93: TERRITORIAL | W93: TERRITORIAL | X93: 34.33333333 | Z93: ANTIOQUIA - CAMARA DE COMERCIO DE MEDELLIN | AA93: TERRITORIAL | AB93: TERRITORIAL | AC93: 0 | AE93: ANTIOQUIA - ALCALDIA MUNICIPIO DE CONCORDIA | AF93: TERRITORIAL | AG93: TERRITORIAL | AH93: 21.88888889 | AJ93: ANTIOQUIA - ALCALDIA MUNICIPIO DE EL PEÑOL | AK93: TERRITORIAL | AL93: TERRITORIAL | AM93: 18
F94: ANTIOQUIA - ALCALDIA MUNICIPIO DE FREDONIA | G94: TERRITORIAL | H94: TERRITORIAL | I94: 27 | K94: ANTIOQUIA - ALCALDIA MUNICIPIO DE CARAMANTA | L94: =VLOOKUP($K94,BASEMDM!$A$1:$C$4444,3,FALSE) -> TERRITORIAL | M94: =VLOOKUP($K94,BASEMDM!$A$1:$C$4444,2,FALSE) -> TERRITORIAL | N94: 0 | P94: ANTIOQUIA - ALCALDIA MUNICIPIO DE CAREPA | Q94: TERRITORIAL | R94: TERRITORIAL | S94: 9.293333333 | U94: ANTIOQUIA - ALCALDIA MUNICIPIO DE COPACABANA | V94: TERRITORIAL | W94: TERRITORIAL | X94: 47.42857143 | Z94: ANTIOQUIA - CAMARA DE COMERCIO DEL MAGDALENA MEDIO Y NORDESTE ANTIOQUEÑO | AA94: TERRITORIAL | AB94: TERRITORIAL | AC94: 0 | AE94: ANTIOQUIA - ALCALDIA MUNICIPIO DE COPACABANA | AF94: TERRITORIAL | AG94: TERRITORIAL | AH94: 27.56 | AJ94: ANTIOQUIA - ALCALDIA MUNICIPIO DE EL RETIRO | AK94: TERRITORIAL | AL94: TERRITORIAL | AM94: 22
F95: ANTIOQUIA - ALCALDIA MUNICIPIO DE FRONTINO | G95: TERRITORIAL | H95: TERRITORIAL | I95: 15 | K95: ANTIOQUIA - ALCALDIA MUNICIPIO DE CAREPA | L95: =VLOOKUP($K95,BASEMDM!$A$1:$C$4444,3,FALSE) -> TERRITORIAL | M95: =VLOOKUP($K95,BASEMDM!$A$1:$C$4444,2,FALSE) -> TERRITORIAL | N95: 0 | P95: ANTIOQUIA - ALCALDIA MUNICIPIO DE CARMEN DE VIBORAL | Q95: TERRITORIAL | R95: TERRITORIAL | S95: 12.9 | U95: ANTIOQUIA - ALCALDIA MUNICIPIO DE DABEIBA | V95: TERRITORIAL | W95: TERRITORIAL | X95: 49.5 | Z95: ANTIOQUIA - CAMARA DE COMERCIO DEL ORIENTE ANTIOQUEÑO | AA95: TERRITORIAL | AB95: TERRITORIAL | AC95: 1.270833333 | AE95: ANTIOQUIA - ALCALDIA MUNICIPIO DE DABEIBA | AF95: TERRITORIAL | AG95: TERRITORIAL | AH95: 29.11764706 | AJ95: ANTIOQUIA - ALCALDIA MUNICIPIO DE ENVIGADO | AK95: TERRITORIAL | AL95: TERRITORIAL | AM95: 48.64285714
F96: ANTIOQUIA - ALCALDIA MUNICIPIO DE GIRALDO | G96: TERRITORIAL | H96: TERRITORIAL | I96: 6.333333333 | K96: ANTIOQUIA - ALCALDIA MUNICIPIO DE CARMEN DE VIBORAL | L96: =VLOOKUP($K96,BASEMDM!$A$1:$C$4444,3,FALSE) -> TERRITORIAL | M96: =VLOOKUP($K96,BASEMDM!$A$1:$C$4444,2,FALSE) -> TERRITORIAL | N96: 0.06086956522 | P96: ANTIOQUIA - ALCALDIA MUNICIPIO DE CAROLINA | Q96: TERRITORIAL | R96: TERRITORIAL | S96: 3.782608696 | U96: ANTIOQUIA - ALCALDIA MUNICIPIO DE DON MATIAS | V96: TERRITORIAL | W96: TERRITORIAL | X96: 20.71428571 | Z96: ANTIOQUIA - CENTRO EDUCATIVO PERMANENTE MAZO - MEDELLIN | AA96: TERRITORIAL | AB96: TERRITORIAL | AC96: 6 | AE96: ANTIOQUIA - ALCALDIA MUNICIPIO DE DON MATIAS | AF96: TERRITORIAL | AG96: TERRITORIAL | AH96: 41.5 | AJ96: ANTIOQUIA - ALCALDIA MUNICIPIO DE FREDONIA | AK96: TERRITORIAL | AL96: TERRITORIAL | AM96: 27
F97: ANTIOQUIA - ALCALDIA MUNICIPIO DE GIRARDOTA | G97: TERRITORIAL | H97: TERRITORIAL | I97: 8.875 | K97: ANTIOQUIA - ALCALDIA MUNICIPIO DE CAROLINA | L97: =VLOOKUP($K97,BASEMDM!$A$1:$C$4444,3,FALSE) -> TERRITORIAL | M97: =VLOOKUP($K97,BASEMDM!$A$1:$C$4444,2,FALSE) -> TERRITORIAL | N97: 0.5731707317 | P97: ANTIOQUIA - ALCALDIA MUNICIPIO DE CAUCASIA | Q97: TERRITORIAL | R97: TERRITORIAL | S97: 5.977578475 | U97: ANTIOQUIA - ALCALDIA MUNICIPIO DE EBEJICO | V97: TERRITORIAL | W97: TERRITORIAL | X97: 7 | Z97: ANTIOQUIA - CENTRO EDUCATIVO RURAL LA MORENA - ENVIGADO | AA97: TERRITORIAL | AB97: TERRITORIAL | AC97: 8.142857143 | AE97: ANTIOQUIA - ALCALDIA MUNICIPIO DE EBEJICO | AF97: TERRITORIAL | AG97: TERRITORIAL | AH97: 0 | AJ97: ANTIOQUIA - ALCALDIA MUNICIPIO DE GIRALDO | AK97: TERRITORIAL | AL97: TERRITORIAL | AM97: 28
F98: ANTIOQUIA - ALCALDIA MUNICIPIO DE GOMEZ PLATA | G98: TERRITORIAL | H98: TERRITORIAL | I98: 18.5 | K98: ANTIOQUIA - ALCALDIA MUNICIPIO DE CAUCASIA | L98: =VLOOKUP($K98,BASEMDM!$A$1:$C$4444,3,FALSE) -> TERRITORIAL | M98: =VLOOKUP($K98,BASEMDM!$A$1:$C$4444,2,FALSE) -> TERRITORIAL | N98: 0.1802325581 | P98: ANTIOQUIA - ALCALDIA MUNICIPIO DE CHIGORODO | Q98: TERRITORIAL | R98: TERRITORIAL | S98: 10.80851064 | U98: ANTIOQUIA - ALCALDIA MUNICIPIO DE EL BAGRE | V98: TERRITORIAL | W98: TERRITORIAL | X98: 22.6 | Z98: ANTIOQUIA - COMERCIALIZADORA LOTTIRED S.A.S. - MEDELLIN | AA98: TERRITORIAL | AB98: TERRITORIAL | AC98: 0 | AE98: ANTIOQUIA - ALCALDIA MUNICIPIO DE EL BAGRE | AF98: TERRITORIAL | AG98: TERRITORIAL | AH98: 16.58064516 | AJ98: ANTIOQUIA - ALCALDIA MUNICIPIO DE GOMEZ PLATA | AK98: TERRITORIAL | AL98: TERRITORIAL | AM98: 20.66666667
F99: ANTIOQUIA - ALCALDIA MUNICIPIO DE GRANADA | G99: TERRITORIAL | H99: TERRITORIAL | I99: 12.75 | K99: ANTIOQUIA - ALCALDIA MUNICIPIO DE CHIGORODO | L99: =VLOOKUP($K99,BASEMDM!$A$1:$C$4444,3,FALSE) -> TERRITORIAL | M99: =VLOOKUP($K99,BASEMDM!$A$1:$C$4444,2,FALSE) -> TERRITORIAL | N99: 21.10769231 | P99: ANTIOQUIA - ALCALDIA MUNICIPIO DE CISNEROS | Q99: TERRITORIAL | R99: TERRITORIAL | S99: 4.413461538 | U99: ANTIOQUIA - ALCALDIA MUNICIPIO DE EL PEÑOL | V99: TERRITORIAL | W99: TERRITORIAL | X99: 35.5 | Z99: ANTIOQUIA - CONCEJO MUNICIPIO DE DON MATIAS | AA99: TERRITORIAL | AB99: TERRITORIAL | AC99: 0 | AE99: ANTIOQUIA - ALCALDIA MUNICIPIO DE EL PEÑOL | AF99: TERRITORIAL | AG99: TERRITORIAL | AH99: 26.1 | AJ99: ANTIOQUIA - ALCALDIA MUNICIPIO DE GUADALUPE | AK99: TERRITORIAL | AL99: TERRITORIAL | AM99: 24
F100: ANTIOQUIA - ALCALDIA MUNICIPIO DE GUADALUPE | G100: TERRITORIAL | H100: TERRITORIAL | I100: 21.85714286 | K100: ANTIOQUIA - ALCALDIA MUNICIPIO DE CISNEROS | L100: =VLOOKUP($K100,BASEMDM!$A$1:$C$4444,3,FALSE) -> TERRITORIAL | M100: =VLOOKUP($K100,BASEMDM!$A$1:$C$4444,2,FALSE) -> TERRITORIAL | N100: 0.09941520468 | P100: ANTIOQUIA - ALCALDIA MUNICIPIO DE CIUDAD BOLIVAR | Q100: TERRITORIAL | R100: TERRITORIAL | S100: 5.074626866 | U100: ANTIOQUIA - ALCALDIA MUNICIPIO DE EL RETIRO | V100: TERRITORIAL | W100: TERRITORIAL | X100: 19.94444444 | Z100: ANTIOQUIA - CONCEJO MUNICIPIO DE EL BAGRE | AA100: TERRITORIAL | AB100: TERRITORIAL | AC100: 0 | AE100: ANTIOQUIA - ALCALDIA MUNICIPIO DE EL RETIRO | AF100: TERRITORIAL | AG100: TERRITORIAL | AH100: 16.52380952 | AJ100: ANTIOQUIA - ALCALDIA MUNICIPIO DE GUARNE | AK100: TERRITORIAL | AL100: TERRITORIAL | AM100: 36.27272727
F101: ANTIOQUIA - ALCALDIA MUNICIPIO DE GUARNE | G101: TERRITORIAL | H101: TERRITORIAL | I101: 0 | K101: ANTIOQUIA - ALCALDIA MUNICIPIO DE CIUDAD BOLIVAR | L101: =VLOOKUP($K101,BASEMDM!$A$1:$C$4444,3,FALSE) -> TERRITORIAL | M101: =VLOOKUP($K101,BASEMDM!$A$1:$C$4444,2,FALSE) -> TERRITORIAL | N101: 0.2191780822 | P101: ANTIOQUIA - ALCALDIA MUNICIPIO DE COCORNA | Q101: TERRITORIAL | R101: TERRITORIAL | S101: 4.967741935 | U101: ANTIOQUIA - ALCALDIA MUNICIPIO DE ENTRERRIOS | V101: TERRITORIAL | W101: TERRITORIAL | X101: 33.4 | Z101: ANTIOQUIA - CONCEJO MUNICIPIO DE SONSON | AA101: TERRITORIAL | AB101: TERRITORIAL | AC101: 0 | AE101: ANTIOQUIA - ALCALDIA MUNICIPIO DE ENTRERRIOS | AF101: TERRITORIAL | AG101: TERRITORIAL | AH101: 27.35714286 | AJ101: ANTIOQUIA - ALCALDIA MUNICIPIO DE GUATAPE | AK101: TERRITORIAL | AL101: TERRITORIAL | AM101: 0
F102: ANTIOQUIA - ALCALDIA MUNICIPIO DE GUATAPE | G102: TERRITORIAL | H102: TERRITORIAL | I102: 1 | K102: ANTIOQUIA - ALCALDIA MUNICIPIO DE COCORNA | L102: =VLOOKUP($K102,BASEMDM!$A$1:$C$4444,3,FALSE) -> TERRITORIAL | M102: =VLOOKUP($K102,BASEMDM!$A$1:$C$4444,2,FALSE) -> TERRITORIAL | N102: 0.1042944785 | P102: ANTIOQUIA - ALCALDIA MUNICIPIO DE CONCEPCION | Q102: TERRITORIAL | R102: TERRITORIAL | S102: 6 | U102: ANTIOQUIA - ALCALDIA MUNICIPIO DE ENVIGADO | V102: TERRITORIAL | W102: TERRITORIAL | X102: 27.78571429 | Z102: ANTIOQUIA - CONTRALORIA GENERAL DE ANTIOQUIA | AA102: TERRITORIAL | AB102: TERRITORIAL | AC102: 0 | AE102: ANTIOQUIA - ALCALDIA MUNICIPIO DE ENVIGADO | AF102: TERRITORIAL | AG102: TERRITORIAL | AH102: 40.19230769 | AJ102: ANTIOQUIA - ALCALDIA MUNICIPIO DE HELICONIA | AK102: TERRITORIAL | AL102: TERRITORIAL | AM102: 29
F103: ANTIOQUIA - ALCALDIA MUNICIPIO DE HELICONIA | G103: TERRITORIAL | H103: TERRITORIAL | I103: 0 | K103: ANTIOQUIA - ALCALDIA MUNICIPIO DE CONCEPCION | L103: =VLOOKUP($K103,BASEMDM!$A$1:$C$4444,3,FALSE) -> TERRITORIAL | M103: =VLOOKUP($K103,BASEMDM!$A$1:$C$4444,2,FALSE) -> TERRITORIAL | N103: 13.38181818 | P103: ANTIOQUIA - ALCALDIA MUNICIPIO DE CONCORDIA | Q103: TERRITORIAL | R103: TERRITORIAL | S103: 7.851851852 | U103: ANTIOQUIA - ALCALDIA MUNICIPIO DE FREDONIA | V103: TERRITORIAL | W103: TERRITORIAL | X103: 29.33333333 | Z103: ANTIOQUIA - CORPORACION RUTA N MEDELLIN | AA103: TERRITORIAL | AB103: TERRITORIAL | AC103: 0 | AE103: ANTIOQUIA - ALCALDIA MUNICIPIO DE FREDONIA | AF103: TERRITORIAL | AG103: TERRITORIAL | AH103: 15.5 | AJ103: ANTIOQUIA - ALCALDIA MUNICIPIO DE HISPANIA | AK103: TERRITORIAL | AL103: TERRITORIAL | AM103: 20.5
F104: ANTIOQUIA - ALCALDIA MUNICIPIO DE HISPANIA | G104: TERRITORIAL | H104: TERRITORIAL | I104: 34 | K104: ANTIOQUIA - ALCALDIA MUNICIPIO DE CONCORDIA | L104: =VLOOKUP($K104,BASEMDM!$A$1:$C$4444,3,FALSE) -> TERRITORIAL | M104: =VLOOKUP($K104,BASEMDM!$A$1:$C$4444,2,FALSE) -> TERRITORIAL | N104: 1.445544554 | P104: ANTIOQUIA - ALCALDIA MUNICIPIO DE COPACABANA | Q104: TERRITORIAL | R104: TERRITORIAL | S104: 14.59210526 | U104: ANTIOQUIA - ALCALDIA MUNICIPIO DE FRONTINO | V104: TERRITORIAL | W104: TERRITORIAL | X104: 28.6 | Z104: ANTIOQUIA - E.S.E. CENTRO DE ATENCION Y REHABILITACION INTEGRAL EN SALUD MENTAL DE CARISMA - MEDELLIN | AA104: TERRITORIAL | AB104: TERRITORIAL | AC104: 0.7647058824 | AE104: ANTIOQUIA - ALCALDIA MUNICIPIO DE FRONTINO | AF104: TERRITORIAL | AG104: TERRITORIAL | AH104: 22.15384615 | AJ104: ANTIOQUIA - ALCALDIA MUNICIPIO DE ITAGÜI | AK104: TERRITORIAL | AL104: TERRITORIAL | AM104: 22.57142857
F105: ANTIOQUIA - ALCALDIA MUNICIPIO DE ITAGÜI | G105: TERRITORIAL | H105: TERRITORIAL | I105: 18.33333333 | K105: ANTIOQUIA - ALCALDIA MUNICIPIO DE COPACABANA | L105: =VLOOKUP($K105,BASEMDM!$A$1:$C$4444,3,FALSE) -> TERRITORIAL | M105: =VLOOKUP($K105,BASEMDM!$A$1:$C$4444,2,FALSE) -> TERRITORIAL | N105: 0.2209631728 | P105: ANTIOQUIA - ALCALDIA MUNICIPIO DE DABEIBA | Q105: TERRITORIAL | R105: TERRITORIAL | S105: 4.245283019 | U105: ANTIOQUIA - ALCALDIA MUNICIPIO DE GIRALDO | V105: TERRITORIAL | W105: TERRITORIAL | X105: 25.6 | Z105: ANTIOQUIA - E.S.E. HOSPITAL ANTONIO ROLDAN BETANCUR - PINTADA | AA105: TERRITORIAL | AB105: TERRITORIAL | AC105: 0 | AE105: ANTIOQUIA - ALCALDIA MUNICIPIO DE GIRALDO | AF105: TERRITORIAL | AG105: TERRITORIAL | AH105: 6.833333333 | AJ105: ANTIOQUIA - ALCALDIA MUNICIPIO DE ITUANGO | AK105: TERRITORIAL | AL105: TERRITORIAL | AM105: 18.16666667
F106: ANTIOQUIA - ALCALDIA MUNICIPIO DE ITUANGO | G106: TERRITORIAL | H106: TERRITORIAL | I106: 12.33333333 | K106: ANTIOQUIA - ALCALDIA MUNICIPIO DE DABEIBA | L106: =VLOOKUP($K106,BASEMDM!$A$1:$C$4444,3,FALSE) -> TERRITORIAL | M106: =VLOOKUP($K106,BASEMDM!$A$1:$C$4444,2,FALSE) -> TERRITORIAL | N106: 0.01298701299 | P106: ANTIOQUIA - ALCALDIA MUNICIPIO DE DON MATIAS | Q106: TERRITORIAL | R106: TERRITORIAL | S106: 8.104 | U106: ANTIOQUIA - ALCALDIA MUNICIPIO DE GIRARDOTA | V106: TERRITORIAL | W106: TERRITORIAL | X106: 0 | Z106: ANTIOQUIA - E.S.E. HOSPITAL ATRATO MEDIO ANTIOQUEÑO - VIGIA DEL FUERTE | AA106: TERRITORIAL | AB106: TERRITORIAL | AC106: 0 | AE106: ANTIOQUIA - ALCALDIA MUNICIPIO DE GIRARDOTA | AF106: TERRITORIAL | AG106: TERRITORIAL | AH106: 0 | AJ106: ANTIOQUIA - ALCALDIA MUNICIPIO DE JARDIN | AK106: TERRITORIAL | AL106: TERRITORIAL | AM106: 27
F107: ANTIOQUIA - ALCALDIA MUNICIPIO DE JARDIN | G107: TERRITORIAL | H107: TERRITORIAL | I107: 31.5 | K107: ANTIOQUIA - ALCALDIA MUNICIPIO DE DON MATIAS | L107: =VLOOKUP($K107,BASEMDM!$A$1:$C$4444,3,FALSE) -> TERRITORIAL | M107: =VLOOKUP($K107,BASEMDM!$A$1:$C$4444,2,FALSE) -> TERRITORIAL | N107: 0 | P107: ANTIOQUIA - ALCALDIA MUNICIPIO DE EBEJICO | Q107: TERRITORIAL | R107: TERRITORIAL | S107: 6.074074074 | U107: ANTIOQUIA - ALCALDIA MUNICIPIO DE GOMEZ PLATA | V107: TERRITORIAL | W107: TERRITORIAL | X107: 44.6 | Z107: ANTIOQUIA - E.S.E. HOSPITAL CESAR URIBE PIEDRAHITA - CAUCASIA | AA107: TERRITORIAL | AB107: TERRITORIAL | AC107: 4.956989247 | AE107: ANTIOQUIA - ALCALDIA MUNICIPIO DE GOMEZ PLATA | AF107: TERRITORIAL | AG107: TERRITORIAL | AH107: 18.14285714 | AJ107: ANTIOQUIA - ALCALDIA MUNICIPIO DE JERICO | AK107: TERRITORIAL | AL107: TERRITORIAL | AM107: 16.66666667
F108: ANTIOQUIA - ALCALDIA MUNICIPIO DE JERICO | G108: TERRITORIAL | H108: TERRITORIAL | I108: 28 | K108: ANTIOQUIA - ALCALDIA MUNICIPIO DE EBEJICO | L108: =VLOOKUP($K108,BASEMDM!$A$1:$C$4444,3,FALSE) -> TERRITORIAL | M108: =VLOOKUP($K108,BASEMDM!$A$1:$C$4444,2,FALSE) -> TERRITORIAL | N108: 0 | P108: ANTIOQUIA - ALCALDIA MUNICIPIO DE EL BAGRE | Q108: TERRITORIAL | R108: TERRITORIAL | S108: 3.050314465 | U108: ANTIOQUIA - ALCALDIA MUNICIPIO DE GRANADA | V108: TERRITORIAL | W108: TERRITORIAL | X108: 14.5 | Z108: ANTIOQUIA - E.S.E. HOSPITAL DEL SUR GABRIEL JARAMILLO PIEDRAHITA - ITAGÜI | AA108: TERRITORIAL | AB108: TERRITORIAL | AC108: 0 | AE108: ANTIOQUIA - ALCALDIA MUNICIPIO DE GRANADA | AF108: TERRITORIAL | AG108: TERRITORIAL | AH108: 18.90909091 | AJ108: ANTIOQUIA - ALCALDIA MUNICIPIO DE LA CEJA | AK108: TERRITORIAL | AL108: TERRITORIAL | AM108: 23.21428571
F109: ANTIOQUIA - ALCALDIA MUNICIPIO DE LA ESTRELLA | G109: TERRITORIAL | H109: TERRITORIAL | I109: 19.33333333 | K109: ANTIOQUIA - ALCALDIA MUNICIPIO DE EL BAGRE | L109: =VLOOKUP($K109,BASEMDM!$A$1:$C$4444,3,FALSE) -> TERRITORIAL | M109: =VLOOKUP($K109,BASEMDM!$A$1:$C$4444,2,FALSE) -> TERRITORIAL | N109: 0.1901840491 | P109: ANTIOQUIA - ALCALDIA MUNICIPIO DE EL PEÑOL | Q109: TERRITORIAL | R109: TERRITORIAL | S109: 4.984615385 | U109: ANTIOQUIA - ALCALDIA MUNICIPIO DE GUADALUPE | V109: TERRITORIAL | W109: TERRITORIAL | X109: 20 | Z109: ANTIOQUIA - E.S.E. HOSPITAL EL CARMEN DE AMALFI | AA109: TERRITORIAL | AB109: TERRITORIAL | AC109: 0 | AE109: ANTIOQUIA - ALCALDIA MUNICIPIO DE GUADALUPE | AF109: TERRITORIAL | AG109: TERRITORIAL | AH109: 12.33333333 | AJ109: ANTIOQUIA - ALCALDIA MUNICIPIO DE LA ESTRELLA | AK109: TERRITORIAL | AL109: TERRITORIAL | AM109: 23.44
F110: ANTIOQUIA - ALCALDIA MUNICIPIO DE LA PINTADA | G110: TERRITORIAL | H110: TERRITORIAL | I110: 10.66666667 | K110: ANTIOQUIA - ALCALDIA MUNICIPIO DE EL PEÑOL | L110: =VLOOKUP($K110,BASEMDM!$A$1:$C$4444,3,FALSE) -> TERRITORIAL | M110: =VLOOKUP($K110,BASEMDM!$A$1:$C$4444,2,FALSE) -> TERRITORIAL | N110: 1.289940828 | P110: ANTIOQUIA - ALCALDIA MUNICIPIO DE EL RETIRO | Q110: TERRITORIAL | R110: TERRITORIAL | S110: 5.934782609 | U110: ANTIOQUIA - ALCALDIA MUNICIPIO DE GUARNE | V110: TERRITORIAL | W110: TERRITORIAL | X110: 40.2 | Z110: ANTIOQUIA - E.S.E. HOSPITAL EL SAGRADO CORAZON - BRICEÑO | AA110: TERRITORIAL | AB110: TERRITORIAL | AC110: 0 | AE110: ANTIOQUIA - ALCALDIA MUNICIPIO DE GUARNE | AF110: TERRITORIAL | AG110: TERRITORIAL | AH110: 23.61538462 | AJ110: ANTIOQUIA - ALCALDIA MUNICIPIO DE LA PINTADA | AK110: TERRITORIAL | AL110: TERRITORIAL | AM110: 0
F111: ANTIOQUIA - ALCALDIA MUNICIPIO DE LA UNION | G111: TERRITORIAL | H111: TERRITORIAL | I111: 15.6 | K111: ANTIOQUIA - ALCALDIA MUNICIPIO DE EL RETIRO | L111: =VLOOKUP($K111,BASEMDM!$A$1:$C$4444,3,FALSE) -> TERRITORIAL | M111: =VLOOKUP($K111,BASEMDM!$A$1:$C$4444,2,FALSE) -> TERRITORIAL | N111: 0.1231527094 | P111: ANTIOQUIA - ALCALDIA MUNICIPIO DE ENTRERRIOS | Q111: TERRITORIAL | R111: TERRITORIAL | S111: 5.342857143 | U111: ANTIOQUIA - ALCALDIA MUNICIPIO DE GUATAPE | V111: TERRITORIAL | W111: TERRITORIAL | X111: 0 | Z111: ANTIOQUIA - E.S.E. HOSPITAL FRANCISCO VALDERRAMA DE TURBO | AA111: TERRITORIAL | AB111: TERRITORIAL | AC111: 0 | AE111: ANTIOQUIA - ALCALDIA MUNICIPIO DE GUATAPE | AF111: TERRITORIAL | AG111: TERRITORIAL | AH111: 3.888888889 | AJ111: ANTIOQUIA - ALCALDIA MUNICIPIO DE LA UNION | AK111: TERRITORIAL | AL111: TERRITORIAL | AM111: 33.75
F112: ANTIOQUIA - ALCALDIA MUNICIPIO DE LIBORINA | G112: TERRITORIAL | H112: TERRITORIAL | I112: 43.66666667 | K112: ANTIOQUIA - ALCALDIA MUNICIPIO DE ENTRERRIOS | L112: =VLOOKUP($K112,BASEMDM!$A$1:$C$4444,3,FALSE) -> TERRITORIAL | M112: =VLOOKUP($K112,BASEMDM!$A$1:$C$4444,2,FALSE) -> TERRITORIAL | N112: 0.007874015748 | P112: ANTIOQUIA - ALCALDIA MUNICIPIO DE ENVIGADO | Q112: TERRITORIAL | R112: TERRITORIAL | S112: 6.698224852 | U112: ANTIOQUIA - ALCALDIA MUNICIPIO DE HELICONIA | V112: TERRITORIAL | W112: TERRITORIAL | X112: 0 | Z112: ANTIOQUIA - E.S.E. HOSPITAL GABRIEL PELAEZ MONTOYA - JARDIN | AA112: TERRITORIAL | AB112: TERRITORIAL | AC112: 0.09158415842 | AE112: ANTIOQUIA - ALCALDIA MUNICIPIO DE HELICONIA | AF112: TERRITORIAL | AG112: TERRITORIAL | AH112: 0 | AJ112: ANTIOQUIA - ALCALDIA MUNICIPIO DE LIBORINA | AK112: TERRITORIAL | AL112: TERRITORIAL | AM112: 20.33333333
F113: ANTIOQUIA - ALCALDIA MUNICIPIO DE MACEO | G113: TERRITORIAL | H113: TERRITORIAL | I113: 21 | K113: ANTIOQUIA - ALCALDIA MUNICIPIO DE ENVIGADO | L113: =VLOOKUP($K113,BASEMDM!$A$1:$C$4444,3,FALSE) -> TERRITORIAL | M113: =VLOOKUP($K113,BASEMDM!$A$1:$C$4444,2,FALSE) -> TERRITORIAL | N113: 2.235971223 | P113: ANTIOQUIA - ALCALDIA MUNICIPIO DE FREDONIA | Q113: TERRITORIAL | R113: TERRITORIAL | S113: 4.348484848 | U113: ANTIOQUIA - ALCALDIA MUNICIPIO DE HISPANIA | V113: TERRITORIAL | W113: TERRITORIAL | X113: 21.5 | Z113: ANTIOQUIA - E.S.E. HOSPITAL HORACIO MUÑOZ SUESCUN - SOPETRAN | AA113: TERRITORIAL | AB113: TERRITORIAL | AC113: 0 | AE113: ANTIOQUIA - ALCALDIA MUNICIPIO DE ITAGÜI | AF113: TERRITORIAL | AG113: TERRITORIAL | AH113: 25.6 | AJ113: ANTIOQUIA - ALCALDIA MUNICIPIO DE MACEO | AK113: TERRITORIAL | AL113: TERRITORIAL | AM113: 0
F114: ANTIOQUIA - ALCALDIA MUNICIPIO DE MARINILLA | G114: TERRITORIAL | H114: TERRITORIAL | I114: 45 | K114: ANTIOQUIA - ALCALDIA MUNICIPIO DE FREDONIA | L114: =VLOOKUP($K114,BASEMDM!$A$1:$C$4444,3,FALSE) -> TERRITORIAL | M114: =VLOOKUP($K114,BASEMDM!$A$1:$C$4444,2,FALSE) -> TERRITORIAL | N114: 0 | P114: ANTIOQUIA - ALCALDIA MUNICIPIO DE FRONTINO | Q114: TERRITORIAL | R114: TERRITORIAL | S114: 7.724489796 | U114: ANTIOQUIA - ALCALDIA MUNICIPIO DE ITAGÜI | V114: TERRITORIAL | W114: TERRITORIAL | X114: 34.70588235 | Z114: ANTIOQUIA - E.S.E. HOSPITAL IVAN RESTREPO GOMEZ - URRAO | AA114: TERRITORIAL | AB114: TERRITORIAL | AC114: 0 | AE114: ANTIOQUIA - ALCALDIA MUNICIPIO DE ITUANGO | AF114: TERRITORIAL | AG114: TERRITORIAL | AH114: 13.4 | AJ114: ANTIOQUIA - ALCALDIA MUNICIPIO DE MARINILLA | AK114: TERRITORIAL | AL114: TERRITORIAL | AM114: 29.88888889
F115: ANTIOQUIA - ALCALDIA MUNICIPIO DE MEDELLIN | G115: TERRITORIAL | H115: TERRITORIAL | I115: 47.74 | K115: ANTIOQUIA - ALCALDIA MUNICIPIO DE FRONTINO | L115: =VLOOKUP($K115,BASEMDM!$A$1:$C$4444,3,FALSE) -> TERRITORIAL | M115: =VLOOKUP($K115,BASEMDM!$A$1:$C$4444,2,FALSE) -> TERRITORIAL | N115: 3.045454545 | P115: ANTIOQUIA - ALCALDIA MUNICIPIO DE GIRALDO | Q115: TERRITORIAL | R115: TERRITORIAL | S115: 2.688888889 | U115: ANTIOQUIA - ALCALDIA MUNICIPIO DE ITUANGO | V115: TERRITORIAL | W115: TERRITORIAL | X115: 10.8 | Z115: ANTIOQUIA - E.S.E. HOSPITAL LA ESTRELLA | AA115: TERRITORIAL | AB115: TERRITORIAL | AC115: 0 | AE115: ANTIOQUIA - ALCALDIA MUNICIPIO DE JARDIN | AF115: TERRITORIAL | AG115: TERRITORIAL | AH115: 25.33333333 | AJ115: ANTIOQUIA - ALCALDIA MUNICIPIO DE MEDELLIN | AK115: TERRITORIAL | AL115: TERRITORIAL | AM115: 48.44329897
F116: ANTIOQUIA - ALCALDIA MUNICIPIO DE MONTEBELLO | G116: TERRITORIAL | H116: TERRITORIAL | I116: 17 | K116: ANTIOQUIA - ALCALDIA MUNICIPIO DE GIRALDO | L116: =VLOOKUP($K116,BASEMDM!$A$1:$C$4444,3,FALSE) -> TERRITORIAL | M116: =VLOOKUP($K116,BASEMDM!$A$1:$C$4444,2,FALSE) -> TERRITORIAL | N116: 0.3823529412 | P116: ANTIOQUIA - ALCALDIA MUNICIPIO DE GIRARDOTA | Q116: TERRITORIAL | R116: TERRITORIAL | S116: 3.837606838 | U116: ANTIOQUIA - ALCALDIA MUNICIPIO DE JARDIN | V116: TERRITORIAL | W116: TERRITORIAL | X116: 30.33333333 | Z116: ANTIOQUIA - E.S.E. HOSPITAL LA MARIA - MEDELLIN | AA116: TERRITORIAL | AB116: TERRITORIAL | AC116: 0.04240353698 | AE116: ANTIOQUIA - ALCALDIA MUNICIPIO DE JERICO | AF116: TERRITORIAL | AG116: TERRITORIAL | AH116: 16 | AJ116: ANTIOQUIA - ALCALDIA MUNICIPIO DE MURINDO | AK116: TERRITORIAL | AL116: TERRITORIAL | AM116: 0
F117: ANTIOQUIA - ALCALDIA MUNICIPIO DE MURINDO | G117: TERRITORIAL | H117: TERRITORIAL | I117: 0 | K117: ANTIOQUIA - ALCALDIA MUNICIPIO DE GIRARDOTA | L117: =VLOOKUP($K117,BASEMDM!$A$1:$C$4444,3,FALSE) -> TERRITORIAL | M117: =VLOOKUP($K117,BASEMDM!$A$1:$C$4444,2,FALSE) -> TERRITORIAL | N117: 0.3289962825 | P117: ANTIOQUIA - ALCALDIA MUNICIPIO DE GOMEZ PLATA | Q117: TERRITORIAL | R117: TERRITORIAL | S117: 4.677419355 | U117: ANTIOQUIA - ALCALDIA MUNICIPIO DE JERICO | V117: TERRITORIAL | W117: TERRITORIAL | X117: 43 | Z117: ANTIOQUIA - E.S.E. HOSPITAL LA MISERICORDIA - ANGELOPOLIS | AA117: TERRITORIAL | AB117: TERRITORIAL | AC117: 3.906344411 | AE117: ANTIOQUIA - ALCALDIA MUNICIPIO DE LA CEJA | AF117: TERRITORIAL | AG117: TERRITORIAL | AH117: 38.33333333 | AJ117: ANTIOQUIA - ALCALDIA MUNICIPIO DE MUTATA | AK117: TERRITORIAL | AL117: TERRITORIAL | AM117: 10
F118: ANTIOQUIA - ALCALDIA MUNICIPIO DE MUTATA | G118: TERRITORIAL | H118: TERRITORIAL | I118: 0 | K118: ANTIOQUIA - ALCALDIA MUNICIPIO DE GOMEZ PLATA | L118: =VLOOKUP($K118,BASEMDM!$A$1:$C$4444,3,FALSE) -> TERRITORIAL | M118: =VLOOKUP($K118,BASEMDM!$A$1:$C$4444,2,FALSE) -> TERRITORIAL | N118: 1.102362205 | P118: ANTIOQUIA - ALCALDIA MUNICIPIO DE GRANADA | Q118: TERRITORIAL | R118: TERRITORIAL | S118: 4.055555556 | U118: ANTIOQUIA - ALCALDIA MUNICIPIO DE LA CEJA | V118: TERRITORIAL | W118: TERRITORIAL | X118: 37.125 | Z118: ANTIOQUIA - E.S.E. HOSPITAL LA MISERICORDIA DE YALI | AA118: TERRITORIAL | AB118: TERRITORIAL | AC118: 0 | AE118: ANTIOQUIA - ALCALDIA MUNICIPIO DE LA ESTRELLA | AF118: TERRITORIAL | AG118: TERRITORIAL | AH118: 26 | AJ118: ANTIOQUIA - ALCALDIA MUNICIPIO DE NARIÑO | AK118: TERRITORIAL | AL118: TERRITORIAL | AM118: 10.125
F119: ANTIOQUIA - ALCALDIA MUNICIPIO DE NARIÑO | G119: TERRITORIAL | H119: TERRITORIAL | I119: 0 | K119: ANTIOQUIA - ALCALDIA MUNICIPIO DE GRANADA | L119: =VLOOKUP($K119,BASEMDM!$A$1:$C$4444,3,FALSE) -> TERRITORIAL | M119: =VLOOKUP($K119,BASEMDM!$A$1:$C$4444,2,FALSE) -> TERRITORIAL | N119: 0.1228070175 | P119: ANTIOQUIA - ALCALDIA MUNICIPIO DE GUADALUPE | Q119: TERRITORIAL | R119: TERRITORIAL | S119: 3.790322581 | U119: ANTIOQUIA - ALCALDIA MUNICIPIO DE LA ESTRELLA | V119: TERRITORIAL | W119: TERRITORIAL | X119: 46.25 | Z119: ANTIOQUIA - E.S.E. HOSPITAL LA SAGRADA FAMILIA - CAMPAMENTO | AA119: TERRITORIAL | AB119: TERRITORIAL | AC119: 0 | AE119: ANTIOQUIA - ALCALDIA MUNICIPIO DE LA PINTADA | AF119: TERRITORIAL | AG119: TERRITORIAL | AH119: 15.4 | AJ119: ANTIOQUIA - ALCALDIA MUNICIPIO DE NECHI | AK119: TERRITORIAL | AL119: TERRITORIAL | AM119: 0
F120: ANTIOQUIA - ALCALDIA MUNICIPIO DE NECHI | G120: TERRITORIAL | H120: TERRITORIAL | I120: 0 | K120: ANTIOQUIA - ALCALDIA MUNICIPIO DE GUADALUPE | L120: =VLOOKUP($K120,BASEMDM!$A$1:$C$4444,3,FALSE) -> TERRITORIAL | M120: =VLOOKUP($K120,BASEMDM!$A$1:$C$4444,2,FALSE) -> TERRITORIAL | N120: 0.6666666667 | P120: ANTIOQUIA - ALCALDIA MUNICIPIO DE GUARNE | Q120: TERRITORIAL | R120: TERRITORIAL | S120: 13.80147059 | U120: ANTIOQUIA - ALCALDIA MUNICIPIO DE LA PINTADA | V120: TERRITORIAL | W120: TERRITORIAL | X120: 18 | Z120: ANTIOQUIA - E.S.E. HOSPITAL MARCO FIDEL SUAREZ - BELLO | AA120: TERRITORIAL | AB120: TERRITORIAL | AC120: 0.02331943721 | AE120: ANTIOQUIA - ALCALDIA MUNICIPIO DE LA UNION | AF120: TERRITORIAL | AG120: TERRITORIAL | AH120: 25.25 | AJ120: ANTIOQUIA - ALCALDIA MUNICIPIO DE OLAYA | AK120: TERRITORIAL | AL120: TERRITORIAL | AM120: 23
F121: ANTIOQUIA - ALCALDIA MUNICIPIO DE NECOCLI | G121: TERRITORIAL | H121: TERRITORIAL | I121: 0 | K121: ANTIOQUIA - ALCALDIA MUNICIPIO DE GUARNE | L121: =VLOOKUP($K121,BASEMDM!$A$1:$C$4444,3,FALSE) -> TERRITORIAL | M121: =VLOOKUP($K121,BASEMDM!$A$1:$C$4444,2,FALSE) -> TERRITORIAL | N121: 2.343891403 | P121: ANTIOQUIA - ALCALDIA MUNICIPIO DE GUATAPE | Q121: TERRITORIAL | R121: TERRITORIAL | S121: 2.096774194 | U121: ANTIOQUIA - ALCALDIA MUNICIPIO DE LA UNION | V121: TERRITORIAL | W121: TERRITORIAL | X121: 25.2 | Z121: ANTIOQUIA - E.S.E. HOSPITAL MARIA AUXILIADORA - CHIGORODO | AA121: TERRITORIAL | AB121: TERRITORIAL | AC121: 0 | AE121: ANTIOQUIA - ALCALDIA MUNICIPIO DE LIBORINA | AF121: TERRITORIAL | AG121: TERRITORIAL | AH121: 29.5 | AJ121: ANTIOQUIA - ALCALDIA MUNICIPIO DE PEQUE | AK121: TERRITORIAL | AL121: TERRITORIAL | AM121: 25.23809524
F122: ANTIOQUIA - ALCALDIA MUNICIPIO DE OLAYA | G122: TERRITORIAL | H122: TERRITORIAL | I122: 22.2 | K122: ANTIOQUIA - ALCALDIA MUNICIPIO DE GUATAPE | L122: =VLOOKUP($K122,BASEMDM!$A$1:$C$4444,3,FALSE) -> TERRITORIAL | M122: =VLOOKUP($K122,BASEMDM!$A$1:$C$4444,2,FALSE) -> TERRITORIAL | N122: 0.3215686275 | P122: ANTIOQUIA - ALCALDIA MUNICIPIO DE HELICONIA | Q122: TERRITORIAL | R122: TERRITORIAL | S122: 4.873239437 | U122: ANTIOQUIA - ALCALDIA MUNICIPIO DE LIBORINA | V122: TERRITORIAL | W122: TERRITORIAL | X122: 18.28571429 | Z122: ANTIOQUIA - E.S.E. HOSPITAL MUNICIPAL SAN ROQUE | AA122: TERRITORIAL | AB122: TERRITORIAL | AC122: 0 | AE122: ANTIOQUIA - ALCALDIA MUNICIPIO DE MACEO | AF122: TERRITORIAL | AG122: TERRITORIAL | AH122: 12.875 | AJ122: ANTIOQUIA - ALCALDIA MUNICIPIO DE PUERTO BERRIO | AK122: TERRITORIAL | AL122: TERRITORIAL | AM122: 0
F123: ANTIOQUIA - ALCALDIA MUNICIPIO DE PEQUE | G123: TERRITORIAL | H123: TERRITORIAL | I123: 16 | K123: ANTIOQUIA - ALCALDIA MUNICIPIO DE HELICONIA | L123: =VLOOKUP($K123,BASEMDM!$A$1:$C$4444,3,FALSE) -> TERRITORIAL | M123: =VLOOKUP($K123,BASEMDM!$A$1:$C$4444,2,FALSE) -> TERRITORIAL | N123: 0.07738095238 | P123: ANTIOQUIA - ALCALDIA MUNICIPIO DE HISPANIA | Q123: TERRITORIAL | R123: TERRITORIAL | S123: 6.162162162 | U123: ANTIOQUIA - ALCALDIA MUNICIPIO DE MACEO | V123: TERRITORIAL | W123: TERRITORIAL | X123: 20.66666667 | Z123: ANTIOQUIA - E.S.E. HOSPITAL NUESTRA SEÑORA DE GUADALUPE - GUADALUPE | AA123: TERRITORIAL | AB123: TERRITORIAL | AC123: 0 | AE123: ANTIOQUIA - ALCALDIA MUNICIPIO DE MARINILLA | AF123: TERRITORIAL | AG123: TERRITORIAL | AH123: 31.8 | AJ123: ANTIOQUIA - ALCALDIA MUNICIPIO DE PUERTO TRIUNFO | AK123: TERRITORIAL | AL123: TERRITORIAL | AM123: 23.33333333
F124: ANTIOQUIA - ALCALDIA MUNICIPIO DE PUEBLO RICO | G124: TERRITORIAL | H124: TERRITORIAL | I124: 18 | K124: ANTIOQUIA - ALCALDIA MUNICIPIO DE HISPANIA | L124: =VLOOKUP($K124,BASEMDM!$A$1:$C$4444,3,FALSE) -> TERRITORIAL | M124: =VLOOKUP($K124,BASEMDM!$A$1:$C$4444,2,FALSE) -> TERRITORIAL | N124: 0.1666666667 | P124: ANTIOQUIA - ALCALDIA MUNICIPIO DE ITAGÜI | Q124: TERRITORIAL | R124: TERRITORIAL | S124: 15.60869565 | U124: ANTIOQUIA - ALCALDIA MUNICIPIO DE MARINILLA | V124: TERRITORIAL | W124: TERRITORIAL | X124: 33.2 | Z124: ANTIOQUIA - E.S.E. HOSPITAL NUESTRA SEÑORA DEL CARMEN - EL BAGRE | AA124: TERRITORIAL | AB124: TERRITORIAL | AC124: 40 | AE124: ANTIOQUIA - ALCALDIA MUNICIPIO DE MEDELLIN | AF124: TERRITORIAL | AG124: TERRITORIAL | AH124: 40.67836257 | AJ124: ANTIOQUIA - ALCALDIA MUNICIPIO DE REMEDIOS | AK124: TERRITORIAL | AL124: TERRITORIAL | AM124: 28.9
F125: ANTIOQUIA - ALCALDIA MUNICIPIO DE PUERTO BERRIO | G125: TERRITORIAL | H125: TERRITORIAL | I125: 0 | K125: ANTIOQUIA - ALCALDIA MUNICIPIO DE ITAGÜI | L125: =VLOOKUP($K125,BASEMDM!$A$1:$C$4444,3,FALSE) -> TERRITORIAL | M125: =VLOOKUP($K125,BASEMDM!$A$1:$C$4444,2,FALSE) -> TERRITORIAL | N125: 0.3071895425 | P125: ANTIOQUIA - ALCALDIA MUNICIPIO DE ITUANGO | Q125: TERRITORIAL | R125: TERRITORIAL | S125: 6.060240964 | U125: ANTIOQUIA - ALCALDIA MUNICIPIO DE MEDELLIN | V125: TERRITORIAL | W125: TERRITORIAL | X125: 65.65384615 | Z125: ANTIOQUIA - E.S.E. HOSPITAL NUESTRA SEÑORA DEL PERPETUO SOCORRO | AA125: TERRITORIAL | AB125: TERRITORIAL | AC125: 0.4536082474 | AE125: ANTIOQUIA - ALCALDIA MUNICIPIO DE MONTEBELLO | AF125: TERRITORIAL | AG125: TERRITORIAL | AH125: 14 | AJ125: ANTIOQUIA - ALCALDIA MUNICIPIO DE RIONEGRO | AK125: TERRITORIAL | AL125: TERRITORIAL | AM125: 0
F126: ANTIOQUIA - ALCALDIA MUNICIPIO DE PUERTO NARE | G126: TERRITORIAL | H126: TERRITORIAL | I126: 10 | K126: ANTIOQUIA - ALCALDIA MUNICIPIO DE ITUANGO | L126: =VLOOKUP($K126,BASEMDM!$A$1:$C$4444,3,FALSE) -> TERRITORIAL | M126: =VLOOKUP($K126,BASEMDM!$A$1:$C$4444,2,FALSE) -> TERRITORIAL | N126: 1.387096774 | P126: ANTIOQUIA - ALCALDIA MUNICIPIO DE JARDIN | Q126: TERRITORIAL | R126: TERRITORIAL | S126: 8.746835443 | U126: ANTIOQUIA - ALCALDIA MUNICIPIO DE MONTEBELLO | V126: TERRITORIAL | W126: TERRITORIAL | X126: 21 | Z126: ANTIOQUIA - E.S.E. HOSPITAL OCTAVIO OLIVARES - PUERTO NARE | AA126: TERRITORIAL | AB126: TERRITORIAL | AC126: 0.4523809524 | AE126: ANTIOQUIA - ALCALDIA MUNICIPIO DE MUTATA | AF126: TERRITORIAL | AG126: TERRITORIAL | AH126: 0 | AJ126: ANTIOQUIA - ALCALDIA MUNICIPIO DE SABANALARGA | AK126: TERRITORIAL | AL126: TERRITORIAL | AM126: 20
F127: ANTIOQUIA - ALCALDIA MUNICIPIO DE PUERTO TRIUNFO | G127: TERRITORIAL | H127: TERRITORIAL | I127: 20.6 | K127: ANTIOQUIA - ALCALDIA MUNICIPIO DE JARDIN | L127: =VLOOKUP($K127,BASEMDM!$A$1:$C$4444,3,FALSE) -> TERRITORIAL | M127: =VLOOKUP($K127,BASEMDM!$A$1:$C$4444,2,FALSE) -> TERRITORIAL | N127: 0.6631578947 | P127: ANTIOQUIA - ALCALDIA MUNICIPIO DE JERICO | Q127: TERRITORIAL | R127: TERRITORIAL | S127: 3.431034483 | U127: ANTIOQUIA - ALCALDIA MUNICIPIO DE MUTATA | V127: TERRITORIAL | W127: TERRITORIAL | X127: 0 | Z127: ANTIOQUIA - E.S.E. HOSPITAL OSCAR EMIRO VERGARA CRUZ - SAN PEDRO DE URABA | AA127: TERRITORIAL | AB127: TERRITORIAL | AC127: 0 | AE127: ANTIOQUIA - ALCALDIA MUNICIPIO DE NARIÑO | AF127: TERRITORIAL | AG127: TERRITORIAL | AH127: 14.36363636 | AJ127: ANTIOQUIA - ALCALDIA MUNICIPIO DE SABANETA | AK127: TERRITORIAL | AL127: TERRITORIAL | AM127: 29.375
F128: ANTIOQUIA - ALCALDIA MUNICIPIO DE REMEDIOS | G128: TERRITORIAL | H128: TERRITORIAL | I128: 25.5 | K128: ANTIOQUIA - ALCALDIA MUNICIPIO DE JERICO | L128: =VLOOKUP($K128,BASEMDM!$A$1:$C$4444,3,FALSE) -> TERRITORIAL | M128: =VLOOKUP($K128,BASEMDM!$A$1:$C$4444,2,FALSE) -> TERRITORIAL | N128: 0.1538461538 | P128: ANTIOQUIA - ALCALDIA MUNICIPIO DE LA CEJA | Q128: TERRITORIAL | R128: TERRITORIAL | S128: 8.889655172 | U128: ANTIOQUIA - ALCALDIA MUNICIPIO DE NARIÑO | V128: TERRITORIAL | W128: TERRITORIAL | X128: 0 | Z128: ANTIOQUIA - E.S.E. HOSPITAL PADRE CLEMENTE GIRALDO - GRANADA | AA128: TERRITORIAL | AB128: TERRITORIAL | AC128: 0 | AE128: ANTIOQUIA - ALCALDIA MUNICIPIO DE NECHI | AF128: TERRITORIAL | AG128: TERRITORIAL | AH128: 0 | AJ128: ANTIOQUIA - ALCALDIA MUNICIPIO DE SAN ANDRES DE CUERQUIA | AK128: TERRITORIAL | AL128: TERRITORIAL | AM128: 0
F129: ANTIOQUIA - ALCALDIA MUNICIPIO DE RIONEGRO | G129: TERRITORIAL | H129: TERRITORIAL | I129: 35.42105263 | K129: ANTIOQUIA - ALCALDIA MUNICIPIO DE LA CEJA | L129: =VLOOKUP($K129,BASEMDM!$A$1:$C$4444,3,FALSE) -> TERRITORIAL | M129: =VLOOKUP($K129,BASEMDM!$A$1:$C$4444,2,FALSE) -> TERRITORIAL | N129: 0.02941176471 | P129: ANTIOQUIA - ALCALDIA MUNICIPIO DE LA ESTRELLA | Q129: TERRITORIAL | R129: TERRITORIAL | S129: 7.714285714 | U129: ANTIOQUIA - ALCALDIA MUNICIPIO DE NECHI | V129: TERRITORIAL | W129: TERRITORIAL | X129: 0 | Z129: ANTIOQUIA - E.S.E. HOSPITAL PEDRO CLAVER AGUIRRE YEPES | AA129: TERRITORIAL | AB129: TERRITORIAL | AC129: 0 | AE129: ANTIOQUIA - ALCALDIA MUNICIPIO DE NECOCLI | AF129: TERRITORIAL | AG129: TERRITORIAL | AH129: 0 | AJ129: ANTIOQUIA - ALCALDIA MUNICIPIO DE SAN FRANCISCO | AK129: TERRITORIAL | AL129: TERRITORIAL | AM129: 26
F130: ANTIOQUIA - ALCALDIA MUNICIPIO DE SABANETA | G130: TERRITORIAL | H130: TERRITORIAL | I130: 26.4 | K130: ANTIOQUIA - ALCALDIA MUNICIPIO DE LA ESTRELLA | L130: =VLOOKUP($K130,BASEMDM!$A$1:$C$4444,3,FALSE) -> TERRITORIAL | M130: =VLOOKUP($K130,BASEMDM!$A$1:$C$4444,2,FALSE) -> TERRITORIAL | N130: 0.004362050164 | P130: ANTIOQUIA - ALCALDIA MUNICIPIO DE LA PINTADA | Q130: TERRITORIAL | R130: TERRITORIAL | S130: 5.862068966 | U130: ANTIOQUIA - ALCALDIA MUNICIPIO DE NECOCLI | V130: TERRITORIAL | W130: TERRITORIAL | X130: 0 | Z130: ANTIOQUIA - E.S.E. HOSPITAL PEDRO NEL CARDONA - ARBOLETES | AA130: TERRITORIAL | AB130: TERRITORIAL | AC130: 0 | AE130: ANTIOQUIA - ALCALDIA MUNICIPIO DE OLAYA | AF130: TERRITORIAL | AG130: TERRITORIAL | AH130: 28.05263158 | AJ130: ANTIOQUIA - ALCALDIA MUNICIPIO DE SAN JERONIMO | AK130: TERRITORIAL | AL130: TERRITORIAL | AM130: 18.85714286
F131: ANTIOQUIA - ALCALDIA MUNICIPIO DE SALGAR | G131: TERRITORIAL | H131: TERRITORIAL | I131: 41 | K131: ANTIOQUIA - ALCALDIA MUNICIPIO DE LA PINTADA | L131: =VLOOKUP($K131,BASEMDM!$A$1:$C$4444,3,FALSE) -> TERRITORIAL | M131: =VLOOKUP($K131,BASEMDM!$A$1:$C$4444,2,FALSE) -> TERRITORIAL | N131: 0 | P131: ANTIOQUIA - ALCALDIA MUNICIPIO DE LA UNION | Q131: TERRITORIAL | R131: TERRITORIAL | S131: 8.128205128 | U131: ANTIOQUIA - ALCALDIA MUNICIPIO DE OLAYA | V131: TERRITORIAL | W131: TERRITORIAL | X131: 40.83333333 | Z131: ANTIOQUIA - E.S.E. HOSPITAL SAN ANTONIO CISNEROS | AA131: TERRITORIAL | AB131: TERRITORIAL | AC131: 0 | AE131: ANTIOQUIA - ALCALDIA MUNICIPIO DE PEQUE | AF131: TERRITORIAL | AG131: TERRITORIAL | AH131: 13.375 | AJ131: ANTIOQUIA - ALCALDIA MUNICIPIO DE SAN JUAN DE URABA | AK131: TERRITORIAL | AL131: TERRITORIAL | AM131: 24
F132: ANTIOQUIA - ALCALDIA MUNICIPIO DE SAN ANDRES DE CUERQUIA | G132: TERRITORIAL | H132: TERRITORIAL | I132: 13.5 | K132: ANTIOQUIA - ALCALDIA MUNICIPIO DE LA UNION | L132: =VLOOKUP($K132,BASEMDM!$A$1:$C$4444,3,FALSE) -> TERRITORIAL | M132: =VLOOKUP($K132,BASEMDM!$A$1:$C$4444,2,FALSE) -> TERRITORIAL | N132: 0.05333333333 | P132: ANTIOQUIA - ALCALDIA MUNICIPIO DE LIBORINA | Q132: TERRITORIAL | R132: TERRITORIAL | S132: 3.056 | U132: ANTIOQUIA - ALCALDIA MUNICIPIO DE PEQUE | V132: TERRITORIAL | W132: TERRITORIAL | X132: 27.25 | Z132: ANTIOQUIA - E.S.E. HOSPITAL SAN CARLOS CAÑASGORDAS | AA132: TERRITORIAL | AB132: TERRITORIAL | AC132: 0 | AE132: ANTIOQUIA - ALCALDIA MUNICIPIO DE PUERTO BERRIO | AF132: TERRITORIAL | AG132: TERRITORIAL | AH132: 0 | AJ132: ANTIOQUIA - ALCALDIA MUNICIPIO DE SAN LUIS | AK132: TERRITORIAL | AL132: TERRITORIAL | AM132: 13.5
F133: ANTIOQUIA - ALCALDIA MUNICIPIO DE SAN CARLOS | G133: TERRITORIAL | H133: TERRITORIAL | I133: 27.66666667 | K133: ANTIOQUIA - ALCALDIA MUNICIPIO DE LIBORINA | L133: =VLOOKUP($K133,BASEMDM!$A$1:$C$4444,3,FALSE) -> TERRITORIAL | M133: =VLOOKUP($K133,BASEMDM!$A$1:$C$4444,2,FALSE) -> TERRITORIAL | N133: 0.005617977528 | P133: ANTIOQUIA - ALCALDIA MUNICIPIO DE MACEO | Q133: TERRITORIAL | R133: TERRITORIAL | S133: 5.361702128 | U133: ANTIOQUIA - ALCALDIA MUNICIPIO DE PUEBLO RICO | V133: TERRITORIAL | W133: TERRITORIAL | X133: 34 | Z133: ANTIOQUIA - E.S.E. HOSPITAL SAN FRANCISCO - PEQUE | AA133: TERRITORIAL | AB133: TERRITORIAL | AC133: 0 | AE133: ANTIOQUIA - ALCALDIA MUNICIPIO DE PUERTO NARE | AF133: TERRITORIAL | AG133: TERRITORIAL | AH133: 15.75 | AJ133: ANTIOQUIA - ALCALDIA MUNICIPIO DE SAN PEDRO | AK133: TERRITORIAL | AL133: TERRITORIAL | AM133: 22.33333333
F134: ANTIOQUIA - ALCALDIA MUNICIPIO DE SAN FRANCISCO | G134: TERRITORIAL | H134: TERRITORIAL | I134: 19.5 | K134: ANTIOQUIA - ALCALDIA MUNICIPIO DE MACEO | L134: =VLOOKUP($K134,BASEMDM!$A$1:$C$4444,3,FALSE) -> TERRITORIAL | M134: =VLOOKUP($K134,BASEMDM!$A$1:$C$4444,2,FALSE) -> TERRITORIAL | N134: 0.4 | P134: ANTIOQUIA - ALCALDIA MUNICIPIO DE MARINILLA | Q134: TERRITORIAL | R134: TERRITORIAL | S134: 6.661538462 | U134: ANTIOQUIA - ALCALDIA MUNICIPIO DE PUERTO BERRIO | V134: TERRITORIAL | W134: TERRITORIAL | X134: 0 | Z134: ANTIOQUIA - E.S.E. HOSPITAL SAN ISIDRO - GIRALDO | AA134: TERRITORIAL | AB134: TERRITORIAL | AC134: 0 | AE134: ANTIOQUIA - ALCALDIA MUNICIPIO DE PUERTO TRIUNFO | AF134: TERRITORIAL | AG134: TERRITORIAL | AH134: 22.61904762 | AJ134: ANTIOQUIA - ALCALDIA MUNICIPIO DE SAN PEDRO DE URABA | AK134: TERRITORIAL | AL134: TERRITORIAL | AM134: 13.4
F135: ANTIOQUIA - ALCALDIA MUNICIPIO DE SAN JERONIMO | G135: TERRITORIAL | H135: TERRITORIAL | I135: 19 | K135: ANTIOQUIA - ALCALDIA MUNICIPIO DE MARINILLA | L135: =VLOOKUP($K135,BASEMDM!$A$1:$C$4444,3,FALSE) -> TERRITORIAL | M135: =VLOOKUP($K135,BASEMDM!$A$1:$C$4444,2,FALSE) -> TERRITORIAL | N135: 4.547085202 | P135: ANTIOQUIA - ALCALDIA MUNICIPIO DE MEDELLIN | Q135: TERRITORIAL | R135: TERRITORIAL | S135: 19.99609375 | U135: ANTIOQUIA - ALCALDIA MUNICIPIO DE PUERTO NARE | V135: TERRITORIAL | W135: TERRITORIAL | X135: 22.75 | Z135: ANTIOQUIA - E.S.E. HOSPITAL SAN JOSE - SALGAR | AA135: TERRITORIAL | AB135: TERRITORIAL | AC135: 0.05882352941 | AE135: ANTIOQUIA - ALCALDIA MUNICIPIO DE REMEDIOS | AF135: TERRITORIAL | AG135: TERRITORIAL | AH135: 27.75 | AJ135: ANTIOQUIA - ALCALDIA MUNICIPIO DE SAN RAFAEL | AK135: TERRITORIAL | AL135: TERRITORIAL | AM135: 46.08333333
F136: ANTIOQUIA - ALCALDIA MUNICIPIO DE SAN JOSE LA MONTAÑA | G136: TERRITORIAL | H136: TERRITORIAL | I136: 50 | K136: ANTIOQUIA - ALCALDIA MUNICIPIO DE MEDELLIN | L136: =VLOOKUP($K136,BASEMDM!$A$1:$C$4444,3,FALSE) -> TERRITORIAL | M136: =VLOOKUP($K136,BASEMDM!$A$1:$C$4444,2,FALSE) -> TERRITORIAL | N136: 1.831270358 | P136: ANTIOQUIA - ALCALDIA MUNICIPIO DE MONTEBELLO | Q136: TERRITORIAL | R136: TERRITORIAL | S136: 2.233576642 | U136: ANTIOQUIA - ALCALDIA MUNICIPIO DE PUERTO TRIUNFO | V136: TERRITORIAL | W136: TERRITORIAL | X136: 24.16666667 | Z136: ANTIOQUIA - E.S.E. HOSPITAL SAN JUAN DE DIOS - CONCORDIA | AA136: TERRITORIAL | AB136: TERRITORIAL | AC136: 0 | AE136: ANTIOQUIA - ALCALDIA MUNICIPIO DE RIONEGRO | AF136: TERRITORIAL | AG136: TERRITORIAL | AH136: 24.29268293 | AJ136: ANTIOQUIA - ALCALDIA MUNICIPIO DE SAN ROQUE | AK136: TERRITORIAL | AL136: TERRITORIAL | AM136: 25
F137: ANTIOQUIA - ALCALDIA MUNICIPIO DE SAN LUIS | G137: TERRITORIAL | H137: TERRITORIAL | I137: 12 | K137: ANTIOQUIA - ALCALDIA MUNICIPIO DE MONTEBELLO | L137: =VLOOKUP($K137,BASEMDM!$A$1:$C$4444,3,FALSE) -> TERRITORIAL | M137: =VLOOKUP($K137,BASEMDM!$A$1:$C$4444,2,FALSE) -> TERRITORIAL | N137: 0 | P137: ANTIOQUIA - ALCALDIA MUNICIPIO DE MURINDO | Q137: TERRITORIAL | R137: TERRITORIAL | S137: 0 | U137: ANTIOQUIA - ALCALDIA MUNICIPIO DE REMEDIOS | V137: TERRITORIAL | W137: TERRITORIAL | X137: 44.46153846 | Z137: ANTIOQUIA - E.S.E. HOSPITAL SAN JUAN DE DIOS - SONSON | AA137: TERRITORIAL | AB137: TERRITORIAL | AC137: 0 | AE137: ANTIOQUIA - ALCALDIA MUNICIPIO DE SABANALARGA | AF137: TERRITORIAL | AG137: TERRITORIAL | AH137: 20.75 | AJ137: ANTIOQUIA - ALCALDIA MUNICIPIO DE SAN VICENTE | AK137: TERRITORIAL | AL137: TERRITORIAL | AM137: 26
F138: ANTIOQUIA - ALCALDIA MUNICIPIO DE SAN PEDRO | G138: TERRITORIAL | H138: TERRITORIAL | I138: 15.75 | K138: ANTIOQUIA - ALCALDIA MUNICIPIO DE MURINDO | L138: =VLOOKUP($K138,BASEMDM!$A$1:$C$4444,3,FALSE) -> TERRITORIAL | M138: =VLOOKUP($K138,BASEMDM!$A$1:$C$4444,2,FALSE) -> TERRITORIAL | N138: 0 | P138: ANTIOQUIA - ALCALDIA MUNICIPIO DE MUTATA | Q138: TERRITORIAL | R138: TERRITORIAL | S138: 3.275862069 | U138: ANTIOQUIA - ALCALDIA MUNICIPIO DE RIONEGRO | V138: TERRITORIAL | W138: TERRITORIAL | X138: 36.08823529 | Z138: ANTIOQUIA - E.S.E. HOSPITAL SAN JUAN DE DIOS DE EL PEÑOL | AA138: TERRITORIAL | AB138: TERRITORIAL | AC138: 0 | AE138: ANTIOQUIA - ALCALDIA MUNICIPIO DE SABANETA | AF138: TERRITORIAL | AG138: TERRITORIAL | AH138: 29.45454545 | AJ138: ANTIOQUIA - ALCALDIA MUNICIPIO DE SANTA BARBARA | AK138: TERRITORIAL | AL138: TERRITORIAL | AM138: 0
F139: ANTIOQUIA - ALCALDIA MUNICIPIO DE SAN PEDRO DE URABA | G139: TERRITORIAL | H139: TERRITORIAL | I139: 9 | K139: ANTIOQUIA - ALCALDIA MUNICIPIO DE MUTATA | L139: =VLOOKUP($K139,BASEMDM!$A$1:$C$4444,3,FALSE) -> TERRITORIAL | M139: =VLOOKUP($K139,BASEMDM!$A$1:$C$4444,2,FALSE) -> TERRITORIAL | N139: 0 | P139: ANTIOQUIA - ALCALDIA MUNICIPIO DE NARIÑO | Q139: TERRITORIAL | R139: TERRITORIAL | S139: 4.844827586 | U139: ANTIOQUIA - ALCALDIA MUNICIPIO DE SABANALARGA | V139: TERRITORIAL | W139: TERRITORIAL | X139: 31 | Z139: ANTIOQUIA - E.S.E. HOSPITAL SAN JUAN DE DIOS DE EL SANTUARIO | AA139: TERRITORIAL | AB139: TERRITORIAL | AC139: 0.1100478469 | AE139: ANTIOQUIA - ALCALDIA MUNICIPIO DE SALGAR | AF139: TERRITORIAL | AG139: TERRITORIAL | AH139: 12.75 | AJ139: ANTIOQUIA - ALCALDIA MUNICIPIO DE SANTA FE DE ANTIOQUIA | AK139: TERRITORIAL | AL139: TERRITORIAL | AM139: 36.57142857
F140: ANTIOQUIA - ALCALDIA MUNICIPIO DE SAN RAFAEL | G140: TERRITORIAL | H140: TERRITORIAL | I140: 35.2 | K140: ANTIOQUIA - ALCALDIA MUNICIPIO DE NARIÑO | L140: =VLOOKUP($K140,BASEMDM!$A$1:$C$4444,3,FALSE) -> TERRITORIAL | M140: =VLOOKUP($K140,BASEMDM!$A$1:$C$4444,2,FALSE) -> TERRITORIAL | N140: 0 | P140: ANTIOQUIA - ALCALDIA MUNICIPIO DE NECHI | Q140: TERRITORIAL | R140: TERRITORIAL | S140: 6.653846154 | U140: ANTIOQUIA - ALCALDIA MUNICIPIO DE SABANETA | V140: TERRITORIAL | W140: TERRITORIAL | X140: 12.4 | Z140: ANTIOQUIA - E.S.E. HOSPITAL SAN JUAN DE DIOS DE VALDIVIA | AA140: TERRITORIAL | AB140: TERRITORIAL | AC140: 0 | AE140: ANTIOQUIA - ALCALDIA MUNICIPIO DE SAN ANDRES DE CUERQUIA | AF140: TERRITORIAL | AG140: TERRITORIAL | AH140: 10.5 | AJ140: ANTIOQUIA - ALCALDIA MUNICIPIO DE SANTA ROSA DE OSOS | AK140: TERRITORIAL | AL140: TERRITORIAL | AM140: 34.75
F141: ANTIOQUIA - ALCALDIA MUNICIPIO DE SAN ROQUE | G141: TERRITORIAL | H141: TERRITORIAL | I141: 19 | K141: ANTIOQUIA - ALCALDIA MUNICIPIO DE NECHI | L141: =VLOOKUP($K141,BASEMDM!$A$1:$C$4444,3,FALSE) -> TERRITORIAL | M141: =VLOOKUP($K141,BASEMDM!$A$1:$C$4444,2,FALSE) -> TERRITORIAL | N141: 0 | P141: ANTIOQUIA - ALCALDIA MUNICIPIO DE NECOCLI | Q141: TERRITORIAL | R141: TERRITORIAL | S141: 1.5 | U141: ANTIOQUIA - ALCALDIA MUNICIPIO DE SALGAR | V141: TERRITORIAL | W141: TERRITORIAL | X141: 16.33333333 | Z141: ANTIOQUIA - E.S.E. HOSPITAL SAN JUAN DE DIOS DE YARUMAL | AA141: TERRITORIAL | AB141: TERRITORIAL | AC141: 0 | AE141: ANTIOQUIA - ALCALDIA MUNICIPIO DE SAN CARLOS | AF141: TERRITORIAL | AG141: TERRITORIAL | AH141: 35.36170213 | AJ141: ANTIOQUIA - ALCALDIA MUNICIPIO DE SANTO DOMINGO | AK141: TERRITORIAL | AL141: TERRITORIAL | AM141: 24.2
F142: ANTIOQUIA - ALCALDIA MUNICIPIO DE SAN VICENTE | G142: TERRITORIAL | H142: TERRITORIAL | I142: 5.142857143 | K142: ANTIOQUIA - ALCALDIA MUNICIPIO DE NECOCLI | L142: =VLOOKUP($K142,BASEMDM!$A$1:$C$4444,3,FALSE) -> TERRITORIAL | M142: =VLOOKUP($K142,BASEMDM!$A$1:$C$4444,2,FALSE) -> TERRITORIAL | N142: 0 | P142: ANTIOQUIA - ALCALDIA MUNICIPIO DE OLAYA | Q142: TERRITORIAL | R142: TERRITORIAL | S142: 4.794117647 | U142: ANTIOQUIA - ALCALDIA MUNICIPIO DE SAN ANDRES DE CUERQUIA | V142: TERRITORIAL | W142: TERRITORIAL | X142: 11.75 | Z142: ANTIOQUIA - E.S.E. HOSPITAL SAN LORENZO DE LIBORINA - MEDELLIN | AA142: TERRITORIAL | AB142: TERRITORIAL | AC142: 0.01869158879 | AE142: ANTIOQUIA - ALCALDIA MUNICIPIO DE SAN FRANCISCO | AF142: TERRITORIAL | AG142: TERRITORIAL | AH142: 34 | AJ142: ANTIOQUIA - ALCALDIA MUNICIPIO DE SANTUARIO | AK142: TERRITORIAL | AL142: TERRITORIAL | AM142: 36.4
F143: ANTIOQUIA - ALCALDIA MUNICIPIO DE SANTA BARBARA | G143: TERRITORIAL | H143: TERRITORIAL | I143: 10.8 | K143: ANTIOQUIA - ALCALDIA MUNICIPIO DE OLAYA | L143: =VLOOKUP($K143,BASEMDM!$A$1:$C$4444,3,FALSE) -> TERRITORIAL | M143: =VLOOKUP($K143,BASEMDM!$A$1:$C$4444,2,FALSE) -> TERRITORIAL | N143: 0.02083333333 | P143: ANTIOQUIA - ALCALDIA MUNICIPIO DE PEQUE | Q143: TERRITORIAL | R143: TERRITORIAL | S143: 7.590909091 | U143: ANTIOQUIA - ALCALDIA MUNICIPIO DE SAN CARLOS | V143: TERRITORIAL | W143: TERRITORIAL | X143: 42.125 | Z143: ANTIOQUIA - E.S.E. HOSPITAL SAN PIO X - CARACOLI | AA143: TERRITORIAL | AB143: TERRITORIAL | AC143: 2.666666667 | AE143: ANTIOQUIA - ALCALDIA MUNICIPIO DE SAN JERONIMO | AF143: TERRITORIAL | AG143: TERRITORIAL | AH143: 13.18181818 | AJ143: ANTIOQUIA - ALCALDIA MUNICIPIO DE SEGOVIA | AK143: TERRITORIAL | AL143: TERRITORIAL | AM143: 0
F144: ANTIOQUIA - ALCALDIA MUNICIPIO DE SANTA FE DE ANTIOQUIA | G144: TERRITORIAL | H144: TERRITORIAL | I144: 25.6 | K144: ANTIOQUIA - ALCALDIA MUNICIPIO DE PEQUE | L144: =VLOOKUP($K144,BASEMDM!$A$1:$C$4444,3,FALSE) -> TERRITORIAL | M144: =VLOOKUP($K144,BASEMDM!$A$1:$C$4444,2,FALSE) -> TERRITORIAL | N144: 0 | P144: ANTIOQUIA - ALCALDIA MUNICIPIO DE PUEBLO RICO | Q144: TERRITORIAL | R144: TERRITORIAL | S144: 5.725 | U144: ANTIOQUIA - ALCALDIA MUNICIPIO DE SAN FRANCISCO | V144: TERRITORIAL | W144: TERRITORIAL | X144: 35.2 | Z144: ANTIOQUIA - E.S.E. HOSPITAL SAN RAFAEL - CAROLINA DEL PRINCIPE | AA144: TERRITORIAL | AB144: TERRITORIAL | AC144: 0 | AE144: ANTIOQUIA - ALCALDIA MUNICIPIO DE SAN JOSE LA MONTAÑA | AF144: TERRITORIAL | AG144: TERRITORIAL | AH144: 19.81818182 | AJ144: ANTIOQUIA - ALCALDIA MUNICIPIO DE SONSON | AK144: TERRITORIAL | AL144: TERRITORIAL | AM144: 26.45454545
F145: ANTIOQUIA - ALCALDIA MUNICIPIO DE SANTA ROSA DE OSOS | G145: TERRITORIAL | H145: TERRITORIAL | I145: 17 | K145: ANTIOQUIA - ALCALDIA MUNICIPIO DE PUEBLO RICO | L145: =VLOOKUP($K145,BASEMDM!$A$1:$C$4444,3,FALSE) -> TERRITORIAL | M145: =VLOOKUP($K145,BASEMDM!$A$1:$C$4444,2,FALSE) -> TERRITORIAL | N145: 0.2361111111 | P145: ANTIOQUIA - ALCALDIA MUNICIPIO DE PUERTO BERRIO | Q145: TERRITORIAL | R145: TERRITORIAL | S145: 2.417475728 | U145: ANTIOQUIA - ALCALDIA MUNICIPIO DE SAN JERONIMO | V145: TERRITORIAL | W145: TERRITORIAL | X145: 25.6 | Z145: ANTIOQUIA - E.S.E. HOSPITAL SAN RAFAEL - JERICO | AA145: TERRITORIAL | AB145: TERRITORIAL | AC145: 4.363636364 | AE145: ANTIOQUIA - ALCALDIA MUNICIPIO DE SAN JUAN DE URABA | AF145: TERRITORIAL | AG145: TERRITORIAL | AH145: 25 | AJ145: ANTIOQUIA - ALCALDIA MUNICIPIO DE SOPETRAN | AK145: TERRITORIAL | AL145: TERRITORIAL | AM145: 19.75
F146: ANTIOQUIA - ALCALDIA MUNICIPIO DE SANTO DOMINGO | G146: TERRITORIAL | H146: TERRITORIAL | I146: 22 | K146: ANTIOQUIA - ALCALDIA MUNICIPIO DE PUERTO BERRIO | L146: =VLOOKUP($K146,BASEMDM!$A$1:$C$4444,3,FALSE) -> TERRITORIAL | M146: =VLOOKUP($K146,BASEMDM!$A$1:$C$4444,2,FALSE) -> TERRITORIAL | N146: 0 | P146: ANTIOQUIA - ALCALDIA MUNICIPIO DE PUERTO NARE | Q146: TERRITORIAL | R146: TERRITORIAL | S146: 4.446153846 | U146: ANTIOQUIA - ALCALDIA MUNICIPIO DE SAN JOSE LA MONTAÑA | V146: TERRITORIAL | W146: TERRITORIAL | X146: 50.33333333 | Z146: ANTIOQUIA - E.S.E. HOSPITAL SAN RAFAEL - SANTO DOMINGO | AA146: TERRITORIAL | AB146: TERRITORIAL | AC146: 0 | AE146: ANTIOQUIA - ALCALDIA MUNICIPIO DE SAN LUIS | AF146: TERRITORIAL | AG146: TERRITORIAL | AH146: 14.25 | AJ146: ANTIOQUIA - ALCALDIA MUNICIPIO DE TAMESIS | AK146: TERRITORIAL | AL146: TERRITORIAL | AM146: 15.5
F147: ANTIOQUIA - ALCALDIA MUNICIPIO DE SANTUARIO | G147: TERRITORIAL | H147: TERRITORIAL | I147: 29.6 | K147: ANTIOQUIA - ALCALDIA MUNICIPIO DE PUERTO NARE | L147: =VLOOKUP($K147,BASEMDM!$A$1:$C$4444,3,FALSE) -> TERRITORIAL | M147: =VLOOKUP($K147,BASEMDM!$A$1:$C$4444,2,FALSE) -> TERRITORIAL | N147: 0.2056074766 | P147: ANTIOQUIA - ALCALDIA MUNICIPIO DE PUERTO TRIUNFO | Q147: TERRITORIAL | R147: TERRITORIAL | S147: 5.261964736 | U147: ANTIOQUIA - ALCALDIA MUNICIPIO DE SAN LUIS | V147: TERRITORIAL | W147: TERRITORIAL | X147: 23.16666667 | Z147: ANTIOQUIA - E.S.E. HOSPITAL SAN RAFAEL DE ITAGUI | AA147: TERRITORIAL | AB147: TERRITORIAL | AC147: 0.01050135501 | AE147: ANTIOQUIA - ALCALDIA MUNICIPIO DE SAN PEDRO | AF147: TERRITORIAL | AG147: TERRITORIAL | AH147: 19 | AJ147: ANTIOQUIA - ALCALDIA MUNICIPIO DE TARAZA | AK147: TERRITORIAL | AL147: TERRITORIAL | AM147: 0
F148: ANTIOQUIA - ALCALDIA MUNICIPIO DE SEGOVIA | G148: TERRITORIAL | H148: TERRITORIAL | I148: 0 | K148: ANTIOQUIA - ALCALDIA MUNICIPIO DE PUERTO TRIUNFO | L148: =VLOOKUP($K148,BASEMDM!$A$1:$C$4444,3,FALSE) -> TERRITORIAL | M148: =VLOOKUP($K148,BASEMDM!$A$1:$C$4444,2,FALSE) -> TERRITORIAL | N148: 0.5203252033 | P148: ANTIOQUIA - ALCALDIA MUNICIPIO DE REMEDIOS | Q148: TERRITORIAL | R148: TERRITORIAL | S148: 3.618705036 | U148: ANTIOQUIA - ALCALDIA MUNICIPIO DE SAN PEDRO | V148: TERRITORIAL | W148: TERRITORIAL | X148: 51 | Z148: ANTIOQUIA - E.S.E. HOSPITAL SAN ROQUE - LA UNION | AA148: TERRITORIAL | AB148: TERRITORIAL | AC148: 1.979381443 | AE148: ANTIOQUIA - ALCALDIA MUNICIPIO DE SAN PEDRO DE URABA | AF148: TERRITORIAL | AG148: TERRITORIAL | AH148: 20.25 | AJ148: ANTIOQUIA - ALCALDIA MUNICIPIO DE TITIRIBI | AK148: TERRITORIAL | AL148: TERRITORIAL | AM148: 26
F149: ANTIOQUIA - ALCALDIA MUNICIPIO DE SONSON | G149: TERRITORIAL | H149: TERRITORIAL | I149: 47 | K149: ANTIOQUIA - ALCALDIA MUNICIPIO DE REMEDIOS | L149: =VLOOKUP($K149,BASEMDM!$A$1:$C$4444,3,FALSE) -> TERRITORIAL | M149: =VLOOKUP($K149,BASEMDM!$A$1:$C$4444,2,FALSE) -> TERRITORIAL | N149: 0 | P149: ANTIOQUIA - ALCALDIA MUNICIPIO DE RIONEGRO | Q149: TERRITORIAL | R149: TERRITORIAL | S149: 13.77966102 | U149: ANTIOQUIA - ALCALDIA MUNICIPIO DE SAN PEDRO DE URABA | V149: TERRITORIAL | W149: TERRITORIAL | X149: 29.45454545 | Z149: ANTIOQUIA - E.S.E. HOSPITAL SAN VICENTE DE PAUL - REMEDIOS | AA149: TERRITORIAL | AB149: TERRITORIAL | AC149: 0.512195122 | AE149: ANTIOQUIA - ALCALDIA MUNICIPIO DE SAN RAFAEL | AF149: TERRITORIAL | AG149: TERRITORIAL | AH149: 32 | AJ149: ANTIOQUIA - ALCALDIA MUNICIPIO DE TOLEDO | AK149: TERRITORIAL | AL149: TERRITORIAL | AM149: 0
F150: ANTIOQUIA - ALCALDIA MUNICIPIO DE SOPETRAN | G150: TERRITORIAL | H150: TERRITORIAL | I150: 19 | K150: ANTIOQUIA - ALCALDIA MUNICIPIO DE RIONEGRO | L150: =VLOOKUP($K150,BASEMDM!$A$1:$C$4444,3,FALSE) -> TERRITORIAL | M150: =VLOOKUP($K150,BASEMDM!$A$1:$C$4444,2,FALSE) -> TERRITORIAL | N150: 2.9375 | P150: ANTIOQUIA - ALCALDIA MUNICIPIO DE SABANALARGA | Q150: TERRITORIAL | R150: TERRITORIAL | S150: 6.105882353 | U150: ANTIOQUIA - ALCALDIA MUNICIPIO DE SAN RAFAEL | V150: TERRITORIAL | W150: TERRITORIAL | X150: 44.75 | Z150: ANTIOQUIA - E.S.E. HOSPITAL SAN VICENTE DE PAUL - SAN CARLOS | AA150: TERRITORIAL | AB150: TERRITORIAL | AC150: 0 | AE150: ANTIOQUIA - ALCALDIA MUNICIPIO DE SAN ROQUE | AF150: TERRITORIAL | AG150: TERRITORIAL | AH150: 17.5 | AJ150: ANTIOQUIA - ALCALDIA MUNICIPIO DE TURBO | AK150: TERRITORIAL | AL150: TERRITORIAL | AM150: 23.22222222
F151: ANTIOQUIA - ALCALDIA MUNICIPIO DE TAMESIS | G151: TERRITORIAL | H151: TERRITORIAL | I151: 0 | K151: ANTIOQUIA - ALCALDIA MUNICIPIO DE SABANALARGA | L151: =VLOOKUP($K151,BASEMDM!$A$1:$C$4444,3,FALSE) -> TERRITORIAL | M151: =VLOOKUP($K151,BASEMDM!$A$1:$C$4444,2,FALSE) -> TERRITORIAL | N151: 0.5821917808 | P151: ANTIOQUIA - ALCALDIA MUNICIPIO DE SABANETA | Q151: TERRITORIAL | R151: TERRITORIAL | S151: 10.75 | U151: ANTIOQUIA - ALCALDIA MUNICIPIO DE SAN ROQUE | V151: TERRITORIAL | W151: TERRITORIAL | X151: 25.66666667 | Z151: ANTIOQUIA - E.S.E. HOSPITAL SANTA ISABEL - GOMEZ PLATA | AA151: TERRITORIAL | AB151: TERRITORIAL | AC151: 0 | AE151: ANTIOQUIA - ALCALDIA MUNICIPIO DE SAN VICENTE | AF151: TERRITORIAL | AG151: TERRITORIAL | AH151: 73.66666667 | AJ151: ANTIOQUIA - ALCALDIA MUNICIPIO DE URRAO | AK151: TERRITORIAL | AL151: TERRITORIAL | AM151: 14
F152: ANTIOQUIA - ALCALDIA MUNICIPIO DE TARAZA | G152: TERRITORIAL | H152: TERRITORIAL | I152: 18 | K152: ANTIOQUIA - ALCALDIA MUNICIPIO DE SABANETA | L152: =VLOOKUP($K152,BASEMDM!$A$1:$C$4444,3,FALSE) -> TERRITORIAL | M152: =VLOOKUP($K152,BASEMDM!$A$1:$C$4444,2,FALSE) -> TERRITORIAL | N152: 0.09549945115 | P152: ANTIOQUIA - ALCALDIA MUNICIPIO DE SALGAR | Q152: TERRITORIAL | R152: TERRITORIAL | S152: 3.436363636 | U152: ANTIOQUIA - ALCALDIA MUNICIPIO DE SAN VICENTE | V152: TERRITORIAL | W152: TERRITORIAL | X152: 27 | Z152: ANTIOQUIA - E.S.E. HOSPITAL SANTA MARGARITA - COPACABANA | AA152: TERRITORIAL | AB152: TERRITORIAL | AC152: 0.006802721088 | AE152: ANTIOQUIA - ALCALDIA MUNICIPIO DE SANTA FE DE ANTIOQUIA | AF152: TERRITORIAL | AG152: TERRITORIAL | AH152: 21.35294118 | AJ152: ANTIOQUIA - ALCALDIA MUNICIPIO DE VALDIVIA | AK152: TERRITORIAL | AL152: TERRITORIAL | AM152: 31
F153: ANTIOQUIA - ALCALDIA MUNICIPIO DE TARSO | G153: TERRITORIAL | H153: TERRITORIAL | I153: 55 | K153: ANTIOQUIA - ALCALDIA MUNICIPIO DE SALGAR | L153: =VLOOKUP($K153,BASEMDM!$A$1:$C$4444,3,FALSE) -> TERRITORIAL | M153: =VLOOKUP($K153,BASEMDM!$A$1:$C$4444,2,FALSE) -> TERRITORIAL | N153: 0.192513369 | P153: ANTIOQUIA - ALCALDIA MUNICIPIO DE SAN ANDRES DE CUERQUIA | Q153: TERRITORIAL | R153: TERRITORIAL | S153: 28.76923077 | U153: ANTIOQUIA - ALCALDIA MUNICIPIO DE SANTA BARBARA | V153: TERRITORIAL | W153: TERRITORIAL | X153: 11 | Z153: ANTIOQUIA - E.S.E. HOSPITAL SANTAMARIA - SANTA BARBARA | AA153: TERRITORIAL | AB153: TERRITORIAL | AC153: 10 | AE153: ANTIOQUIA - ALCALDIA MUNICIPIO DE SANTA ROSA DE OSOS | AF153: TERRITORIAL | AG153: TERRITORIAL | AH153: 16 | AJ153: ANTIOQUIA - ALCALDIA MUNICIPIO DE VENECIA | AK153: TERRITORIAL | AL153: TERRITORIAL | AM153: 0
F154: ANTIOQUIA - ALCALDIA MUNICIPIO DE TITIRIBI | G154: TERRITORIAL | H154: TERRITORIAL | I154: 21.5 | K154: ANTIOQUIA - ALCALDIA MUNICIPIO DE SAN CARLOS | L154: =VLOOKUP($K154,BASEMDM!$A$1:$C$4444,3,FALSE) -> TERRITORIAL | M154: =VLOOKUP($K154,BASEMDM!$A$1:$C$4444,2,FALSE) -> TERRITORIAL | N154: 1.56640625 | P154: ANTIOQUIA - ALCALDIA MUNICIPIO DE SAN CARLOS | Q154: TERRITORIAL | R154: TERRITORIAL | S154: 6.844827586 | U154: ANTIOQUIA - ALCALDIA MUNICIPIO DE SANTA FE DE ANTIOQUIA | V154: TERRITORIAL | W154: TERRITORIAL | X154: 25.55555556 | Z154: ANTIOQUIA - E.S.E. METROSALUD - MEDELLIN | AA154: TERRITORIAL | AB154: TERRITORIAL | AC154: 0.04076863152 | AE154: ANTIOQUIA - ALCALDIA MUNICIPIO DE SANTO DOMINGO | AF154: TERRITORIAL | AG154: TERRITORIAL | AH154: 36.45454545 | AJ154: ANTIOQUIA - ALCALDIA MUNICIPIO DE VIGIA DEL FUERTE | AK154: TERRITORIAL | AL154: TERRITORIAL | AM154: 19.23529412
F155: ANTIOQUIA - ALCALDIA MUNICIPIO DE TURBO | G155: TERRITORIAL | H155: TERRITORIAL | I155: 11.09090909 | K155: ANTIOQUIA - ALCALDIA MUNICIPIO DE SAN FRANCISCO | L155: =VLOOKUP($K155,BASEMDM!$A$1:$C$4444,3,FALSE) -> TERRITORIAL | M155: =VLOOKUP($K155,BASEMDM!$A$1:$C$4444,2,FALSE) -> TERRITORIAL | N155: 0.2828685259 | P155: ANTIOQUIA - ALCALDIA MUNICIPIO DE SAN FRANCISCO | Q155: TERRITORIAL | R155: TERRITORIAL | S155: 4.605042017 | U155: ANTIOQUIA - ALCALDIA MUNICIPIO DE SANTA ROSA DE OSOS | V155: TERRITORIAL | W155: TERRITORIAL | X155: 21.8 | Z155: ANTIOQUIA - E.S.E. SANTA GERTRUDIS - ENVIGADO | AA155: TERRITORIAL | AB155: TERRITORIAL | AC155: 0.6470588235 | AE155: ANTIOQUIA - ALCALDIA MUNICIPIO DE SANTUARIO | AF155: TERRITORIAL | AG155: TERRITORIAL | AH155: 30.5 | AJ155: ANTIOQUIA - ALCALDIA MUNICIPIO DE YALI | AK155: TERRITORIAL | AL155: TERRITORIAL | AM155: 0
F156: ANTIOQUIA - ALCALDIA MUNICIPIO DE URAMITA | G156: TERRITORIAL | H156: TERRITORIAL | I156: 0 | K156: ANTIOQUIA - ALCALDIA MUNICIPIO DE SAN JERONIMO | L156: =VLOOKUP($K156,BASEMDM!$A$1:$C$4444,3,FALSE) -> TERRITORIAL | M156: =VLOOKUP($K156,BASEMDM!$A$1:$C$4444,2,FALSE) -> TERRITORIAL | N156: 0 | P156: ANTIOQUIA - ALCALDIA MUNICIPIO DE SAN JERONIMO | Q156: TERRITORIAL | R156: TERRITORIAL | S156: 6.653631285 | U156: ANTIOQUIA - ALCALDIA MUNICIPIO DE SANTO DOMINGO | V156: TERRITORIAL | W156: TERRITORIAL | X156: 47.5 | Z156: ANTIOQUIA - E.S.P. EMPRESA DE SERVICIOS PUBLICOS DOMICILIARIOS DEL MUNICIPIO DE PEQUE | AA156: TERRITORIAL | AB156: TERRITORIAL | AC156: 4.5 | AE156: ANTIOQUIA - ALCALDIA MUNICIPIO DE SEGOVIA | AF156: TERRITORIAL | AG156: TERRITORIAL | AH156: 11 | AJ156: ANTIOQUIA - ALCALDIA MUNICIPIO DE YARUMAL | AK156: TERRITORIAL | AL156: TERRITORIAL | AM156: 30.54545455
F157: ANTIOQUIA - ALCALDIA MUNICIPIO DE URRAO | G157: TERRITORIAL | H157: TERRITORIAL | I157: 29.66666667 | K157: ANTIOQUIA - ALCALDIA MUNICIPIO DE SAN JOSE LA MONTAÑA | L157: =VLOOKUP($K157,BASEMDM!$A$1:$C$4444,3,FALSE) -> TERRITORIAL | M157: =VLOOKUP($K157,BASEMDM!$A$1:$C$4444,2,FALSE) -> TERRITORIAL | N157: 0 | P157: ANTIOQUIA - ALCALDIA MUNICIPIO DE SAN JOSE LA MONTAÑA | Q157: TERRITORIAL | R157: TERRITORIAL | S157: 5.962962963 | U157: ANTIOQUIA - ALCALDIA MUNICIPIO DE SANTUARIO | V157: TERRITORIAL | W157: TERRITORIAL | X157: 27.8 | Z157: ANTIOQUIA - EMPRESA AGUAS DE RIONEGRO S.A. E.S.P. | AA157: TERRITORIAL | AB157: TERRITORIAL | AC157: 0 | AE157: ANTIOQUIA - ALCALDIA MUNICIPIO DE SONSON | AF157: TERRITORIAL | AG157: TERRITORIAL | AH157: 25.33333333 | AJ157: ANTIOQUIA - ALCALDIA MUNICIPIO DE YOLOMBO | AK157: TERRITORIAL | AL157: TERRITORIAL | AM157: 0
F158: ANTIOQUIA - ALCALDIA MUNICIPIO DE VALPARAISO | G158: TERRITORIAL | H158: TERRITORIAL | I158: 42 | K158: ANTIOQUIA - ALCALDIA MUNICIPIO DE SAN JUAN DE URABA | L158: =VLOOKUP($K158,BASEMDM!$A$1:$C$4444,3,FALSE) -> TERRITORIAL | M158: =VLOOKUP($K158,BASEMDM!$A$1:$C$4444,2,FALSE) -> TERRITORIAL | N158: 0.2302631579 | P158: ANTIOQUIA - ALCALDIA MUNICIPIO DE SAN JUAN DE URABA | Q158: TERRITORIAL | R158: TERRITORIAL | S158: 3.235294118 | U158: ANTIOQUIA - ALCALDIA MUNICIPIO DE SEGOVIA | V158: TERRITORIAL | W158: TERRITORIAL | X158: 0 | Z158: ANTIOQUIA - EMPRESA DE ASEO RETIRAR S.A. - RETIRO | AA158: TERRITORIAL | AB158: TERRITORIAL | AC158: 0.7368421053 | AE158: ANTIOQUIA - ALCALDIA MUNICIPIO DE SOPETRAN | AF158: TERRITORIAL | AG158: TERRITORIAL | AH158: 11.63157895 | AJ158: ANTIOQUIA - ALCALDIA MUNICIPIO DE YONDO | AK158: TERRITORIAL | AL158: TERRITORIAL | AM158: 18.16666667
F159: ANTIOQUIA - ALCALDIA MUNICIPIO DE VEGACHI | G159: TERRITORIAL | H159: TERRITORIAL | I159: 6.2 | K159: ANTIOQUIA - ALCALDIA MUNICIPIO DE SAN LUIS | L159: =VLOOKUP($K159,BASEMDM!$A$1:$C$4444,3,FALSE) -> TERRITORIAL | M159: =VLOOKUP($K159,BASEMDM!$A$1:$C$4444,2,FALSE) -> TERRITORIAL | N159: 0.04324324324 | P159: ANTIOQUIA - ALCALDIA MUNICIPIO DE SAN LUIS | Q159: TERRITORIAL | R159: TERRITORIAL | S159: 6.170454545 | U159: ANTIOQUIA - ALCALDIA MUNICIPIO DE SONSON | V159: TERRITORIAL | W159: TERRITORIAL | X159: 46 | Z159: ANTIOQUIA - EMPRESA DE DESARROLLO URBANO DE MEDELLIN EDU - MEDELLIN | AA159: TERRITORIAL | AB159: TERRITORIAL | AC159: 3.171497585 | AE159: ANTIOQUIA - ALCALDIA MUNICIPIO DE TAMESIS | AF159: TERRITORIAL | AG159: TERRITORIAL | AH159: 29 | AJ159: ANTIOQUIA - ALCALDIA MUNICIPIO DE ZARAGOZA | AK159: TERRITORIAL | AL159: TERRITORIAL | AM159: 30
F160: ANTIOQUIA - ALCALDIA MUNICIPIO DE VENECIA | G160: TERRITORIAL | H160: TERRITORIAL | I160: 0 | K160: ANTIOQUIA - ALCALDIA MUNICIPIO DE SAN PEDRO | L160: =VLOOKUP($K160,BASEMDM!$A$1:$C$4444,3,FALSE) -> TERRITORIAL | M160: =VLOOKUP($K160,BASEMDM!$A$1:$C$4444,2,FALSE) -> TERRITORIAL | N160: 0 | P160: ANTIOQUIA - ALCALDIA MUNICIPIO DE SAN PEDRO | Q160: TERRITORIAL | R160: TERRITORIAL | S160: 6.526315789 | U160: ANTIOQUIA - ALCALDIA MUNICIPIO DE SOPETRAN | V160: TERRITORIAL | W160: TERRITORIAL | X160: 23.42857143 | Z160: ANTIOQUIA - EMPRESA DE SERVICIOS PUBLICOS DE COCORNA E.S.P. | AA160: TERRITORIAL | AB160: TERRITORIAL | AC160: 0 | AE160: ANTIOQUIA - ALCALDIA MUNICIPIO DE TARAZA | AF160: TERRITORIAL | AG160: TERRITORIAL | AH160: 19.66666667 | AJ160: ANTIOQUIA - AREA METROPOLITANA DEL VALLE DE ABURRA - MEDELLIN | AK160: TERRITORIAL | AL160: TERRITORIAL | AM160: 36
F161: ANTIOQUIA - ALCALDIA MUNICIPIO DE VIGIA DEL FUERTE | G161: TERRITORIAL | H161: TERRITORIAL | I161: 29.16666667 | K161: ANTIOQUIA - ALCALDIA MUNICIPIO DE SAN PEDRO DE URABA | L161: =VLOOKUP($K161,BASEMDM!$A$1:$C$4444,3,FALSE) -> TERRITORIAL | M161: =VLOOKUP($K161,BASEMDM!$A$1:$C$4444,2,FALSE) -> TERRITORIAL | N161: 0 | P161: ANTIOQUIA - ALCALDIA MUNICIPIO DE SAN PEDRO DE URABA | Q161: TERRITORIAL | R161: TERRITORIAL | S161: 4.448275862 | U161: ANTIOQUIA - ALCALDIA MUNICIPIO DE TAMESIS | V161: TERRITORIAL | W161: TERRITORIAL | X161: 52.28571429 | Z161: ANTIOQUIA - EMPRESA DE SERVICIOS PUBLICOS DE GRANADA E.S.P.G. | AA161: TERRITORIAL | AB161: TERRITORIAL | AC161: 1.672727273 | AE161: ANTIOQUIA - ALCALDIA MUNICIPIO DE TARSO | AF161: TERRITORIAL | AG161: TERRITORIAL | AH161: 24.1 | AJ161: ANTIOQUIA - ASOCIACION CANAL LOCAL DE TELEVISION DE MEDELLIN - TELEMEDELLIN - | AK161: TERRITORIAL | AL161: TERRITORIAL | AM161: 13.66666667
F162: ANTIOQUIA - ALCALDIA MUNICIPIO DE YALI | G162: TERRITORIAL | H162: TERRITORIAL | I162: 29 | K162: ANTIOQUIA - ALCALDIA MUNICIPIO DE SAN RAFAEL | L162: =VLOOKUP($K162,BASEMDM!$A$1:$C$4444,3,FALSE) -> TERRITORIAL | M162: =VLOOKUP($K162,BASEMDM!$A$1:$C$4444,2,FALSE) -> TERRITORIAL | N162: 1.780120482 | P162: ANTIOQUIA - ALCALDIA MUNICIPIO DE SAN RAFAEL | Q162: TERRITORIAL | R162: TERRITORIAL | S162: 5.092783505 | U162: ANTIOQUIA - ALCALDIA MUNICIPIO DE TARAZA | V162: TERRITORIAL | W162: TERRITORIAL | X162: 33.75 | Z162: ANTIOQUIA - EMPRESA DE SERVICIOS PUBLICOS DE SAN JOSE DE LA MARINILLA E.S.P. | AA162: TERRITORIAL | AB162: TERRITORIAL | AC162: 0 | AE162: ANTIOQUIA - ALCALDIA MUNICIPIO DE TITIRIBI | AF162: TERRITORIAL | AG162: TERRITORIAL | AH162: 17 | AJ162: ANTIOQUIA - BIBLIOTECA PUBLICA PILOTO DE MEDELLIN PARA AMERICA LATINA - MEDELLIN | AK162: TERRITORIAL | AL162: TERRITORIAL | AM162: 33.35294118
F163: ANTIOQUIA - ALCALDIA MUNICIPIO DE YARUMAL | G163: TERRITORIAL | H163: TERRITORIAL | I163: 21.33333333 | K163: ANTIOQUIA - ALCALDIA MUNICIPIO DE SAN ROQUE | L163: =VLOOKUP($K163,BASEMDM!$A$1:$C$4444,3,FALSE) -> TERRITORIAL | M163: =VLOOKUP($K163,BASEMDM!$A$1:$C$4444,2,FALSE) -> TERRITORIAL | N163: 0 | P163: ANTIOQUIA - ALCALDIA MUNICIPIO DE SAN ROQUE | Q163: TERRITORIAL | R163: TERRITORIAL | S163: 3.745614035 | U163: ANTIOQUIA - ALCALDIA MUNICIPIO DE TARSO | V163: TERRITORIAL | W163: TERRITORIAL | X163: 35 | Z163: ANTIOQUIA - EMPRESA DE SERVICIOS PUBLICOS DOMICILIARIOS AGUAS DE MACEO S.A.S. E.S.P. MACEO | AA163: TERRITORIAL | AB163: TERRITORIAL | AC163: 0 | AE163: ANTIOQUIA - ALCALDIA MUNICIPIO DE TOLEDO | AF163: TERRITORIAL | AG163: TERRITORIAL | AH163: 0 | AJ163: ANTIOQUIA - CONCEJO MUNICIPIO DE MEDELLIN | AK163: TERRITORIAL | AL163: TERRITORIAL | AM163: 57
F164: ANTIOQUIA - ALCALDIA MUNICIPIO DE YOLOMBO | G164: TERRITORIAL | H164: TERRITORIAL | I164: 0 | K164: ANTIOQUIA - ALCALDIA MUNICIPIO DE SAN VICENTE | L164: =VLOOKUP($K164,BASEMDM!$A$1:$C$4444,3,FALSE) -> TERRITORIAL | M164: =VLOOKUP($K164,BASEMDM!$A$1:$C$4444,2,FALSE) -> TERRITORIAL | N164: 0.1897810219 | P164: ANTIOQUIA - ALCALDIA MUNICIPIO DE SAN VICENTE | Q164: TERRITORIAL | R164: TERRITORIAL | S164: 4.505263158 | U164: ANTIOQUIA - ALCALDIA MUNICIPIO DE TITIRIBI | V164: TERRITORIAL | W164: TERRITORIAL | X164: 21.71428571 | Z164: ANTIOQUIA - EMPRESA DE SERVICIOS PUBLICOS DOMICILIARIOS DE ACUEDUCTO, ALCANTARILLADO Y ASEO DE YONDO E.S.P. | AA164: TERRITORIAL | AB164: TERRITORIAL | AC164: 0.2146341463 | AE164: ANTIOQUIA - ALCALDIA MUNICIPIO DE TURBO | AF164: TERRITORIAL | AG164: TERRITORIAL | AH164: 15.82758621 | AJ164: ANTIOQUIA - CONTRALORIA GENERAL DE ANTIOQUIA | AK164: TERRITORIAL | AL164: TERRITORIAL | AM164: 26
F165: ANTIOQUIA - ALCALDIA MUNICIPIO DE YONDO | G165: TERRITORIAL | H165: TERRITORIAL | I165: 12.72222222 | K165: ANTIOQUIA - ALCALDIA MUNICIPIO DE SANTA BARBARA | L165: =VLOOKUP($K165,BASEMDM!$A$1:$C$4444,3,FALSE) -> TERRITORIAL | M165: =VLOOKUP($K165,BASEMDM!$A$1:$C$4444,2,FALSE) -> TERRITORIAL | N165: 0 | P165: ANTIOQUIA - ALCALDIA MUNICIPIO DE SANTA BARBARA | Q165: TERRITORIAL | R165: TERRITORIAL | S165: 5.5 | U165: ANTIOQUIA - ALCALDIA MUNICIPIO DE TURBO | V165: TERRITORIAL | W165: TERRITORIAL | X165: 17.4 | Z165: ANTIOQUIA - EMPRESA DE SERVICIOS PUBLICOS DOMICILIARIOS DE ACUEDUCTO, ALCANTARILLADO Y ASEO S.A E.S.P - SANTO DOMINGO | AA165: TERRITORIAL | AB165: TERRITORIAL | AC165: 0 | AE165: ANTIOQUIA - ALCALDIA MUNICIPIO DE URAMITA | AF165: TERRITORIAL | AG165: TERRITORIAL | AH165: 0 | AJ165: ANTIOQUIA - CONTRALORIA GENERAL DE MEDELLIN | AK165: TERRITORIAL | AL165: TERRITORIAL | AM165: 32.85714286
F166: ANTIOQUIA - ALCALDIA MUNICIPIO DE ZARAGOZA | G166: TERRITORIAL | H166: TERRITORIAL | I166: 23.4 | K166: ANTIOQUIA - ALCALDIA MUNICIPIO DE SANTA FE DE ANTIOQUIA | L166: =VLOOKUP($K166,BASEMDM!$A$1:$C$4444,3,FALSE) -> TERRITORIAL | M166: =VLOOKUP($K166,BASEMDM!$A$1:$C$4444,2,FALSE) -> TERRITORIAL | N166: 1.053872054 | P166: ANTIOQUIA - ALCALDIA MUNICIPIO DE SANTA FE DE ANTIOQUIA | Q166: TERRITORIAL | R166: TERRITORIAL | S166: 5.447674419 | U166: ANTIOQUIA - ALCALDIA MUNICIPIO DE URAMITA | V166: TERRITORIAL | W166: TERRITORIAL | X166: 0 | Z166: ANTIOQUIA - EMPRESA DE SERVICIOS PUBLICOS DOMICILIARIOS DE CARACOLI S.A. E.S.P. - CARACOLI | AA166: TERRITORIAL | AB166: TERRITORIAL | AC166: 0 | AE166: ANTIOQUIA - ALCALDIA MUNICIPIO DE URRAO | AF166: TERRITORIAL | AG166: TERRITORIAL | AH166: 14.09090909 | AJ166: ANTIOQUIA - CORPORACION PARA EL FOMENTO DE LA EDUCACION SUPERIOR - MEDELLIN | AK166: TERRITORIAL | AL166: TERRITORIAL | AM166: 33.8
F167: ANTIOQUIA - AREA METROPOLITANA DEL VALLE DE ABURRA - MEDELLIN | G167: TERRITORIAL | H167: TERRITORIAL | I167: 16.8 | K167: ANTIOQUIA - ALCALDIA MUNICIPIO DE SANTA ROSA DE OSOS | L167: =VLOOKUP($K167,BASEMDM!$A$1:$C$4444,3,FALSE) -> TERRITORIAL | M167: =VLOOKUP($K167,BASEMDM!$A$1:$C$4444,2,FALSE) -> TERRITORIAL | N167: 0 | P167: ANTIOQUIA - ALCALDIA MUNICIPIO DE SANTA ROSA DE OSOS | Q167: TERRITORIAL | R167: TERRITORIAL | S167: 5.077922078 | U167: ANTIOQUIA - ALCALDIA MUNICIPIO DE URRAO | V167: TERRITORIAL | W167: TERRITORIAL | X167: 16.25 | Z167: ANTIOQUIA - EMPRESA DE SERVICIOS PUBLICOS DOMICILIARIOS DE CISNEROS S.A E.S.P | AA167: TERRITORIAL | AB167: TERRITORIAL | AC167: 0 | AE167: ANTIOQUIA - ALCALDIA MUNICIPIO DE VALDIVIA | AF167: TERRITORIAL | AG167: TERRITORIAL | AH167: 29.57142857 | AJ167: ANTIOQUIA - E.S.E. HOSPITAL CESAR URIBE PIEDRAHITA - CAUCASIA | AK167: TERRITORIAL | AL167: TERRITORIAL | AM167: 13.5
F168: ANTIOQUIA - ASOCIACION CANAL LOCAL DE TELEVISION DE MEDELLIN - TELEMEDELLIN - | G168: TERRITORIAL | H168: TERRITORIAL | I168: 0 | K168: ANTIOQUIA - ALCALDIA MUNICIPIO DE SANTO DOMINGO | L168: =VLOOKUP($K168,BASEMDM!$A$1:$C$4444,3,FALSE) -> TERRITORIAL | M168: =VLOOKUP($K168,BASEMDM!$A$1:$C$4444,2,FALSE) -> TERRITORIAL | N168: 0.01342281879 | P168: ANTIOQUIA - ALCALDIA MUNICIPIO DE SANTO DOMINGO | Q168: TERRITORIAL | R168: TERRITORIAL | S168: 6.729166667 | U168: ANTIOQUIA - ALCALDIA MUNICIPIO DE VALDIVIA | V168: TERRITORIAL | W168: TERRITORIAL | X168: 33 | Z168: ANTIOQUIA - EMPRESA DE SERVICIOS PUBLICOS DOMICILIARIOS DEL CARMEN DE VIBORAL | AA168: TERRITORIAL | AB168: TERRITORIAL | AC168: 0 | AE168: ANTIOQUIA - ALCALDIA MUNICIPIO DE VALPARAISO | AF168: TERRITORIAL | AG168: TERRITORIAL | AH168: 18.75 | AJ168: ANTIOQUIA - E.S.E. HOSPITAL SAN RAFAEL - CAROLINA DEL PRINCIPE | AK168: TERRITORIAL | AL168: TERRITORIAL | AM168: 0
F169: ANTIOQUIA - ASOCIACION DE MUNICIPIOS DEL NORDESTE Y MAGDALENA MEDIO ANTIOQUEÑO ZONA NUS ASOMUNUS - SAN ROQUE | G169: TERRITORIAL | H169: TERRITORIAL | I169: 33 | K169: ANTIOQUIA - ALCALDIA MUNICIPIO DE SANTUARIO | L169: =VLOOKUP($K169,BASEMDM!$A$1:$C$4444,3,FALSE) -> TERRITORIAL | M169: =VLOOKUP($K169,BASEMDM!$A$1:$C$4444,2,FALSE) -> TERRITORIAL | N169: 0.09638554217 | P169: ANTIOQUIA - ALCALDIA MUNICIPIO DE SANTUARIO | Q169: TERRITORIAL | R169: TERRITORIAL | S169: 14.83950617 | U169: ANTIOQUIA - ALCALDIA MUNICIPIO DE VALPARAISO | V169: TERRITORIAL | W169: TERRITORIAL | X169: 18 | Z169: ANTIOQUIA - EMPRESA DE SERVICIOS PUBLICOS DOMICILIARIOS EMPUGI S.A E.S.P. - GIRALDO | AA169: TERRITORIAL | AB169: TERRITORIAL | AC169: 1.785714286 | AE169: ANTIOQUIA - ALCALDIA MUNICIPIO DE VEGACHI | AF169: TERRITORIAL | AG169: TERRITORIAL | AH169: 5.75 | AJ169: ANTIOQUIA - E.S.E. HOSPITAL SAN RAFAEL - SAN LUIS | AK169: TERRITORIAL | AL169: TERRITORIAL | AM169: 0
F170: ANTIOQUIA - ASOCIACION DE MUNICIPIOS DEL OCCIDENTE ANTIOQUEÑO ¿AMOCCIDENTE - MEDELLIN | G170: TERRITORIAL | H170: TERRITORIAL | I170: 0 | K170: ANTIOQUIA - ALCALDIA MUNICIPIO DE SEGOVIA | L170: =VLOOKUP($K170,BASEMDM!$A$1:$C$4444,3,FALSE) -> TERRITORIAL | M170: =VLOOKUP($K170,BASEMDM!$A$1:$C$4444,2,FALSE) -> TERRITORIAL | N170: 0.1 | P170: ANTIOQUIA - ALCALDIA MUNICIPIO DE SEGOVIA | Q170: TERRITORIAL | R170: TERRITORIAL | S170: 13.37931034 | U170: ANTIOQUIA - ALCALDIA MUNICIPIO DE VEGACHI | V170: TERRITORIAL | W170: TERRITORIAL | X170: 0 | Z170: ANTIOQUIA - EMPRESA DE SERVICIOS PUBLICOS DOMICILIARIOS S.A. E.S.P. - LIBORINA | AA170: TERRITORIAL | AB170: TERRITORIAL | AC170: 0.8611111111 | AE170: ANTIOQUIA - ALCALDIA MUNICIPIO DE VENECIA | AF170: TERRITORIAL | AG170: TERRITORIAL | AH170: 0 | AJ170: ANTIOQUIA - EMPRESA AUTONOMA DEL MUNICIPIO DE GUATAPE | AK170: TERRITORIAL | AL170: TERRITORIAL | AM170: 0
F171: ANTIOQUIA - ASOCIACION DE MUNICIPIOS DEL SUROESTE ANTIOQUEÑO-AMSA | G171: TERRITORIAL | H171: TERRITORIAL | I171: 0 | K171: ANTIOQUIA - ALCALDIA MUNICIPIO DE SONSON | L171: =VLOOKUP($K171,BASEMDM!$A$1:$C$4444,3,FALSE) -> TERRITORIAL | M171: =VLOOKUP($K171,BASEMDM!$A$1:$C$4444,2,FALSE) -> TERRITORIAL | N171: 0 | P171: ANTIOQUIA - ALCALDIA MUNICIPIO DE SONSON | Q171: TERRITORIAL | R171: TERRITORIAL | S171: 4.767605634 | U171: ANTIOQUIA - ALCALDIA MUNICIPIO DE VENECIA | V171: TERRITORIAL | W171: TERRITORIAL | X171: 0 | Z171: ANTIOQUIA - EMPRESA DE SERVICIOS PUBLICOS LA UNION E.S.P. | AA171: TERRITORIAL | AB171: TERRITORIAL | AC171: 0 | AE171: ANTIOQUIA - ALCALDIA MUNICIPIO DE VIGIA DEL FUERTE | AF171: TERRITORIAL | AG171: TERRITORIAL | AH171: 26.75 | AJ171: ANTIOQUIA - EMPRESA DE VIVIENDA DE ANTIOQUIA - VIVA | AK171: TERRITORIAL | AL171: TERRITORIAL | AM171: 35.23529412
F172: ANTIOQUIA - ASOCIACION DE MUNICIPIOS DEL URABA ANTIOQUEÑO ASOMURA - APARTADO | G172: TERRITORIAL | H172: TERRITORIAL | I172: 0 | K172: ANTIOQUIA - ALCALDIA MUNICIPIO DE SOPETRAN | L172: =VLOOKUP($K172,BASEMDM!$A$1:$C$4444,3,FALSE) -> TERRITORIAL | M172: =VLOOKUP($K172,BASEMDM!$A$1:$C$4444,2,FALSE) -> TERRITORIAL | N172: 0.01315789474 | P172: ANTIOQUIA - ALCALDIA MUNICIPIO DE SOPETRAN | Q172: TERRITORIAL | R172: TERRITORIAL | S172: 3.885057471 | U172: ANTIOQUIA - ALCALDIA MUNICIPIO DE VIGIA DEL FUERTE | V172: TERRITORIAL | W172: TERRITORIAL | X172: 39.25 | Z172: ANTIOQUIA - EMPRESA DE SERVICIOS PUBLICOS S.A. E.S.P DE PUERTO TRIUNFO S.A. E.S.P. | AA172: TERRITORIAL | AB172: TERRITORIAL | AC172: 0.06194690265 | AE172: ANTIOQUIA - ALCALDIA MUNICIPIO DE YALI | AF172: TERRITORIAL | AG172: TERRITORIAL | AH172: 34.54545455 | AJ172: ANTIOQUIA - EMPRESAS PUBLICAS DE URRAO E.S.P. | AK172: TERRITORIAL | AL172: TERRITORIAL | AM172: 0
F173: ANTIOQUIA - BENEFICENCIA DE ANTIOQUIA | G173: TERRITORIAL | H173: TERRITORIAL | I173: 0 | K173: ANTIOQUIA - ALCALDIA MUNICIPIO DE TAMESIS | L173: =VLOOKUP($K173,BASEMDM!$A$1:$C$4444,3,FALSE) -> TERRITORIAL | M173: =VLOOKUP($K173,BASEMDM!$A$1:$C$4444,2,FALSE) -> TERRITORIAL | N173: 0.05076142132 | P173: ANTIOQUIA - ALCALDIA MUNICIPIO DE TAMESIS | Q173: TERRITORIAL | R173: TERRITORIAL | S173: 4.85106383 | U173: ANTIOQUIA - ALCALDIA MUNICIPIO DE YALI | V173: TERRITORIAL | W173: TERRITORIAL | X173: 44 | Z173: ANTIOQUIA - EMPRESA DE TRANSPORTE MASIVO DEL VALLE DE ABURRA LTDA | AA173: TERRITORIAL | AB173: TERRITORIAL | AC173: 0.9725085911 | AE173: ANTIOQUIA - ALCALDIA MUNICIPIO DE YARUMAL | AF173: TERRITORIAL | AG173: TERRITORIAL | AH173: 21.33333333 | AJ173: ANTIOQUIA - ESCUELA SUPERIOR TECNOLOGICA DE ARTES DEBORA ARANGO - MEDELLIN | AK173: TERRITORIAL | AL173: TERRITORIAL | AM173: 0
F174: ANTIOQUIA - BIBLIOTECA PUBLICA PILOTO DE MEDELLIN PARA AMERICA LATINA - MEDELLIN | G174: TERRITORIAL | H174: TERRITORIAL | I174: 36 | K174: ANTIOQUIA - ALCALDIA MUNICIPIO DE TARAZA | L174: =VLOOKUP($K174,BASEMDM!$A$1:$C$4444,3,FALSE) -> TERRITORIAL | M174: =VLOOKUP($K174,BASEMDM!$A$1:$C$4444,2,FALSE) -> TERRITORIAL | N174: 0.3137254902 | P174: ANTIOQUIA - ALCALDIA MUNICIPIO DE TARAZA | Q174: TERRITORIAL | R174: TERRITORIAL | S174: 6.774193548 | U174: ANTIOQUIA - ALCALDIA MUNICIPIO DE YARUMAL | V174: TERRITORIAL | W174: TERRITORIAL | X174: 40.64285714 | Z174: ANTIOQUIA - EMPRESA PARA LA SEGURIDAD URBANA - ESU | AA174: TERRITORIAL | AB174: TERRITORIAL | AC174: 0.3754062839 | AE174: ANTIOQUIA - ALCALDIA MUNICIPIO DE YOLOMBO | AF174: TERRITORIAL | AG174: TERRITORIAL | AH174: 0 | AJ174: ANTIOQUIA - FONDO DE VALORIZACION DEL MUNICIPIO DE MEDELLIN - FONVAL | AK174: TERRITORIAL | AL174: TERRITORIAL | AM174: 43
F175: ANTIOQUIA - CONCEJO MUNICIPIO DE SAN VICENTE FERRER | G175: TERRITORIAL | H175: TERRITORIAL | I175: 0 | K175: ANTIOQUIA - ALCALDIA MUNICIPIO DE TARSO | L175: =VLOOKUP($K175,BASEMDM!$A$1:$C$4444,3,FALSE) -> TERRITORIAL | M175: =VLOOKUP($K175,BASEMDM!$A$1:$C$4444,2,FALSE) -> TERRITORIAL | N175: 0.04166666667 | P175: ANTIOQUIA - ALCALDIA MUNICIPIO DE TARSO | Q175: TERRITORIAL | R175: TERRITORIAL | S175: 6.604477612 | U175: ANTIOQUIA - ALCALDIA MUNICIPIO DE YOLOMBO | V175: TERRITORIAL | W175: TERRITORIAL | X175: 0 | Z175: ANTIOQUIA - EMPRESA PRESTADORA DEL SERVICIO PUBLICO DE ASEO - CIUDAD BOLIVAR | AA175: TERRITORIAL | AB175: TERRITORIAL | AC175: 0 | AE175: ANTIOQUIA - ALCALDIA MUNICIPIO DE YONDO | AF175: TERRITORIAL | AG175: TERRITORIAL | AH175: 16.25925926 | AJ175: ANTIOQUIA - GOBERNACION | AK175: TERRITORIAL | AL175: TERRITORIAL | AM175: 62.07936508
F176: ANTIOQUIA - CORPORACION PARA EL FOMENTO DE LA EDUCACION SUPERIOR - MEDELLIN | G176: TERRITORIAL | H176: TERRITORIAL | I176: 34 | K176: ANTIOQUIA - ALCALDIA MUNICIPIO DE TITIRIBI | L176: =VLOOKUP($K176,BASEMDM!$A$1:$C$4444,3,FALSE) -> TERRITORIAL | M176: =VLOOKUP($K176,BASEMDM!$A$1:$C$4444,2,FALSE) -> TERRITORIAL | N176: 0.03092783505 | P176: ANTIOQUIA - ALCALDIA MUNICIPIO DE TITIRIBI | Q176: TERRITORIAL | R176: TERRITORIAL | S176: 6.052631579 | U176: ANTIOQUIA - ALCALDIA MUNICIPIO DE YONDO | V176: TERRITORIAL | W176: TERRITORIAL | X176: 20.23529412 | Z176: ANTIOQUIA - EMPRESA SOCIAL DEL ESTADO HOSPITAL GUSTAVO GONZALEZ OCHOA - SAN ANDRES DE CUERQUIA | AA176: TERRITORIAL | AB176: TERRITORIAL | AC176: 8 | AE176: ANTIOQUIA - ALCALDIA MUNICIPIO DE ZARAGOZA | AF176: TERRITORIAL | AG176: TERRITORIAL | AH176: 10.33333333 | AJ176: ANTIOQUIA - INDER ENVIGADO - INSTITUTO DE DEPORTES, RECREACION Y APROVECHAMIENTO DEL TIEMPO LIBRE | AK176: TERRITORIAL | AL176: TERRITORIAL | AM176: 0
F177: ANTIOQUIA - E.S.E. HOSPITAL NUESTRA SEÑORA DE LA CANDELARIA - MEDELLIN | G177: TERRITORIAL | H177: TERRITORIAL | I177: 0 | K177: ANTIOQUIA - ALCALDIA MUNICIPIO DE TOLEDO | L177: =VLOOKUP($K177,BASEMDM!$A$1:$C$4444,3,FALSE) -> TERRITORIAL | M177: =VLOOKUP($K177,BASEMDM!$A$1:$C$4444,2,FALSE) -> TERRITORIAL | N177: 0 | P177: ANTIOQUIA - ALCALDIA MUNICIPIO DE TOLEDO | Q177: TERRITORIAL | R177: TERRITORIAL | S177: 3.611764706 | U177: ANTIOQUIA - ALCALDIA MUNICIPIO DE ZARAGOZA | V177: TERRITORIAL | W177: TERRITORIAL | X177: 27.375 | Z177: ANTIOQUIA - EMPRESA SOCIAL DEL ESTADO HOSPITAL PRESBITERO ALONSO MARIA GIRALDO - SAN RAFAEL | AA177: TERRITORIAL | AB177: TERRITORIAL | AC177: 0 | AE177: ANTIOQUIA - AREA METROPOLITANA DEL VALLE DE ABURRA - MEDELLIN | AF177: TERRITORIAL | AG177: TERRITORIAL | AH177: 35.28571429 | AJ177: ANTIOQUIA - INSTITUCION EDUCATIVA 20 DE JULIO - EL BAGRE | AK177: TERRITORIAL | AL177: TERRITORIAL | AM177: 22
F178: ANTIOQUIA - E.S.E. HOSPITAL SANTA ISABEL DE SAN PEDRO DE LOS MILAGROS | G178: TERRITORIAL | H178: TERRITORIAL | I178: 22 | K178: ANTIOQUIA - ALCALDIA MUNICIPIO DE TURBO | L178: =VLOOKUP($K178,BASEMDM!$A$1:$C$4444,3,FALSE) -> TERRITORIAL | M178: =VLOOKUP($K178,BASEMDM!$A$1:$C$4444,2,FALSE) -> TERRITORIAL | N178: 0.02793296089 | P178: ANTIOQUIA - ALCALDIA MUNICIPIO DE TURBO | Q178: TERRITORIAL | R178: TERRITORIAL | S178: 8.510204082 | U178: ANTIOQUIA - AREA METROPOLITANA DEL VALLE DE ABURRA - MEDELLIN | V178: TERRITORIAL | W178: TERRITORIAL | X178: 43.66666667 | Z178: ANTIOQUIA - EMPRESAS PUBLICAS DE ABEJORRAL E.P.A. E.S.P. - ABEJORRAL | AA178: TERRITORIAL | AB178: TERRITORIAL | AC178: 0.01960784314 | AE178: ANTIOQUIA - ASAMBLEA DEPARTAMENTAL DE ANTIOQUIA | AF178: TERRITORIAL | AG178: TERRITORIAL | AH178: 0 | AJ178: ANTIOQUIA - INSTITUCION EDUCATIVA NORMAL SUPERIOR DE ENVIGADO | AK178: TERRITORIAL | AL178: TERRITORIAL | AM178: 0
F179: ANTIOQUIA - EMPRESA DE SERVICIOS PUBLICOS DOMICILIARIOS DEL CARMEN DE VIBORAL | G179: TERRITORIAL | H179: TERRITORIAL | I179: 0 | K179: ANTIOQUIA - ALCALDIA MUNICIPIO DE URRAO | L179: =VLOOKUP($K179,BASEMDM!$A$1:$C$4444,3,FALSE) -> TERRITORIAL | M179: =VLOOKUP($K179,BASEMDM!$A$1:$C$4444,2,FALSE) -> TERRITORIAL | N179: 0 | P179: ANTIOQUIA - ALCALDIA MUNICIPIO DE URAMITA | Q179: TERRITORIAL | R179: TERRITORIAL | S179: 0 | U179: ANTIOQUIA - ASOCIACION CANAL LOCAL DE TELEVISION DE MEDELLIN - TELEMEDELLIN - | V179: TERRITORIAL | W179: TERRITORIAL | X179: 8.9 | Z179: ANTIOQUIA - EMPRESAS PUBLICAS DE AMAGA S.A. E.S.P. - AMAGA | AA179: TERRITORIAL | AB179: TERRITORIAL | AC179: 0 | AE179: ANTIOQUIA - ASOCIACION CANAL LOCAL DE TELEVISION DE MEDELLIN - TELEMEDELLIN - | AF179: TERRITORIAL | AG179: TERRITORIAL | AH179: 0 | AJ179: ANTIOQUIA - INSTITUCION UNIVERSITARIA COLEGIO MAYOR DE ANTIOQUIA - MEDELLIN | AK179: TERRITORIAL | AL179: TERRITORIAL | AM179: 28.36170213
F180: ANTIOQUIA - EMPRESA DE VIVIENDA DE ANTIOQUIA - VIVA | G180: TERRITORIAL | H180: TERRITORIAL | I180: 49.18181818 | K180: ANTIOQUIA - ALCALDIA MUNICIPIO DE VALDIVIA | L180: =VLOOKUP($K180,BASEMDM!$A$1:$C$4444,3,FALSE) -> TERRITORIAL | M180: =VLOOKUP($K180,BASEMDM!$A$1:$C$4444,2,FALSE) -> TERRITORIAL | N180: 0.4847161572 | P180: ANTIOQUIA - ALCALDIA MUNICIPIO DE URRAO | Q180: TERRITORIAL | R180: TERRITORIAL | S180: 9.537634409 | U180: ANTIOQUIA - ASOCIACION DE MUNICIPIOS DEL OCCIDENTE ANTIOQUEÑO ¿AMOCCIDENTE - MEDELLIN | V180: TERRITORIAL | W180: TERRITORIAL | X180: 5 | Z180: ANTIOQUIA - EMPRESAS PUBLICAS DE DABEIBA S.A.S. E.S.P. | AA180: TERRITORIAL | AB180: TERRITORIAL | AC180: 0 | AE180: ANTIOQUIA - ASOCIACION DE MUNICIPIOS DEL NORDESTE Y MAGDALENA MEDIO ANTIOQUEÑO ZONA NUS ASOMUNUS - SAN ROQUE | AF180: TERRITORIAL | AG180: TERRITORIAL | AH180: 11 | AJ180: ANTIOQUIA - INSTITUCION UNIVERSITARIA DE ENVIGADO | AK180: TERRITORIAL | AL180: TERRITORIAL | AM180: 25.58333333
F181: ANTIOQUIA - FONDO DE VALORIZACION DEL MUNICIPIO DE MEDELLIN - FONVAL | G181: TERRITORIAL | H181: TERRITORIAL | I181: 51.66666667 | K181: ANTIOQUIA - ALCALDIA MUNICIPIO DE VALPARAISO | L181: =VLOOKUP($K181,BASEMDM!$A$1:$C$4444,3,FALSE) -> TERRITORIAL | M181: =VLOOKUP($K181,BASEMDM!$A$1:$C$4444,2,FALSE) -> TERRITORIAL | N181: 0 | P181: ANTIOQUIA - ALCALDIA MUNICIPIO DE VALDIVIA | Q181: TERRITORIAL | R181: TERRITORIAL | S181: 5.786885246 | U181: ANTIOQUIA - ASOCIACION DE MUNICIPIOS DEL SUROESTE ANTIOQUEÑO-AMSA | V181: TERRITORIAL | W181: TERRITORIAL | X181: 0 | Z181: ANTIOQUIA - EMPRESAS PUBLICAS DE EL SANTUARIO E.S.P. | AA181: TERRITORIAL | AB181: TERRITORIAL | AC181: 0.1171875 | AE181: ANTIOQUIA - ASOCIACION DE MUNICIPIOS DEL SUROESTE ANTIOQUEÑO-AMSA | AF181: TERRITORIAL | AG181: TERRITORIAL | AH181: 0 | AJ181: ANTIOQUIA - INSTITUTO DE CULTURA Y PATRIMONIO DE ANTIOQUIA - MEDELLIN | AK181: TERRITORIAL | AL181: TERRITORIAL | AM181: 32.16666667
F182: ANTIOQUIA - GOBERNACION | G182: TERRITORIAL | H182: TERRITORIAL | I182: 61.4 | K182: ANTIOQUIA - ALCALDIA MUNICIPIO DE VEGACHI | L182: =VLOOKUP($K182,BASEMDM!$A$1:$C$4444,3,FALSE) -> TERRITORIAL | M182: =VLOOKUP($K182,BASEMDM!$A$1:$C$4444,2,FALSE) -> TERRITORIAL | N182: 0.07006369427 | P182: ANTIOQUIA - ALCALDIA MUNICIPIO DE VALPARAISO | Q182: TERRITORIAL | R182: TERRITORIAL | S182: 6.027777778 | U182: ANTIOQUIA - ASOCIACION DE MUNICIPIOS DEL URABA ANTIOQUEÑO ASOMURA - APARTADO | V182: TERRITORIAL | W182: TERRITORIAL | X182: 0 | Z182: ANTIOQUIA - EMPRESAS PUBLICAS DE HISPANIA S.A. E.S.P. | AA182: TERRITORIAL | AB182: TERRITORIAL | AC182: 18.37209302 | AE182: ANTIOQUIA - ASOCIACION DE MUNICIPIOS UNIDOS DEL SUR DE ANTIOQUIA MUSA - SONSON | AF182: TERRITORIAL | AG182: TERRITORIAL | AH182: 0 | AJ182: ANTIOQUIA - INSTITUTO DE DEPORTE Y RECREACION DE CALDAS | AK182: TERRITORIAL | AL182: TERRITORIAL | AM182: 11
F183: ANTIOQUIA - INSTITUCION UNIVERSITARIA COLEGIO MAYOR DE ANTIOQUIA - MEDELLIN | G183: TERRITORIAL | H183: TERRITORIAL | I183: 32.5 | K183: ANTIOQUIA - ALCALDIA MUNICIPIO DE VENECIA | L183: =VLOOKUP($K183,BASEMDM!$A$1:$C$4444,3,FALSE) -> TERRITORIAL | M183: =VLOOKUP($K183,BASEMDM!$A$1:$C$4444,2,FALSE) -> TERRITORIAL | N183: 0.4405286344 | P183: ANTIOQUIA - ALCALDIA MUNICIPIO DE VEGACHI | Q183: TERRITORIAL | R183: TERRITORIAL | S183: 4.109090909 | U183: ANTIOQUIA - BIBLIOTECA PUBLICA PILOTO DE MEDELLIN PARA AMERICA LATINA - MEDELLIN | V183: TERRITORIAL | W183: TERRITORIAL | X183: 104.25 | Z183: ANTIOQUIA - EMPRESAS PUBLICAS DE JARDIN S.A. E.S.P. | AA183: TERRITORIAL | AB183: TERRITORIAL | AC183: 0 | AE183: ANTIOQUIA - BIBLIOTECA PUBLICA PILOTO DE MEDELLIN PARA AMERICA LATINA - MEDELLIN | AF183: TERRITORIAL | AG183: TERRITORIAL | AH183: 48 | AJ183: ANTIOQUIA - INSTITUTO DE DEPORTES Y RECREACION DE MEDELLIN - INDER MEDELLIN | AK183: TERRITORIAL | AL183: TERRITORIAL | AM183: 48.02564103
F184: ANTIOQUIA - INSTITUCION UNIVERSITARIA DE ENVIGADO | G184: TERRITORIAL | H184: TERRITORIAL | I184: 40.75 | K184: ANTIOQUIA - ALCALDIA MUNICIPIO DE VIGIA DEL FUERTE | L184: =VLOOKUP($K184,BASEMDM!$A$1:$C$4444,3,FALSE) -> TERRITORIAL | M184: =VLOOKUP($K184,BASEMDM!$A$1:$C$4444,2,FALSE) -> TERRITORIAL | N184: 0.1470588235 | P184: ANTIOQUIA - ALCALDIA MUNICIPIO DE VENECIA | Q184: TERRITORIAL | R184: TERRITORIAL | S184: 4.044776119 | U184: ANTIOQUIA - E.S.E. HOSPITAL FRANCISCO VALDERRAMA DE TURBO | V184: TERRITORIAL | W184: TERRITORIAL | X184: 40.33333333 | Z184: ANTIOQUIA - EMPRESAS PUBLICAS DE JERICO ANTIOQUIA S.A E.S.P | AA184: TERRITORIAL | AB184: TERRITORIAL | AC184: 10.04807692 | AE184: ANTIOQUIA - CENTRO PROVINCIAL DE GESTION MINERO AGROEMPRESARIAL DEL ALTO NORDESTE - SEGOVIA | AF184: TERRITORIAL | AG184: TERRITORIAL | AH184: 33 | AJ184: ANTIOQUIA - INSTITUTO DEPARTAMENTAL DE DEPORTES DE ANTIOQUIA - MEDELLIN | AK184: TERRITORIAL | AL184: TERRITORIAL | AM184: 28.77272727
F185: ANTIOQUIA - INSTITUTO DE CULTURA Y PATRIMONIO DE ANTIOQUIA - MEDELLIN | G185: TERRITORIAL | H185: TERRITORIAL | I185: 15 | K185: ANTIOQUIA - ALCALDIA MUNICIPIO DE YALI | L185: =VLOOKUP($K185,BASEMDM!$A$1:$C$4444,3,FALSE) -> TERRITORIAL | M185: =VLOOKUP($K185,BASEMDM!$A$1:$C$4444,2,FALSE) -> TERRITORIAL | N185: 0 | P185: ANTIOQUIA - ALCALDIA MUNICIPIO DE VIGIA DEL FUERTE | Q185: TERRITORIAL | R185: TERRITORIAL | S185: 3.024096386 | U185: ANTIOQUIA - E.S.E. HOSPITAL LA MERCED - CIUDAD BOLIVAR | V185: TERRITORIAL | W185: TERRITORIAL | X185: 15 | Z185: ANTIOQUIA - EMPRESAS PUBLICAS DE LA CEJA DEL TAMBO E.S.P. | AA185: TERRITORIAL | AB185: TERRITORIAL | AC185: 0.4916512059 | AE185: ANTIOQUIA - CONCEJO MUNICIPIO DE MEDELLIN | AF185: TERRITORIAL | AG185: TERRITORIAL | AH185: 50 | AJ185: ANTIOQUIA - INSTITUTO MUNICIPAL DEL DEPORTE Y LA RECREACION DE LA ESTRELLA - INDERE | AK185: TERRITORIAL | AL185: TERRITORIAL | AM185: 26.5
F186: ANTIOQUIA - INSTITUTO DE DEPORTES Y RECREACION DE MEDELLIN - INDER MEDELLIN | G186: TERRITORIAL | H186: TERRITORIAL | I186: 57.75 | K186: ANTIOQUIA - ALCALDIA MUNICIPIO DE YARUMAL | L186: =VLOOKUP($K186,BASEMDM!$A$1:$C$4444,3,FALSE) -> TERRITORIAL | M186: =VLOOKUP($K186,BASEMDM!$A$1:$C$4444,2,FALSE) -> TERRITORIAL | N186: 0 | P186: ANTIOQUIA - ALCALDIA MUNICIPIO DE YALI | Q186: TERRITORIAL | R186: TERRITORIAL | S186: 5.948717949 | U186: ANTIOQUIA - E.S.E. HOSPITAL LA SAGRADA FAMILIA - CAMPAMENTO | V186: TERRITORIAL | W186: TERRITORIAL | X186: 22 | Z186: ANTIOQUIA - EMPRESAS PUBLICAS DE SAN LUIS S.A.S. E.S.P | AA186: TERRITORIAL | AB186: TERRITORIAL | AC186: 0.1012658228 | AE186: ANTIOQUIA - CONCEJO MUNICIPIO DE OLAYA | AF186: TERRITORIAL | AG186: TERRITORIAL | AH186: 0 | AJ186: ANTIOQUIA - INSTITUTO PARA EL DESARROLLO DE ANTIOQUIA - MEDELLIN | AK186: TERRITORIAL | AL186: TERRITORIAL | AM186: 39.88888889
F187: ANTIOQUIA - INSTITUTO DEPARTAMENTAL DE DEPORTES DE ANTIOQUIA - MEDELLIN | G187: TERRITORIAL | H187: TERRITORIAL | I187: 26.33333333 | K187: ANTIOQUIA - ALCALDIA MUNICIPIO DE YOLOMBO | L187: =VLOOKUP($K187,BASEMDM!$A$1:$C$4444,3,FALSE) -> TERRITORIAL | M187: =VLOOKUP($K187,BASEMDM!$A$1:$C$4444,2,FALSE) -> TERRITORIAL | N187: 0.02 | P187: ANTIOQUIA - ALCALDIA MUNICIPIO DE YARUMAL | Q187: TERRITORIAL | R187: TERRITORIAL | S187: 7.349514563 | U187: ANTIOQUIA - E.S.E. HOSPITAL NUESTRA SEÑORA DE LA CANDELARIA - MEDELLIN | V187: TERRITORIAL | W187: TERRITORIAL | X187: 0 | Z187: ANTIOQUIA - EMPRESAS PUBLICAS DE URRAO E.S.P. | AA187: TERRITORIAL | AB187: TERRITORIAL | AC187: 1.517241379 | AE187: ANTIOQUIA - CONCEJO MUNICIPIO DE YONDO | AF187: TERRITORIAL | AG187: TERRITORIAL | AH187: 0 | AJ187: ANTIOQUIA - INSTITUTO SOCIAL DE VIVIENDA Y HABITAT DEL MUNICIPIO DE MEDELLIN ISVIMED | AK187: TERRITORIAL | AL187: TERRITORIAL | AM187: 24.66666667
F188: ANTIOQUIA - INSTITUTO PARA EL DESARROLLO DE ANTIOQUIA - MEDELLIN | G188: TERRITORIAL | H188: TERRITORIAL | I188: 14.5 | K188: ANTIOQUIA - ALCALDIA MUNICIPIO DE YONDO | L188: =VLOOKUP($K188,BASEMDM!$A$1:$C$4444,3,FALSE) -> TERRITORIAL | M188: =VLOOKUP($K188,BASEMDM!$A$1:$C$4444,2,FALSE) -> TERRITORIAL | N188: 0.01534526854 | P188: ANTIOQUIA - ALCALDIA MUNICIPIO DE YOLOMBO | Q188: TERRITORIAL | R188: TERRITORIAL | S188: 1.88 | U188: ANTIOQUIA - E.S.E. HOSPITAL OCTAVIO OLIVARES - PUERTO NARE | V188: TERRITORIAL | W188: TERRITORIAL | X188: 31 | Z188: ANTIOQUIA - EMPRESAS PUBLICAS DE VALDIVIA S.A. E.S.P. - VALDIVIA | AA188: TERRITORIAL | AB188: TERRITORIAL | AC188: 2 | AE188: ANTIOQUIA - CONTRALORIA GENERAL DE ANTIOQUIA | AF188: TERRITORIAL | AG188: TERRITORIAL | AH188: 18 | AJ188: ANTIOQUIA - INSTITUTO TECNOLOGICO METROPOLITANO - MEDELLIN | AK188: TERRITORIAL | AL188: TERRITORIAL | AM188: 43.38636364
F189: ANTIOQUIA - INSTITUTO SOCIAL DE VIVIENDA Y HABITAT DEL MUNICIPIO DE MEDELLIN ISVIMED | G189: TERRITORIAL | H189: TERRITORIAL | I189: 19 | K189: ANTIOQUIA - ALCALDIA MUNICIPIO DE ZARAGOZA | L189: =VLOOKUP($K189,BASEMDM!$A$1:$C$4444,3,FALSE) -> TERRITORIAL | M189: =VLOOKUP($K189,BASEMDM!$A$1:$C$4444,2,FALSE) -> TERRITORIAL | N189: 2.813559322 | P189: ANTIOQUIA - ALCALDIA MUNICIPIO DE YONDO | Q189: TERRITORIAL | R189: TERRITORIAL | S189: 5.24 | U189: ANTIOQUIA - E.S.E. HOSPITAL SAN ANTONIO DE MONTEBELLO | V189: TERRITORIAL | W189: TERRITORIAL | X189: 19 | Z189: ANTIOQUIA - EMPRESAS PUBLICAS LA ESTRELLA S.A.S. E.S.P | AA189: TERRITORIAL | AB189: TERRITORIAL | AC189: 5.416666667 | AE189: ANTIOQUIA - CONTRALORIA GENERAL DE MEDELLIN | AF189: TERRITORIAL | AG189: TERRITORIAL | AH189: 20.5 | AJ189: ANTIOQUIA - INSTITUTO TECNOLOGICO PASCUAL BRAVO INSTITUCION UNIVERSITARIA - MEDELLIN | AK189: TERRITORIAL | AL189: TERRITORIAL | AM189: 23.9
F190: ANTIOQUIA - INSTITUTO TECNOLOGICO METROPOLITANO - MEDELLIN | G190: TERRITORIAL | H190: TERRITORIAL | I190: 36.66666667 | K190: ANTIOQUIA - AREA METROPOLITANA DEL VALLE DE ABURRA - MEDELLIN | L190: =VLOOKUP($K190,BASEMDM!$A$1:$C$4444,3,FALSE) -> TERRITORIAL | M190: =VLOOKUP($K190,BASEMDM!$A$1:$C$4444,2,FALSE) -> TERRITORIAL | N190: 3.672240803 | P190: ANTIOQUIA - ALCALDIA MUNICIPIO DE ZARAGOZA | Q190: TERRITORIAL | R190: TERRITORIAL | S190: 7 | U190: ANTIOQUIA - E.S.E. HOSPITAL SAN BARTOLOME - MURINDO | V190: TERRITORIAL | W190: TERRITORIAL | X190: 0 | Z190: ANTIOQUIA - EMPRESAS PUBLICAS MUNICIPALES DE BETANIA S.A. E.S.P. | AA190: TERRITORIAL | AB190: TERRITORIAL | AC190: 0 | AE190: ANTIOQUIA - CORPORACION PARA EL FOMENTO DE LA EDUCACION SUPERIOR - MEDELLIN | AF190: TERRITORIAL | AG190: TERRITORIAL | AH190: 18.5 | AJ190: ANTIOQUIA - METROPLUS S.A. - MEDELLIN | AK190: TERRITORIAL | AL190: TERRITORIAL | AM190: 93
F191: ANTIOQUIA - INSTITUTO TECNOLOGICO PASCUAL BRAVO INSTITUCION UNIVERSITARIA - MEDELLIN | G191: TERRITORIAL | H191: TERRITORIAL | I191: 43.4 | K191: ANTIOQUIA - ASAMBLEA DEPARTAMENTAL DE ANTIOQUIA | L191: =VLOOKUP($K191,BASEMDM!$A$1:$C$4444,3,FALSE) -> TERRITORIAL | M191: =VLOOKUP($K191,BASEMDM!$A$1:$C$4444,2,FALSE) -> TERRITORIAL | N191: 5.25 | P191: ANTIOQUIA - AREA METROPOLITANA DEL VALLE DE ABURRA - MEDELLIN | Q191: TERRITORIAL | R191: TERRITORIAL | S191: 12.28571429 | U191: ANTIOQUIA - E.S.E. HOSPITAL SAN JUAN DE DIOS - SONSON | V191: TERRITORIAL | W191: TERRITORIAL | X191: 13 | Z191: ANTIOQUIA - ENVIASEO E.S.P. - ENVIGADO | AA191: TERRITORIAL | AB191: TERRITORIAL | AC191: 0 | AE191: ANTIOQUIA - E.S.E. HOSPITAL LA MERCED - CIUDAD BOLIVAR | AF191: TERRITORIAL | AG191: TERRITORIAL | AH191: 17 | AJ191: ANTIOQUIA - MUSEO CASA DE LA MEMORIA MCM - MEDELLIN | AK191: TERRITORIAL | AL191: TERRITORIAL | AM191: 15
F192: ANTIOQUIA - MUNICIPIOS ASOCIADOS DEL NORDESTE Y MAGDALENA MEDIO AMUNORMA - MEDELLIN | G192: TERRITORIAL | H192: TERRITORIAL | I192: 38 | K192: ANTIOQUIA - ASOCIACION CANAL LOCAL DE TELEVISION DE MEDELLIN - TELEMEDELLIN - | L192: =VLOOKUP($K192,BASEMDM!$A$1:$C$4444,3,FALSE) -> TERRITORIAL | M192: =VLOOKUP($K192,BASEMDM!$A$1:$C$4444,2,FALSE) -> TERRITORIAL | N192: 0.05016722408 | P192: ANTIOQUIA - ASAMBLEA DEPARTAMENTAL DE ANTIOQUIA | Q192: TERRITORIAL | R192: TERRITORIAL | S192: 3 | U192: ANTIOQUIA - E.S.E. HOSPITAL SAN JUAN DE DIOS ANORI | V192: TERRITORIAL | W192: TERRITORIAL | X192: 11 | Z192: ANTIOQUIA - ENVICARNICOS | AA192: TERRITORIAL | AB192: TERRITORIAL | AC192: 9.714285714 | AE192: ANTIOQUIA - E.S.E. HOSPITAL SAN MARTIN DE PORRES | AF192: TERRITORIAL | AG192: TERRITORIAL | AH192: 5.5 | AJ192: ANTIOQUIA - PERSONERIA MUNICIPIO DE FRONTINO | AK192: TERRITORIAL | AL192: TERRITORIAL | AM192: 0
F193: ANTIOQUIA - POLITECNICO COLOMBIANO JAIME ISAZA CADAVID - MEDELLIN | G193: TERRITORIAL | H193: TERRITORIAL | I193: 21 | K193: ANTIOQUIA - ASOCIACION DE AREAS METROPOLITANAS DE COLOMBIA - MEDELLIN | L193: =VLOOKUP($K193,BASEMDM!$A$1:$C$4444,3,FALSE) -> TERRITORIAL | M193: =VLOOKUP($K193,BASEMDM!$A$1:$C$4444,2,FALSE) -> TERRITORIAL | N193: 0 | P193: ANTIOQUIA - ASOCIACION CANAL LOCAL DE TELEVISION DE MEDELLIN - TELEMEDELLIN - | Q193: TERRITORIAL | R193: TERRITORIAL | S193: 10.256 | U193: ANTIOQUIA - E.S.E. HOSPITAL SAN JUAN DE DIOS DE EL SANTUARIO | V193: TERRITORIAL | W193: TERRITORIAL | X193: 24 | Z193: ANTIOQUIA - GOBERNACION | AA193: TERRITORIAL | AB193: TERRITORIAL | AC193: 1.227112676 | AE193: ANTIOQUIA - E.S.E. HOSPITAL SAN PIO X - CARACOLI | AF193: TERRITORIAL | AG193: TERRITORIAL | AH193: 0 | AJ193: ANTIOQUIA - PERSONERIA MUNICIPIO DE MEDELLIN | AK193: TERRITORIAL | AL193: TERRITORIAL | AM193: 23.5
F194: ANTIOQUIA - TECNOLOGICO DE ANTIOQUIA - MEDELLIN | G194: TERRITORIAL | H194: TERRITORIAL | I194: 15 | K194: ANTIOQUIA - ASOCIACION DE MUNICIPIOS DEL BAJO CAUCA Y DEL BAJO NECHI AMBACAN - CAUCASIA | L194: =VLOOKUP($K194,BASEMDM!$A$1:$C$4444,3,FALSE) -> TERRITORIAL | M194: =VLOOKUP($K194,BASEMDM!$A$1:$C$4444,2,FALSE) -> TERRITORIAL | N194: 0 | P194: ANTIOQUIA - ASOCIACION DE AREAS METROPOLITANAS DE COLOMBIA - MEDELLIN | Q194: TERRITORIAL | R194: TERRITORIAL | S194: 14 | U194: ANTIOQUIA - E.S.E. HOSPITAL SAN JUAN DE DIOS DE SANTA FE DE ANTIOQUIA | V194: TERRITORIAL | W194: TERRITORIAL | X194: 0 | Z194: ANTIOQUIA - HIDROELECTRICA ITUANGO S.A. E.S.P. - MEDELLIN | AA194: TERRITORIAL | AB194: TERRITORIAL | AC194: 0.1846153846 | AE194: ANTIOQUIA - E.S.E. HOSPITAL SAN RAFAEL - SAN LUIS | AF194: TERRITORIAL | AG194: TERRITORIAL | AH194: 28 | AJ194: ANTIOQUIA - POLITECNICO COLOMBIANO JAIME ISAZA CADAVID - MEDELLIN | AK194: TERRITORIAL | AL194: TERRITORIAL | AM194: 35.45
F195: ARAUCA - ALCALDIA MUNICIPIO DE ARAUCA | G195: TERRITORIAL | H195: TERRITORIAL | I195: 18.16 | K195: ANTIOQUIA - ASOCIACION DE MUNICIPIOS DEL SUROESTE ANTIOQUEÑO-AMSA | L195: TERRITORIAL | M195: TERRITORIAL | N195: 0 | P195: ANTIOQUIA - ASOCIACION DE MUNICIPIOS CORPORACION AGENCIA PARA EL DESARROLLO DE LOS MUNICIPIOS DE LA SUBREGION DE BOSQUES CORPOBOSQUES - RIONEGRO | Q195: TERRITORIAL | R195: TERRITORIAL | S195: 0 | U195: ANTIOQUIA - E.S.E. HOSPITAL SAN JUAN DE DIOS DE YARUMAL | V195: TERRITORIAL | W195: TERRITORIAL | X195: 0 | Z195: ANTIOQUIA - HIDROELECTRICAS DEL RIO ARMA S.A.S. E.S.P. HIDROARMA - MEDELLIN | AA195: TERRITORIAL | AB195: TERRITORIAL | AC195: 0 | AE195: ANTIOQUIA - E.S.E. HOSPITAL SANTA ISABEL DE SAN PEDRO DE LOS MILAGROS | AF195: TERRITORIAL | AG195: TERRITORIAL | AH195: 0 | AJ195: ANTIOQUIA - TECNOLOGICO DE ANTIOQUIA - MEDELLIN | AK195: TERRITORIAL | AL195: TERRITORIAL | AM195: 25.91304348
F196: ARAUCA - ALCALDIA MUNICIPIO DE ARAUQUITA | G196: TERRITORIAL | H196: TERRITORIAL | I196: 27.86206897 | K196: ANTIOQUIA - ASOCIACION DE MUNICIPIOS UNIDOS DEL SUR DE ANTIOQUIA MUSA - SONSON | L196: =VLOOKUP($K196,BASEMDM!$A$1:$C$4444,3,FALSE) -> TERRITORIAL | M196: =VLOOKUP($K196,BASEMDM!$A$1:$C$4444,2,FALSE) -> TERRITORIAL | N196: 0 | P196: ANTIOQUIA - ASOCIACION DE MUNICIPIOS DEL OCCIDENTE ANTIOQUEÑO ¿AMOCCIDENTE - MEDELLIN | Q196: TERRITORIAL | R196: TERRITORIAL | S196: 8 | U196: ANTIOQUIA - E.S.E. HOSPITAL SAN PABLO DE TARSO | V196: TERRITORIAL | W196: TERRITORIAL | X196: 8 | Z196: ANTIOQUIA - HOSPITAL DE LA CEJA | AA196: TERRITORIAL | AB196: TERRITORIAL | AC196: 0 | AE196: ANTIOQUIA - E.S.E. HOSPITAL SANTA MARGARITA - COPACABANA | AF196: TERRITORIAL | AG196: TERRITORIAL | AH196: 0 | AJ196: ANTIOQUIA- CENTRO DE FORMACION INTEGRAL PARA EL TRABAJO CEFIT- ENVIGADO | AK196: TERRITORIAL | AL196: TERRITORIAL | AM196: 49
F197: ARAUCA - ALCALDIA MUNICIPIO DE CRAVO NORTE | G197: TERRITORIAL | H197: TERRITORIAL | I197: 24.6 | K197: ANTIOQUIA - BIBLIOTECA PUBLICA PILOTO DE MEDELLIN PARA AMERICA LATINA - MEDELLIN | L197: =VLOOKUP($K197,BASEMDM!$A$1:$C$4444,3,FALSE) -> TERRITORIAL | M197: =VLOOKUP($K197,BASEMDM!$A$1:$C$4444,2,FALSE) -> TERRITORIAL | N197: 1.220963173 | P197: ANTIOQUIA - ASOCIACION DE MUNICIPIOS UNIDOS DEL SUR DE ANTIOQUIA MUSA - SONSON | Q197: TERRITORIAL | R197: TERRITORIAL | S197: 3 | U197: ANTIOQUIA - E.S.E. HOSPITAL SAN SEBASTIAN DE URABA - NECOCLI | V197: TERRITORIAL | W197: TERRITORIAL | X197: 0 | Z197: ANTIOQUIA - HOSPITAL GENERAL DE MEDELLIN | AA197: TERRITORIAL | AB197: TERRITORIAL | AC197: 0.0277417962 | AE197: ANTIOQUIA - EMPRESA AUTONOMA DEL MUNICIPIO DE GUATAPE | AF197: TERRITORIAL | AG197: TERRITORIAL | AH197: 0 | AJ197: ARAUCA - ALCALDIA MUNICIPIO DE ARAUCA | AK197: TERRITORIAL | AL197: TERRITORIAL | AM197: 27.62857143
F198: ARAUCA - ALCALDIA MUNICIPIO DE FORTUL | G198: TERRITORIAL | H198: TERRITORIAL | I198: 27.14285714 | K198: ANTIOQUIA - CASA MUNICIPAL DE LA CULTURA CALDAS | L198: =VLOOKUP($K198,BASEMDM!$A$1:$C$4444,3,FALSE) -> TERRITORIAL | M198: =VLOOKUP($K198,BASEMDM!$A$1:$C$4444,2,FALSE) -> TERRITORIAL | N198: 0 | P198: ANTIOQUIA - BIBLIOTECA PUBLICA PILOTO DE MEDELLIN PARA AMERICA LATINA - MEDELLIN | Q198: TERRITORIAL | R198: TERRITORIAL | S198: 7.384615385 | U198: ANTIOQUIA - E.S.E. HOSPITAL SAN VICENTE DE PAUL - SAN CARLOS | V198: TERRITORIAL | W198: TERRITORIAL | X198: 53 | Z198: ANTIOQUIA - HOSPITAL HECTOR ABAD GOMEZ DE YONDO | AA198: TERRITORIAL | AB198: TERRITORIAL | AC198: 0 | AE198: ANTIOQUIA - EMPRESA DE VIVIENDA DE ANTIOQUIA - VIVA | AF198: TERRITORIAL | AG198: TERRITORIAL | AH198: 35.8 | AJ198: ARAUCA - ALCALDIA MUNICIPIO DE ARAUQUITA | AK198: TERRITORIAL | AL198: TERRITORIAL | AM198: 38.53571429
F199: ARAUCA - ALCALDIA MUNICIPIO DE PUERTO RONDON | G199: TERRITORIAL | H199: TERRITORIAL | I199: 0 | K199: ANTIOQUIA - CENTRO DE BIENESTAR DEL ANCIANO SAN ANTONIO - SONSON | L199: =VLOOKUP($K199,BASEMDM!$A$1:$C$4444,3,FALSE) -> TERRITORIAL | M199: =VLOOKUP($K199,BASEMDM!$A$1:$C$4444,2,FALSE) -> TERRITORIAL | N199: 0 | P199: ANTIOQUIA - CAMARA DE COMERCIO ABURRA SUR | Q199: TERRITORIAL | R199: TERRITORIAL | S199: 0 | U199: ANTIOQUIA - E.S.E. HOSPITAL SANTA ISABEL DE SAN PEDRO DE LOS MILAGROS | V199: TERRITORIAL | W199: TERRITORIAL | X199: 18 | Z199: ANTIOQUIA - HOSPITAL MANUEL URIBE ANGEL DE ENVIGADO | AA199: TERRITORIAL | AB199: TERRITORIAL | AC199: 0 | AE199: ANTIOQUIA - ESCUELA NORMAL SUPERIOR MIGUEL ANGEL ALVAREZ - FRONTINO | AF199: TERRITORIAL | AG199: TERRITORIAL | AH199: 0 | AJ199: ARAUCA - ALCALDIA MUNICIPIO DE CRAVO NORTE | AK199: TERRITORIAL | AL199: TERRITORIAL | AM199: 28
F200: ARAUCA - ALCALDIA MUNICIPIO DE SARAVENA | G200: TERRITORIAL | H200: TERRITORIAL | I200: 36.15384615 | K200: ANTIOQUIA - CENTRO EDUCATIVO PERMANENTE MAZO - MEDELLIN | L200: =VLOOKUP($K200,BASEMDM!$A$1:$C$4444,3,FALSE) -> TERRITORIAL | M200: =VLOOKUP($K200,BASEMDM!$A$1:$C$4444,2,FALSE) -> TERRITORIAL | N200: 0.5 | P200: ANTIOQUIA - CASA MUNICIPAL DE LA CULTURA CALDAS | Q200: TERRITORIAL | R200: TERRITORIAL | S200: 0 | U200: ANTIOQUIA - E.S.E. HOSPITAL SANTA MARGARITA - COPACABANA | V200: TERRITORIAL | W200: TERRITORIAL | X200: 0 | Z200: ANTIOQUIA - HOSPITAL SAN RAFAEL DE ANDES | AA200: TERRITORIAL | AB200: TERRITORIAL | AC200: 0 | AE200: ANTIOQUIA - ESCUELA SUPERIOR TECNOLOGICA DE ARTES DEBORA ARANGO - MEDELLIN | AF200: TERRITORIAL | AG200: TERRITORIAL | AH200: 27 | AJ200: ARAUCA - ALCALDIA MUNICIPIO DE FORTUL | AK200: TERRITORIAL | AL200: TERRITORIAL | AM200: 30.95652174
F201: ARAUCA - ALCALDIA MUNICIPIO DE TAME | G201: TERRITORIAL | H201: TERRITORIAL | I201: 15.4 | K201: ANTIOQUIA - CENTRO PROVINCIAL DE GESTION MINERO AGROEMPRESARIAL DEL ALTO NORDESTE - SEGOVIA | L201: =VLOOKUP($K201,BASEMDM!$A$1:$C$4444,3,FALSE) -> TERRITORIAL | M201: =VLOOKUP($K201,BASEMDM!$A$1:$C$4444,2,FALSE) -> TERRITORIAL | N201: 0 | P201: ANTIOQUIA - CENTRO DE BIENESTAR DEL ANCIANO SAN ANTONIO - SONSON | Q201: TERRITORIAL | R201: TERRITORIAL | S201: 3.066666667 | U201: ANTIOQUIA - EMPRESA DE SERVICIOS PUBLICOS DOMICILIARIOS DEL CARMEN DE VIBORAL | V201: TERRITORIAL | W201: TERRITORIAL | X201: 0 | Z201: ANTIOQUIA - HOSPITAL SAN VICENTE DE PAUL DE CALDAS | AA201: TERRITORIAL | AB201: TERRITORIAL | AC201: 0.0355107409 | AE201: ANTIOQUIA - FONDO DE VIVIENDA DE INTERES SOCIAL Y REFORMA URBANA DE SABANETA | AF201: TERRITORIAL | AG201: TERRITORIAL | AH201: 0 | AJ201: ARAUCA - ALCALDIA MUNICIPIO DE SARAVENA | AK201: TERRITORIAL | AL201: TERRITORIAL | AM201: 38.91666667
F202: ARAUCA - CUMARE S.A. E.S.P - ARAUCA | G202: TERRITORIAL | H202: TERRITORIAL | I202: 6.5 | K202: ANTIOQUIA - CONCEJO MUNICIPAL CALDAS | L202: =VLOOKUP($K202,BASEMDM!$A$1:$C$4444,3,FALSE) -> TERRITORIAL | M202: =VLOOKUP($K202,BASEMDM!$A$1:$C$4444,2,FALSE) -> TERRITORIAL | N202: 0 | P202: ANTIOQUIA - CENTRO EDUCATICO EL MANZANILLO - MEDELLIN | Q202: TERRITORIAL | R202: TERRITORIAL | S202: 5.428571429 | U202: ANTIOQUIA - EMPRESA DE SERVICIOS PUBLICOS DOMICILIARIOS EMPUGI S.A E.S.P. - GIRALDO | V202: TERRITORIAL | W202: TERRITORIAL | X202: 0 | Z202: ANTIOQUIA - I.E. MATER DEI - MEDELLIN | AA202: TERRITORIAL | AB202: TERRITORIAL | AC202: 0 | AE202: ANTIOQUIA - FONDO DE VIVIENDA DE INTERES SOCIAL Y REFORMA URBANA EL BAGRE | AF202: TERRITORIAL | AG202: TERRITORIAL | AH202: 21 | AJ202: ARAUCA - ALCALDIA MUNICIPIO DE TAME | AK202: TERRITORIAL | AL202: TERRITORIAL | AM202: 7.157894737
F203: ARAUCA - GOBERNACION | G203: TERRITORIAL | H203: TERRITORIAL | I203: 18.38636364 | K203: ANTIOQUIA - CONCEJO MUNICIPAL DE CIUDAD BOLIVAR | L203: TERRITORIAL | M203: TERRITORIAL | N203: 0 | P203: ANTIOQUIA - CENTRO EDUCATIVO EL SALADO - MEDELLIN | Q203: TERRITORIAL | R203: TERRITORIAL | S203: 10.54545455 | U203: ANTIOQUIA - EMPRESA DE VIVIENDA DE ANTIOQUIA - VIVA | V203: TERRITORIAL | W203: TERRITORIAL | X203: 52.2 | Z203: ANTIOQUIA - I.E. TRICENTENARIO - MEDELLIN | AA203: TERRITORIAL | AB203: TERRITORIAL | AC203: 0 | AE203: ANTIOQUIA - GOBERNACION | AF203: TERRITORIAL | AG203: TERRITORIAL | AH203: 54.35772358 | AJ203: ARAUCA - CONTRALORIA DEPARTAMENTAL DE ARAUCA | AK203: TERRITORIAL | AL203: TERRITORIAL | AM203: 30
F204: ARAUCA - INSTITUTO DE DESARROLLO DE ARAUCA - IDEAR | G204: TERRITORIAL | H204: TERRITORIAL | I204: 34 | K204: ANTIOQUIA - CONCEJO MUNICIPAL DE FRONTINO | L204: =VLOOKUP($K204,BASEMDM!$A$1:$C$4444,3,FALSE) -> TERRITORIAL | M204: =VLOOKUP($K204,BASEMDM!$A$1:$C$4444,2,FALSE) -> TERRITORIAL | N204: 0 | P204: ANTIOQUIA - CENTRO EDUCATIVO JUAN ANDRES PATIÑO - MEDELLIN | Q204: TERRITORIAL | R204: TERRITORIAL | S204: 2.714285714 | U204: ANTIOQUIA - FONDO DE VALORIZACION DEL MUNICIPIO DE MEDELLIN - FONVAL | V204: TERRITORIAL | W204: TERRITORIAL | X204: 45.75 | Z204: ANTIOQUIA - INDER GUARNE - INSTITUTO MUNICIPAL PARA EL DESARROLLO Y LA PRACTICA DEL DEPORTE, LA RECREACION Y EL APROVECHAMIENTO DEL TIEMPO LIBRE DE GUARNE | AA204: TERRITORIAL | AB204: TERRITORIAL | AC204: 0 | AE204: ANTIOQUIA - HOSPITAL SAN JUAN DE DIOS DE RIONEGRO | AF204: TERRITORIAL | AG204: TERRITORIAL | AH204: 0 | AJ204: ARAUCA - GOBERNACION | AK204: TERRITORIAL | AL204: TERRITORIAL | AM204: 24.42105263
F205: ARAUCA - INSTITUTO DEPARTAMENTAL DEL DEPORTE Y LA RECREACION DE ARAUCA COLDEPORTES | G205: TERRITORIAL | H205: TERRITORIAL | I205: 20 | K205: ANTIOQUIA - CONCEJO MUNICIPAL EL CARMEN DE VIBORAL | L205: =VLOOKUP($K205,BASEMDM!$A$1:$C$4444,3,FALSE) -> TERRITORIAL | M205: =VLOOKUP($K205,BASEMDM!$A$1:$C$4444,2,FALSE) -> TERRITORIAL | N205: 0 | P205: ANTIOQUIA - CENTRO EDUCATIVO LA ALDEA - MEDELLIN | Q205: TERRITORIAL | R205: TERRITORIAL | S205: 0 | U205: ANTIOQUIA - GOBERNACION | V205: TERRITORIAL | W205: TERRITORIAL | X205: 83.30769231 | Z205: ANTIOQUIA - INSTITUCION EDUCATIVA ALCALDIA DE MEDELLIN | AA205: TERRITORIAL | AB205: TERRITORIAL | AC205: 0 | AE205: ANTIOQUIA - I.E. ESCUELA NORMAL SUPERIOR DE ABEJORRAL | AF205: TERRITORIAL | AG205: TERRITORIAL | AH205: 0 | AJ205: ARAUCA - INSTITUCION EDUCATIVA SIMON BOLIVAR - ARAUCA | AK205: TERRITORIAL | AL205: TERRITORIAL | AM205: 17
F206: ARAUCA - UNIDAD ADMINISTRATIVA ESPECIAL DE SALUD DE ARAUCA | G206: TERRITORIAL | H206: TERRITORIAL | I206: 0 | K206: ANTIOQUIA - CONCEJO MUNICIPAL EL SANTUARIO | L206: =VLOOKUP($K206,BASEMDM!$A$1:$C$4444,3,FALSE) -> TERRITORIAL | M206: =VLOOKUP($K206,BASEMDM!$A$1:$C$4444,2,FALSE) -> TERRITORIAL | N206: 0 | P206: ANTIOQUIA - CENTRO EDUCATIVO LAS PLAYAS - MEDELLIN | Q206: TERRITORIAL | R206: TERRITORIAL | S206: 2.444444444 | U206: ANTIOQUIA - I.E. ESCUELA NORMAL SUPERIOR DE MEDELLIN | V206: TERRITORIAL | W206: TERRITORIAL | X206: 0 | Z206: ANTIOQUIA - INSTITUCION EDUCATIVA ALEJANDRO VELEZ BARRIENTOS - ENVIGADO | AA206: TERRITORIAL | AB206: TERRITORIAL | AC206: 4.769230769 | AE206: ANTIOQUIA - INDER ENVIGADO - INSTITUTO DE DEPORTES, RECREACION Y APROVECHAMIENTO DEL TIEMPO LIBRE | AF206: TERRITORIAL | AG206: TERRITORIAL | AH206: 10.5 | AJ206: ARAUCA - INSTITUTO DE TRANSITO Y TRANSPORTE DEL DEPARTAMENTO DE ARAUCA | AK206: TERRITORIAL | AL206: TERRITORIAL | AM206: 0
F207: ARCHIVO GENERAL DE LA NACION (AGN) | G207: NACIONAL | H207: NACIONAL | I207: 11.75 | K207: ANTIOQUIA - CONCEJO MUNICIPIO DE ABEJORRAL | L207: =VLOOKUP($K207,BASEMDM!$A$1:$C$4444,3,FALSE) -> TERRITORIAL | M207: =VLOOKUP($K207,BASEMDM!$A$1:$C$4444,2,FALSE) -> TERRITORIAL | N207: 0 | P207: ANTIOQUIA - CENTRO EDUCATIVO MEDIA LUNA - MEDELLIN | Q207: TERRITORIAL | R207: TERRITORIAL | S207: 6.666666667 | U207: ANTIOQUIA - INSTITUCION UNIVERSITARIA COLEGIO MAYOR DE ANTIOQUIA - MEDELLIN | V207: TERRITORIAL | W207: TERRITORIAL | X207: 49.66666667 | Z207: ANTIOQUIA - INSTITUCION EDUCATIVA ALFONSO UPEGUI OROZCO - MEDELLIN | AA207: TERRITORIAL | AB207: TERRITORIAL | AC207: 34.66666667 | AE207: ANTIOQUIA - INSTITUCION EDUCATIVA JOSE FELIX RESTREPO VELEZ - SABANETA | AF207: TERRITORIAL | AG207: TERRITORIAL | AH207: 24 | AJ207: ARAUCA - INSTITUTO DEPARTAMENTAL DEL DEPORTE Y LA RECREACION DE ARAUCA COLDEPORTES | AK207: TERRITORIAL | AL207: TERRITORIAL | AM207: 35.33333333
F208: ARMADA NACIONAL DE LA REPUBLICA DE COLOMBIA | G208: NACIONAL | H208: NACIONAL | I208: 28.66666667 | K208: ANTIOQUIA - CONCEJO MUNICIPIO DE ALEJANDRIA | L208: =VLOOKUP($K208,BASEMDM!$A$1:$C$4444,3,FALSE) -> TERRITORIAL | M208: =VLOOKUP($K208,BASEMDM!$A$1:$C$4444,2,FALSE) -> TERRITORIAL | N208: 0 | P208: ANTIOQUIA - CENTRO EDUCATIVO PEDREGAL ALTO - MEDELLIN | Q208: TERRITORIAL | R208: TERRITORIAL | S208: 8.6 | U208: ANTIOQUIA - INSTITUCION UNIVERSITARIA DE ENVIGADO | V208: TERRITORIAL | W208: TERRITORIAL | X208: 13.71428571 | Z208: ANTIOQUIA - INSTITUCION EDUCATIVA AMERICA - MEDELLIN | AA208: TERRITORIAL | AB208: TERRITORIAL | AC208: 0 | AE208: ANTIOQUIA - INSTITUCION EDUCATIVA KENNEDY - MEDELLIN | AF208: TERRITORIAL | AG208: TERRITORIAL | AH208: 27 | AJ208: ARAUCA - UNIDAD ADMINISTRATIVA ESPECIAL DE SALUD DE ARAUCA | AK208: TERRITORIAL | AL208: TERRITORIAL | AM208: 8.666666667
F209: ATLANTICO - ALCALDIA DISTRITO ESPECIAL, INDUSTRIAL Y PORTUARIO BARRANQUILLA | G209: TERRITORIAL | H209: TERRITORIAL | I209: 59 | K209: ANTIOQUIA - CONCEJO MUNICIPIO DE AMAGA | L209: =VLOOKUP($K209,BASEMDM!$A$1:$C$4444,3,FALSE) -> TERRITORIAL | M209: =VLOOKUP($K209,BASEMDM!$A$1:$C$4444,2,FALSE) -> TERRITORIAL | N209: 0 | P209: ANTIOQUIA - CENTRO EDUCATIVO PERMANENTE MAZO - MEDELLIN | Q209: TERRITORIAL | R209: TERRITORIAL | S209: 6.6 | U209: ANTIOQUIA - INSTITUTO DE CULTURA Y PATRIMONIO DE ANTIOQUIA - MEDELLIN | V209: TERRITORIAL | W209: TERRITORIAL | X209: 25 | Z209: ANTIOQUIA - INSTITUCION EDUCATIVA ANDRES BELLO - BELLO | AA209: TERRITORIAL | AB209: TERRITORIAL | AC209: 0 | AE209: ANTIOQUIA - INSTITUCION EDUCATIVA LOLA GONZALEZ - MEDELLIN | AF209: TERRITORIAL | AG209: TERRITORIAL | AH209: 32 | AJ209: ARCHIVO GENERAL DE LA NACION (AGN) | AK209: NACIONAL | AL209: INTERIOR | AM209: 12.88888889
F210: ATLANTICO - ALCALDIA MUNICIPIO DE BARANOA | G210: TERRITORIAL | H210: TERRITORIAL | I210: 30.42857143 | K210: ANTIOQUIA - CONCEJO MUNICIPIO DE ANDES | L210: TERRITORIAL | M210: TERRITORIAL | N210: 0 | P210: ANTIOQUIA - CENTRO EDUCATIVO TRAVESIAS EL MORRO - MEDELLIN | Q210: TERRITORIAL | R210: TERRITORIAL | S210: 0.2857142857 | U210: ANTIOQUIA - INSTITUTO DE DEPORTES Y RECREACION DE MEDELLIN - INDER MEDELLIN | V210: TERRITORIAL | W210: TERRITORIAL | X210: 52.18518519 | Z210: ANTIOQUIA - INSTITUCION EDUCATIVA ANTONIO DERKA SANTO DOMINGO - MEDELLIN | AA210: TERRITORIAL | AB210: TERRITORIAL | AC210: 0.5434782609 | AE210: ANTIOQUIA - INSTITUCION EDUCATIVA MARIANO DE JESUS EUSSE - ANGOSTURA | AF210: TERRITORIAL | AG210: TERRITORIAL | AH210: 0 | AJ210: ARMADA NACIONAL DE LA REPUBLICA DE COLOMBIA | AK210: NACIONAL | AL210: DEFENSA NACIONAL | AM210: 33.43859649
F211: ATLANTICO - ALCALDIA MUNICIPIO DE CAMPO DE LA CRUZ | G211: TERRITORIAL | H211: TERRITORIAL | I211: 23.33333333 | K211: ANTIOQUIA - CONCEJO MUNICIPIO DE ANGOSTURA | L211: =VLOOKUP($K211,BASEMDM!$A$1:$C$4444,3,FALSE) -> TERRITORIAL | M211: =VLOOKUP($K211,BASEMDM!$A$1:$C$4444,2,FALSE) -> TERRITORIAL | N211: 0 | P211: ANTIOQUIA - CENTRO PROVINCIAL DE GESTION MINERO AGROEMPRESARIAL DEL ALTO NORDESTE - SEGOVIA | Q211: TERRITORIAL | R211: TERRITORIAL | S211: 7.727272727 | U211: ANTIOQUIA - INSTITUTO DEPARTAMENTAL DE DEPORTES DE ANTIOQUIA - MEDELLIN | V211: TERRITORIAL | W211: TERRITORIAL | X211: 43.66666667 | Z211: ANTIOQUIA - INSTITUCION EDUCATIVA ANTONIO JOSE DE SUCRE - ITAGÜI | AA211: TERRITORIAL | AB211: TERRITORIAL | AC211: 0 | AE211: ANTIOQUIA - INSTITUCION EDUCATIVA RURAL DARIO GUTIERREZ RAVE - CALDAS | AF211: TERRITORIAL | AG211: TERRITORIAL | AH211: 49 | AJ211: ASOCIACION DE MUNICIPIOS DE LA PROVINCIA DE OCAÑA, SUR DEL CESAR Y BOLIVAR | AK211: TERRITORIAL | AL211: TERRITORIAL | AM211: 13.5
F212: ATLANTICO - ALCALDIA MUNICIPIO DE CANDELARIA | G212: TERRITORIAL | H212: TERRITORIAL | I212: 0 | K212: ANTIOQUIA - CONCEJO MUNICIPIO DE APARTADO | L212: =VLOOKUP($K212,BASEMDM!$A$1:$C$4444,3,FALSE) -> TERRITORIAL | M212: =VLOOKUP($K212,BASEMDM!$A$1:$C$4444,2,FALSE) -> TERRITORIAL | N212: 0 | P212: ANTIOQUIA - CONCEJO MUNICIPAL CALDAS | Q212: TERRITORIAL | R212: TERRITORIAL | S212: 13.5 | U212: ANTIOQUIA - INSTITUTO PARA EL DESARROLLO DE ANTIOQUIA - MEDELLIN | V212: TERRITORIAL | W212: TERRITORIAL | X212: 40.4 | Z212: ANTIOQUIA - INSTITUCION EDUCATIVA ASAMBLEA DEPARTAMENTAL - MEDELLIN | AA212: TERRITORIAL | AB212: TERRITORIAL | AC212: 0 | AE212: ANTIOQUIA - INSTITUCION EDUCATIVA SAN CRISTOBAL - MEDELLIN | AF212: TERRITORIAL | AG212: TERRITORIAL | AH212: 29 | AJ212: ATLANTICO - ALCALDIA DISTRITO ESPECIAL, INDUSTRIAL Y PORTUARIO BARRANQUILLA | AK212: TERRITORIAL | AL212: TERRITORIAL | AM212: 76.33333333
F213: ATLANTICO - ALCALDIA MUNICIPIO DE GALAPA | G213: TERRITORIAL | H213: TERRITORIAL | I213: 9.222222222 | K213: ANTIOQUIA - CONCEJO MUNICIPIO DE ARMENIA | L213: =VLOOKUP($K213,BASEMDM!$A$1:$C$4444,3,FALSE) -> TERRITORIAL | M213: =VLOOKUP($K213,BASEMDM!$A$1:$C$4444,2,FALSE) -> TERRITORIAL | N213: 0 | P213: ANTIOQUIA - CONCEJO MUNICIPAL CARAMANTA | Q213: TERRITORIAL | R213: TERRITORIAL | S213: 0 | U213: ANTIOQUIA - INSTITUTO SOCIAL DE VIVIENDA Y HABITAT DEL MUNICIPIO DE MEDELLIN ISVIMED | V213: TERRITORIAL | W213: TERRITORIAL | X213: 22 | Z213: ANTIOQUIA - INSTITUCION EDUCATIVA ASIA IGNACIANA - MEDELLIN | AA213: TERRITORIAL | AB213: TERRITORIAL | AC213: 0 | AE213: ANTIOQUIA - INSTITUCION EDUCATIVA SAN LUIS GONZAGA - SANTA FE DE ANTIOQUIA | AF213: TERRITORIAL | AG213: TERRITORIAL | AH213: 22 | AJ213: ATLANTICO - ALCALDIA MUNICIPIO DE GALAPA | AK213: TERRITORIAL | AL213: TERRITORIAL | AM213: 0
F214: ATLANTICO - ALCALDIA MUNICIPIO DE LURUACO | G214: TERRITORIAL | H214: TERRITORIAL | I214: 10 | K214: ANTIOQUIA - CONCEJO MUNICIPIO DE BELLO | L214: =VLOOKUP($K214,BASEMDM!$A$1:$C$4444,3,FALSE) -> TERRITORIAL | M214: =VLOOKUP($K214,BASEMDM!$A$1:$C$4444,2,FALSE) -> TERRITORIAL | N214: 0 | P214: ANTIOQUIA - CONCEJO MUNICIPAL DE CIUDAD BOLIVAR | Q214: TERRITORIAL | R214: TERRITORIAL | S214: 0 | U214: ANTIOQUIA - INSTITUTO TECNOLOGICO METROPOLITANO - MEDELLIN | V214: TERRITORIAL | W214: TERRITORIAL | X214: 43 | Z214: ANTIOQUIA - INSTITUCION EDUCATIVA AURES - MEDELLIN | AA214: TERRITORIAL | AB214: TERRITORIAL | AC214: 5 | AE214: ANTIOQUIA - INSTITUCION UNIVERSITARIA COLEGIO MAYOR DE ANTIOQUIA - MEDELLIN | AF214: TERRITORIAL | AG214: TERRITORIAL | AH214: 29.16666667 | AJ214: ATLANTICO - ALCALDIA MUNICIPIO DE SOLEDAD | AK214: TERRITORIAL | AL214: TERRITORIAL | AM214: 0
F215: ATLANTICO - ALCALDIA MUNICIPIO DE MALAMBO | G215: TERRITORIAL | H215: TERRITORIAL | I215: 17 | K215: ANTIOQUIA - CONCEJO MUNICIPIO DE BURITICA | L215: =VLOOKUP($K215,BASEMDM!$A$1:$C$4444,3,FALSE) -> TERRITORIAL | M215: =VLOOKUP($K215,BASEMDM!$A$1:$C$4444,2,FALSE) -> TERRITORIAL | N215: 0 | P215: ANTIOQUIA - CONCEJO MUNICIPAL DE FRONTINO | Q215: TERRITORIAL | R215: TERRITORIAL | S215: 4 | U215: ANTIOQUIA - INSTITUTO TECNOLOGICO PASCUAL BRAVO INSTITUCION UNIVERSITARIA - MEDELLIN | V215: TERRITORIAL | W215: TERRITORIAL | X215: 30.14285714 | Z215: ANTIOQUIA - INSTITUCION EDUCATIVA AVELINO SALDARRIAGA - ITAGÜI | AA215: TERRITORIAL | AB215: TERRITORIAL | AC215: 0 | AE215: ANTIOQUIA - INSTITUCION UNIVERSITARIA DE ENVIGADO | AF215: TERRITORIAL | AG215: TERRITORIAL | AH215: 4.428571429 | AJ215: ATLANTICO - ALCALDIA MUNICIPIO DE SUAN | AK215: TERRITORIAL | AL215: TERRITORIAL | AM215: 30
F216: ATLANTICO - ALCALDIA MUNICIPIO DE MANATI | G216: TERRITORIAL | H216: TERRITORIAL | I216: 202 | K216: ANTIOQUIA - CONCEJO MUNICIPIO DE COPACABANA | L216: =VLOOKUP($K216,BASEMDM!$A$1:$C$4444,3,FALSE) -> TERRITORIAL | M216: =VLOOKUP($K216,BASEMDM!$A$1:$C$4444,2,FALSE) -> TERRITORIAL | N216: 0 | P216: ANTIOQUIA - CONCEJO MUNICIPAL EL SANTUARIO | Q216: TERRITORIAL | R216: TERRITORIAL | S216: 3.5 | U216: ANTIOQUIA - METROPLUS S.A. - MEDELLIN | V216: TERRITORIAL | W216: TERRITORIAL | X216: 45.66666667 | Z216: ANTIOQUIA - INSTITUCION EDUCATIVA BARRIO SANTA CRUZ - MEDELLIN | AA216: TERRITORIAL | AB216: TERRITORIAL | AC216: 0 | AE216: ANTIOQUIA - INSTITUTO CEJEÑO DE LA RECREACION Y EL DEPORTE - INCERDE | AF216: TERRITORIAL | AG216: TERRITORIAL | AH216: 30 | AJ216: ATLANTICO - FORO HIDRICO - FONDO DE RESTAURACION OBRAS E INVERSION HIDRICA DISTRITAL | AK216: TERRITORIAL | AL216: TERRITORIAL | AM216: 33
F217: ATLANTICO - ALCALDIA MUNICIPIO DE PALMAR DE VARELA | G217: TERRITORIAL | H217: TERRITORIAL | I217: 0 | K217: ANTIOQUIA - CONCEJO MUNICIPIO DE DON MATIAS | L217: =VLOOKUP($K217,BASEMDM!$A$1:$C$4444,3,FALSE) -> TERRITORIAL | M217: =VLOOKUP($K217,BASEMDM!$A$1:$C$4444,2,FALSE) -> TERRITORIAL | N217: 0 | P217: ANTIOQUIA - CONCEJO MUNICIPIO DE ABEJORRAL | Q217: TERRITORIAL | R217: TERRITORIAL | S217: 0 | U217: ANTIOQUIA - MUNICIPIOS ASOCIADOS DEL NORDESTE Y MAGDALENA MEDIO AMUNORMA - MEDELLIN | V217: TERRITORIAL | W217: TERRITORIAL | X217: 34 | Z217: ANTIOQUIA - INSTITUCION EDUCATIVA BARRIO SANTANDER - MEDELLIN | AA217: TERRITORIAL | AB217: TERRITORIAL | AC217: 18.52631579 | AE217: ANTIOQUIA - INSTITUTO DE CULTURA Y PATRIMONIO DE ANTIOQUIA - MEDELLIN | AF217: TERRITORIAL | AG217: TERRITORIAL | AH217: 22.71428571 | AJ217: ATLANTICO - GOBERNACION | AK217: TERRITORIAL | AL217: TERRITORIAL | AM217: 14.125
F218: ATLANTICO - ALCALDIA MUNICIPIO DE POLONUEVO | G218: TERRITORIAL | H218: TERRITORIAL | I218: 0 | K218: ANTIOQUIA - CONCEJO MUNICIPIO DE EL BAGRE | L218: =VLOOKUP($K218,BASEMDM!$A$1:$C$4444,3,FALSE) -> TERRITORIAL | M218: =VLOOKUP($K218,BASEMDM!$A$1:$C$4444,2,FALSE) -> TERRITORIAL | N218: 0 | P218: ANTIOQUIA - CONCEJO MUNICIPIO DE AMAGA | Q218: TERRITORIAL | R218: TERRITORIAL | S218: 2.25 | U218: ANTIOQUIA - OCCIDENTE LIMPIO S.A E.S.P - SANTA FE DE ANTIOQUIA | V218: TERRITORIAL | W218: TERRITORIAL | X218: 14 | Z218: ANTIOQUIA - INSTITUCION EDUCATIVA CARLOS ENRIQUE CORTES - ITAGÜI | AA218: TERRITORIAL | AB218: TERRITORIAL | AC218: 0 | AE218: ANTIOQUIA - INSTITUTO DE DEPORTES Y RECREACION DE BARBOSA - INDER BARBOSA | AF218: TERRITORIAL | AG218: TERRITORIAL | AH218: 53 | AJ218: ATLANTICO - INSTITUCION UNIVERSITARIA - ITSA | AK218: TERRITORIAL | AL218: TERRITORIAL | AM218: 40.77777778
